Workbook

Sheet START

Sheet Instructions
D2: 2020
X4: Yes
X5: No
W7: Type of Entities Range:
X8: Parent Municipality
X9: Consolidated Information
W17: MTREF Range: | X17: 2008
X18: 2009
X19: 2010
X20: 2011
X21: 2012
X22: 2013
X23: 2014
X24: 2015
X25: 2016
X26: 2017
X27: 2018
X28: 2019
X29: 2020
X30: 2021
X31: 2022
W33: MTREF Linked: | X33: 13
W34: MTREF: | X34: =INDEX(X17:X31,X33,1) -> 2020
W36: Fin Year: | X36: =MTREF&"/"&RIGHT(MTREF,2)+1 -> 2020/21

Sheet Template names (hidden)
A1: Common sheet headings
A2: Head1 | B2: =HLOOKUP(MTREF,Headings,2) -> 2018/19 | C2: Prior year -1
A3: Head1A | B3: =HLOOKUP(MTREF,Headings,3) -> 2017/18 | C3: Prior year -2
A4: Head1B | B4: =HLOOKUP(MTREF,Headings,4) -> 2016/17 | C4: Prior year -3
A5: Head2 | B5: =HLOOKUP(MTREF,Headings,5) -> Current Year 2019/20 | C5: Year in which budget is being prepared
A6: Head2A | B6: =HLOOKUP(MTREF,Headings,6) -> 2019/20 | C6: Year in which budget is being prepared
A7: Head3 | B7: =HLOOKUP(MTREF,Headings,7) -> 2020/21 Medium Term Revenue & Expenditure Framework | C7: MTREF name
A8: Head4 | B8: LTFS | C8: Long term financial strategy
A9: Head5 | B9: Audited Outcome
A10: Head5A | B10: Outcome
A11: Head5B | B11: Pre-audit outcome
A12: Head6 | B12: Original Budget
A13: Head7 | B13: Adjusted Budget
A14: Head8 | B14: Full Year Forecast
A15: Head9 | B15: =HLOOKUP(MTREF,Headings,8) -> Budget Year 2020/21 | C15: 1st year of MTREF | D15: Year1
A16: Head10 | B16: =HLOOKUP(MTREF,Headings,9) -> Budget Year +1 2021/22 | C16: 2nd year of MTREF | D16: Year2
A17: Head11 | B17: =HLOOKUP(MTREF,Headings,10) -> Budget Year +2 2022/23 | C17: 3rd year of MTREF | D17: Year3
A18: Head12 | B18: =HLOOKUP(MTREF,Headings,11) -> Forecast 2023/24 | C18: 1st yr of long term forecast | D18: Year4
A19: Head13 | B19: =HLOOKUP(MTREF,Headings,12) -> Forecast 2024/25 | C19: Next yr of long term forecast | D19: Year5
A20: Head14 | B20: =HLOOKUP(MTREF,Headings,13) -> Forecast 2025/26 | C20: Next yr of long term forecast | D20: Year6
A21: Head15 | B21: =HLOOKUP(MTREF,Headings,14) -> Forecast 2026/27 | C21: Next yr of long term forecast | D21: Year7
A22: Head16 | B22: =HLOOKUP(MTREF,Headings,15) -> Forecast 2027/28 | C22: Next yr of long term forecast | D22: Year8
A23: Head17 | B23: =HLOOKUP(MTREF,Headings,16) -> Forecast 2028/29 | C23: Next yr of long term forecast | D23: Year9
A24: Head18 | B24: =HLOOKUP(MTREF,Headings,17) -> Forecast 2029/30 | C24: Next yr of long term forecast | D24: Year10
A25: Head19 | B25: =HLOOKUP(MTREF,Headings,18) -> Forecast 2030/31 | C25: Next yr of long term forecast | D25: Year11
A26: Head20 | B26: =HLOOKUP(MTREF,Headings,19) -> Forecast 2031/32 | C26: Next yr of long term forecast | D26: Year12
A27: Head21 | B27: =HLOOKUP(MTREF,Headings,20) -> Forecast 2032/33 | C27: Next yr of long term forecast | D27: Year13
A28: Head22 | B28: =HLOOKUP(MTREF,Headings,21) -> Forecast 2033/34 | C28: Next yr of long term forecast | D28: Year14
A29: Head23 | B29: =HLOOKUP(MTREF,Headings,22) -> Forecast 2034/35 | C29: Next yr of long term forecast | D29: Year15
A30: Head24 | B30: Description
A31: Head25
A32: Head26 | B32: Vote Description
A33: Head27 | B33: Ref
A34: Head27a | B34: References
A35: Head28 | B35: Surplus/(Deficit) for the year | D35: Result
A36: Head29 | B36: =HLOOKUP(MTREF,Headings,23) -> Annual target 2020/21
A37: Head30 | B37: =HLOOKUP(MTREF,Headings,24) -> Revised target 2020/21
A38: Head31 | B38: Quarter ended 30 September
A39: Head32 | B39: Quarter ended 31 December
A40: Head33 | B40: Quarter ended 31 March
A41: Head34 | B41: Quarter ended 30 June
A42: Head35 | B42: Variance explanation
A43: Head36 | B43: YTD Actual 31 Dec
A44: Head37 | B44: YTD Budget 31 Dec
A45: Head38 | B45: Monthly actual
A46: Head39 | B46: YTD actual
A47: Head40 | B47: YTD budget
A48: Head41 | B48: YTD variance
A49: Head42 | B49: Surplus/ (Deficit) for the yr/period
A50: Head43 | B50: =Head3&" Summary" -> 2020/21 Medium Term Revenue & Expenditure Framework Summary
A51: Head44 | B51: 2001 Census
A52: Head45 | B52: 2011 Census
A53: Head46 | B53: - Adjustments Budget - January 2007
A54: Head47 | B54: Previous target year to complete
A55: Head48 | B55: Present value
A56: Head49
A57: Head50 | B57: Other Adjusts.
A58: Head51 | B58: Accum. Funds
A59: Head52 | B59: Multi-year capital
A60: Head53 | B60: Unfore. Unavoid.
A61: Head54 | B61: Prior Adjusted
A62: Head55 | B62: Nat. or Prov. Govt
A63: Head56 | B63: Total Adjusts.
A64: SFPerf1 | B64: Budgeted Financial Performance
A65: SFPerf2 | B65: Forecast Financial Performance
A66: SFPos1 | B66: Budgeted Financial Position
A67: SFPos2 | B67: Forecast Financial Position
A68: Cash1 | B68: Budget Cash Flow
A69: Cash2 | B69: Forecast Cash Flow
A70: RandM | B70: Expenditure includes repairs & maintenance of R'000
A71: Depart1 | B71: Department 1 - | D71: DEP1
A72: Depart2 | B72: Department 2 - | D72: DEP2
A73: Depart3 | B73: Department 3 - | D73: DEP3
A74: Depart4 | B74: Department 4 - | D74: DEP4
A75: Depart5 | B75: Department 5 - | D75: DEP5
A76: Depart6 | B76: Department 6 - | D76: DEP6
A77: Depart7 | B77: Department 7 - | D77: DEP7
A78: Depart8 | B78: Department 8 - | D78: DEP8
A79: Depart9 | B79: Department 9 - | D79: DEP9
A80: Depart10 | B80: Department 10 - | D80: DEP10
A81: Depart11 | B81: Department 11 - | D81: DEP11
A82: Depart12 | B82: Department 12 - | D82: DEP12
A83: Depart13 | B83: Department 13 - | D83: DEP13
A84: Depart14 | B84: Department 14 - | D84: DEP14
A87: Base year of forecast column selection names
A88: Choose | B88: ACT
B89: APP
B90: ADJ
A92: Standard nomenclature
A93: Muni | B93: ='Lookup and lists'!B28 -> LIM351 Blouberg
A94: Municipal Entities | B94: 2 | C94: Type of report: | D94: 1
A95: =IF((MuniEntities=1)*(MuniType=2),"YES","NO") -> NO | B95: Does this municipality have entities (consolidated budget and entity budgets required)? YES/NO
A96: Entity 1 | B96: (Pty) Ltd Example 1 - Municipal entity - | D96: Ent1
A97: Entity 2 | B97: (Pty) Ltd Example 2 - Municipal entity - | D97: Ent2
A98: Entity 3 | B98: Municipal Entity Example 3 | D98: Ent3
A99: Budget approval tables | C99: Chart x-ref | D99: Sch/Tab/Ch | E99: Alternative for municipalities without entities | F99: Alternative for municipalities without entities
B100: =IF(Consolques="YES",E100,F100) -> Table A1 Budget Summary | D100: Table A1 | E100: =D100&"Consolidated Budget Summary" -> Table A1 Consolidated Budget Summary | F100: =D100&"Budget Summary" -> Table A1 Budget Summary
B101: Table A2 Budgeted Financial Performance (revenue and expenditure by functional classification) | C101: Charts 5, 6 | D101: Table A2 | E101: =D101&"Consolidated Budgeted Financial Performance (revenue and expenditure by functional classification)" -> Table A2 Consolidated Budgeted Financial Performance (revenue and expenditure by functional classification) | F101: =D101&"Budgeted Financial Performance (revenue and expenditure by functional classification)" -> Table A2 Budgeted Financial Performance (revenue and expenditure by functional classification)
B102: Table A3 Budgeted Financial Performance (revenue and expenditure by municipal vote) | D102: Table A3 | E102: =D102&"Consolidated Budgeted Financial Performance (revenue and expenditure by municipal vote)" -> Table A3 Consolidated Budgeted Financial Performance (revenue and expenditure by municipal vote) | F102: =D102&"Budgeted Financial Performance (revenue and expenditure by municipal vote)" -> Table A3 Budgeted Financial Performance (revenue and expenditure by municipal vote)
B103: Table A4 Budgeted Financial Performance (revenue and expenditure) | C103: Charts 1, 2, 3, 4 | D103: Table A4 | E103: =D103&"Consolidated Budgeted Financial Performance (revenue and expenditure)" -> Table A4 Consolidated Budgeted Financial Performance (revenue and expenditure) | F103: =D103&"Budgeted Financial Performance (revenue and expenditure)" -> Table A4 Budgeted Financial Performance (revenue and expenditure)
B104: Table A5 Budgeted Capital Expenditure by vote, functional classification and funding | C104: Charts 7, 8, 9, 10, 20 | D104: Table A5 | E104: =D104&"Consolidated Budgeted Capital Expenditure by vote, functional classification and funding" -> Table A5 Consolidated Budgeted Capital Expenditure by vote, functional classification and funding | F104: =D104&"Budgeted Capital Expenditure by vote, functional classification and funding" -> Table A5 Budgeted Capital Expenditure by vote, functional classification and funding
B105: Table A6 Budgeted Financial Position | D105: Table A6 | E105: =D105&"Consolidated Budgeted Financial Position" -> Table A6 Consolidated Budgeted Financial Position | F105: =D105&"Budgeted Financial Position" -> Table A6 Budgeted Financial Position
B106: Table A7 Budgeted Cash Flows | D106: Table A7 | E106: =D106&"Consolidated Budgeted Cash Flows" -> Table A7 Consolidated Budgeted Cash Flows | F106: =D106&"Budgeted Cash Flows" -> Table A7 Budgeted Cash Flows
B107: Table A8 Cash backed reserves/accumulated surplus reconciliation | D107: Table A8 | E107: =D107&"Consolidated Cash backed reserves/accumulated surplus reconciliation" -> Table A8 Consolidated Cash backed reserves/accumulated surplus reconciliation | F107: =D107&"Cash backed reserves/accumulated surplus reconciliation" -> Table A8 Cash backed reserves/accumulated surplus reconciliation
B108: Table A9 Asset Management | D108: Table A9 | E108: =D108&"Consolidated Asset Management" -> Table A9 Consolidated Asset Management | F108: =D108&"Asset Management" -> Table A9 Asset Management
B109: Table A10 Basic service delivery measurement | D109: Table A10 | E109: =D109&"Consolidated basic service delivery measurement" -> Table A10 Consolidated basic service delivery measurement | F109: =D109&"Basic service delivery measurement" -> Table A10 Basic service delivery measurement
A110: Supportinging Tables to the Budget Approval Tables | C110: =$C$99 -> Chart x-ref | D110: =$D$99 -> Sch/Tab/Ch
A111: Supporting Table SA1 | B111: =A111&" Supportinging detail to 'Budgeted Financial Performance'" -> Supporting Table SA1 Supportinging detail to 'Budgeted Financial Performance'
A112: Supporting Table SA2 | B112: =IF(Consolques="YES",E112,F112) -> Supporting Table SA2 Matrix Financial Performance Budget (revenue source/expenditure type and dept.) | E112: =A112&"Consolidated Matrix Financial Performance Budget (revenue source/expenditure type & dept.)" -> Supporting Table SA2 Consolidated Matrix Financial Performance Budget (revenue source/expenditure type & dept.) | F112: =A112&"Matrix Financial Performance Budget (revenue source/expenditure type and dept.)" -> Supporting Table SA2 Matrix Financial Performance Budget (revenue source/expenditure type and dept.)
A113: Supporting Table SA3 | B113: =A113&"Supportinging detail to 'Budgeted Financial Position'" -> Supporting Table SA3 Supportinging detail to 'Budgeted Financial Position'
A114: Supporting Table SA4 | B114: =A114&"Reconciliation of IDP strategic objectives and budget (revenue)" -> Supporting Table SA4 Reconciliation of IDP strategic objectives and budget (revenue) | C114: Chart 11
A115: Supporting Table SA5 | B115: =A115&"Reconciliation of IDP strategic objectives and budget (operating expenditure)" -> Supporting Table SA5 Reconciliation of IDP strategic objectives and budget (operating expenditure) | C115: Chart 12
A116: Supporting Table SA6 | B116: =A116&"Reconciliation of IDP strategic objectives and budget (capital expenditure)" -> Supporting Table SA6 Reconciliation of IDP strategic objectives and budget (capital expenditure) | C116: Chart 13
A117: Supporting Table SA7 | B117: =A117&" Measureable performance objectives" -> Supporting Table SA7 Measureable performance objectives
A118: Supporting Table SA8 | B118: =A118&" Performance indicators and benchmarks" -> Supporting Table SA8 Performance indicators and benchmarks | C118: Chts 15-19
A119: Supporting Table SA9 | B119: =A119&" Social, economic and demographic statistics and assumptions" -> Supporting Table SA9 Social, economic and demographic statistics and assumptions
A120: Supporting Table SA10 | B120: =A120&" Funding measurement" -> Supporting Table SA10 Funding measurement | C120: Chart 14
A121: Supporting Table SA11 | B121: =A121&" Property rates summary" -> Supporting Table SA11 Property rates summary
A122: Supporting Table SA12a | B122: =A122&" Property rates by category (current year)" -> Supporting Table SA12a Property rates by category (current year)
A123: Supporting Table SA12b | B123: =A123&" Property rates by category (budget year)" -> Supporting Table SA12b Property rates by category (budget year)
A124: Supporting Table SA13a | B124: =A124&" Service Tariffs by category" -> Supporting Table SA13a Service Tariffs by category
A125: Supporting Table SA13b | B125: =A125&" Service Tariffs by category - explanatory" -> Supporting Table SA13b Service Tariffs by category - explanatory
A126: Supporting Table SA14 | B126: =A126&" Household bills" -> Supporting Table SA14 Household bills
A127: Supporting Table SA15 | B127: =A127&" Investment particulars by type" -> Supporting Table SA15 Investment particulars by type
A128: Supporting Table SA16 | B128: =A128&" Investment particulars by maturity" -> Supporting Table SA16 Investment particulars by maturity
A129: Supporting Table SA17 | B129: =A129&" Borrowing" -> Supporting Table SA17 Borrowing
A130: Supporting Table SA18 | B130: =A130&" Transfers and grant receipts" -> Supporting Table SA18 Transfers and grant receipts
A131: Supporting Table SA19 | B131: =A131&" Expenditure on transfers and grant programme" -> Supporting Table SA19 Expenditure on transfers and grant programme
A132: Supporting Table SA20 | B132: =A132&" Reconciliation of transfers, grant receipts and unspent funds" -> Supporting Table SA20 Reconciliation of transfers, grant receipts and unspent funds
A133: Supporting Table SA21 | B133: =A133&" Transfers and grants made by the municipality" -> Supporting Table SA21 Transfers and grants made by the municipality
A134: Supporting Table SA22 | B134: =A134&" Summary councillor and staff benefits" -> Supporting Table SA22 Summary councillor and staff benefits
A135: Supporting Table SA23 | B135: =A135&" Salaries, allowances & benefits (political office bearers/councillors/senior managers)" -> Supporting Table SA23 Salaries, allowances & benefits (political office bearers/councillors/senior managers)
A136: Supporting Table SA24 | B136: =A136&" Summary of personnel numbers" -> Supporting Table SA24 Summary of personnel numbers
A137: Supporting Table SA25 | B137: =IF(Consolques="YES",E137,F137) -> Supporting Table SA25 Budgeted monthly revenue and expenditure | E137: =A137&" Consolidated budgeted monthly revenue and expenditure" -> Supporting Table SA25 Consolidated budgeted monthly revenue and expenditure | F137: =A137&" Budgeted monthly revenue and expenditure" -> Supporting Table SA25 Budgeted monthly revenue and expenditure
A138: Supporting Table SA26 | B138: Supporting Table SA26 Budgeted monthly revenue and expenditure (municipal vote) | E138: =A138&" Consolidated budgeted monthly revenue and expenditure (municipal vote)" -> Supporting Table SA26 Consolidated budgeted monthly revenue and expenditure (municipal vote) | F138: =A138&" Budgeted monthly revenue and expenditure (municipal vote)" -> Supporting Table SA26 Budgeted monthly revenue and expenditure (municipal vote)
A139: Supporting Table SA27 | B139: Supporting Table SA27 Budgeted monthly revenue and expenditure (functional classification) | E139: =A139&" Consolidated budgeted monthly revenue and expenditure (functional classification)" -> Supporting Table SA27 Consolidated budgeted monthly revenue and expenditure (functional classification) | F139: =A139&" Budgeted monthly revenue and expenditure (functional classification)" -> Supporting Table SA27 Budgeted monthly revenue and expenditure (functional classification)
A140: Supporting Table SA28 | B140: Supporting Table SA28 Budgeted monthly capital expenditure (municipal vote) | E140: =A140&" Consolidated budgeted monthly capital expenditure (municipal vote)" -> Supporting Table SA28 Consolidated budgeted monthly capital expenditure (municipal vote) | F140: =A140&" Budgeted monthly capital expenditure (municipal vote)" -> Supporting Table SA28 Budgeted monthly capital expenditure (municipal vote)
A141: Supporting Table SA29 | B141: Supporting Table SA29 Budgeted monthly capital expenditure (functional classification) | E141: =A141&" Consolidated budgeted monthly capital expenditure (functional classification)" -> Supporting Table SA29 Consolidated budgeted monthly capital expenditure (functional classification) | F141: =A141&" Budgeted monthly capital expenditure (functional classification)" -> Supporting Table SA29 Budgeted monthly capital expenditure (functional classification)
A142: Supporting Table SA30 | B142: Supporting Table SA30 Budgeted monthly cash flow | E142: =A142&" Consolidated budgeted monthly cash flow" -> Supporting Table SA30 Consolidated budgeted monthly cash flow | F142: =A142&" Budgeted monthly cash flow" -> Supporting Table SA30 Budgeted monthly cash flow
A143: Supporting Table SA31 | B143: NOT REQUIRED - municipality does not have entities | E143: =A143&" Aggregated entity budget" -> Supporting Table SA31 Aggregated entity budget | F143: NOT REQUIRED - municipality does not have entities
A144: Supporting Table SA32 | B144: =A144&" List of external mechanisms" -> Supporting Table SA32 List of external mechanisms
A145: Supporting Table SA33 | B145: =A145&" Contracts having future budgetary implications" -> Supporting Table SA33 Contracts having future budgetary implications
A146: Supporting Table SA34a | B146: =IF(Consolques="YES",E146,F146) -> Supporting Table SA34a Capital expenditure on new assets by asset class | E146: =A146&" Consolidated capital expenditure on new assets by asset class" -> Supporting Table SA34a Consolidated capital expenditure on new assets by asset class | F146: =A146&" Capital expenditure on new assets by asset class" -> Supporting Table SA34a Capital expenditure on new assets by asset class
A147: Supporting Table SA34b | B147: Supporting Table SA34b Capital expenditure on the renewal of existing assets by asset class | E147: =A147&" Consolidated capital expenditure on the renewal of existing assets by asset class" -> Supporting Table SA34b Consolidated capital expenditure on the renewal of existing assets by asset class | F147: =A147&" Capital expenditure on the renewal of existing assets by asset class" -> Supporting Table SA34b Capital expenditure on the renewal of existing assets by asset class
A148: Supporting Table SA34c | B148: Supporting Table SA34c Repairs and maintenance expenditure by asset class | E148: =A148&" Consolidated repairs and maintenance by asset class" -> Supporting Table SA34c Consolidated repairs and maintenance by asset class | F148: =A148&" Repairs and maintenance expenditure by asset class" -> Supporting Table SA34c Repairs and maintenance expenditure by asset class
A149: Supporting Table SA34d | B149: =IF(Consolques="YES",E149,F149) -> Supporting Table SA34d Depreciation by asset class | E149: =A149&" Consolidated Depreciation by asset class" -> Supporting Table SA34d Consolidated Depreciation by asset class | F149: =A149&" Depreciation by asset class" -> Supporting Table SA34d Depreciation by asset class
A150: Supporting Table SA34e | B150: =IF(Consolques="YES",E150,F150) -> Supporting Table SA34e Capital expenditure on the upgrading of existing assets by asset class | E150: =A150&" Consolidated capital expenditure on the upgrading of existing assets by asset class" -> Supporting Table SA34e Consolidated capital expenditure on the upgrading of existing assets by asset class | F150: =A150&" Capital expenditure on the upgrading of existing assets by asset class" -> Supporting Table SA34e Capital expenditure on the upgrading of existing assets by asset class
A151: Supporting Table SA35 | B151: Supporting Table SA35 Future financial implications of the capital budget | E151: =A151&" Consolidated future financial implications of the capital budget" -> Supporting Table SA35 Consolidated future financial implications of the capital budget | F151: =A151& " Future financial implications of the capital budget" -> Supporting Table SA35 Future financial implications of the capital budget
A152: Supporting Table SA36 | B152: Supporting Table SA36 Detailed capital budget | E152: =A152&" Consolidated detailed capital budget" -> Supporting Table SA36 Consolidated detailed capital budget | F152: =A152& " Detailed capital budget" -> Supporting Table SA36 Detailed capital budget
A153: Supporting Table SA37 | B153: Supporting Table SA37 Projects delayed from previous financial year/s | E153: =A153&" Consolidated projects delayed from previous financial year/s" -> Supporting Table SA37 Consolidated projects delayed from previous financial year/s | F153: =A153& " Projects delayed from previous financial year/s" -> Supporting Table SA37 Projects delayed from previous financial year/s
A154: Supporting Table SA38 | B154: =IF(Consolques="YES",E154,F154) -> Supporting Table SA38 Detailed operational projects | E154: =A154&" Consolidated detailed operational projects" -> Supporting Table SA38 Consolidated detailed operational projects | F154: =A154& " Detailed operational projects" -> Supporting Table SA38 Detailed operational projects
A156: Budget Charts | B156: Charts | C156: Cross reference
A157: Chart A1 | B157: =A157&"Revenue by Municipal Vote" -> Chart A1 Revenue by Municipal Vote
A158: Chart A2 | B158: =A158&"Expenditure by Municipal Vote" -> Chart A2 Expenditure by Municipal Vote
A159: Chart A3 | B159: =A159&"Revenue by Standard Classification" -> Chart A3 Revenue by Standard Classification | C159: A2
A160: Chart A4 | B160: =A160&"Expenditure by Standard Classification" -> Chart A4 Expenditure by Standard Classification | C160: A2
A161: Chart A5 | B161: =A161&"Revenue by Major Source (refer 'Minor' source for 'Other Revenue' allocation" -> Chart A5 Revenue by Major Source (refer 'Minor' source for 'Other Revenue' allocation | C161: A3
A162: Chart A6 | B162: =A162&"Revenue by Minor Source (Other)" -> Chart A6 Revenue by Minor Source (Other) | C162: A3
A163: Chart A7 | B163: =A163&"Expenditure by Major Type" -> Chart A7 Expenditure by Major Type | C163: A3
A164: Chart A8 | B164: =A164&"Expenditure by Minor Type (Other)" -> Chart A8 Expenditure by Minor Type (Other) | C164: A3
A165: Chart A9 | B165: =A165&"Capital Expenditure by Municipal Vote/Appropriation (Major)" -> Chart A9 Capital Expenditure by Municipal Vote/Appropriation (Major) | C165: A5
A166: Chart A10 | B166: =A166&"Capital Expenditure by Municipal Vote/Appropriation (Minor)" -> Chart A10 Capital Expenditure by Municipal Vote/Appropriation (Minor) | C166: A5
A167: Chart A11 | B167: =A166&"Capital Expenditure by Standard Classification" -> Chart A10 Capital Expenditure by Standard Classification | C167: A5
A168: Chart A12 | B168: =A168&"Capital expenditure performance trend" -> Chart A12 Capital expenditure performance trend | C168: A5
A169: Chart A13 | B169: =A169&"Capital funding by Source" -> Chart A13 Capital funding by Source | C169: A5
A170: Chart A14 | B170: =A170&"Cash flow trend" -> Chart A14 Cash flow trend | C170: A7
A171: Chart A15 | B171: =A171&"IDP Strategic Objective - Revenue" -> Chart A15 IDP Strategic Objective - Revenue | C171: Table A4
A172: Chart A16 | B172: =A172&"IDP Strategic Objective - Expenditure" -> Chart A16 IDP Strategic Objective - Expenditure | C172: Table A5
A173: Chart A17 | B173: =A173&"IDP Strategic Objective - Capital Expenditure" -> Chart A17 IDP Strategic Objective - Capital Expenditure | C173: Table A6
A174: Chart A18 | B174: =A174&"Debt (borrowing to Total Revenue)" -> Chart A18 Debt (borrowing to Total Revenue) | C174: Table A8
A175: Chart A19 | B175: =A175&"Debtors' trend analysis" -> Chart A19 Debtors' trend analysis | C175: Table A8
A176: Chart A20 | B176: =A176&"Distribution losses" -> Chart A20 Distribution losses | C176: Table A8
A177: Chart A21 | B177: =A177&"Borrowed funding of capital expenditure" -> Chart A21 Borrowed funding of capital expenditure | C177: Table A8
A178: Chart A22 | B178: =A178&"Expenditure analysis (% of Revenue)" -> Chart A22 Expenditure analysis (% of Revenue) | C178: Table A8
A179: Chart A23 | B179: =A179&"Increases in service charges" -> Chart A23 Increases in service charges | C179: Table A10

Sheet Lookup and lists (hidden)
A1: Description | B1: 2007 | C1: 2008 | D1: 2009 | E1: 2010 | F1: 2011 | G1: 2012 | H1: 2013 | I1: 2014 | J1: 2015 | K1: 2016 | L1: 2017 | M1: 2018 | N1: 2019 | O1: 2020 | Q1: Lists | Y1: Grants: | Z1: National - opex | AA1: Provincial - opex | AB1: National - capex | AC1: Provincial - capex
A2: ='Template names'!C2 -> Prior year -1 | B2: 2005/06 | C2: 2006/07 | D2: 2007/08 | E2: =E1-2&"/"&RIGHT(E1,2)-1 -> 2008/9 | F2: 2009/10 | G2: 2010/11 | H2: 2011/12 | I2: 2012/13 | J2: 2013/14 | K2: 2014/15 | L2: 2015/16 | M2: 2016/17 | N2: 2017/18 | O2: 2018/19 | Q2: Yes | R2: <1 | S2: <4 | T2: Market | U2: Land & impr. | V2: Yes | W2: Uniform | X2: Yrs | Z2: Local Government Equitable Share | AA2: Health subsidy | AB2: Municipal Infrastructure Grant (MIG) | AC2: Agriculture
A3: ='Template names'!C3 -> Prior year -2 | B3: 2004/05 | C3: 2005/06 | D3: 2006/07 | E3: =E1-3&"/"&RIGHT(E1,2)-2 -> 2007/8 | F3: 2008/9 | G3: 2009/10 | H3: 2010/11 | I3: 2011/12 | J3: 2012/13 | K3: 2013/14 | L3: 2014/15 | M3: 2015/16 | N3: 2016/17 | O3: 2017/18 | Q3: No | R3: 1 | S3: 4 | T3: Dep.Replace | U3: Land only | V3: No | W3: Variable | X3: Mths | Z3: RSC Levy Replacement | AA3: Ambulance subsidy | AB3: Public Transport and Systems | AC3: Education
A4: ='Template names'!C4 -> Prior year -3 | B4: 2003/04 | C4: 2004/05 | D4: 2005/06 | E4: =E1-4&"/"&RIGHT(E1,2)-3 -> 2006/7 | F4: 2007/8 | G4: 2008/9 | H4: 2009/10 | I4: 2010/11 | J4: 2011/12 | K4: 2012/13 | L4: 2013/14 | M4: 2014/15 | N4: 2015/16 | O4: 2016/17 | R4: 2 | S4: 5 | T4: Other | U4: Other | Z4: Finance Management | AA4: Housing | AB4: Rural Transport Services and Infrastructure | AC4: Health
A5: ='Template names'!C5 -> Year in which budget is being prepared | B5: Current Year 2006/07 | C5: Current Year 2007/08 | D5: Current Year 2008/09 | E5: ="Current Year "& E1-1&"/"&RIGHT(E1,2) -> Current Year 2009/10 | F5: Current Year 2010/11 | G5: Current Year 2011/12 | H5: Current Year 2012/13 | I5: Current Year 2013/14 | J5: Current Year 2014/15 | K5: Current Year 2015/16 | L5: Current Year 2016/17 | M5: Current Year 2017/18 | N5: Current Year 2018/19 | O5: Current Year 2019/20 | R5: 3 | S5: 6 | Z5: Municipal Systems Improvement | AA5: Sport and Recreation | AB5: Regional Bulk Infrastructure | AC5: Housing and Local Government
A6: ='Template names'!C6 -> Year in which budget is being prepared | B6: 2006/07 | C6: 2007/08 | D6: 2008/09 | E6: =E1-1&"/"&RIGHT(E1,2) -> 2009/10 | F6: 2010/11 | G6: 2011/12 | H6: 2012/13 | I6: 2013/14 | J6: 2014/15 | K6: 2015/16 | L6: 2016/17 | M6: 2017/18 | N6: 2018/19 | O6: 2019/20 | R6: 4 | S6: 6-10 | Z6: Water Services Operating Subsidy | AB6: Rural Households Infrastructure | AC6: Other Departments
A7: ='Template names'!C7 -> MTREF name | B7: 2007/08 Medium Term Revenue & Expenditure Framework | C7: 2008/09 Medium Term Revenue & Expenditure Framework | D7: 2009/10 Medium Term Revenue & Expenditure Framework | E7: =E1&"/"&RIGHT(E1,2)+1&" Medium Term Revenue & Expenditure Framework" -> 2010/11 Medium Term Revenue & Expenditure Framework | F7: 2011/12 Medium Term Revenue & Expenditure Framework | G7: 2012/13 Medium Term Revenue & Expenditure Framework | H7: 2013/14 Medium Term Revenue & Expenditure Framework | I7: 2014/15 Medium Term Revenue & Expenditure Framework | J7: 2015/16 Medium Term Revenue & Expenditure Framework | K7: 2016/17 Medium Term Revenue & Expenditure Framework | L7: 2017/18 Medium Term Revenue & Expenditure Framework | M7: 2018/19 Medium Term Revenue & Expenditure Framework | N7: 2019/20 Medium Term Revenue & Expenditure Framework | O7: 2020/21 Medium Term Revenue & Expenditure Framework | R7: 5 | S7: >10 | Z7: Energy Efficiency and Demand Management | AB7: Neighbourhood Development Partnership | AC7: Public Works, Roads, Transport
A8: ='Template names'!C15 -> 1st year of MTREF | B8: Budget Year 2007/08 | C8: Budget Year 2008/09 | D8: Budget Year 2009/10 | E8: ="Budget Year "&E1&"/"&RIGHT(E1,2)+1 -> Budget Year 2010/11 | F8: Budget Year 2011/12 | G8: Budget Year 2012/13 | H8: Budget Year 2013/14 | I8: Budget Year 2014/15 | J8: Budget Year 2015/16 | K8: Budget Year 2016/17 | L8: Budget Year 2017/18 | M8: Budget Year 2018/19 | N8: Budget Year 2019/20 | O8: Budget Year 2020/21 | R8: >5 | Z8: Integrated National Electrification Programme | AB8: 2010 FIFA World Cup Stadiums Development | AC8: Sport and Recreation
A9: ='Template names'!C16 -> 2nd year of MTREF | B9: Budget Year +1 2008/09 | C9: Budget Year +1 2009/10 | D9: Budget Year +1 2010/11 | E9: ="Budget Year +1 "&E1+1&"/"&RIGHT(E1,2)+2 -> Budget Year +1 2011/12 | F9: Budget Year +1 2012/13 | G9: Budget Year +1 2013/14 | H9: Budget Year +1 2014/15 | I9: Budget Year +1 2015/16 | J9: Budget Year +1 2016/17 | K9: Budget Year +1 2017/18 | L9: Budget Year +1 2018/19 | M9: Budget Year +1 2019/20 | N9: Budget Year +1 2020/21 | O9: Budget Year +1 2021/22 | Z9: Municipal Drought Relief
A10: ='Template names'!C17 -> 3rd year of MTREF | B10: Budget Year +2 2009/10 | C10: Budget Year +2 2010/11 | D10: Budget Year +2 2011/12 | E10: ="Budget Year +2 "&E1+2&"/"&RIGHT(E1,2)+3 -> Budget Year +2 2012/13 | F10: Budget Year +2 2013/14 | G10: Budget Year +2 2014/15 | H10: Budget Year +2 2015/16 | I10: Budget Year +2 2016/17 | J10: Budget Year +2 2017/18 | K10: Budget Year +2 2018/19 | L10: Budget Year +2 2019/20 | M10: Budget Year +2 2020/21 | N10: Budget Year +2 2021/22 | O10: Budget Year +2 2022/23 | Z10: 2010 FIFA World Cup Operating
A11: ='Template names'!C18 -> 1st yr of long term forecast | B11: Forecast 2010/11 | C11: Forecast 2011/12 | D11: Forecast 2012/13 | E11: ="Forecast "&E1+3&"/"&RIGHT(E1,2)+4 -> Forecast 2013/14 | F11: Forecast 2014/15 | G11: Forecast 2015/16 | H11: Forecast 2016/17 | I11: Forecast 2017/18 | J11: Forecast 2018/19 | K11: Forecast 2019/20 | L11: Forecast 2020/21 | M11: Forecast 2021/22 | N11: Forecast 2022/23 | O11: Forecast 2023/24 | Z11: Electricity Demand Side Management
A12: ='Template names'!C19 -> Next yr of long term forecast | B12: Forecast 2011/12 | C12: Forecast 2012/13 | D12: Forecast 2013/14 | E12: ="Forecast "&E1+4&"/"&RIGHT(E1,2)+5 -> Forecast 2014/15 | F12: Forecast 2015/16 | G12: Forecast 2016/17 | H12: Forecast 2017/18 | I12: Forecast 2018/19 | J12: Forecast 2019/20 | K12: Forecast 2020/21 | L12: Forecast 2021/22 | M12: Forecast 2022/23 | N12: Forecast 2023/24 | O12: Forecast 2024/25 | Z12: EPWP Incentive
A13: ='Template names'!C20 -> Next yr of long term forecast | B13: Forecast 2012/13 | C13: Forecast 2013/14 | D13: Forecast 2014/15 | E13: ="Forecast "&E1+5&"/"&RIGHT(E1,2)+6 -> Forecast 2015/16 | F13: Forecast 2016/17 | G13: Forecast 2017/18 | H13: Forecast 2018/19 | I13: Forecast 2019/20 | J13: Forecast 2020/21 | K13: Forecast 2021/22 | L13: Forecast 2022/23 | M13: Forecast 2023/24 | N13: Forecast 2024/25 | O13: Forecast 2025/26
A14: ='Template names'!C21 -> Next yr of long term forecast | B14: Forecast 2013/14 | C14: Forecast 2014/15 | D14: Forecast 2015/16 | E14: ="Forecast "&E1+6&"/"&RIGHT(E1,2)+7 -> Forecast 2016/17 | F14: Forecast 2017/18 | G14: Forecast 2018/19 | H14: Forecast 2019/20 | I14: Forecast 2020/21 | J14: Forecast 2021/22 | K14: Forecast 2022/23 | L14: Forecast 2023/24 | M14: Forecast 2024/25 | N14: Forecast 2025/26 | O14: Forecast 2026/27 | Z14: Asset Class | AA14: Asset sub-class old | AB14: Asset sub-class | AC14: IUDF | AD14: MTSF
A15: ='Template names'!C22 -> Next yr of long term forecast | B15: Forecast 2014/15 | C15: Forecast 2015/16 | D15: Forecast 2016/17 | E15: ="Forecast "&E1+7&"/"&RIGHT(E1,2)+8 -> Forecast 2017/18 | F15: Forecast 2018/19 | G15: Forecast 2019/20 | H15: Forecast 2020/21 | I15: Forecast 2021/22 | J15: Forecast 2022/23 | K15: Forecast 2023/24 | L15: Forecast 2024/25 | M15: Forecast 2025/26 | N15: Forecast 2026/27 | O15: Forecast 2027/28
A16: ='Template names'!C23 -> Next yr of long term forecast | B16: Forecast 2015/16 | C16: Forecast 2016/17 | D16: Forecast 2017/18 | E16: ="Forecast "&E1+8&"/"&RIGHT(E1,2)+9 -> Forecast 2018/19 | F16: Forecast 2019/20 | G16: Forecast 2020/21 | H16: Forecast 2021/22 | I16: Forecast 2022/23 | J16: Forecast 2023/24 | K16: Forecast 2024/25 | L16: Forecast 2025/26 | M16: Forecast 2026/27 | N16: Forecast 2027/28 | O16: Forecast 2028/29 | Z16: Roads Infrastructure | AA16: Roads, Pavements & Bridges | AB16: Roads | AC16: Spatial integration | AD16: Quality basic education
A17: ='Template names'!C24 -> Next yr of long term forecast | B17: Forecast 2016/17 | C17: Forecast 2017/18 | D17: Forecast 2018/19 | E17: ="Forecast "&E1+9&"/"&RIGHT(E1,2)+10 -> Forecast 2019/20 | F17: Forecast 2020/21 | G17: Forecast 2021/22 | H17: Forecast 2022/23 | I17: Forecast 2023/24 | J17: Forecast 2024/25 | K17: Forecast 2025/26 | L17: Forecast 2026/27 | M17: Forecast 2027/28 | N17: Forecast 2028/29 | O17: Forecast 2029/30 | Z17: Storm water Infrastructure | AA17: Storm water | AB17: Road Structures | AC17: Inclusion and access | AD17: A long and healthy life for all South Africans
A18: ='Template names'!C25 -> Next yr of long term forecast | B18: Forecast 2017/18 | C18: Forecast 2018/19 | D18: Forecast 2019/20 | E18: ="Forecast "&E1+10&"/"&RIGHT(E1,2)+11 -> Forecast 2020/21 | F18: Forecast 2021/22 | G18: Forecast 2022/23 | H18: Forecast 2023/24 | I18: Forecast 2024/25 | J18: Forecast 2025/26 | K18: Forecast 2026/27 | L18: Forecast 2027/28 | M18: Forecast 2028/29 | N18: Forecast 2029/30 | O18: Forecast 2030/31 | Z18: Electrical Infrastructure | AA18: Generation | AB18: Road Furniture | AC18: Growth | AD18: All people in South Africa are and feel safe
A19: ='Template names'!C26 -> Next yr of long term forecast | B19: Forecast 2018/19 | C19: Forecast 2019/20 | D19: Forecast 2020/21 | E19: ="Forecast "&E1+11&"/"&RIGHT(E1,2)+12 -> Forecast 2021/22 | F19: Forecast 2022/23 | G19: Forecast 2023/24 | H19: Forecast 2024/25 | I19: Forecast 2025/26 | J19: Forecast 2026/27 | K19: Forecast 2027/28 | L19: Forecast 2028/29 | M19: Forecast 2029/30 | N19: Forecast 2030/31 | O19: Forecast 2031/32 | Z19: Water Supply Infrastructure | AA19: Transmission & Reticulation | AB19: Capital Spares | AC19: Governance | AD19: Decent employment through inclusive growth
A20: ='Template names'!C27 -> Next yr of long term forecast | B20: Forecast 2019/20 | C20: Forecast 2020/21 | D20: Forecast 2021/22 | E20: ="Forecast "&E1+12&"/"&RIGHT(E1,2)+13 -> Forecast 2022/23 | F20: Forecast 2023/24 | G20: Forecast 2024/25 | H20: Forecast 2025/26 | I20: Forecast 2026/27 | J20: Forecast 2027/28 | K20: Forecast 2028/29 | L20: Forecast 2029/30 | M20: Forecast 2030/31 | N20: Forecast 2031/32 | O20: Forecast 2032/33 | Z20: Sanitation Infrastructure | AA20: Street Lighting | AB20: Drainage Collection | AD20: A skilled and capable workforce to support an inclusive growth path
A21: ='Template names'!C28 -> Next yr of long term forecast | B21: Forecast 2020/21 | C21: Forecast 2021/22 | D21: Forecast 2022/23 | E21: ="Forecast "&E1+13&"/"&RIGHT(E1,2)+14 -> Forecast 2023/24 | F21: Forecast 2024/25 | G21: Forecast 2025/26 | H21: Forecast 2026/27 | I21: Forecast 2027/28 | J21: Forecast 2028/29 | K21: Forecast 2029/30 | L21: Forecast 2030/31 | M21: Forecast 2031/32 | N21: Forecast 2032/33 | O21: Forecast 2033/34 | Z21: Solid Waste Infrastructure | AA21: Dams & Reservoirs | AB21: Storm water Conveyance | AD21: An efficient, competitive and responsive economic infrastructure network
A22: ='Template names'!C29 -> Next yr of long term forecast | B22: Forecast 2021/22 | C22: Forecast 2022/23 | D22: Forecast 2023/24 | E22: ="Forecast "&E1+14&"/"&RIGHT(E1,2)+15 -> Forecast 2024/25 | F22: Forecast 2025/26 | G22: Forecast 2026/27 | H22: Forecast 2027/28 | I22: Forecast 2028/29 | J22: Forecast 2029/30 | K22: Forecast 2030/31 | L22: Forecast 2031/32 | M22: Forecast 2032/33 | N22: Forecast 2033/34 | O22: Forecast 2034/35 | Z22: Rail Infrastructure | AA22: Water purification | AB22: Attenuation | AD22: Vibrant, equitable, sustainable rural communities contributing towards food security for all
A23: Adjustments Budget | B23: Annual target 2007/08 | C23: Annual target 2008/09 | D23: Annual target 2009/10 | E23: ="Annual target " & E1&"/"&RIGHT(E1,2)+1 -> Annual target 2010/11 | F23: Annual target 2011/12 | G23: Annual target 2012/13 | H23: Annual target 2013/14 | I23: Annual target 2014/15 | J23: Annual target 2015/16 | K23: Annual target 2016/17 | L23: Annual target 2017/18 | M23: Annual target 2018/19 | N23: Annual target 2019/20 | O23: Annual target 2020/21 | Z23: Coastal Infrastructure | AA23: Reticulation | AB23: Power Plants | AD23: Sustainable human settlements and improved quality of household life
A24: =A23 -> Adjustments Budget | B24: Revised target 2007/08 | C24: Revised target 2008/09 | D24: Revised target 2009/10 | E24: ="Revised target "& E1&"/"&RIGHT(E1,2)+1 -> Revised target 2010/11 | F24: Revised target 2011/12 | G24: Revised target 2012/13 | H24: Revised target 2013/14 | I24: Revised target 2014/15 | J24: Revised target 2015/16 | K24: Revised target 2016/17 | L24: Revised target 2017/18 | M24: Revised target 2018/19 | N24: Revised target 2019/20 | O24: Revised target 2020/21 | Z24: Information and Communication Infrastructure | AA24: Sewerage purification | AB24: HV Substations | AD24: Responsive, accountable, effective and efficient local government
A25: NOTE: This sheet should not be directly amended - select headings from sheet 'S' | Z25: Community Facilities | AA25: Waste Management | AB25: HV Switching Station | AD25: Protect and enhance our environmental assets and natural resources
Z26: Sport and Recreation Facilities | AA26: Transportation | AB26: HV Transmission Conductors | AD26: Create a better South Africa and contribute to a better Africa and a better world
A27: Name link | B27: 140 | Z27: Heritage assets | AA27: Gas | AB27: MV Substations | AD27: An efficient, effective and development-oriented public service
A28: Name of Muni | B28: =INDEX(B29:B307,B27,1) -> LIM351 Blouberg | Z28: Revenue Generating | AA28: Parks & gardens | AB28: MV Switching Stations | AD28: A comprehensive, responsive and sustainable social protection system
B29: Choose name from list | C29: Set name on 'Instructions' sheet | Z29: Non-revenue Generating | AA29: Sportsfields & stadia | AB29: MV Networks | AD29: A diverse, socially cohesive society with a common national identity
B30: BUF Buffalo City | C30: EC EASTERN CAPE | Z30: Operational Buildings | AA30: Swimming pools | AB30: LV Networks
B31: NMA Nelson Mandela Bay | C31: EC EASTERN CAPE | Z31: Housing | AA31: Community halls | AB31: Capital Spares
B32: EC101 Dr Beyers Naude | C32: EC EASTERN CAPE | Z32: Biological or Cultivated Assets | AA32: Libraries | AB32: Dams and Weirs
B33: EC102 Blue Crane Route | C33: EC EASTERN CAPE | Z33: Servitudes | AA33: Recreational facilities | AB33: Boreholes
B34: EC104 Makana | C34: EC EASTERN CAPE | Z34: Licences and Rights | AA34: Fire, safety & emergency | AB34: Reservoirs
B35: EC105 Ndlambe | C35: EC EASTERN CAPE | Z35: Computer Equipment | AA35: Security and policing | AB35: Pump Stations
B36: EC106 Sundays River Valley | C36: EC EASTERN CAPE | Z36: Furniture and Office Equipment | AA36: Buses | AB36: Water Treatment Works
B37: EC108 Kouga | C37: EC EASTERN CAPE | Z37: Machinery and Equipment | AA37: Clinics | AB37: Bulk Mains
B38: EC109 Kou-Kamma | C38: EC EASTERN CAPE | Z38: Transport Assets | AA38: Museums & Art Galleries | AB38: Distribution
B39: DC10 Sarah Baartman | C39: EC EASTERN CAPE | Z39: Land | AA39: Cemeteries | AB39: Distribution Points
B40: EC121 Mbhashe | C40: EC EASTERN CAPE | Z40: Zoo's, Marine and Non-biological Animals | AA40: Social rental housing | AB40: PRV Stations
B41: EC122 Mnquma | C41: EC EASTERN CAPE | AA41: Buildings | AB41: Capital Spares
B42: EC123 Great Kei | C42: EC EASTERN CAPE | AA42: Housing development | AB42: Pump Station
B43: EC124 Amahlathi | C43: EC EASTERN CAPE | AA43: General vehicles | AB43: Reticulation
B44: EC126 Ngqushwa | C44: EC EASTERN CAPE | AA44: Specialised vehicles - Refuse | AB44: Waste Water Treatment Works
B45: EC129 Raymond Mhlaba | C45: EC EASTERN CAPE | AA45: Specialised vehicles - Fire | AB45: Outfall Sewers
B46: DC12 Amathole | C46: EC EASTERN CAPE | AA46: Specialised vehicles - Conservancy | AB46: Toilet Facilities
B47: EC131 Inxuba Yethemba | C47: EC EASTERN CAPE | AA47: Specialised vehicles - Ambulances | AB47: Capital Spares
B48: EC135 Intsika Yethu | C48: EC EASTERN CAPE | AA48: Plant & equipment | AB48: Landfill Sites
B49: EC136 Emalahleni (Ec) | C49: EC EASTERN CAPE | AA49: Computers - hardware/equipment | AB49: Waste Transfer Stations
B50: EC137 Engcobo | C50: EC EASTERN CAPE | AA50: Furniture and other office equipment | AB50: Waste Processing Facilities
B51: EC138 Sakhisizwe | C51: EC EASTERN CAPE | AA51: Abattoirs | AB51: Waste Drop-off Points
B52: EC139 Enoch Mgijima | C52: EC EASTERN CAPE | AA52: Markets | AB52: Waste Separation Facilities
B53: DC13 Chris Hani | C53: EC EASTERN CAPE | AA53: Civic Land and Buildings | AB53: Electricity Generation Facilities
B54: EC141 Elundini | C54: EC EASTERN CAPE | AA54: Other Buildings | AB54: Capital Spares
B55: EC142 Senqu | C55: EC EASTERN CAPE | AA55: Other Land | AB55: Rail Lines
B56: EC145 Walter Sisulu | C56: EC EASTERN CAPE | AA56: Surplus Assets - (Investment or Inventory) | AB56: Rail Structures
B57: DC14 Joe Gqabi | C57: EC EASTERN CAPE | AA57: Computers - software & programming | AB57: Rail Furniture
B58: EC153 Ngquza Hills | C58: EC EASTERN CAPE | AA58: Other | AB58: Drainage Collection
B59: EC154 Port St Johns | C59: EC EASTERN CAPE | AB59: Storm water Conveyance
B60: EC155 Nyandeni | C60: EC EASTERN CAPE | Z60: SA16 - Investments | AB60: Attenuation
B61: EC156 Mhlontlo | C61: EC EASTERN CAPE | Z61: Security | AA61: Interest rate | AB61: MV Substations
B62: EC157 King Sabata Dalindyebo | C62: EC EASTERN CAPE | Z62: Yes | AA62: Fixed | AB62: LV Networks
B63: DC15 O .R. Tambo | C63: EC EASTERN CAPE | Z63: No | AA63: Variable | AB63: Capital Spares
B64: EC441 Matatiele | C64: EC EASTERN CAPE | AB64: Sand Pumps
B65: EC442 Umzimvubu | C65: EC EASTERN CAPE | AB65: Piers
B66: EC443 Mbizana | C66: EC EASTERN CAPE | Z66: SA36, SA37 - Capital projects | AB66: Revetments
B67: EC444 Ntabankulu | C67: EC EASTERN CAPE | Z67: Yes | AB67: Promenades
B68: DC44 Alfred Nzo | C68: EC EASTERN CAPE | Z68: No | AB68: Capital Spares
B69: MAN Mangaung | C69: FS FREE STATE | AB69: Data Centres
B70: FS161 Letsemeng | C70: FS FREE STATE | AB70: Core Layers
B71: FS162 Kopanong | C71: FS FREE STATE | AB71: Distribution Layers
B72: FS163 Mohokare | C72: FS FREE STATE | AB72: Capital Spares
B73: DC16 Xhariep | C73: FS FREE STATE | AB73: Halls
B74: FS181 Masilonyana | C74: FS FREE STATE | AB74: Centres
B75: FS182 Tokologo | C75: FS FREE STATE | AB75: Crèches
B76: FS183 Tswelopele | C76: FS FREE STATE | AB76: Clinics/Care Centres
B77: FS184 Matjhabeng | C77: FS FREE STATE | AB77: Fire/Ambulance Stations
B78: FS185 Nala | C78: FS FREE STATE | AB78: Testing Stations
B79: DC18 Lejweleputswa | C79: FS FREE STATE | AB79: Museums
B80: FS191 Setsoto | C80: FS FREE STATE | AB80: Galleries
B81: FS192 Dihlabeng | C81: FS FREE STATE | AB81: Theatres
B82: FS193 Nketoana | C82: FS FREE STATE | AB82: Libraries
B83: FS194 Maluti-a-Phofung | C83: FS FREE STATE | AB83: Cemeteries/Crematoria
B84: FS195 Phumelela | C84: FS FREE STATE | AB84: Police
B85: FS196 Mantsopa | C85: FS FREE STATE | AB85: Purls
B86: DC19 Thabo Mofutsanyana | C86: FS FREE STATE | AB86: Public Open Space
B87: FS201 Moqhaka | C87: FS FREE STATE | AB87: Nature Reserves
B88: FS203 Ngwathe | C88: FS FREE STATE | AB88: Public Ablution Facilities
B89: FS204 Metsimaholo | C89: FS FREE STATE | AB89: Markets
B90: FS205 Mafube | C90: FS FREE STATE | AB90: Stalls
B91: DC20 Fezile Dabi | C91: FS FREE STATE | AB91: Abattoirs
B92: EKU City of Ekurhuleni | C92: GT GAUTENG | AB92: Airports
B93: JHB City Of Johannesburg | C93: GT GAUTENG | AB93: Taxi Ranks/Bus Terminals
B94: TSH City Of Tshwane | C94: GT GAUTENG | AB94: Capital Spares
B95: GT421 Emfuleni | C95: GT GAUTENG | AB95: Indoor Facilities
B96: GT422 Midvaal | C96: GT GAUTENG | AB96: Outdoor Facilities
B97: GT423 Lesedi | C97: GT GAUTENG | AB97: Capital Spares
B98: DC42 Sedibeng | C98: GT GAUTENG | AB98: Monuments
B99: GT481 Mogale City | C99: GT GAUTENG | AB99: Historic Buildings
B100: GT484 Merafong City | C100: GT GAUTENG | AB100: Works of Art
B101: GT485 Rand West City | C101: GT GAUTENG | AB101: Conservation Areas
B102: DC48 West Rand | C102: GT GAUTENG | AB102: Other Heritage
B103: ETH eThekwini | C103: KZN KWAZULU-NATAL | AB103: Improved Property
B104: KZN212 Umdoni | C104: KZN KWAZULU-NATAL | AB104: Unimproved Property
B105: KZN213 Umzumbe | C105: KZN KWAZULU-NATAL | AB105: Municipal Offices
B106: KZN214 uMuziwabantu | C106: KZN KWAZULU-NATAL | AB106: Pay/Enquiry Points
B107: KZN216 Ray Nkonyeni | C107: KZN KWAZULU-NATAL | AB107: Building Plan Offices
B108: DC21 Ugu | C108: KZN KWAZULU-NATAL | AB108: Workshops
B109: KZN221 uMshwathi | C109: KZN KWAZULU-NATAL | AB109: Yards
B110: KZN222 uMngeni | C110: KZN KWAZULU-NATAL | AB110: Stores
B111: KZN223 Mpofana | C111: KZN KWAZULU-NATAL | AB111: Laboratories
B112: KZN224 Impendle | C112: KZN KWAZULU-NATAL | AB112: Training Centres
B113: KZN225 Msunduzi | C113: KZN KWAZULU-NATAL | AB113: Manufacturing Plant
B114: KZN226 Mkhambathini | C114: KZN KWAZULU-NATAL | AB114: Depots
B115: KZN227 Richmond | C115: KZN KWAZULU-NATAL | AB115: Capital Spares
B116: DC22 uMgungundlovu | C116: KZN KWAZULU-NATAL | AB116: Staff Housing
B117: KZN235 Okhahlamba | C117: KZN KWAZULU-NATAL | AB117: Social Housing
B118: KZN237 Inkosi Langalibalele | C118: KZN KWAZULU-NATAL | AB118: Capital Spares
B119: KZN238 Alfred Duma | C119: KZN KWAZULU-NATAL | AB119: Water Rights
B120: DC23 Uthukela | C120: KZN KWAZULU-NATAL | AB120: Effluent Licenses
B121: KZN241 Endumeni | C121: KZN KWAZULU-NATAL | AB121: Solid Waste Licenses
B122: KZN242 Nquthu | C122: KZN KWAZULU-NATAL | AB122: Computer Software and Applications
B123: KZN244 Msinga | C123: KZN KWAZULU-NATAL | AB123: Load Settlement Software Applications
B124: KZN245 Umvoti | C124: KZN KWAZULU-NATAL | AB124: Unspecified
B125: DC24 Umzinyathi | C125: KZN KWAZULU-NATAL
B126: KZN252 Newcastle | C126: KZN KWAZULU-NATAL
B127: KZN253 Emadlangeni | C127: KZN KWAZULU-NATAL
B128: KZN254 Dannhauser | C128: KZN KWAZULU-NATAL
B129: DC25 Amajuba | C129: KZN KWAZULU-NATAL
B130: KZN261 eDumbe | C130: KZN KWAZULU-NATAL
B131: KZN262 uPhongolo | C131: KZN KWAZULU-NATAL
B132: KZN263 Abaqulusi | C132: KZN KWAZULU-NATAL
B133: KZN265 Nongoma | C133: KZN KWAZULU-NATAL
B134: KZN266 Ulundi | C134: KZN KWAZULU-NATAL
B135: DC26 Zululand | C135: KZN KWAZULU-NATAL
B136: KZN271 Umhlabuyalingana | C136: KZN KWAZULU-NATAL
B137: KZN272 Jozini | C137: KZN KWAZULU-NATAL
B138: KZN275 Mtubatuba | C138: KZN KWAZULU-NATAL
B139: KZN276 Hlabisa Big Five | C139: KZN KWAZULU-NATAL
B140: DC27 Umkhanyakude | C140: KZN KWAZULU-NATAL
B141: KZN281 Mfolozi | C141: KZN KWAZULU-NATAL
B142: KZN282 uMhlathuze | C142: KZN KWAZULU-NATAL
B143: KZN284 uMlalazi | C143: KZN KWAZULU-NATAL
B144: KZN285 Mthonjaneni | C144: KZN KWAZULU-NATAL
B145: KZN286 Nkandla | C145: KZN KWAZULU-NATAL
B146: DC28 King Cetshwayo | C146: KZN KWAZULU-NATAL
B147: KZN291 Mandeni | C147: KZN KWAZULU-NATAL
B148: KZN292 KwaDukuza | C148: KZN KWAZULU-NATAL
B149: KZN293 Ndwedwe | C149: KZN KWAZULU-NATAL
B150: KZN294 Maphumulo | C150: KZN KWAZULU-NATAL
B151: DC29 iLembe | C151: KZN KWAZULU-NATAL
B152: KZN433 Greater Kokstad | C152: KZN KWAZULU-NATAL
B153: KZN434 Ubuhlebezwe | C153: KZN KWAZULU-NATAL
B154: KZN435 Umzimkhulu | C154: KZN KWAZULU-NATAL
B155: KZN436 Dr Nkosazana Dlamini Zuma | C155: KZN KWAZULU-NATAL
B156: DC43 Harry Gwala | C156: KZN KWAZULU-NATAL
B157: LIM331 Greater Giyani | C157: LIM LIMPOPO
B158: LIM332 Greater Letaba | C158: LIM LIMPOPO
B159: LIM333 Greater Tzaneen | C159: LIM LIMPOPO
B160: LIM334 Ba-Phalaborwa | C160: LIM LIMPOPO
B161: LIM335 Maruleng | C161: LIM LIMPOPO
B162: DC33 Mopani | C162: LIM LIMPOPO
B163: LIM341 Musina | C163: LIM LIMPOPO
B164: LIM343 Thulamela | C164: LIM LIMPOPO
B165: LIM344 Makhado | C165: LIM LIMPOPO
B166: LIM345 Collins Chabane | C166: LIM LIMPOPO
B167: DC34 Vhembe | C167: LIM LIMPOPO
B168: LIM351 Blouberg | C168: LIM LIMPOPO
B169: LIM353 Molemole | C169: LIM LIMPOPO
B170: LIM354 Polokwane | C170: LIM LIMPOPO
B171: LIM355 Lepelle-Nkumpi | C171: LIM LIMPOPO
B172: DC35 Capricorn | C172: LIM LIMPOPO
B173: LIM361 Thabazimbi | C173: LIM LIMPOPO
B174: LIM362 Lephalale | C174: LIM LIMPOPO
B175: LIM366 Bela Bela | C175: LIM LIMPOPO
B176: LIM367 Mogalakwena | C176: LIM LIMPOPO
B177: LIM368 Modimolle-Mookgopong | C177: LIM LIMPOPO
B178: DC36 Waterberg | C178: LIM LIMPOPO
B179: LIM471 Ephraim Mogale | C179: LIM LIMPOPO
B180: LIM472 Elias Motsoaledi | C180: LIM LIMPOPO
B181: LIM473 Makhuduthamaga | C181: LIM LIMPOPO
B182: LIM476 Tubatse Fetakgomo | C182: LIM LIMPOPO
B183: DC47 Sekhukhune | C183: LIM LIMPOPO
B184: MP301 Albert Luthuli | C184: MP MPUMALANGA
B185: MP302 Msukaligwa | C185: MP MPUMALANGA
B186: MP303 Mkhondo | C186: MP MPUMALANGA
B187: MP304 Pixley Ka Seme (MP) | C187: MP MPUMALANGA
B188: MP305 Lekwa | C188: MP MPUMALANGA
B189: MP306 Dipaleseng | C189: MP MPUMALANGA
B190: MP307 Govan Mbeki | C190: MP MPUMALANGA
B191: DC30 Gert Sibande | C191: MP MPUMALANGA
B192: MP311 Victor Khanye | C192: MP MPUMALANGA
B193: MP312 Emalahleni (Mp) | C193: MP MPUMALANGA
B194: MP313 Steve Tshwete | C194: MP MPUMALANGA
B195: MP314 Emakhazeni | C195: MP MPUMALANGA
B196: MP315 Thembisile Hani | C196: MP MPUMALANGA
B197: MP316 Dr J.S. Moroka | C197: MP MPUMALANGA
B198: DC31 Nkangala | C198: MP MPUMALANGA
B199: MP321 Thaba Chweu | C199: MP MPUMALANGA
B200: MP324 Nkomazi | C200: MP MPUMALANGA
... 87 more rows

Sheet Org structure
A1: Organisational Structure Votes | C1: Organisational Structure Sub-Votes | E1: Display Sub-Votes
A2: =B2&" - "&C2 -> Vote 01 - Executive & Council | B2: Vote 01 | C2: Executive & Council
A3: =B4&" - "&C4 -> Vote 02 - Finance And Administration | B3: 01.1 | C3: Council General | D3: =CONCATENATE(B3, " - ", C3) -> 01.1 - Council General | E3: 01.1 - Council General
A4: =B6&" - "&C6 -> Vote 03 - Community Service | B4: Vote 02 | C4: Finance And Administration
A5: =B8&" - "&C8 -> Vote 04 - Public And Safety | B5: 02.1 | C5: Municipal Manager | D5: =CONCATENATE(B5, " - ", C5) -> 02.1 - Municipal Manager | E5: 02.1 - Municipal Manager
A6: =B10&" - "&C10 -> Vote 05 - Waste Management | B6: Vote 03 | C6: Community Service
A7: =B18&" - "&C18 -> Vote 06 - Roads Services | B7: 03.1 | C7: Finance Services Administration | D7: =CONCATENATE(B7, " - ", C7) -> 03.1 - Finance Services Administration | E7: 03.1 - Finance Services Administration
A8: =B33&" - "&C33 -> Vote 07 - Econominc Development And Planning | B8: Vote 04 | C8: Public And Safety
A9: =B35&" - "&C35 -> Vote 08 - | B9: 04.1 | C9: Corporate Services Administration | D9: =CONCATENATE(B9, " - ", C9) -> 04.1 - Corporate Services Administration | E9: 04.1 - Corporate Services Administration
A10: Vote 09 - | B10: Vote 05 | C10: Waste Management
A11: Vote 10 - | B11: 05.1 | C11: Technical Services Administration | D11: =CONCATENATE(B11, " - ", C11) -> 05.1 - Technical Services Administration | E11: 05.1 - Technical Services Administration
A12: Vote 11 - | B12: 05.2 | C12: Electrical Services | D12: 05.2 - Electrical Services | E12: 05.2 - Electrical Services
A13: Vote 12 - | B13: 05.3 | C13: Water Services | D13: 05.3 - Water Services | E13: 05.3 - Water Services
A14: Vote 13 - | B14: 05.4 | C14: Sanitation Services | D14: 05.4 - Sanitation Services | E14: 05.4 - Sanitation Services
A15: Vote 14 - | B15: 05.5 | C15: Roads Services | D15: 05.5 - Roads Services | E15: 05.5 - Roads Services
A16: Vote 15 - Other | B16: 05.6 | C16: Storm Water Services | D16: 05.6 - Storm Water Services | E16: 05.6 - Storm Water Services
B17: 05.7 | C17: Water Reporting Function | D17: 05.7 - Water Reporting Function | E17: 05.7 - Water Reporting Function
B18: Vote 06 | C18: Roads Services
B19: 06.1 | C19: Community Services Administration | D19: =CONCATENATE(B19, " - ", C19) -> 06.1 - Community Services Administration | E19: 06.1 - Community Services Administration
B20: 06.2 | C20: Traffic Services | D20: 06.2 - Traffic Services | E20: 06.2 - Traffic Services
B21: 06.3 | C21: Traffic Services | D21: 06.3 - Traffic Services | E21: 06.3 - Traffic Services
B22: 06.4 | C22: Libraries | D22: 06.4 - Libraries | E22: 06.4 - Libraries
B23: 06.5 | C23: Sport | D23: 06.5 - Sport | E23: 06.5 - Sport
B24: 06.6 | C24: Cemetery | D24: 06.6 - Cemetery | E24: 06.6 - Cemetery
B25: 06.7 | C25: Refuse | D25: 06.7 - Refuse | E25: 06.7 - Refuse
B26: 06.8 | C26: Pound Services | D26: 06.8 - Pound Services | E26: 06.8 - Pound Services
B27: 06.9 | C27: Pound Services | D27: 06.9 - Pound Services | E27: 06.9 - Pound Services
B28: 06.10 | C28: Satellite Offices | D28: 06.10 - Satellite Offices | E28: 06.10 - Satellite Offices
B29: 06.11 | C29: Alldays Offices | D29: 06.11 - Alldays Offices | E29: 06.11 - Alldays Offices
B30: 06.12 | C30: Eldorado Offices | D30: 06.12 - Eldorado Offices | E30: 06.12 - Eldorado Offices
B31: 06.13 | C31: Tolwe Offices | D31: 06.13 - Tolwe Offices | E31: 06.13 - Tolwe Offices
B32: 06.14 | C32: Senwabarwarna Offices | D32: 06.14 - Senwabarwarna Offices | E32: 06.14 - Senwabarwarna Offices
B33: Vote 07 | C33: Econominc Development And Planning
B34: 07.1 | C34: Economic Development And Planning | D34: =CONCATENATE(B34, " - ", C34) -> 07.1 - Economic Development And Planning | E34: 07.1 - Economic Development And Planning
B35: Vote 08
B36: Vote 09
B37: Vote 10
B38: Vote 11
B39: Vote 12
B40: Vote 13
B41: Vote 14
B42: Vote 15 | C42: Other

Sheet Contacts
A1: =muni&" - "&" Contact Information" -> LIM351 Blouberg - Contact Information
A3: A. GENERAL INFORMATION
A4: Municipality | B4: =muni -> LIM351 Blouberg | C4: =IF(B4="Choose name from List","Set name on 'Instructions' sheet", "") -> 
A6: Grade | B6: 3 | C6: 1 Grade in terms of the Remuneration of Public Office Bearers Act.
A8: Province | B8: =IF(B4>" ",VLOOKUP(B4,'Lookup and lists'!B29:C307,2, FALSE)," ") -> LIM LIMPOPO
A10: Web Address | B10: www.blouberg.gov.za
A12: e-mail Address | B12: blou@blouberg.gov.za
A14: B. CONTACT INFORMATION
A15: Postal address:
A16: P.O. Box | B16: Box 1593
A17: City / Town | B17: Senwabarwana
A18: Postal Code | B18: 0790
A20: Street address
A21: Building | B21: 2nd Building
A22: Street No. & Name | B22: Senwabarwana/Dendron Road
A23: City / Town | B23: Senwabarwana
A24: Postal Code | B24: 0790
A26: General Contacts
A27: Telephone number | B27: 015 505 7100
A28: Fax number | B28: 015 505 0296
A30: C. POLITICAL LEADERSHIP
A31: Speaker: | C31: Secretary/PA to the Speaker:
A32: ID Number | C32: ID Number
A33: Title | B33: Mrs | C33: Title | D33: Mrs
A34: Name | B34: THAMAGA MN | C34: Name | D34: MALATJI PJ
A35: Telephone number | B35: 015 505 7117 | C35: Telephone number | D35: 015 505 7189
A36: Cell number | B36: 071 234 4190 | C36: Cell number | D36: 076 654 3873
A37: Fax number | B37: 015 505 0296 | C37: Fax number | D37: 105 505 0296
A38: E-mail address | B38: mariankholane@gmail.com | C38: E-mail address | D38: Malatjip@blouberg.gov.za
A40: Mayor/Executive Mayor: | C40: Secretary/PA to the Mayor/Executive Mayor:
A41: ID Number | C41: ID Number
A42: Title | B42: Mr | C42: Title | D42: Ms
A43: Name | B43: PHEEDI S | C43: Name | D43: MATLAPU M
A44: Telephone number | B44: 015 505 7191 | C44: Telephone number | D44: 015 505 7191
A45: Cell number | B45: 082 515 7596 | C45: Cell number | D45: 082 515 7596
A46: Fax number | B46: 015 505 0296 | C46: Fax number | D46: 015 505 0296
A47: E-mail address | B47: Masekapheedi3@gmail.com | C47: E-mail address | D47: matlapum@blouberg.gov.za
A49: Deputy Mayor/Executive Mayor: | C49: Secretary/PA to the Deputy Mayor/Executive Mayor:
A50: ID Number | C50: ID Number
A51: Title | C51: Title
A52: Name | C52: Name
A53: Telephone number | C53: Telephone number
A54: Cell number | C54: Cell number
A55: Fax number | C55: Fax number
A56: E-mail address | C56: E-mail address
A58: D. MANAGEMENT LEADERSHIP
A59: Municipal Manager: | C59: Secretary/PA to the Municipal Manager:
A60: ID Number | C60: ID Number | D60: 8402021376082
A61: Title | B61: Mr | C61: Title | D61: Mrs
A62: Name | B62: MACHABA M.J | C62: Name | D62: RAMOLOMO MS
A63: Telephone number | B63: 015 505 7163 | C63: Telephone number | D63: 015 505 7100/21
A64: Cell number | B64: 0825234435 | C64: Cell number | D64: 0786875828
A65: Fax number | B65: 015 505 0296 | C65: Fax number | D65: 015 505 0296
A66: E-mail address | B66: 0825234435 | C66: E-mail address | D66: RamolomoM@blouberg.gov.za
A68: Chief Financial Officer | C68: Secretary/PA to the Chief Financial Officer
A69: ID Number | C69: ID Number
A70: Title | B70: Mr | C70: Title | D70: Mr
A71: Name | B71: Mabote N.J | C71: Name | D71: MAHARE M
A72: Telephone number | B72: 015 505 7147 | C72: Telephone number | D72: 015 505 7151
A73: Cell number | B73: 082 818 0008 | C73: Cell number
A74: Fax number | B74: 015 505 0296 | C74: Fax number | D74: 015 505 0296
A75: E-mail address | B75: Mabotej@blouberg.gov.za | C75: E-mail address | D75: Maharet@blouberg.gov.za
A77: Official responsible for submitting financial information | C77: Official responsible for submitting financial information
A78: ID Number | B78: 8107260490086 | C78: ID Number
A79: Title | B79: Ms | C79: Title
A80: Name | B80: Riba M | C80: Name
A81: Telephone number | B81: 015 505 7156 | C81: Telephone number
A82: Cell number | B82: 083 561 9472 | C82: Cell number
A83: Fax number | B83: 015 505 0296 | C83: Fax number
A84: E-mail address | B84: Ribam@blouberg.gov.za | C84: E-mail address
A85: Official responsible for submitting financial information | C85: Official responsible for submitting financial information
A86: ID Number | C86: ID Number
A87: Title | C87: Title
A88: Name | C88: Name
A89: Telephone number | C89: Telephone number
A90: Cell number | C90: Cell number
A91: Fax number | C91: Fax number
A92: E-mail address | C92: E-mail address
A93: Official responsible for submitting financial information | C93: Official responsible for submitting financial information
A94: ID Number | C94: ID Number
A95: Title | C95: Title
A96: Name | C96: Name
A97: Telephone number | C97: Telephone number
A98: Cell number | C98: Cell number
A99: Fax number | C99: Fax number
A100: E-mail address | C100: E-mail address
A101: Official responsible for submitting financial information | C101: Official responsible for submitting financial information
A102: ID Number | C102: ID Number
A103: Title | C103: Title
A104: Name | C104: Name
A105: Telephone number | C105: Telephone number
A106: Cell number | C106: Cell number
A107: Fax number | C107: Fax number
A108: E-mail address | C108: E-mail address
A109: Official responsible for submitting financial information | C109: Official responsible for submitting financial information
A110: ID Number | C110: ID Number
A111: Title | C111: Title
A112: Name | C112: Name
A113: Telephone number | C113: Telephone number
A114: Cell number | C114: Cell number
A115: Fax number | C115: Fax number
A116: E-mail address | C116: E-mail address
A117: Official responsible for submitting financial information | C117: Official responsible for submitting financial information
A118: ID Number | C118: ID Number
A119: Title | C119: Title
A120: Name | C120: Name
A121: Telephone number | C121: Telephone number
A122: Cell number | C122: Cell number
A123: Fax number | C123: Fax number
A124: E-mail address | C124: E-mail address
A125: Official responsible for submitting financial information | C125: Official responsible for submitting financial information
A126: ID Number | C126: ID Number
A127: Title | C127: Title
A128: Name | C128: Name
A129: Telephone number | C129: Telephone number
A130: Cell number | C130: Cell number
A131: Fax number | C131: Fax number
A132: E-mail address | C132: E-mail address
A133: Official responsible for submitting financial information
A134: ID Number
A135: Title
A136: Name
A137: Telephone number
A138: Cell number
A139: Fax number
A140: E-mail address

Sheet A1-Sum
A1: =muni&" - "&Approve1 -> LIM351 Blouberg - Table A1 Budget Summary
A2: =desc -> Description | B2: =head1b -> 2016/17 | C2: =head1A -> 2017/18 | D2: =Head1 -> 2018/19 | E2: =Head2 -> Current Year 2019/20 | I2: =Head3 -> 2020/21 Medium Term Revenue & Expenditure Framework
A3: R thousands | B3: =Head5 -> Audited Outcome | C3: =Head5 -> Audited Outcome | D3: =Head5 -> Audited Outcome | E3: =Head6 -> Original Budget | F3: =Head7 -> Adjusted Budget | G3: =Head8 -> Full Year Forecast | H3: =Head5b -> Pre-audit outcome | I3: =Head9 -> Budget Year 2020/21 | J3: =Head10 -> Budget Year +1 2021/22 | K3: =Head11 -> Budget Year +2 2022/23
A4: Financial Performance
A5: Property rates | B5: ='A4-FinPerf RE'!C5 -> 0 | C5: ='A4-FinPerf RE'!D5 -> 26601780.26 | D5: ='A4-FinPerf RE'!E5 -> 24056426.6 | E5: ='A4-FinPerf RE'!F5 -> 28090001 | F5: ='A4-FinPerf RE'!G5 -> 28090001 | G5: ='A4-FinPerf RE'!H5 -> 28090001 | H5: ='A4-FinPerf RE'!I5 -> 24302770.86 | I5: ='A4-FinPerf RE'!J5 -> 32475401 | J5: ='A4-FinPerf RE'!K5 -> 33510449 | K5: ='A4-FinPerf RE'!L5 -> 35462979
A6: Service charges | B6: =SUM('A4-FinPerf RE'!C6:C9) -> 0 | C6: =SUM('A4-FinPerf RE'!D6:D9) -> 22942437.2 | D6: =SUM('A4-FinPerf RE'!E6:E9) -> 22984084.94 | E6: =SUM('A4-FinPerf RE'!F6:F9) -> 32836400 | F6: =SUM('A4-FinPerf RE'!G6:G9) -> 33086400 | G6: =SUM('A4-FinPerf RE'!H6:H9) -> 33086400 | H6: =SUM('A4-FinPerf RE'!I6:I9) -> 22418956.93 | I6: =SUM('A4-FinPerf RE'!J6:J9) -> 40148059 | J6: =SUM('A4-FinPerf RE'!K6:K9) -> 42346944 | K6: =SUM('A4-FinPerf RE'!L6:L9) -> 44677760
A7: Investment revenue | B7: ='A4-FinPerf RE'!C12 -> 0 | C7: ='A4-FinPerf RE'!D12 -> 2475497.02 | D7: ='A4-FinPerf RE'!E12 -> 1307930.57 | E7: ='A4-FinPerf RE'!F12 -> 1700000 | F7: ='A4-FinPerf RE'!G12 -> 1700000 | G7: ='A4-FinPerf RE'!H12 -> 1700000 | H7: ='A4-FinPerf RE'!I12 -> 684943.89 | I7: ='A4-FinPerf RE'!J12 -> 1802000 | J7: ='A4-FinPerf RE'!K12 -> 1910120 | K7: ='A4-FinPerf RE'!L12 -> 2024728
A8: Transfers recognised - operational | B8: ='A4-FinPerf RE'!C18 -> 0 | C8: ='A4-FinPerf RE'!D18 -> 209412876.3 | D8: ='A4-FinPerf RE'!E18 -> 182423931.8 | E8: ='A4-FinPerf RE'!F18 -> 210915000 | F8: ='A4-FinPerf RE'!G18 -> 191915000 | G8: ='A4-FinPerf RE'!H18 -> 191915000 | H8: ='A4-FinPerf RE'!I18 -> 144746478.3 | I8: ='A4-FinPerf RE'!J18 -> 201287000 | J8: ='A4-FinPerf RE'!K18 -> 211808000 | K8: ='A4-FinPerf RE'!L18 -> 221502000
A9: Other own revenue | B9: ='A4-FinPerf RE'!C11+'A4-FinPerf RE'!C13+'A4-FinPerf RE'!C14+'A4-FinPerf RE'!C15+'A4-FinPerf RE'!C16+'A4-FinPerf RE'!C17+'A4-FinPerf RE'!C19+'A4-FinPerf RE'!C20 -> 0 | C9: ='A4-FinPerf RE'!D11+'A4-FinPerf RE'!D13+'A4-FinPerf RE'!D14+'A4-FinPerf RE'!D15+'A4-FinPerf RE'!D16+'A4-FinPerf RE'!D17+'A4-FinPerf RE'!D19+'A4-FinPerf RE'!D20 -> 11121094.39 | D9: ='A4-FinPerf RE'!E11+'A4-FinPerf RE'!E13+'A4-FinPerf RE'!E14+'A4-FinPerf RE'!E15+'A4-FinPerf RE'!E16+'A4-FinPerf RE'!E17+'A4-FinPerf RE'!E19+'A4-FinPerf RE'!E20 -> 8473424.91 | E9: ='A4-FinPerf RE'!F11+'A4-FinPerf RE'!F13+'A4-FinPerf RE'!F14+'A4-FinPerf RE'!F15+'A4-FinPerf RE'!F16+'A4-FinPerf RE'!F17+'A4-FinPerf RE'!F19+'A4-FinPerf RE'!F20 -> 15226035 | F9: ='A4-FinPerf RE'!G11+'A4-FinPerf RE'!G13+'A4-FinPerf RE'!G14+'A4-FinPerf RE'!G15+'A4-FinPerf RE'!G16+'A4-FinPerf RE'!G17+'A4-FinPerf RE'!G19+'A4-FinPerf RE'!G20 -> 14926035 | G9: ='A4-FinPerf RE'!H11+'A4-FinPerf RE'!H13+'A4-FinPerf RE'!H14+'A4-FinPerf RE'!H15+'A4-FinPerf RE'!H16+'A4-FinPerf RE'!H17+'A4-FinPerf RE'!H19+'A4-FinPerf RE'!H20 -> 14926035 | H9: ='A4-FinPerf RE'!I11+'A4-FinPerf RE'!I13+'A4-FinPerf RE'!I14+'A4-FinPerf RE'!I15+'A4-FinPerf RE'!I16+'A4-FinPerf RE'!I17+'A4-FinPerf RE'!I19+'A4-FinPerf RE'!I20 -> 6455365.34 | I9: ='A4-FinPerf RE'!J11+'A4-FinPerf RE'!J13+'A4-FinPerf RE'!J14+'A4-FinPerf RE'!J15+'A4-FinPerf RE'!J16+'A4-FinPerf RE'!J17+'A4-FinPerf RE'!J19+'A4-FinPerf RE'!J20 -> 17497016 | J9: ='A4-FinPerf RE'!K11+'A4-FinPerf RE'!K13+'A4-FinPerf RE'!K14+'A4-FinPerf RE'!K15+'A4-FinPerf RE'!K16+'A4-FinPerf RE'!K17+'A4-FinPerf RE'!K19+'A4-FinPerf RE'!K20 -> 18246840 | K9: ='A4-FinPerf RE'!L11+'A4-FinPerf RE'!L13+'A4-FinPerf RE'!L14+'A4-FinPerf RE'!L15+'A4-FinPerf RE'!L16+'A4-FinPerf RE'!L17+'A4-FinPerf RE'!L19+'A4-FinPerf RE'!L20 -> 19041655
A10: ='A4-FinPerf RE'!A21 -> Total Revenue (excluding capital transfers and contributions) | B10: =SUM(B5:B9) -> 0 | C10: 272553685.2 | D10: 239245798.8 | E10: 288767436 | F10: 269717436 | G10: 269717436 | H10: 198608515.3 | I10: 293209476 | J10: 307822353 | K10: 322709122
A11: Employee costs | B11: ='A4-FinPerf RE'!C24 -> 0 | C11: ='A4-FinPerf RE'!D24 -> 99327666.72 | D11: ='A4-FinPerf RE'!E24 -> 103612611.1 | E11: ='A4-FinPerf RE'!F24 -> 123855157 | F11: ='A4-FinPerf RE'!G24 -> 120627836 | G11: ='A4-FinPerf RE'!H24 -> 120627836 | H11: ='A4-FinPerf RE'!I24 -> 71847386.77 | I11: ='A4-FinPerf RE'!J24 -> 129158870 | J11: ='A4-FinPerf RE'!K24 -> 138095312 | K11: ='A4-FinPerf RE'!L24 -> 147653119
A12: Remuneration of councillors | B12: ='A4-FinPerf RE'!C25 -> 0 | C12: ='A4-FinPerf RE'!D25 -> 15739124.61 | D12: ='A4-FinPerf RE'!E25 -> 16186992.01 | E12: ='A4-FinPerf RE'!F25 -> 15433577 | F12: ='A4-FinPerf RE'!G25 -> 17090931 | G12: ='A4-FinPerf RE'!H25 -> 17090931 | H12: ='A4-FinPerf RE'!I25 -> 10960892.84 | I12: ='A4-FinPerf RE'!J25 -> 18116396 | J12: ='A4-FinPerf RE'!K25 -> 19203378 | K12: ='A4-FinPerf RE'!L25 -> 20355581
A13: Depreciation & asset impairment | B13: ='A4-FinPerf RE'!C27 -> 0 | C13: ='A4-FinPerf RE'!D27 -> 35462508.13 | D13: ='A4-FinPerf RE'!E27 -> 35256654.26 | E13: ='A4-FinPerf RE'!F27 -> 41673731 | F13: ='A4-FinPerf RE'!G27 -> 41117719 | G13: ='A4-FinPerf RE'!H27 -> 41117719 | H13: ='A4-FinPerf RE'!I27 -> 0 | I13: ='A4-FinPerf RE'!J27 -> 43757411 | J13: ='A4-FinPerf RE'!K27 -> 46382859 | K13: ='A4-FinPerf RE'!L27 -> 49165828
A14: Finance charges | B14: ='A4-FinPerf RE'!C28 -> 0 | C14: ='A4-FinPerf RE'!D28 -> 0 | D14: ='A4-FinPerf RE'!E28 -> 0 | E14: ='A4-FinPerf RE'!F28 -> 0 | F14: ='A4-FinPerf RE'!G28 -> 0 | G14: ='A4-FinPerf RE'!H28 -> 0 | H14: ='A4-FinPerf RE'!I28 -> 0 | I14: ='A4-FinPerf RE'!J28 -> 0 | J14: ='A4-FinPerf RE'!K28 -> 0 | K14: ='A4-FinPerf RE'!L28 -> 0
A15: Materials and bulk purchases | B15: ='A4-FinPerf RE'!C29+'A4-FinPerf RE'!C30 -> 0 | C15: ='A4-FinPerf RE'!D29+'A4-FinPerf RE'!D30 -> 31635253 | D15: ='A4-FinPerf RE'!E29+'A4-FinPerf RE'!E30 -> 31570319.46 | E15: ='A4-FinPerf RE'!F29+'A4-FinPerf RE'!F30 -> 33615000 | F15: ='A4-FinPerf RE'!G29+'A4-FinPerf RE'!G30 -> 37695450 | G15: ='A4-FinPerf RE'!H29+'A4-FinPerf RE'!H30 -> 37695450 | H15: ='A4-FinPerf RE'!I29+'A4-FinPerf RE'!I30 -> 24040031.17 | I15: ='A4-FinPerf RE'!J29+'A4-FinPerf RE'!J30 -> 40026200 | J15: ='A4-FinPerf RE'!K29+'A4-FinPerf RE'!K30 -> 42321772 | K15: ='A4-FinPerf RE'!L29+'A4-FinPerf RE'!L30 -> 44861079
A16: Transfers and grants | B16: ='A4-FinPerf RE'!C32 -> 0 | C16: ='A4-FinPerf RE'!D32 -> 0 | D16: ='A4-FinPerf RE'!E32 -> 73220 | E16: ='A4-FinPerf RE'!F32 -> 0 | F16: ='A4-FinPerf RE'!G32 -> 0 | G16: ='A4-FinPerf RE'!H32 -> 0 | H16: ='A4-FinPerf RE'!I32 -> 0 | I16: ='A4-FinPerf RE'!J32 -> 0 | J16: ='A4-FinPerf RE'!K32 -> 0 | K16: ='A4-FinPerf RE'!L32 -> 0
A17: Other expenditure | B17: ='A4-FinPerf RE'!C26+'A4-FinPerf RE'!C31+'A4-FinPerf RE'!C33+'A4-FinPerf RE'!C34 -> 0 | C17: ='A4-FinPerf RE'!D26+'A4-FinPerf RE'!D31+'A4-FinPerf RE'!D33+'A4-FinPerf RE'!D34 -> 115399420.8 | D17: ='A4-FinPerf RE'!E26+'A4-FinPerf RE'!E31+'A4-FinPerf RE'!E33+'A4-FinPerf RE'!E34 -> 88934362.46 | E17: ='A4-FinPerf RE'!F26+'A4-FinPerf RE'!F31+'A4-FinPerf RE'!F33+'A4-FinPerf RE'!F34 -> 97835777 | F17: ='A4-FinPerf RE'!G26+'A4-FinPerf RE'!G31+'A4-FinPerf RE'!G33+'A4-FinPerf RE'!G34 -> 96978750 | G17: ='A4-FinPerf RE'!H26+'A4-FinPerf RE'!H31+'A4-FinPerf RE'!H33+'A4-FinPerf RE'!H34 -> 96978750 | H17: ='A4-FinPerf RE'!I26+'A4-FinPerf RE'!I31+'A4-FinPerf RE'!I33+'A4-FinPerf RE'!I34 -> 56050182.31 | I17: ='A4-FinPerf RE'!J26+'A4-FinPerf RE'!J31+'A4-FinPerf RE'!J33+'A4-FinPerf RE'!J34 -> 104581989 | J17: ='A4-FinPerf RE'!K26+'A4-FinPerf RE'!K31+'A4-FinPerf RE'!K33+'A4-FinPerf RE'!K34 -> 113472950 | K17: ='A4-FinPerf RE'!L26+'A4-FinPerf RE'!L31+'A4-FinPerf RE'!L33+'A4-FinPerf RE'!L34 -> 117462663
A18: ='A4-FinPerf RE'!A35 -> Total Expenditure | B18: =SUM(B11:B17) -> 0 | C18: =SUM(C11:C17) -> 297563973.3 | D18: 275634159.3 | E18: 312413242 | F18: 313510686 | G18: 313510686 | H18: 162898493.1 | I18: 335640866 | J18: 359476271 | K18: 379498270
A19: ='A4-FinPerf RE'!A37 -> Surplus/(Deficit) | B19: =B10-B18 -> 0 | C19: -25010288.11 | D19: -36388360.47 | E19: -23645806 | F19: -43793250 | G19: -43793250 | H19: 35710022.19 | I19: -42431390 | J19: -51653918 | K19: -56789148
A20: ='A4-FinPerf RE'!A38 -> Transfers and subsidies - capital (monetary allocations) (National / Provincial and District) | B20: ='A4-FinPerf RE'!C38 -> 0 | C20: ='A4-FinPerf RE'!D38 -> 0 | D20: ='A4-FinPerf RE'!E38 -> 51875091.49 | E20: ='A4-FinPerf RE'!F38 -> 44350000 | F20: ='A4-FinPerf RE'!G38 -> 59350000 | G20: ='A4-FinPerf RE'!H38 -> 59350000 | H20: ='A4-FinPerf RE'!I38 -> 46191000 | I20: ='A4-FinPerf RE'!J38 -> 50066000 | J20: ='A4-FinPerf RE'!K38 -> 72728000 | K20: ='A4-FinPerf RE'!L38 -> 80407000
A21: ='A4-FinPerf RE'!A39&" & "&'A4-FinPerf RE'!A40 -> Transfers and subsidies - capital (monetary allocations) (National / Provincial Departmental Agencies, Households, Non-profit Institutions, Private Enterprises, Public Corporatons, Higher Educational Institutions) & Transfers and subsidies - capital (in-kind - all) | B21: ='A4-FinPerf RE'!C39+'A4-FinPerf RE'!C40 -> 0 | C21: ='A4-FinPerf RE'!D39+'A4-FinPerf RE'!D40 -> 46554516.37 | D21: ='A4-FinPerf RE'!E39+'A4-FinPerf RE'!E40 -> 0 | E21: ='A4-FinPerf RE'!F39+'A4-FinPerf RE'!F40 -> 0 | F21: ='A4-FinPerf RE'!G39+'A4-FinPerf RE'!G40 -> 0 | G21: ='A4-FinPerf RE'!H39+'A4-FinPerf RE'!H40 -> 0 | H21: ='A4-FinPerf RE'!I39+'A4-FinPerf RE'!I40 -> 0 | I21: ='A4-FinPerf RE'!J39+'A4-FinPerf RE'!J40 -> 0 | J21: ='A4-FinPerf RE'!K39+'A4-FinPerf RE'!K40 -> 0 | K21: ='A4-FinPerf RE'!L39+'A4-FinPerf RE'!L40 -> 0
A22: ='A4-FinPerf RE'!A41 -> Surplus/(Deficit) after capital transfers & contributions | B22: =B19+SUM(B20:B21) -> 0 | C22: =C19+SUM(C20:C21) -> 21544228.26 | D22: 15486731.02 | E22: 20704194 | F22: 15556750 | G22: 15556750 | H22: 81901022.19 | I22: 7634610 | J22: 21074082 | K22: 23617852
A23: ='A4-FinPerf RE'!A46 -> Share of surplus/ (deficit) of associate | B23: ='A4-FinPerf RE'!C46 -> 0 | C23: ='A4-FinPerf RE'!D46 -> 0 | D23: ='A4-FinPerf RE'!E46 -> 0 | E23: ='A4-FinPerf RE'!F46 -> 0 | F23: ='A4-FinPerf RE'!G46 -> 0 | G23: ='A4-FinPerf RE'!H46 -> 0 | H23: ='A4-FinPerf RE'!I46 -> 0 | I23: ='A4-FinPerf RE'!J46 -> 0 | J23: ='A4-FinPerf RE'!K46 -> 0 | K23: ='A4-FinPerf RE'!L46 -> 0
A24: ='A4-FinPerf RE'!A47 -> Surplus/(Deficit) for the year | B24: =B22+B23 -> 0 | C24: =C22+C23 -> 21544228.26 | D24: 15486731.02 | E24: 20704194 | F24: 15556750 | G24: 15556750 | H24: 81901022.19 | I24: 7634610 | J24: 21074082 | K24: 23617852
A26: Capital expenditure & funds sources
A27: Capital expenditure | B27: ='A5-Capex'!C63 -> 0 | C27: ='A5-Capex'!D63 -> 36098769.79 | D27: ='A5-Capex'!E63 -> 2241908.92 | E27: ='A5-Capex'!F63 -> 69532500 | F27: ='A5-Capex'!G63 -> 64385057 | G27: ='A5-Capex'!H63 -> 64385057 | H27: ='A5-Capex'!I63 -> 30831956.34 | I27: ='A5-Capex'!J63 -> 59333788 | J27: ='A5-Capex'!K63 -> 75951601 | K27: ='A5-Capex'!L63 -> 81968011
A28: Transfers recognised - capital | B28: ='A5-Capex'!C70 -> 0 | C28: ='A5-Capex'!D70 -> 5590792.56 | D28: ='A5-Capex'!E70 -> 0 | E28: ='A5-Capex'!F70 -> 63482500 | F28: ='A5-Capex'!G70 -> 60130581 | G28: ='A5-Capex'!H70 -> 60130581 | H28: ='A5-Capex'!I70 -> 29701339.64 | I28: ='A5-Capex'!J70 -> 47912701 | J28: ='A5-Capex'!K70 -> 70401601 | K28: ='A5-Capex'!L70 -> 77956651
A30: ='A5-Capex'!A72 -> Borrowing | B30: ='A5-Capex'!C72 -> 0 | C30: ='A5-Capex'!D72 -> 0 | D30: ='A5-Capex'!E72 -> 0 | E30: ='A5-Capex'!F72 -> 200000 | F30: ='A5-Capex'!G72 -> 78634 | G30: ='A5-Capex'!H72 -> 78634 | H30: ='A5-Capex'!I72 -> 0 | I30: ='A5-Capex'!J72 -> 0 | J30: ='A5-Capex'!K72 -> 0 | K30: ='A5-Capex'!L72 -> 0
A31: ='A5-Capex'!A73 -> Internally generated funds | B31: ='A5-Capex'!C73 -> 0 | C31: ='A5-Capex'!D73 -> 0 | D31: ='A5-Capex'!E73 -> 957161.79 | E31: ='A5-Capex'!F73 -> 5850000 | F31: ='A5-Capex'!G73 -> 4175842 | G31: ='A5-Capex'!H73 -> 4175842 | H31: ='A5-Capex'!I73 -> 1130616.7 | I31: ='A5-Capex'!J73 -> 11421087 | J31: ='A5-Capex'!K73 -> 5550000 | K31: ='A5-Capex'!L73 -> 4011360
A32: Total sources of capital funds | B32: =+B28+B30+B31 -> 0 | C32: =+C28+C30+C31 -> 5590792.56 | D32: 957161.79 | E32: 69532500 | F32: 64385057 | G32: 64385057 | H32: 30831956.34 | I32: 59333788 | J32: 75951601 | K32: 81968011
A34: Financial position
A35: ='A6-FinPos'!A12 -> Total current assets | B35: ='A6-FinPos'!C12 -> 0 | C35: ='A6-FinPos'!D12 -> 122580101.4 | D35: ='A6-FinPos'!E12 -> 128829914.6 | E35: ='A6-FinPos'!F12 -> 71157205 | F35: ='A6-FinPos'!G12 -> 146054984 | G35: ='A6-FinPos'!H12 -> 146054984 | H35: ='A6-FinPos'!I12 -> 166125453.2 | I35: ='A6-FinPos'!J12 -> 168314174 | J35: ='A6-FinPos'!K12 -> 190945025 | K35: ='A6-FinPos'!L12 -> 213515053
A36: ='A6-FinPos'!A24 -> Total non current assets | B36: ='A6-FinPos'!C24 -> 0 | C36: ='A6-FinPos'!D24 -> 894159338.1 | D36: ='A6-FinPos'!E24 -> 919636612.3 | E36: ='A6-FinPos'!F24 -> 328377852 | F36: ='A6-FinPos'!G24 -> 942347940 | G36: ='A6-FinPos'!H24 -> 942347940 | H36: ='A6-FinPos'!I24 -> 950468568.6 | I36: ='A6-FinPos'!J24 -> 940798941 | J36: ='A6-FinPos'!K24 -> 971772030 | K36: ='A6-FinPos'!L24 -> 993975024
A37: ='A6-FinPos'!A34 -> Total current liabilities | B37: ='A6-FinPos'!C34 -> 0 | C37: ='A6-FinPos'!D34 -> 52079411.47 | D37: ='A6-FinPos'!E34 -> 60183821.31 | E37: ='A6-FinPos'!F34 -> -3114879 | F37: ='A6-FinPos'!G34 -> 61930222 | G37: ='A6-FinPos'!H34 -> 61930222 | H37: ='A6-FinPos'!I34 -> 45946812.98 | I37: ='A6-FinPos'!J34 -> 65563869 | J37: ='A6-FinPos'!K34 -> 69899201 | K37: ='A6-FinPos'!L34 -> 74535315
A38: ='A6-FinPos'!A39 -> Total non current liabilities | B38: ='A6-FinPos'!C39 -> 0 | C38: ='A6-FinPos'!D39 -> 16766266.51 | D38: ='A6-FinPos'!E39 -> 17576324.92 | E38: ='A6-FinPos'!F39 -> 0 | F38: ='A6-FinPos'!G39 -> 19276325 | G38: ='A6-FinPos'!H39 -> 19276325 | H38: ='A6-FinPos'!I39 -> 17576324.92 | I38: ='A6-FinPos'!J39 -> 20726325 | J38: ='A6-FinPos'!K39 -> 22340861 | K38: ='A6-FinPos'!L39 -> 24068753
A39: Community wealth/Equity | B39: ='A6-FinPos'!C48 -> 0 | C39: ='A6-FinPos'!D48 -> 947893761.5 | D39: ='A6-FinPos'!E48 -> 957432464.1 | E39: ='A6-FinPos'!F48 -> 402649936 | F39: ='A6-FinPos'!G48 -> 1007196377 | G39: ='A6-FinPos'!H48 -> 1007196377 | H39: ='A6-FinPos'!I48 -> 1052598553 | I39: ='A6-FinPos'!J48 -> 1022822921 | J39: ='A6-FinPos'!K48 -> 1070476993 | K39: ='A6-FinPos'!L48 -> 1108886009
A41: Cash flows
A42: Net cash from (used) operating | B42: ='A7-CFlow'!C17 -> 0 | C42: ='A7-CFlow'!D17 -> -259037982.2 | D42: ='A7-CFlow'!E17 -> -242571677.2 | E42: ='A7-CFlow'!F17 -> -262409104 | F42: ='A7-CFlow'!G17 -> -264062560 | G42: ='A7-CFlow'!H17 -> -264062560 | H42: ='A7-CFlow'!I17 -> -162898493.1 | I42: ='A7-CFlow'!J17 -> -283136527 | J42: ='A7-CFlow'!K17 -> -303471791 | K42: ='A7-CFlow'!L17 -> -319748659
A43: Net cash from (used) investing | B43: ='A7-CFlow'!C27 -> 0 | C43: ='A7-CFlow'!D27 -> 0 | D43: ='A7-CFlow'!E27 -> 0 | E43: ='A7-CFlow'!F27 -> 0 | F43: ='A7-CFlow'!G27 -> 0 | G43: ='A7-CFlow'!H27 -> 0 | H43: ='A7-CFlow'!I27 -> 0 | I43: ='A7-CFlow'!J27 -> 0 | J43: ='A7-CFlow'!K27 -> 0 | K43: ='A7-CFlow'!L27 -> 0
A44: Net cash from (used) financing | B44: ='A7-CFlow'!C36 -> 0 | C44: ='A7-CFlow'!D36 -> 8680.44 | D44: ='A7-CFlow'!E36 -> 0 | E44: ='A7-CFlow'!F36 -> -8680.44 | F44: ='A7-CFlow'!G36 -> 0 | G44: ='A7-CFlow'!H36 -> 0 | H44: ='A7-CFlow'!I36 -> 0 | I44: ='A7-CFlow'!J36 -> 0 | J44: ='A7-CFlow'!K36 -> 0 | K44: ='A7-CFlow'!L36 -> 0
A45: =LEFT('A7-CFlow'!A40,37) -> Cash/cash equivalents at the year end | B45: ='A7-CFlow'!C40 -> 0 | C45: ='A7-CFlow'!D40 -> -214824798.9 | D45: ='A7-CFlow'!E40 -> -223899374.8 | E45: ='A7-CFlow'!F40 -> -207728751.4 | F45: ='A7-CFlow'!G40 -> -251443569 | G45: ='A7-CFlow'!H40 -> -251443569 | H45: ='A7-CFlow'!I40 -> -162898493.1 | I45: ='A7-CFlow'!J40 -> -282072038 | J45: ='A7-CFlow'!K40 -> -585543829 | K45: ='A7-CFlow'!L40 -> -905292488
A47: Cash backing/surplus reconciliation
A48: ='A8-ResRecon'!A4 -> Cash and investments available | B48: ='A8-ResRecon'!C8 -> 0 | C48: ='A8-ResRecon'!D8 -> 19350476.69 | D48: ='A8-ResRecon'!E8 -> 10654219.61 | E48: ='A8-ResRecon'!F8 -> 54689033 | F48: ='A8-ResRecon'!G8 -> 12620634 | G48: ='A8-ResRecon'!H8 -> 12620634 | H48: ='A8-ResRecon'!I8 -> 17680097.71 | I48: ='A8-ResRecon'!J8 -> 16336561 | J48: ='A8-ResRecon'!K8 -> 21535469 | K48: ='A8-ResRecon'!L8 -> 24281119
A49: ='A8-ResRecon'!A10 -> Application of cash and investments | B49: ='A8-ResRecon'!C18 -> 0 | C49: ='A8-ResRecon'!D18 -> 51417366.22 | D49: ='A8-ResRecon'!E18 -> 51827851.9 | E49: ='A8-ResRecon'!F18 -> -3114879 | F49: ='A8-ResRecon'!G18 -> 61930222 | G49: ='A8-ResRecon'!H18 -> 61930222 | H49: ='A8-ResRecon'!I18 -> 33190601.03 | I49: ='A8-ResRecon'!J18 -> 65563869 | J49: ='A8-ResRecon'!K18 -> 69899201 | K49: ='A8-ResRecon'!L18 -> 74535315
A50: Balance - surplus (shortfall) | B50: =B48-B49 -> 0 | C50: =C48-C49 -> -32066889.53 | D50: -41173632.29 | E50: 57803912 | F50: -49309588 | G50: -49309588 | H50: -15510503.32 | I50: -49227308 | J50: -48363732 | K50: -50254196
A52: Asset management
A53: Asset register summary (WDV) | B53: ='A9-Asset'!C165 -> 0 | C53: ='A9-Asset'!D165 -> 855172870 | D53: ='A9-Asset'!E165 -> 845946677.7 | E53: ='A9-Asset'!F165 -> 328377852 | F53: ='A9-Asset'!G165 -> 868658006 | G53: ='A9-Asset'!H165 -> 868658006 | H53: ='A9-Asset'!H165 -> 868658006 | I53: ='A9-Asset'!I165 -> 867109007 | J53: ='A9-Asset'!J165 -> 898082096 | K53: ='A9-Asset'!K165 -> 920285090
A54: ='A9-Asset'!A168 -> Depreciation | B54: ='A9-Asset'!C168 -> 0 | C54: ='A9-Asset'!D168 -> 35462508.13 | D54: ='A9-Asset'!E168 -> 35256654.26 | E54: ='A9-Asset'!F168 -> 41673731 | F54: ='A9-Asset'!G168 -> 41117719 | G54: ='A9-Asset'!H168 -> 41117719 | H54: ='A9-Asset'!H168 -> 41117719 | I54: ='A9-Asset'!I168 -> 43757411 | J54: ='A9-Asset'!J168 -> 46382859 | K54: ='A9-Asset'!K168 -> 49165828
A55: Renewal and Upgrading of Existing Assets | B55: ='A9-Asset'!C37+'A9-Asset'!C69 -> 0 | C55: ='A9-Asset'!D37+'A9-Asset'!D69 -> 0 | D55: ='A9-Asset'!E37+'A9-Asset'!E69 -> 499220.91 | E55: ='A9-Asset'!F37+'A9-Asset'!F69 -> 12105617 | F55: ='A9-Asset'!G37+'A9-Asset'!G69 -> 25359334 | G55: ='A9-Asset'!H37+'A9-Asset'!H69 -> 25359334 | H55: ='A9-Asset'!H37+'A9-Asset'!H69 -> 25359334 | I55: ='A9-Asset'!I37+'A9-Asset'!I69 -> 43012701 | J55: ='A9-Asset'!J37+'A9-Asset'!J69 -> 45341601 | K55: ='A9-Asset'!K37+'A9-Asset'!K69 -> 47886651
A56: Repairs and Maintenance | B56: ='A9-Asset'!C169 -> 0 | C56: ='A9-Asset'!D169 -> 2606651.15 | D56: ='A9-Asset'!E169 -> 1852804.99 | E56: ='A9-Asset'!F169 -> 3357817 | F56: ='A9-Asset'!G169 -> 5497817 | G56: ='A9-Asset'!H169 -> 5497817 | H56: ='A9-Asset'!H169 -> 5497817 | I56: ='A9-Asset'!I169 -> 7650141 | J56: ='A9-Asset'!J169 -> 10622555 | K56: ='A9-Asset'!K169 -> 11138818
A58: Free services
A59: Cost of Free Basic Services provided | B59: ='A10-SerDel'!C60 -> 0 | C59: ='A10-SerDel'!D60 -> 0 | D59: ='A10-SerDel'!E60 -> 0 | E59: ='A10-SerDel'!F60 -> 0 | F59: ='A10-SerDel'!G60 -> 0 | G59: ='A10-SerDel'!H60 -> 0 | H59: ='A10-SerDel'!I60 -> 0 | I59: ='A10-SerDel'!I60 -> 0 | J59: ='A10-SerDel'!J60 -> 0 | K59: ='A10-SerDel'!K60 -> 0
A60: Revenue cost of free services provided | B60: ='A10-SerDel'!C79 -> 0 | C60: ='A10-SerDel'!D79 -> 10151231.21 | D60: ='A10-SerDel'!E79 -> 6466415.36 | E60: ='A10-SerDel'!F79 -> 0 | F60: ='A10-SerDel'!G79 -> 5668879 | G60: ='A10-SerDel'!H79 -> 5668879 | H60: ='A10-SerDel'!I79 -> 6009013 | I60: ='A10-SerDel'!I79 -> 6009013 | J60: ='A10-SerDel'!J79 -> 6369555 | K60: ='A10-SerDel'!K79 -> 6751728
A61: Households below minimum service level
A62: ='A10-SerDel'!A5 -> Water: | B62: ='A10-SerDel'!C14 -> 0 | C62: ='A10-SerDel'!D14 -> 0 | D62: ='A10-SerDel'!E14 -> 0 | E62: ='A10-SerDel'!F14 -> 0 | F62: ='A10-SerDel'!G14 -> 0 | G62: ='A10-SerDel'!H14 -> 0 | H62: ='A10-SerDel'!I14 -> 0 | I62: ='A10-SerDel'!I14 -> 0 | J62: ='A10-SerDel'!J14 -> 0 | K62: ='A10-SerDel'!K14 -> 0
A63: ='A10-SerDel'!A16 -> Sanitation/sewerage: | B63: ='A10-SerDel'!C26 -> 0 | C63: ='A10-SerDel'!D26 -> 0 | D63: ='A10-SerDel'!E26 -> 0 | E63: ='A10-SerDel'!F26 -> 0 | F63: ='A10-SerDel'!G26 -> 0 | G63: ='A10-SerDel'!H26 -> 0 | H63: ='A10-SerDel'!I26 -> 0 | I63: ='A10-SerDel'!I26 -> 0 | J63: ='A10-SerDel'!J26 -> 0 | K63: ='A10-SerDel'!K26 -> 0
A64: ='A10-SerDel'!A28 -> Energy: | B64: ='A10-SerDel'!C35 -> 0 | C64: ='A10-SerDel'!D35 -> 0 | D64: ='A10-SerDel'!E35 -> 0 | E64: ='A10-SerDel'!F35 -> 0 | F64: ='A10-SerDel'!G35 -> 0 | G64: ='A10-SerDel'!H35 -> 0 | H64: ='A10-SerDel'!I35 -> 0 | I64: ='A10-SerDel'!I35 -> 0 | J64: ='A10-SerDel'!J35 -> 0 | K64: ='A10-SerDel'!K35 -> 0
A65: ='A10-SerDel'!A37 -> Refuse: | B65: ='A10-SerDel'!C45 -> 0 | C65: ='A10-SerDel'!D45 -> 0 | D65: ='A10-SerDel'!E45 -> 0 | E65: ='A10-SerDel'!F45 -> 0 | F65: ='A10-SerDel'!G45 -> 0 | G65: ='A10-SerDel'!H45 -> 0 | H65: ='A10-SerDel'!I45 -> 0 | I65: ='A10-SerDel'!I45 -> 0 | J65: ='A10-SerDel'!J45 -> 0 | K65: ='A10-SerDel'!K45 -> 0

Sheet A2-FinPerf SC
A1: =muni&" - "&Approve3 -> LIM351 Blouberg - Table A2 Budgeted Financial Performance (revenue and expenditure by functional classification)
A2: ="Functional Classification "&desc -> Functional Classification Description | B2: =head27 -> Ref | C2: =head1b -> 2016/17 | D2: =head1A -> 2017/18 | E2: =Head1 -> 2018/19 | F2: =Head2 -> Current Year 2019/20 | I2: =Head3 -> 2020/21 Medium Term Revenue & Expenditure Framework
A3: R thousand | B3: 1 | C3: =Head5 -> Audited Outcome | D3: =Head5 -> Audited Outcome | E3: =Head5 -> Audited Outcome | F3: =Head6 -> Original Budget | G3: =Head7 -> Adjusted Budget | H3: =Head8 -> Full Year Forecast | I3: =Head9 -> Budget Year 2020/21 | J3: =Head10 -> Budget Year +1 2021/22 | K3: =Head11 -> Budget Year +2 2022/23
A4: Revenue - Functional
A5: Governance and administration | C5: =SUM(C6:C8) -> 0 | D5: =SUM(D6:D8) -> 225902490.7 | E5: 206339616.3 | F5: 220450821 | G5: 221529735 | H5: 221529735 | I5: 237985830 | J5: 251435104 | K5: 263448638
A6: Executive and council | C6: =A2A!C6 -> 0 | D6: =A2A!D6 -> 25855950 | E6: =A2A!E6 -> 6783826.47 | F6: =A2A!F6 -> 0 | G6: =A2A!G6 -> 0 | H6: =A2A!H6 -> 0 | I6: =A2A!I6 -> 0 | J6: =A2A!J6 -> 0 | K6: =A2A!K6 -> 0
A7: Finance and administration | C7: =A2A!C9 -> 0 | D7: =A2A!D9 -> 200046540.7 | E7: =A2A!E9 -> 199555789.9 | F7: =A2A!F9 -> 220450821 | G7: =A2A!G9 -> 221529735 | H7: =A2A!H9 -> 221529735 | I7: =A2A!I9 -> 237985830 | J7: =A2A!J9 -> 251435104 | K7: =A2A!K9 -> 263448638
A8: Internal audit | C8: =A2A!C23 -> 0 | D8: =A2A!D23 -> 0 | E8: =A2A!E23 -> 0 | F8: =A2A!F23 -> 0 | G8: =A2A!G23 -> 0 | H8: =A2A!H23 -> 0 | I8: =A2A!I23 -> 0 | J8: =A2A!J23 -> 0 | K8: =A2A!K23 -> 0
A9: Community and public safety | C9: =SUM(C10:C14) -> 0 | D9: =SUM(D10:D14) -> 6223925.27 | E9: 4690691.95 | F9: 7350000 | G9: 6211086 | H9: 6211086 | I9: 6688600 | J9: 7089917 | K9: 7515312
A10: Community and social services | C10: =A2A!C26 -> 0 | D10: =A2A!D26 -> 0 | E10: =A2A!E26 -> 0 | F10: =A2A!F26 -> 0 | G10: =A2A!G26 -> 0 | H10: =A2A!H26 -> 0 | I10: =A2A!I26 -> 0 | J10: =A2A!J26 -> 0 | K10: =A2A!K26 -> 0
A11: Sport and recreation | C11: =A2A!C48 -> 0 | D11: =A2A!D48 -> 0 | E11: =A2A!E48 -> 0 | F11: =A2A!F48 -> 0 | G11: =A2A!G48 -> 0 | H11: =A2A!H48 -> 0 | I11: =A2A!I48 -> 0 | J11: =A2A!J48 -> 0 | K11: =A2A!K48 -> 0
A12: Public safety | C12: =A2A!C54 -> 0 | D12: =A2A!D54 -> 6223925.27 | E12: =A2A!E54 -> 4690691.95 | F12: =A2A!F54 -> 7350000 | G12: =A2A!G54 -> 6211086 | H12: =A2A!H54 -> 6211086 | I12: =A2A!I54 -> 6688600 | J12: =A2A!J54 -> 7089917 | K12: =A2A!K54 -> 7515312
A13: Housing | C13: =A2A!C63 -> 0 | D13: =A2A!D63 -> 0 | E13: =A2A!E63 -> 0 | F13: =A2A!F63 -> 0 | G13: =A2A!G63 -> 0 | H13: =A2A!H63 -> 0 | I13: =A2A!I63 -> 0 | J13: =A2A!J63 -> 0 | K13: =A2A!K63 -> 0
A14: Health | C14: =A2A!C66 -> 0 | D14: =A2A!D66 -> 0 | E14: =A2A!E66 -> 0 | F14: =A2A!F66 -> 0 | G14: =A2A!G66 -> 0 | H14: =A2A!H66 -> 0 | I14: =A2A!I66 -> 0 | J14: =A2A!J66 -> 0 | K14: =A2A!K66 -> 0
A15: Economic and environmental services | C15: =SUM(C16:C18) -> 0 | D15: =SUM(D16:D18) -> 47045998.96 | E15: 44149887.75 | F15: 2362872 | G15: 2372872 | H15: 2372872 | I15: 5329677 | J15: 5349459 | K15: 5370426
A16: Planning and development | C16: =A2A!C75 -> 0 | D16: =A2A!D75 -> 491482.59 | E16: =A2A!E75 -> 658887.75 | F16: =A2A!F75 -> 2362872 | G16: =A2A!G75 -> 2372872 | H16: =A2A!H75 -> 2372872 | I16: =A2A!I75 -> 5329677 | J16: =A2A!J75 -> 5349459 | K16: =A2A!K75 -> 5370426
A17: Road transport | C17: =A2A!C86 -> 0 | D17: =A2A!D86 -> 46554516.37 | E17: =A2A!E86 -> 43491000 | F17: =A2A!F86 -> 0 | G17: =A2A!G86 -> 0 | H17: =A2A!H86 -> 0 | I17: =A2A!I86 -> 0 | J17: =A2A!J86 -> 0 | K17: =A2A!K86 -> 0
A18: Environmental protection | C18: =A2A!C91 -> 0 | D18: =A2A!D91 -> 0 | E18: =A2A!E91 -> 0 | F18: =A2A!F91 -> 0 | G18: =A2A!G91 -> 0 | H18: =A2A!H91 -> 0 | I18: =A2A!I91 -> 0 | J18: =A2A!J91 -> 0 | K18: =A2A!K91 -> 0
A19: Trading services | C19: =SUM(C20:C23) -> 0 | D19: =SUM(D20:D23) -> 39935786.62 | E19: 35940694.28 | F19: 102953743 | G19: 98953743 | H19: 98953743 | I19: 93271369 | J19: =SUM(J20:J23) -> 116675873 | K19: 126781746
A20: Energy sources | C20: =A2A!C99 -> 0 | D20: =A2A!D99 -> 33113181.98 | E20: =A2A!E99 -> 31067556.43 | F20: =A2A!F99 -> 97842743 | G20: =A2A!G99 -> 93842743 | H20: =A2A!H99 -> 93842743 | I20: =A2A!I99 -> 89697929 | J20: =A2A!J99 -> 114527846 | K20: =A2A!K99 -> 124504837
A21: Water management | C21: =A2A!C103 -> 0 | D21: =A2A!D103 -> 0 | E21: =A2A!E103 -> 0 | F21: =A2A!F103 -> 0 | G21: =A2A!G103 -> 0 | H21: =A2A!H103 -> 0 | I21: =A2A!I103 -> 0 | J21: =A2A!J103 -> 0 | K21: =A2A!K103 -> 0
A22: Waste water management | C22: =A2A!C107 -> 0 | D22: =A2A!D107 -> 0 | E22: =A2A!E107 -> 0 | F22: =A2A!F107 -> 0 | G22: =A2A!G107 -> 0 | H22: =A2A!H107 -> 0 | I22: =A2A!I107 -> 0 | J22: =A2A!J107 -> 0 | K22: =A2A!K107 -> 0
A23: Waste management | C23: =A2A!C112 -> 0 | D23: =A2A!D112 -> 6822604.64 | E23: =A2A!E112 -> 4873137.85 | F23: =A2A!F112 -> 5111000 | G23: =A2A!G112 -> 5111000 | H23: =A2A!H112 -> 5111000 | I23: =A2A!I112 -> 3573440 | J23: =A2A!J112 -> 2148027 | K23: =A2A!K112 -> 2276909
A24: Other | B24: 4 | C24: =A2A!C117 -> 0 | D24: =A2A!D117 -> 0 | E24: =A2A!E117 -> 0 | F24: =A2A!F117 -> 0 | G24: =A2A!G117 -> 0 | H24: =A2A!H117 -> 0 | I24: =A2A!I117 -> 0 | J24: =A2A!J117 -> 0 | K24: =A2A!K117 -> 0
A25: ="Total "&A4 -> Total Revenue - Functional | B25: 2 | C25: =C5+C9+C15+C19+C24 -> 0 | D25: =D5+D9+D15+D19+D24 -> 319108201.5 | E25: =E5+E9+E15+E19+E24 -> 291120890.3 | F25: 333117436 | G25: 329067436 | H25: 329067436 | I25: =I5+I9+I15+I19+I24 -> 343275476 | J25: 380550353 | K25: 403116122
A27: Expenditure - Functional
A28: Governance and administration | C28: =SUM(C29:C31) -> 0 | D28: =SUM(D29:D31) -> 200315526.9 | E28: 150166559.5 | F28: 166623982 | G28: 164984452 | H28: 164984452 | I28: 176952500 | J28: 190794512 | K28: 202865996
A29: Executive and council | C29: =A2A!C128 -> 0 | D29: =A2A!D128 -> 80862852.17 | E29: =A2A!E128 -> 63171190.82 | F29: =A2A!F128 -> 58180779 | G29: =A2A!G128 -> 58487338 | H29: =A2A!H128 -> 58487338 | I29: =A2A!I128 -> 62723685 | J29: =A2A!J128 -> 67392345 | K29: =A2A!K128 -> 71398598
A30: Finance and administration | C30: =A2A!C131 -> 0 | D30: =A2A!D131 -> 119452674.7 | E30: =A2A!E131 -> 86995368.65 | F30: =A2A!F131 -> 108443203 | G30: =A2A!G131 -> 106497114 | H30: =A2A!H131 -> 106497114 | I30: =A2A!I131 -> 114228815 | J30: =A2A!J131 -> 123402167 | K30: =A2A!K131 -> 131467398
A31: Internal audit | C31: =A2A!C145 -> 0 | D31: =A2A!D145 -> 0 | E31: =A2A!E145 -> 0 | F31: =A2A!F145 -> 0 | G31: =A2A!G145 -> 0 | H31: =A2A!H145 -> 0 | I31: =A2A!I145 -> 0 | J31: =A2A!J145 -> 0 | K31: =A2A!K145 -> 0
A32: Community and public safety | C32: =SUM(C33:C37) -> 0 | D32: =SUM(D33:D37) -> 13048897.55 | E32: 14889814.97 | F32: 15543805 | G32: 14683866 | H32: 14683866 | I32: 15061217 | J32: 15944568 | K32: 17049629
A33: Community and social services | C33: =A2A!C148 -> 0 | D33: =A2A!D148 -> 0 | E33: =A2A!E148 -> 0 | F33: =A2A!F148 -> 0 | G33: =A2A!G148 -> 0 | H33: =A2A!H148 -> 0 | I33: =A2A!I148 -> 0 | J33: =A2A!J148 -> 0 | K33: =A2A!K148 -> 0
A34: Sport and recreation | C34: =A2A!C170 -> 0 | D34: =A2A!D170 -> 0 | E34: =A2A!E170 -> 0 | F34: =A2A!F170 -> 0 | G34: =A2A!G170 -> 0 | H34: =A2A!H170 -> 0 | I34: =A2A!I170 -> 0 | J34: =A2A!J170 -> 0 | K34: =A2A!K170 -> 0
A35: Public safety | C35: =A2A!C176 -> 0 | D35: =A2A!D176 -> 13048897.55 | E35: =A2A!E176 -> 14889814.97 | F35: =A2A!F176 -> 15543805 | G35: =A2A!G176 -> 14683866 | H35: =A2A!H176 -> 14683866 | I35: =A2A!I176 -> 15061217 | J35: =A2A!J176 -> 15944568 | K35: =A2A!K176 -> 17049629
A36: Housing | C36: =A2A!C185 -> 0 | D36: =A2A!D185 -> 0 | E36: =A2A!E185 -> 0 | F36: =A2A!F185 -> 0 | G36: =A2A!G185 -> 0 | H36: =A2A!H185 -> 0 | I36: =A2A!I185 -> 0 | J36: =A2A!J185 -> 0 | K36: =A2A!K185 -> 0
A37: Health | C37: =A2A!C188 -> 0 | D37: =A2A!D188 -> 0 | E37: =A2A!E188 -> 0 | F37: =A2A!F188 -> 0 | G37: =A2A!G188 -> 0 | H37: =A2A!H188 -> 0 | I37: =A2A!I188 -> 0 | J37: =A2A!J188 -> 0 | K37: =A2A!K188 -> 0
A38: Economic and environmental services | C38: =SUM(C39:C41) -> 0 | D38: =SUM(D39:D41) -> 19261660.67 | E38: 31357966.14 | F38: 49836685 | G38: 49644769 | H38: 49644769 | I38: 55672751 | J38: 60861920 | K38: 62234631
A39: Planning and development | C39: =A2A!C197 -> 0 | D39: =A2A!D197 -> 9661257.78 | E39: =A2A!E197 -> 9851544.11 | F39: =A2A!F197 -> 12065788 | G39: =A2A!G197 -> 11607413 | H39: =A2A!H197 -> 11607413 | I39: =A2A!I197 -> 16248793 | J39: =A2A!J197 -> 18457547 | K39: =A2A!K197 -> 17300176
A40: Road transport | C40: =A2A!C208 -> 0 | D40: =A2A!D208 -> 9600402.89 | E40: =A2A!E208 -> 21506422.03 | F40: =A2A!F208 -> 37770897 | G40: =A2A!G208 -> 38037356 | H40: =A2A!H208 -> 38037356 | I40: =A2A!I208 -> 39423958 | J40: =A2A!J208 -> 42404373 | K40: =A2A!K208 -> 44934455
A41: Environmental protection | C41: =A2A!C213 -> 0 | D41: =A2A!D213 -> 0 | E41: =A2A!E213 -> 0 | F41: =A2A!F213 -> 0 | G41: =A2A!G213 -> 0 | H41: =A2A!H213 -> 0 | I41: =A2A!I213 -> 0 | J41: =A2A!J213 -> 0 | K41: =A2A!K213 -> 0
A42: Trading services | C42: =SUM(C43:C46) -> 0 | D42: =SUM(D43:D46) -> 64937888.14 | E42: 79219818.71 | F42: =SUM(F43:F46) -> 80408770 | G42: 84197599 | H42: 84197599 | I42: 87954398 | J42: 91875271 | K42: =SUM(K43:K46) -> 97348014
A43: Energy sources | C43: =A2A!C221 -> 0 | D43: =A2A!D221 -> 43394428.55 | E43: =A2A!E221 -> 59140520.55 | F43: =A2A!F221 -> 57910727 | G43: =A2A!G221 -> 61569284 | H43: =A2A!H221 -> 61569284 | I43: =A2A!I221 -> 64755874 | J43: =A2A!J221 -> 67882170 | K43: =A2A!K221 -> 72103460
A44: Water management | C44: =A2A!C225 -> 0 | D44: =A2A!D225 -> 0 | E44: =A2A!E225 -> 0 | F44: =A2A!F225 -> 0 | G44: =A2A!G225 -> 0 | H44: =A2A!H225 -> 0 | I44: =A2A!I225 -> 0 | J44: =A2A!J225 -> 0 | K44: =A2A!K225 -> 0
A45: Waste water management | C45: =A2A!C229 -> 0 | D45: =A2A!D229 -> 0 | E45: =A2A!E229 -> 0 | F45: =A2A!F229 -> 0 | G45: =A2A!G229 -> 0 | H45: =A2A!H229 -> 0 | I45: =A2A!I229 -> 0 | J45: =A2A!J229 -> 0 | K45: =A2A!K229 -> 0
A46: Waste management | C46: =A2A!C234 -> 0 | D46: =A2A!D234 -> 21543459.59 | E46: =A2A!E234 -> 20079298.16 | F46: =A2A!F234 -> 22498043 | G46: =A2A!G234 -> 22628315 | H46: =A2A!H234 -> 22628315 | I46: =A2A!I234 -> 23198524 | J46: =A2A!J234 -> 23993101 | K46: =A2A!K234 -> 25244554
A47: Other | B47: 4 | C47: =A2A!C239 -> 0 | D47: =A2A!D239 -> 0 | E47: =A2A!E239 -> 0 | F47: =A2A!F239 -> 0 | G47: =A2A!G239 -> 0 | H47: =A2A!H239 -> 0 | I47: =A2A!I239 -> 0 | J47: =A2A!J239 -> 0 | K47: =A2A!K239 -> 0
A48: ="Total "&A27 -> Total Expenditure - Functional | B48: 3 | C48: =C28+C32+C38+C42+C47 -> 0 | D48: =D28+D32+D38+D42+D47 -> 297563973.3 | E48: =E28+E32+E38+E42+E47 -> 275634159.3 | F48: =F28+F32+F38+F42+F47 -> 312413242 | G48: 313510686 | H48: 313510686 | I48: 335640866 | J48: 359476271 | K48: 379498270
A49: =result -> Surplus/(Deficit) for the year | C49: =C25-C48 -> 0 | D49: =D25-D48 -> 21544228.26 | E49: 15486731.02 | F49: 20704194 | G49: 15556750 | H49: 15556750 | I49: 7634610 | J49: 21074082 | K49: 23617852
A50: =head27a -> References
A51: 1. Government Finance Statistics Functions and Sub-functions are standardised to assist the compilation of national and international accounts for comparison purposes
A52: 2. Total Revenue by functional classification must reconcile to Total Operating Revenue shown in Budgeted Financial Performance (revenue and expenditure)
A53: 3. Total Expenditure by Functional Classification must reconcile to Total Operating Expenditure shown in Budgeted Financial Performance (revenue and expenditure)
A54: 4. All amounts must be classified under a functional classification . The GFS function 'Other' is only for Abbatoirs, Air Transport, Forestry, Licensing and Regulation, Markets and Tourism - and if used must be supported by footnotes. Nothing else may be placed under 'Other'. Assign associate share to relevant classification.
A57: check oprev balance | C57: =C25-'A4-FinPerf RE'!C59 -> 0 | D57: =D25-'A4-FinPerf RE'!D59 -> 0 | E57: =E25-'A4-FinPerf RE'!E59 -> 0 | F57: =F25-'A4-FinPerf RE'!F59 -> 0 | G57: =G25-'A4-FinPerf RE'!G59 -> 0 | H57: =H25-'A4-FinPerf RE'!H59 -> 0 | I57: =I25-'A4-FinPerf RE'!J59 -> 0 | J57: =J25-'A4-FinPerf RE'!K59 -> 0 | K57: =K25-'A4-FinPerf RE'!L59 -> 0
A58: check opexp balance | C58: =C48-'A4-FinPerf RE'!C35 -> 0 | D58: =D48-'A4-FinPerf RE'!D35 -> 0 | E58: =E48-'A4-FinPerf RE'!E35 -> 0 | F58: =F48-'A4-FinPerf RE'!F35 -> 0 | G58: =G48-'A4-FinPerf RE'!G35 -> 0 | H58: =H48-'A4-FinPerf RE'!H35 -> 0 | I58: =I48-'A4-FinPerf RE'!J35 -> 0 | J58: =J48-'A4-FinPerf RE'!K35 -> 0 | K58: =K48-'A4-FinPerf RE'!L35 -> 0

Sheet A2A
A1: =muni&" - "&Approve3 -> LIM351 Blouberg - Table A2 Budgeted Financial Performance (revenue and expenditure by functional classification)
A2: ="Functional Classification "&desc -> Functional Classification Description | B2: =head27 -> Ref | C2: =head1b -> 2016/17 | D2: =head1A -> 2017/18 | E2: =Head1 -> 2018/19 | F2: =Head2 -> Current Year 2019/20 | I2: =Head3 -> 2020/21 Medium Term Revenue & Expenditure Framework
A3: R thousand | B3: 1 | C3: =Head5 -> Audited Outcome | D3: =Head5 -> Audited Outcome | E3: =Head5 -> Audited Outcome | F3: =Head6 -> Original Budget | G3: =Head7 -> Adjusted Budget | H3: =Head8 -> Full Year Forecast | I3: =Head9 -> Budget Year 2020/21 | J3: =Head10 -> Budget Year +1 2021/22 | K3: =Head11 -> Budget Year +2 2022/23
A4: Revenue - Functional
A5: Municipal governance and administration | C5: =C6+C9+C23 -> 0 | D5: 225902490.7 | E5: 206339616.3 | F5: 220450821 | G5: 221529735 | H5: 221529735 | I5: 237985830 | J5: 251435104 | K5: 263448638
A6: Executive and council | C6: =SUM(C7:C8) -> 0 | D6: =SUM(D7:D8) -> 25855950 | E6: 6783826.47 | F6: 0 | G6: 0 | H6: 0 | I6: 0 | J6: 0 | K6: 0
A7: Mayor and Council | C7: 0 | D7: 0 | E7: 0 | F7: 0 | G7: 0 | H7: 0 | I7: 0 | J7: 0 | K7: 0
A8: Municipal Manager, Town Secretary and Chief Executive | C8: 0 | D8: 25855950 | E8: 6783826.47 | F8: 0 | G8: 0 | H8: 0 | I8: 0 | J8: 0 | K8: 0
A9: Finance and administration | C9: =SUM(C10:C22) -> 0 | D9: 200046540.7 | E9: 199555789.9 | F9: 220450821 | G9: 221529735 | H9: 221529735 | I9: 237985830 | J9: 251435104 | K9: 263448638
A10: Administrative and Corporate Support | C10: 0 | D10: 167008.87 | E10: 55476.72 | F10: 151000 | G10: 206000 | H10: 206000 | I10: 342000 | J10: 362520 | K10: 384272
A11: Asset Management
A12: Finance | C12: 0 | D12: 199879531.8 | E12: 199500313.1 | F12: 220299821 | G12: 221323735 | H12: 221323735 | I12: 237643830 | J12: 251072584 | K12: 263064366
A13: Fleet Management
A14: Human Resources
A15: Information Technology
A16: Legal Services
A17: Marketing, Customer Relations, Publicity and Media Co-ordination
A18: Property Services
A19: Risk Management
A20: Security Services
A21: Supply Chain Management
A22: Valuation Service
A23: Internal audit | C23: =SUM(C24:C24) -> 0 | D23: 0 | E23: 0 | F23: 0 | G23: 0 | H23: 0 | I23: 0 | J23: 0 | K23: 0
A24: Governance Function
A25: Community and public safety | C25: =C26+C48+C54+C63+C66 -> 0 | D25: 6223925.27 | E25: 4690691.95 | F25: 7350000 | G25: 6211086 | H25: 6211086 | I25: 6688600 | J25: 7089917 | K25: 7515312
A26: Community and social services | C26: =SUM(C27:C47) -> 0 | D26: =SUM(D27:D47) -> 0 | E26: 0 | F26: 0 | G26: 0 | H26: 0 | I26: 0 | J26: 0 | K26: 0
A27: Aged Care
A28: Agricultural
A29: Animal Care and Diseases
A30: Cemeteries, Funeral Parlours and Crematoriums | C30: 0 | D30: 0 | E30: 0 | F30: 0 | G30: 0 | H30: 0 | I30: 0 | J30: 0 | K30: 0
A31: Child Care Facilities
A32: Community Halls and Facilities
A33: Consumer Protection
A34: Cultural Matters
A35: Disaster Management
A36: Education
A37: Indigenous and Customary Law
A38: Industrial Promotion
A39: Language Policy
A40: Libraries and Archives
A41: Literacy Programmes
A42: Media Services
A43: Museums and Art Galleries
A44: Population Development
A45: Provincial Cultural Matters
A46: Theatres
A47: Zoo's
A48: Sport and recreation | C48: =SUM(C49:C53) -> 0 | D48: =SUM(D49:D53) -> 0 | E48: 0 | F48: 0 | G48: 0 | H48: 0 | I48: 0 | J48: 0 | K48: 0
A49: Beaches and Jetties
A50: Casinos, Racing, Gambling, Wagering
A51: Community Parks (including Nurseries)
A52: Recreational Facilities
A53: Sports Grounds and Stadiums
A54: Public safety | C54: =SUM(C55:C62) -> 0 | D54: 6223925.27 | E54: 4690691.95 | F54: 7350000 | G54: 6211086 | H54: 6211086 | I54: 6688600 | J54: 7089917 | K54: 7515312
A55: Civil Defence
A56: Cleansing
A57: Control of Public Nuisances
A58: Fencing and Fences
A59: Fire Fighting and Protection
A60: Licensing and Control of Animals
A61: Police Forces, Traffic and Street Parking Control | C61: 0 | D61: 6223925.27 | E61: 4690691.95 | F61: 7350000 | G61: 6211086 | H61: 6211086 | I61: 6688600 | J61: 7089917 | K61: 7515312
A62: Pounds | C62: 0 | D62: 0 | E62: 0 | F62: 0 | G62: 0 | H62: 0 | I62: 0 | J62: 0 | K62: 0
A63: Housing | C63: =SUM(C64:C65) -> 0 | D63: =SUM(D64:D65) -> 0 | E63: 0 | F63: 0 | G63: 0 | H63: 0 | I63: 0 | J63: 0 | K63: 0
A64: Housing
A65: Informal Settlements
A66: Health | C66: =SUM(C67:C73) -> 0 | D66: =SUM(D67:D73) -> 0 | E66: 0 | F66: 0 | G66: 0 | H66: 0 | I66: 0 | J66: 0 | K66: 0
A67: Ambulance
A68: Health Services
A69: Laboratory Services
A70: Food Control
A71: Health Surveillance and Prevention of Communicable Diseases including immunizations
A72: Vector Control
A73: Chemical Safety
A74: Economic and environmental services | C74: =C75+C86+C91 -> 0 | D74: 47045998.96 | E74: 44149887.75 | F74: 2362872 | G74: 2372872 | H74: 2372872 | I74: 5329677 | J74: 5349459 | K74: 5370426
A75: Planning and development | C75: =SUM(C76:C85) -> 0 | D75: =SUM(D76:D85) -> 491482.59 | E75: 658887.75 | F75: 2362872 | G75: 2372872 | H75: 2372872 | I75: 5329677 | J75: 5349459 | K75: 5370426
A76: Billboards
A77: Corporate Wide Strategic Planning (IDPs, LEDs)
A78: Central City Improvement District
A79: Development Facilitation
A80: Economic Development/Planning | C80: 0 | D80: 491482.59 | E80: 658887.75 | F80: 2362872 | G80: 2372872 | H80: 2372872 | I80: 5329677 | J80: 5349459 | K80: 5370426
A81: Regional Planning and Development
A82: Town Planning, Building Regulations and Enforcement, and City Engineer
A83: Project Management Unit
A84: Provincial Planning
A85: Support to Local Municipalities
A86: Road transport | C86: =SUM(C87:C90) -> 0 | D86: 46554516.37 | E86: 43491000 | F86: 0 | G86: 0 | H86: 0 | I86: 0 | J86: 0 | K86: 0
A87: Public Transport
A88: Road and Traffic Regulation
A89: Roads | C89: 0 | D89: 46554516.37 | E89: 43491000 | F89: 0 | G89: 0 | H89: 0 | I89: 0 | J89: 0 | K89: 0
A90: Taxi Ranks
A91: Environmental protection | C91: =SUM(C92:C97) -> 0 | D91: =SUM(D92:D97) -> 0 | E91: 0 | F91: 0 | G91: 0 | H91: 0 | I91: 0 | J91: 0 | K91: 0
A92: Biodiversity and Landscape
A93: Coastal Protection
A94: Indigenous Forests
A95: Nature Conservation
A96: Pollution Control
A97: Soil Conservation
A98: Trading services | C98: =C99+C103+C107+C112 -> 0 | D98: =D99+D103+D107+D112 -> 39935786.62 | E98: 35940694.28 | F98: 102953743 | G98: 98953743 | H98: 98953743 | I98: 93271369 | J98: 116675873 | K98: =K99+K103+K107+K112 -> 126781746
A99: Energy sources | C99: =SUM(C100:C102) -> 0 | D99: =SUM(D100:D102) -> 33113181.98 | E99: 31067556.43 | F99: 97842743 | G99: 93842743 | H99: 93842743 | I99: 89697929 | J99: 114527846 | K99: 124504837
A100: Electricity | C100: 0 | D100: 33113181.98 | E100: 31067556.43 | F100: 97842743 | G100: 93842743 | H100: 93842743 | I100: 89697929 | J100: 114527846 | K100: 124504837
A101: Street Lighting and Signal Systems
A102: Nonelectric Energy
A103: Water management | C103: =SUM(C104:C106) -> 0 | D103: =SUM(D104:D106) -> 0 | E103: 0 | F103: 0 | G103: 0 | H103: 0 | I103: 0 | J103: 0 | K103: 0
A104: Water Treatment | C104: 0 | D104: 0 | E104: 0 | F104: 0 | G104: 0 | H104: 0 | I104: 0 | J104: 0 | K104: 0
A105: Water Distribution
A106: Water Storage
A107: Waste water management | C107: =SUM(C108:C111) -> 0 | D107: =SUM(D108:D111) -> 0 | E107: 0 | F107: 0 | G107: 0 | H107: 0 | I107: 0 | J107: 0 | K107: 0
A108: Public Toilets
A109: Sewerage
A110: Storm Water Management | C110: 0 | D110: 0 | E110: 0 | F110: 0 | G110: 0 | H110: 0 | I110: 0 | J110: 0 | K110: 0
A111: Waste Water Treatment | C111: 0 | D111: 0 | E111: 0 | F111: 0 | G111: 0 | H111: 0 | I111: 0 | J111: 0 | K111: 0
A112: Waste management | C112: =SUM(C113:C116) -> 0 | D112: =SUM(D113:D116) -> 6822604.64 | E112: 4873137.85 | F112: 5111000 | G112: 5111000 | H112: 5111000 | I112: 3573440 | J112: 2148027 | K112: 2276909
A113: Recycling
A114: Solid Waste Disposal (Landfill Sites) | C114: 0 | D114: 6822604.64 | E114: 4873137.85 | F114: 5111000 | G114: 5111000 | H114: 5111000 | I114: 3573440 | J114: 2148027 | K114: 2276909
A115: Solid Waste Removal
A116: Street Cleaning
A117: Other | C117: =SUM(C118:C123) -> 0 | D117: =SUM(D118:D123) -> 0 | E117: 0 | F117: 0 | G117: 0 | H117: 0 | I117: 0 | J117: 0 | K117: 0
A118: Abattoirs
A119: Air Transport
A120: Forestry
A121: Licensing and Regulation
A122: Markets
A123: Tourism
A124: ="Total "&A4 -> Total Revenue - Functional | B124: 2 | C124: =C5+C25+C74+C98+C117 -> 0 | D124: 319108201.5 | E124: 291120890.3 | F124: 333117436 | G124: 329067436 | H124: 329067436 | I124: 343275476 | J124: 380550353 | K124: 403116122
A126: Expenditure - Functional
A127: =A5 -> Municipal governance and administration | C127: =C128+C131+C145 -> 0 | D127: 200315526.9 | E127: 150166559.5 | F127: 166623982 | G127: 164984452 | H127: 164984452 | I127: 176952500 | J127: 190794512 | K127: 202865996
A128: Executive and council | C128: =SUM(C129:C130) -> 0 | D128: 80862852.17 | E128: 63171190.82 | F128: 58180779 | G128: 58487338 | H128: 58487338 | I128: 62723685 | J128: 67392345 | K128: 71398598
A129: Mayor and Council | C129: 0 | D129: 25390234.07 | E129: 27014465.8 | F129: 18913577 | G129: 19571401 | H129: 19571401 | I129: 23338165 | J129: 24654986 | K129: 26059325
A130: Municipal Manager, Town Secretary and Chief Executive | C130: 0 | D130: 55472618.1 | E130: 36156725.02 | F130: 39267202 | G130: 38915937 | H130: 38915937 | I130: 39385520 | J130: 42737359 | K130: 45339273
A131: Finance and administration | C131: =SUM(C132:C144) -> 0 | D131: 119452674.7 | E131: 86995368.65 | F131: 108443203 | G131: 106497114 | H131: 106497114 | I131: 114228815 | J131: 123402167 | K131: 131467398
A132: Administrative and Corporate Support | C132: 0 | D132: 48925496.79 | E132: 51121935.91 | F132: 69133510 | G132: 66762582 | H132: 66762582 | I132: 68436178 | J132: 75438464 | K132: 80382435
A133: Asset Management
A134: Finance | C134: 0 | D134: 70527177.95 | E134: 35873432.74 | F134: 39309693 | G134: 39734532 | H134: 39734532 | I134: 45792637 | J134: 47963703 | K134: 51084963
A135: Fleet Management
A136: Human Resources
A137: Information Technology
A138: Legal Services
A139: Marketing, Customer Relations, Publicity and Media Co-ordination
A140: Property Services
A141: Risk Management
A142: Security Services
A143: Supply Chain Management
A144: Valuation Service
A145: Internal audit | C145: =SUM(C146:C146) -> 0 | D145: 0 | E145: 0 | F145: 0 | G145: 0 | H145: 0 | I145: 0 | J145: 0 | K145: 0
A146: Governance Function
A147: Community and public safety | C147: =C148+C170+C176+C185+C188 -> 0 | D147: 13048897.55 | E147: 14889814.97 | F147: 15543805 | G147: 14683866 | H147: 14683866 | I147: 15061217 | J147: 15944568 | K147: 17049629
A148: Community and social services | C148: =SUM(C149:C169) -> 0 | D148: =SUM(D149:D169) -> 0 | E148: 0 | F148: 0 | G148: 0 | H148: 0 | I148: 0 | J148: 0 | K148: 0
A149: Aged Care
A150: Agricultural
A151: Animal Care and Diseases
A152: Cemeteries, Funeral Parlours and Crematoriums | C152: 0 | D152: 0 | E152: 0 | F152: 0 | G152: 0 | H152: 0 | I152: 0 | J152: 0 | K152: 0
A153: Child Care Facilities
A154: Community Halls and Facilities
A155: Consumer Protection
A156: Cultural Matters
A157: Disaster Management
A158: Education
A159: =A37 -> Indigenous and Customary Law
A160: Industrial Promotion
A161: Language Policy
A162: Libraries and Archives | C162: 0 | D162: 0 | E162: 0 | F162: 0 | G162: 0 | H162: 0 | I162: 0 | J162: 0 | K162: 0
A163: Literacy Programmes
A164: Media Services
A165: Museums and Art Galleries
A166: Population Development
A167: Provincial Cultural Matters
A168: Theatres
A169: Zoo's
A170: Sport and recreation | C170: =SUM(C171:C175) -> 0 | D170: 0 | E170: 0 | F170: 0 | G170: 0 | H170: 0 | I170: 0 | J170: 0 | K170: 0
A171: Beaches and Jetties
A172: Casinos, Racing, Gambling, Wagering
A173: Community Parks (including Nurseries)
A174: Recreational Facilities | C174: 0 | D174: 0 | E174: 0 | F174: 0 | G174: 0 | H174: 0 | I174: 0 | J174: 0 | K174: 0
A175: Sports Grounds and Stadiums
A176: Public safety | C176: =SUM(C177:C184) -> 0 | D176: 13048897.55 | E176: 14889814.97 | F176: 15543805 | G176: 14683866 | H176: 14683866 | I176: 15061217 | J176: 15944568 | K176: 17049629
A177: Civil Defence
A178: Cleansing
A179: =A57 -> Control of Public Nuisances
A180: Fencing and Fences
A181: Fire Fighting and Protection
A182: Licensing and Control of Animals
A183: Police Forces, Traffic and Street Parking Control | C183: 0 | D183: 13048897.55 | E183: 14889814.97 | F183: 15543805 | G183: 14683866 | H183: 14683866 | I183: 15061217 | J183: 15944568 | K183: 17049629
A184: Pounds | C184: 0 | D184: 0 | E184: 0 | F184: 0 | G184: 0 | H184: 0 | I184: 0 | J184: 0 | K184: 0
A185: =A63 -> Housing | C185: =SUM(C186:C187) -> 0 | D185: 0 | E185: 0 | F185: 0 | G185: 0 | H185: 0 | I185: 0 | J185: 0 | K185: 0
A186: Housing
A187: Informal Settlements
A188: Health | C188: =SUM(C189:C195) -> 0 | D188: =SUM(D189:D195) -> 0 | E188: 0 | F188: 0 | G188: 0 | H188: 0 | I188: 0 | J188: 0 | K188: 0
A189: Ambulance
A190: Health Services
A191: Laboratory Services
A192: Food Control
A193: Health Surveillance and Prevention of Communicable Diseases including immunizations
A194: Vector Control
A195: Chemical Safety
A196: Economic and environmental services | C196: =C197+C208+C213 -> 0 | D196: 19261660.67 | E196: 31357966.14 | F196: 49836685 | G196: 49644769 | H196: 49644769 | I196: 55672751 | J196: 60861920 | K196: 62234631
A197: Planning and development | C197: =SUM(C198:C207) -> 0 | D197: =SUM(D198:D207) -> 9661257.78 | E197: 9851544.11 | F197: 12065788 | G197: 11607413 | H197: 11607413 | I197: 16248793 | J197: 18457547 | K197: 17300176
A198: Billboards
A199: Corporate Wide Strategic Planning (IDPs, LEDs)
A200: Central City Improvement District
A201: Development Facilitation
... 53 more rows

Sheet A3-FinPerf V
A1: =muni&" - "&Approve2 -> LIM351 Blouberg - Table A3 Budgeted Financial Performance (revenue and expenditure by municipal vote)
A2: =Vdesc -> Vote Description | B2: =head27 -> Ref | C2: =head1b -> 2016/17 | D2: =head1A -> 2017/18 | E2: =Head1 -> 2018/19 | F2: =Head2 -> Current Year 2019/20 | I2: =Head3 -> 2020/21 Medium Term Revenue & Expenditure Framework | L2: =Head4 -> LTFS
A3: R thousand | C3: =Head5 -> Audited Outcome | D3: =Head5 -> Audited Outcome | E3: =Head5 -> Audited Outcome | F3: =Head6 -> Original Budget | G3: =Head7 -> Adjusted Budget | H3: =Head8 -> Full Year Forecast | I3: =Head9 -> Budget Year 2020/21 | J3: =Head10 -> Budget Year +1 2021/22 | K3: =Head11 -> Budget Year +2 2022/23 | L3: =Head12 -> Forecast 2023/24 | M3: =Head13 -> Forecast 2024/25 | N3: =Head14 -> Forecast 2025/26 | O3: =Head15 -> Forecast 2026/27 | P3: =Head16 -> Forecast 2027/28 | Q3: =Head17 -> Forecast 2028/29 | R3: =Head18 -> Forecast 2029/30 | S3: =Head19 -> Forecast 2030/31 | T3: =Head20 -> Forecast 2031/32 | U3: =Head21 -> Forecast 2032/33 | V3: =Head22 -> Forecast 2033/34 | W3: =Head23 -> Forecast 2034/35
A4: Revenue by Vote | B4: 1
A5: =A3A!A5 -> Vote 01 - Executive & Council | C5: =A3A!C5 -> 0 | D5: =A3A!D5 -> 0 | E5: =A3A!E5 -> 0 | F5: =A3A!F5 -> 0 | G5: =A3A!G5 -> 0 | H5: =A3A!H5 -> 0 | I5: =A3A!I5 -> 0 | J5: =A3A!J5 -> 0 | K5: =A3A!K5 -> 0
A6: =A3A!A7 -> Vote 02 - Finance And Administration | C6: =A3A!C7 -> 0 | D6: =A3A!D7 -> 25855950 | E6: =A3A!E7 -> 6783826.47 | F6: =A3A!F7 -> 0 | G6: =A3A!G7 -> 0 | H6: =A3A!H7 -> 0 | I6: =A3A!I7 -> 0 | J6: =A3A!J7 -> 0 | K6: =A3A!K7 -> 0
A7: =A3A!A9 -> Vote 03 - Community Service | C7: =A3A!C9 -> 0 | D7: =A3A!D9 -> 199879531.8 | E7: =A3A!E9 -> 199500313.1 | F7: =A3A!F9 -> 220299821 | G7: =A3A!G9 -> 221323735 | H7: =A3A!H9 -> 221323735 | I7: =A3A!I9 -> 237643830 | J7: =A3A!J9 -> 251072584 | K7: =A3A!K9 -> 263064366
A8: =A3A!A11 -> Vote 04 - Public And Safety | C8: =A3A!C11 -> 0 | D8: =A3A!D11 -> 167008.87 | E8: =A3A!E11 -> 55476.72 | F8: =A3A!F11 -> 151000 | G8: =A3A!G11 -> 206000 | H8: =A3A!H11 -> 206000 | I8: =A3A!I11 -> 342000 | J8: =A3A!J11 -> 362520 | K8: =A3A!K11 -> 384272
A9: =A3A!A13 -> Vote 05 - Waste Management | C9: =A3A!C13 -> 0 | D9: =A3A!D13 -> 79667698.35 | E9: =A3A!E13 -> 74558556.43 | F9: =A3A!F13 -> 97842743 | G9: =A3A!G13 -> 93842743 | H9: =A3A!H13 -> 93842743 | I9: =A3A!I13 -> 89697929 | J9: =A3A!J13 -> 114527846 | K9: =A3A!K13 -> 124504837
A10: =A3A!A21 -> Vote 06 - Roads Services | C10: =A3A!C21 -> 0 | D10: =A3A!D21 -> 13046529.91 | E10: =A3A!E21 -> 9563829.8 | F10: =A3A!F21 -> 12461000 | G10: =A3A!G21 -> 11322086 | H10: =A3A!H21 -> 11322086 | I10: =A3A!I21 -> 10262040 | J10: =A3A!J21 -> 9237944 | K10: =A3A!K21 -> 9792221
A11: =A3A!A36 -> Vote 07 - Econominc Development And Planning | C11: =A3A!C36 -> 0 | D11: =A3A!D36 -> 491482.59 | E11: =A3A!E36 -> 658887.75 | F11: =A3A!F36 -> 2362872 | G11: =A3A!G36 -> 2372872 | H11: =A3A!H36 -> 2372872 | I11: =A3A!I36 -> 5329677 | J11: =A3A!J36 -> 5349459 | K11: =A3A!K36 -> 5370426
A12: ='Org structure'!A9 -> Vote 08 - | C12: =A3A!C38 -> 0 | D12: =A3A!D38 -> 0 | E12: =A3A!E38 -> 0 | F12: =A3A!F38 -> 0 | G12: =A3A!G38 -> 0 | H12: =A3A!H38 -> 0 | I12: =A3A!I38 -> 0 | J12: =A3A!J38 -> 0 | K12: =A3A!K38 -> 0
A13: ='Org structure'!A10 -> Vote 09 - | C13: =A3A!C39 -> 0 | D13: =A3A!D39 -> 0 | E13: =A3A!E39 -> 0 | F13: =A3A!F39 -> 0 | G13: =A3A!G39 -> 0 | H13: =A3A!H39 -> 0 | I13: =A3A!I39 -> 0 | J13: =A3A!J39 -> 0 | K13: =A3A!K39 -> 0
A14: ='Org structure'!A11 -> Vote 10 - | C14: =A3A!C40 -> 0 | D14: =A3A!D40 -> 0 | E14: =A3A!E40 -> 0 | F14: =A3A!F40 -> 0 | G14: =A3A!G40 -> 0 | H14: =A3A!H40 -> 0 | I14: =A3A!I40 -> 0 | J14: =A3A!J40 -> 0 | K14: =A3A!K40 -> 0
A15: ='Org structure'!A12 -> Vote 11 - | C15: =A3A!C41 -> 0 | D15: =A3A!D41 -> 0 | E15: =A3A!E41 -> 0 | F15: =A3A!F41 -> 0 | G15: =A3A!G41 -> 0 | H15: =A3A!H41 -> 0 | I15: =A3A!I41 -> 0 | J15: =A3A!J41 -> 0 | K15: =A3A!K41 -> 0 | L15: =A5A!#REF! -> 
A16: ='Org structure'!A13 -> Vote 12 - | C16: =A3A!C42 -> 0 | D16: =A3A!D42 -> 0 | E16: =A3A!E42 -> 0 | F16: =A3A!F42 -> 0 | G16: =A3A!G42 -> 0 | H16: =A3A!H42 -> 0 | I16: =A3A!I42 -> 0 | J16: =A3A!J42 -> 0 | K16: =A3A!K42 -> 0 | L16: =A5A!#REF! -> 
A17: ='Org structure'!A14 -> Vote 13 - | C17: =A3A!C43 -> 0 | D17: =A3A!D43 -> 0 | E17: =A3A!E43 -> 0 | F17: =A3A!F43 -> 0 | G17: =A3A!G43 -> 0 | H17: =A3A!H43 -> 0 | I17: =A3A!I43 -> 0 | J17: =A3A!J43 -> 0 | K17: =A3A!K43 -> 0 | L17: =A5A!#REF! -> 
A18: ='Org structure'!A15 -> Vote 14 - | C18: =A3A!C44 -> 0 | D18: =A3A!D44 -> 0 | E18: =A3A!E44 -> 0 | F18: =A3A!F44 -> 0 | G18: =A3A!G44 -> 0 | H18: =A3A!H44 -> 0 | I18: =A3A!I44 -> 0 | J18: =A3A!J44 -> 0 | K18: =A3A!K44 -> 0 | L18: =A5A!#REF! -> 
A19: ='Org structure'!A16 -> Vote 15 - Other | C19: =A3A!C45 -> 0 | D19: =A3A!D45 -> 0 | E19: =A3A!E45 -> 0 | F19: =A3A!F45 -> 0 | G19: =A3A!G45 -> 0 | H19: =A3A!H45 -> 0 | I19: =A3A!I45 -> 0 | J19: =A3A!J45 -> 0 | K19: =A3A!K45 -> 0 | L19: =A5A!#REF! -> 
A20: Total Revenue by Vote | B20: 2 | C20: =SUM(C5:C19) -> 0 | D20: =SUM(D5:D19) -> 319108201.5 | E20: 291120890.3 | F20: 333117436 | G20: 329067436 | H20: 329067436 | I20: 343275476 | J20: 380550353 | K20: 403116122
A22: Expenditure by Vote to be appropriated | B22: 1
A23: =A3A!A49 -> Vote 01 - Executive & Council | C23: =A3A!C49 -> 0 | D23: =A3A!D49 -> 25390234.07 | E23: =A3A!E49 -> 27014465.8 | F23: =A3A!F49 -> 18913577 | G23: =A3A!G49 -> 19571401 | H23: =A3A!H49 -> 19571401 | I23: =A3A!I49 -> 23338165 | J23: =A3A!J49 -> 24654986 | K23: =A3A!K49 -> 26059325
A24: =A3A!A51 -> Vote 02 - Finance And Administration | C24: =A3A!C51 -> 0 | D24: =A3A!D51 -> 55472618.1 | E24: =A3A!E51 -> 36156725.02 | F24: =A3A!F51 -> 39267202 | G24: =A3A!G51 -> 38915937 | H24: =A3A!H51 -> 38915937 | I24: =A3A!I51 -> 39385520 | J24: =A3A!J51 -> 42737359 | K24: =A3A!K51 -> 45339273
A25: =A3A!A53 -> Vote 03 - Community Service | C25: =A3A!C53 -> 0 | D25: =A3A!D53 -> 70527177.95 | E25: =A3A!E53 -> 35873432.74 | F25: =A3A!F53 -> 39309693 | G25: =A3A!G53 -> 39734532 | H25: =A3A!H53 -> 39734532 | I25: =A3A!I53 -> 45792637 | J25: =A3A!J53 -> 47963703 | K25: =A3A!K53 -> 51084963
A26: =A3A!A55 -> Vote 04 - Public And Safety | C26: =A3A!C55 -> 0 | D26: =A3A!D55 -> 48925496.79 | E26: =A3A!E55 -> 51121935.91 | F26: =A3A!F55 -> 69133510 | G26: =A3A!G55 -> 66762582 | H26: =A3A!H55 -> 66762582 | I26: =A3A!I55 -> 68436178 | J26: =A3A!J55 -> 75438464 | K26: =A3A!K55 -> 80382435
A27: =A3A!A57 -> Vote 05 - Waste Management | C27: =A3A!C57 -> 0 | D27: =A3A!D57 -> 52994831.44 | E27: =A3A!E57 -> 80646942.58 | F27: =A3A!F57 -> 95681624 | G27: =A3A!G57 -> 99606640 | H27: =A3A!H57 -> 99606640 | I27: =A3A!I57 -> 104179832 | J27: =A3A!J57 -> 110286543 | K27: =A3A!K57 -> 117037915
A28: =A3A!A65 -> Vote 06 - Roads Services | C28: =A3A!C65 -> 0 | D28: =A3A!D65 -> 34592357.14 | E28: =A3A!E65 -> 34969113.13 | F28: =A3A!F65 -> 38041848 | G28: =A3A!G65 -> 37312181 | H28: =A3A!H65 -> 37312181 | I28: =A3A!I65 -> 38259741 | J28: =A3A!J65 -> 39937669 | K28: =A3A!K65 -> 42294183
A29: =A3A!A80 -> Vote 07 - Econominc Development And Planning | C29: =A3A!C80 -> 0 | D29: =A3A!D80 -> 9661257.78 | E29: =A3A!E80 -> 9851544.11 | F29: =A3A!F80 -> 12065788 | G29: =A3A!G80 -> 11607413 | H29: =A3A!H80 -> 11607413 | I29: =A3A!I80 -> 16248793 | J29: =A3A!J80 -> 18457547 | K29: =A3A!K80 -> 17300176
A30: ='Org structure'!A9 -> Vote 08 - | C30: =A3A!C82 -> 0 | D30: =A3A!D82 -> 0 | E30: =A3A!E82 -> 0 | F30: =A3A!F82 -> 0 | G30: =A3A!G82 -> 0 | H30: =A3A!H82 -> 0 | I30: =A3A!I82 -> 0 | J30: =A3A!J82 -> 0 | K30: =A3A!K82 -> 0
A31: ='Org structure'!A10 -> Vote 09 - | C31: =A3A!C83 -> 0 | D31: =A3A!D83 -> 0 | E31: =A3A!E83 -> 0 | F31: =A3A!F83 -> 0 | G31: =A3A!G83 -> 0 | H31: =A3A!H83 -> 0 | I31: =A3A!I83 -> 0 | J31: =A3A!J83 -> 0 | K31: =A3A!K83 -> 0
A32: ='Org structure'!A11 -> Vote 10 - | C32: =A3A!C84 -> 0 | D32: =A3A!D84 -> 0 | E32: =A3A!E84 -> 0 | F32: =A3A!F84 -> 0 | G32: =A3A!G84 -> 0 | H32: =A3A!H84 -> 0 | I32: =A3A!I84 -> 0 | J32: =A3A!J84 -> 0 | K32: =A3A!K84 -> 0
A33: ='Org structure'!A12 -> Vote 11 - | C33: =A3A!C85 -> 0 | D33: =A3A!D85 -> 0 | E33: =A3A!E85 -> 0 | F33: =A3A!F85 -> 0 | G33: =A3A!G85 -> 0 | H33: =A3A!H85 -> 0 | I33: =A3A!I85 -> 0 | J33: =A3A!J85 -> 0 | K33: =A3A!K85 -> 0 | L33: =A3A!#REF! -> 
A34: ='Org structure'!A13 -> Vote 12 - | C34: =A3A!C86 -> 0 | D34: =A3A!D86 -> 0 | E34: =A3A!E86 -> 0 | F34: =A3A!F86 -> 0 | G34: =A3A!G86 -> 0 | H34: =A3A!H86 -> 0 | I34: =A3A!I86 -> 0 | J34: =A3A!J86 -> 0 | K34: =A3A!K86 -> 0 | L34: =A3A!#REF! -> 
A35: ='Org structure'!A14 -> Vote 13 - | C35: =A3A!C87 -> 0 | D35: =A3A!D87 -> 0 | E35: =A3A!E87 -> 0 | F35: =A3A!F87 -> 0 | G35: =A3A!G87 -> 0 | H35: =A3A!H87 -> 0 | I35: =A3A!I87 -> 0 | J35: =A3A!J87 -> 0 | K35: =A3A!K87 -> 0 | L35: =A3A!#REF! -> 
A36: ='Org structure'!A15 -> Vote 14 - | C36: =A3A!C88 -> 0 | D36: =A3A!D88 -> 0 | E36: =A3A!E88 -> 0 | F36: =A3A!F88 -> 0 | G36: =A3A!G88 -> 0 | H36: =A3A!H88 -> 0 | I36: =A3A!I88 -> 0 | J36: =A3A!J88 -> 0 | K36: =A3A!K88 -> 0 | L36: =A3A!#REF! -> 
A37: ='Org structure'!A16 -> Vote 15 - Other | C37: =A3A!C89 -> 0 | D37: =A3A!D89 -> 0 | E37: =A3A!E89 -> 0 | F37: =A3A!F89 -> 0 | G37: =A3A!G89 -> 0 | H37: =A3A!H89 -> 0 | I37: =A3A!I89 -> 0 | J37: =A3A!J89 -> 0 | K37: =A3A!K89 -> 0 | L37: =A3A!#REF! -> 
A38: Total Expenditure by Vote | B38: 2 | C38: =SUM(C23:C37) -> 0 | D38: =SUM(D23:D37) -> 297563973.3 | E38: 275634159.3 | F38: 312413242 | G38: 313510686 | H38: 313510686 | I38: 335640866 | J38: 359476271 | K38: 379498270 | L38: =SUM(L23:L29) -> 0 | M38: 0 | N38: 0 | O38: 0 | P38: 0 | Q38: 0 | R38: 0 | S38: 0 | T38: 0 | U38: 0 | V38: 0 | W38: 0
A39: =result -> Surplus/(Deficit) for the year | B39: 2 | C39: =C20-C38 -> 0 | D39: 21544228.26 | E39: 15486731.02 | F39: 20704194 | G39: 15556750 | H39: 15556750 | I39: 7634610 | J39: 21074082 | K39: 23617852 | L39: 0 | M39: 0 | N39: 0 | O39: 0 | P39: 0 | Q39: 0 | R39: 0 | S39: 0 | T39: 0 | U39: 0 | V39: 0 | W39: 0
A40: =head27a -> References
A41: 1. Insert 'Vote'; e.g. department, if different to functional classification structure
A42: 2. Must reconcile to Budgeted Financial Performance (revenue and expenditure)
A43: 3. Assign share in 'associate' to relevant Vote
A45: ="check "&A39 -> check Surplus/(Deficit) for the year | C45: =C39-A3A!C92 -> 0 | D45: =D39-A3A!D92 -> 0 | E45: =E39-A3A!E92 -> 0 | F45: =F39-A3A!F92 -> 0 | G45: =G39-A3A!G92 -> 0 | H45: =H39-A3A!H92 -> 0 | I45: =I39-A3A!I92 -> 0 | J45: =J39-A3A!J92 -> 0 | K45: =K39-A3A!K92 -> 0

Sheet A3A
A1: =muni&" - "&Approve2&"A" -> LIM351 Blouberg - Table A3 Budgeted Financial Performance (revenue and expenditure by municipal vote)A
A2: =Vdesc -> Vote Description | B2: =head27 -> Ref | C2: =head1b -> 2016/17 | D2: =head1A -> 2017/18 | E2: =Head1 -> 2018/19 | F2: =Head2 -> Current Year 2019/20 | I2: =Head3 -> 2020/21 Medium Term Revenue & Expenditure Framework | L2: =Head4 -> LTFS
A3: R thousand | C3: =Head5 -> Audited Outcome | D3: =Head5 -> Audited Outcome | E3: =Head5 -> Audited Outcome | F3: =Head6 -> Original Budget | G3: =Head7 -> Adjusted Budget | H3: =Head8 -> Full Year Forecast | I3: =Head9 -> Budget Year 2020/21 | J3: =Head10 -> Budget Year +1 2021/22 | K3: =Head11 -> Budget Year +2 2022/23 | L3: =Head12 -> Forecast 2023/24 | M3: =Head13 -> Forecast 2024/25 | N3: =Head14 -> Forecast 2025/26 | O3: =Head15 -> Forecast 2026/27 | P3: =Head16 -> Forecast 2027/28 | Q3: =Head17 -> Forecast 2028/29 | R3: =Head18 -> Forecast 2029/30 | S3: =Head19 -> Forecast 2030/31 | T3: =Head20 -> Forecast 2031/32 | U3: =Head21 -> Forecast 2032/33 | V3: =Head22 -> Forecast 2033/34 | W3: =Head23 -> Forecast 2034/35
A4: Revenue by Vote | B4: 1
A5: ='Org structure'!A2 -> Vote 01 - Executive & Council | C5: =SUM(C6:C6) -> 0 | D5: 0 | E5: 0 | F5: 0 | G5: 0 | H5: 0 | I5: 0 | J5: 0 | K5: 0
A6: ='Org structure'!E3 -> 01.1 - Council General | C6: 0 | D6: 0 | E6: 0 | F6: 0 | G6: 0 | H6: 0 | I6: 0 | J6: 0 | K6: 0
A7: ='Org structure'!A3 -> Vote 02 - Finance And Administration | C7: =SUM(C8:C8) -> 0 | D7: 25855950 | E7: 6783826.47 | F7: 0 | G7: 0 | H7: 0 | I7: 0 | J7: 0 | K7: 0
A8: ='Org structure'!E5 -> 02.1 - Municipal Manager | C8: 0 | D8: 25855950 | E8: 6783826.47 | F8: 0 | G8: 0 | H8: 0 | I8: 0 | J8: 0 | K8: 0
A9: ='Org structure'!A4 -> Vote 03 - Community Service | C9: =SUM(C10:C10) -> 0 | D9: 199879531.8 | E9: 199500313.1 | F9: 220299821 | G9: 221323735 | H9: 221323735 | I9: 237643830 | J9: 251072584 | K9: 263064366
A10: ='Org structure'!E7 -> 03.1 - Finance Services Administration | C10: 0 | D10: 199879531.8 | E10: 199500313.1 | F10: 220299821 | G10: 221323735 | H10: 221323735 | I10: 237643830 | J10: 251072584 | K10: 263064366
A11: ='Org structure'!A5 -> Vote 04 - Public And Safety | C11: =SUM(C12:C12) -> 0 | D11: 167008.87 | E11: 55476.72 | F11: 151000 | G11: 206000 | H11: 206000 | I11: 342000 | J11: 362520 | K11: 384272
A12: ='Org structure'!E9 -> 04.1 - Corporate Services Administration | C12: 0 | D12: 167008.87 | E12: 55476.72 | F12: 151000 | G12: 206000 | H12: 206000 | I12: 342000 | J12: 362520 | K12: 384272
A13: ='Org structure'!A6 -> Vote 05 - Waste Management | C13: =SUM(C14:C20) -> 0 | D13: 79667698.35 | E13: 74558556.43 | F13: 97842743 | G13: 93842743 | H13: 93842743 | I13: 89697929 | J13: 114527846 | K13: 124504837
A14: ='Org structure'!E11 -> 05.1 - Technical Services Administration | C14: 0 | D14: 0 | E14: 0 | F14: 0 | G14: 0 | H14: 0 | I14: 0 | J14: 0 | K14: 0
A15: ='Org structure'!E12 -> 05.2 - Electrical Services | C15: 0 | D15: 33113181.98 | E15: 31067556.43 | F15: 97842743 | G15: 93842743 | H15: 93842743 | I15: 89697929 | J15: 114527846 | K15: 124504837
A16: ='Org structure'!E13 -> 05.3 - Water Services | C16: 0 | D16: 0 | E16: 0 | F16: 0 | G16: 0 | H16: 0 | I16: 0 | J16: 0 | K16: 0
A17: ='Org structure'!E14 -> 05.4 - Sanitation Services | C17: 0 | D17: 0 | E17: 0 | F17: 0 | G17: 0 | H17: 0 | I17: 0 | J17: 0 | K17: 0
A18: ='Org structure'!E15 -> 05.5 - Roads Services | C18: 0 | D18: 46554516.37 | E18: 43491000 | F18: 0 | G18: 0 | H18: 0 | I18: 0 | J18: 0 | K18: 0
A19: ='Org structure'!E16 -> 05.6 - Storm Water Services | C19: 0 | D19: 0 | E19: 0 | F19: 0 | G19: 0 | H19: 0 | I19: 0 | J19: 0 | K19: 0
A20: ='Org structure'!E17 -> 05.7 - Water Reporting Function | C20: 0 | D20: 0 | E20: 0 | F20: 0 | G20: 0 | H20: 0 | I20: 0 | J20: 0 | K20: 0
A21: ='Org structure'!A7 -> Vote 06 - Roads Services | C21: =SUM(C22:C35) -> 0 | D21: 13046529.91 | E21: 9563829.8 | F21: 12461000 | G21: 11322086 | H21: 11322086 | I21: 10262040 | J21: 9237944 | K21: 9792221
A22: ='Org structure'!E19 -> 06.1 - Community Services Administration | C22: 0 | D22: 6364739.88 | E22: 4321105.33 | F22: 4487000 | G22: 4237000 | H22: 4237000 | I22: 2647000 | J22: 1166000 | K22: 1235960
A23: ='Org structure'!E20 -> 06.2 - Traffic Services | C23: 0 | D23: 2941165.27 | E23: 2906211.95 | F23: 0 | G23: 0 | H23: 0 | I23: 0 | J23: 0 | K23: 0
A24: ='Org structure'!E21 -> 06.3 - Traffic Services | C24: 0 | D24: 3282760 | E24: 1784480 | F24: 7350000 | G24: 6211086 | H24: 6211086 | I24: 6688600 | J24: 7089917 | K24: 7515312
A25: ='Org structure'!E22 -> 06.4 - Libraries | C25: 0 | D25: 0 | E25: 0 | F25: 0 | G25: 0 | H25: 0 | I25: 0 | J25: 0 | K25: 0
A26: ='Org structure'!E23 -> 06.5 - Sport | C26: 0 | D26: 0 | E26: 0 | F26: 0 | G26: 0 | H26: 0 | I26: 0 | J26: 0 | K26: 0
A27: ='Org structure'!E24 -> 06.6 - Cemetery | C27: 0 | D27: 0 | E27: 0 | F27: 0 | G27: 0 | H27: 0 | I27: 0 | J27: 0 | K27: 0
A28: ='Org structure'!E25 -> 06.7 - Refuse | C28: 0 | D28: 457864.76 | E28: 552032.52 | F28: 624000 | G28: 874000 | H28: 874000 | I28: 926440 | J28: 982027 | K28: 1040949
A29: ='Org structure'!E26 -> 06.8 - Pound Services | C29: 0 | D29: 0 | E29: 0 | F29: 0 | G29: 0 | H29: 0 | I29: 0 | J29: 0 | K29: 0
A30: ='Org structure'!E27 -> 06.9 - Pound Services | C30: 0 | D30: 0 | E30: 0 | F30: 0 | G30: 0 | H30: 0 | I30: 0 | J30: 0 | K30: 0
A31: ='Org structure'!E28 -> 06.10 - Satellite Offices | C31: 0 | D31: 0 | E31: 0 | F31: 0 | G31: 0 | H31: 0 | I31: 0 | J31: 0 | K31: 0
A32: ='Org structure'!E29 -> 06.11 - Alldays Offices | C32: 0 | D32: 0 | E32: 0 | F32: 0 | G32: 0 | H32: 0 | I32: 0 | J32: 0 | K32: 0
A33: ='Org structure'!E30 -> 06.12 - Eldorado Offices | C33: 0 | D33: 0 | E33: 0 | F33: 0 | G33: 0 | H33: 0 | I33: 0 | J33: 0 | K33: 0
A34: ='Org structure'!E31 -> 06.13 - Tolwe Offices | C34: 0 | D34: 0 | E34: 0 | F34: 0 | G34: 0 | H34: 0 | I34: 0 | J34: 0 | K34: 0
A35: ='Org structure'!E32 -> 06.14 - Senwabarwarna Offices | C35: 0 | D35: 0 | E35: 0 | F35: 0 | G35: 0 | H35: 0 | I35: 0 | J35: 0 | K35: 0
A36: ='Org structure'!A8 -> Vote 07 - Econominc Development And Planning | C36: =SUM(C37:C37) -> 0 | D36: 491482.59 | E36: 658887.75 | F36: 2362872 | G36: 2372872 | H36: 2372872 | I36: 5329677 | J36: 5349459 | K36: 5370426
A37: ='Org structure'!E34 -> 07.1 - Economic Development And Planning | C37: 0 | D37: 491482.59 | E37: 658887.75 | F37: 2362872 | G37: 2372872 | H37: 2372872 | I37: 5329677 | J37: 5349459 | K37: 5370426
A38: ='Org structure'!A9 -> Vote 08 - | C38: 0 | D38: 0 | E38: 0 | F38: 0 | G38: 0 | H38: 0 | I38: 0 | J38: 0 | K38: 0
A39: ='Org structure'!A10 -> Vote 09 - | C39: 0 | D39: 0 | E39: 0 | F39: 0 | G39: 0 | H39: 0 | I39: 0 | J39: 0 | K39: 0
A40: ='Org structure'!A11 -> Vote 10 - | C40: 0 | D40: 0 | E40: 0 | F40: 0 | G40: 0 | H40: 0 | I40: 0 | J40: 0 | K40: 0
A41: ='Org structure'!A12 -> Vote 11 - | C41: 0 | D41: 0 | E41: 0 | F41: 0 | G41: 0 | H41: 0 | I41: 0 | J41: 0 | K41: 0
A42: ='Org structure'!A13 -> Vote 12 - | C42: 0 | D42: 0 | E42: 0 | F42: 0 | G42: 0 | H42: 0 | I42: 0 | J42: 0 | K42: 0
A43: ='Org structure'!A14 -> Vote 13 - | C43: 0 | D43: 0 | E43: 0 | F43: 0 | G43: 0 | H43: 0 | I43: 0 | J43: 0 | K43: 0
A44: ='Org structure'!A15 -> Vote 14 - | C44: 0 | D44: 0 | E44: 0 | F44: 0 | G44: 0 | H44: 0 | I44: 0 | J44: 0 | K44: 0
A45: ='Org structure'!A16 -> Vote 15 - Other | C45: 0 | D45: 0 | E45: 0 | F45: 0 | G45: 0 | H45: 0 | I45: 0 | J45: 0 | K45: 0
A46: Total Revenue by Vote | B46: 2 | C46: =C5+C7+C9+C11+C13+C21+C36+C38+C39+C40+C41+C42+C43+C44+C45 -> 0 | D46: 319108201.5 | E46: 291120890.3 | F46: 333117436 | G46: 329067436 | H46: 329067436 | I46: 343275476 | J46: 380550353 | K46: 403116122 | L46: =SUM(#REF!) ->  | M46: =SUM(#REF!) ->  | N46: =SUM(#REF!) ->  | O46: =SUM(#REF!) ->  | P46: =SUM(#REF!) ->  | Q46: =SUM(#REF!) ->  | R46: =SUM(#REF!) ->  | S46: =SUM(#REF!) ->  | T46: =SUM(#REF!) ->  | U46: =SUM(#REF!) ->  | V46: =SUM(#REF!) ->  | W46: =SUM(#REF!) -> 
A48: Expenditure by Vote | B48: 1
A49: ='Org structure'!A2 -> Vote 01 - Executive & Council | C49: =SUM(C50:C50) -> 0 | D49: 25390234.07 | E49: 27014465.8 | F49: 18913577 | G49: 19571401 | H49: 19571401 | I49: 23338165 | J49: 24654986 | K49: 26059325
A50: ='Org structure'!E3 -> 01.1 - Council General | C50: 0 | D50: 25390234.07 | E50: 27014465.8 | F50: 18913577 | G50: 19571401 | H50: 19571401 | I50: 23338165 | J50: 24654986 | K50: 26059325
A51: ='Org structure'!A3 -> Vote 02 - Finance And Administration | C51: =SUM(C52:C52) -> 0 | D51: 55472618.1 | E51: 36156725.02 | F51: 39267202 | G51: 38915937 | H51: 38915937 | I51: 39385520 | J51: 42737359 | K51: 45339273
A52: ='Org structure'!E5 -> 02.1 - Municipal Manager | C52: 0 | D52: 55472618.1 | E52: 36156725.02 | F52: 39267202 | G52: 38915937 | H52: 38915937 | I52: 39385520 | J52: 42737359 | K52: 45339273
A53: ='Org structure'!A4 -> Vote 03 - Community Service | C53: =SUM(C54:C54) -> 0 | D53: 70527177.95 | E53: 35873432.74 | F53: 39309693 | G53: 39734532 | H53: 39734532 | I53: 45792637 | J53: 47963703 | K53: 51084963
A54: ='Org structure'!E7 -> 03.1 - Finance Services Administration | C54: 0 | D54: 70527177.95 | E54: 35873432.74 | F54: 39309693 | G54: 39734532 | H54: 39734532 | I54: 45792637 | J54: 47963703 | K54: 51084963
A55: ='Org structure'!A5 -> Vote 04 - Public And Safety | C55: =SUM(C56:C56) -> 0 | D55: 48925496.79 | E55: 51121935.91 | F55: 69133510 | G55: 66762582 | H55: 66762582 | I55: 68436178 | J55: 75438464 | K55: 80382435
A56: ='Org structure'!E9 -> 04.1 - Corporate Services Administration | C56: 0 | D56: 48925496.79 | E56: 51121935.91 | F56: 69133510 | G56: 66762582 | H56: 66762582 | I56: 68436178 | J56: 75438464 | K56: 80382435
A57: ='Org structure'!A6 -> Vote 05 - Waste Management | C57: =SUM(C58:C64) -> 0 | D57: 52994831.44 | E57: 80646942.58 | F57: 95681624 | G57: 99606640 | H57: 99606640 | I57: 104179832 | J57: 110286543 | K57: 117037915
A58: ='Org structure'!E11 -> 05.1 - Technical Services Administration | C58: 0 | D58: 4690961.18 | E58: 2443709.76 | F58: 5473457 | G58: 5079793 | H58: 5079793 | I58: 5285578 | J58: 5650043 | K58: 6039690
A59: ='Org structure'!E12 -> 05.2 - Electrical Services | C59: 0 | D59: 38703467.37 | E59: 56696810.79 | F59: 52437270 | G59: 56489491 | H59: 56489491 | I59: 59470296 | J59: 62232127 | K59: 66063770
A60: ='Org structure'!E13 -> 05.3 - Water Services | C60: 0 | D60: 0 | E60: 0 | F60: 0 | G60: 0 | H60: 0 | I60: 0 | J60: 0 | K60: 0
A61: ='Org structure'!E14 -> 05.4 - Sanitation Services | C61: 0 | D61: 0 | E61: 0 | F61: 0 | G61: 0 | H61: 0 | I61: 0 | J61: 0 | K61: 0
A62: ='Org structure'!E15 -> 05.5 - Roads Services | C62: 0 | D62: 9600402.89 | E62: 21506422.03 | F62: 37770897 | G62: 38037356 | H62: 38037356 | I62: 39423958 | J62: 42404373 | K62: 44934455
A63: ='Org structure'!E16 -> 05.6 - Storm Water Services | C63: 0 | D63: 0 | E63: 0 | F63: 0 | G63: 0 | H63: 0 | I63: 0 | J63: 0 | K63: 0
A64: ='Org structure'!E17 -> 05.7 - Water Reporting Function | C64: 0 | D64: 0 | E64: 0 | F64: 0 | G64: 0 | H64: 0 | I64: 0 | J64: 0 | K64: 0
A65: ='Org structure'!A7 -> Vote 06 - Roads Services | C65: =SUM(C66:C79) -> 0 | D65: 34592357.14 | E65: 34969113.13 | F65: 38041848 | G65: 37312181 | H65: 37312181 | I65: 38259741 | J65: 39937669 | K65: 42294183
A66: ='Org structure'!E19 -> 06.1 - Community Services Administration | C66: 0 | D66: 21549559.59 | E66: 19941623.93 | F66: 21873043 | G66: 22067865 | H66: 22067865 | I66: 18518374 | J66: 19032142 | K66: 19985937
A67: ='Org structure'!E20 -> 06.2 - Traffic Services | C67: 0 | D67: 0 | E67: 175500 | F67: 0 | G67: 0 | H67: 0 | I67: 0 | J67: 0 | K67: 0
A68: ='Org structure'!E21 -> 06.3 - Traffic Services | C68: 0 | D68: 13048897.55 | E68: 14714314.97 | F68: 15543805 | G68: 14683866 | H68: 14683866 | I68: 15061217 | J68: 15944568 | K68: 17049629
A69: ='Org structure'!E22 -> 06.4 - Libraries | C69: 0 | D69: 0 | E69: 0 | F69: 0 | G69: 0 | H69: 0 | I69: 0 | J69: 0 | K69: 0
A70: ='Org structure'!E23 -> 06.5 - Sport | C70: 0 | D70: 0 | E70: 0 | F70: 0 | G70: 0 | H70: 0 | I70: 0 | J70: 0 | K70: 0
A71: ='Org structure'!E24 -> 06.6 - Cemetery | C71: 0 | D71: 0 | E71: 0 | F71: 0 | G71: 0 | H71: 0 | I71: 0 | J71: 0 | K71: 0
A72: ='Org structure'!E25 -> 06.7 - Refuse | C72: 0 | D72: -6100 | E72: 137674.23 | F72: 625000 | G72: 560450 | H72: 560450 | I72: 4680150 | J72: 4960959 | K72: 5258617
A73: ='Org structure'!E26 -> 06.8 - Pound Services | C73: 0 | D73: 0 | E73: 0 | F73: 0 | G73: 0 | H73: 0 | I73: 0 | J73: 0 | K73: 0
A74: ='Org structure'!E27 -> 06.9 - Pound Services | C74: 0 | D74: 0 | E74: 0 | F74: 0 | G74: 0 | H74: 0 | I74: 0 | J74: 0 | K74: 0
A75: ='Org structure'!E28 -> 06.10 - Satellite Offices | C75: 0 | D75: 0 | E75: 0 | F75: 0 | G75: 0 | H75: 0 | I75: 0 | J75: 0 | K75: 0
A76: ='Org structure'!E29 -> 06.11 - Alldays Offices | C76: 0 | D76: 0 | E76: 0 | F76: 0 | G76: 0 | H76: 0 | I76: 0 | J76: 0 | K76: 0
A77: ='Org structure'!E30 -> 06.12 - Eldorado Offices | C77: 0 | D77: 0 | E77: 0 | F77: 0 | G77: 0 | H77: 0 | I77: 0 | J77: 0 | K77: 0
A78: ='Org structure'!E31 -> 06.13 - Tolwe Offices | C78: 0 | D78: 0 | E78: 0 | F78: 0 | G78: 0 | H78: 0 | I78: 0 | J78: 0 | K78: 0
A79: ='Org structure'!E32 -> 06.14 - Senwabarwarna Offices | C79: 0 | D79: 0 | E79: 0 | F79: 0 | G79: 0 | H79: 0 | I79: 0 | J79: 0 | K79: 0
A80: ='Org structure'!A8 -> Vote 07 - Econominc Development And Planning | C80: =SUM(C81:C81) -> 0 | D80: 9661257.78 | E80: 9851544.11 | F80: 12065788 | G80: 11607413 | H80: 11607413 | I80: 16248793 | J80: 18457547 | K80: 17300176
A81: ='Org structure'!E34 -> 07.1 - Economic Development And Planning | C81: 0 | D81: 9661257.78 | E81: 9851544.11 | F81: 12065788 | G81: 11607413 | H81: 11607413 | I81: 16248793 | J81: 18457547 | K81: 17300176
A82: ='Org structure'!A9 -> Vote 08 - | C82: 0 | D82: 0 | E82: 0 | F82: 0 | G82: 0 | H82: 0 | I82: 0 | J82: 0 | K82: 0
A83: ='Org structure'!A10 -> Vote 09 - | C83: 0 | D83: 0 | E83: 0 | F83: 0 | G83: 0 | H83: 0 | I83: 0 | J83: 0 | K83: 0
A84: ='Org structure'!A11 -> Vote 10 - | C84: 0 | D84: 0 | E84: 0 | F84: 0 | G84: 0 | H84: 0 | I84: 0 | J84: 0 | K84: 0
A85: ='Org structure'!A12 -> Vote 11 - | C85: 0 | D85: 0 | E85: 0 | F85: 0 | G85: 0 | H85: 0 | I85: 0 | J85: 0 | K85: 0
A86: ='Org structure'!A13 -> Vote 12 - | C86: 0 | D86: 0 | E86: 0 | F86: 0 | G86: 0 | H86: 0 | I86: 0 | J86: 0 | K86: 0
A87: ='Org structure'!A14 -> Vote 13 - | C87: 0 | D87: 0 | E87: 0 | F87: 0 | G87: 0 | H87: 0 | I87: 0 | J87: 0 | K87: 0
A88: ='Org structure'!A15 -> Vote 14 - | C88: 0 | D88: 0 | E88: 0 | F88: 0 | G88: 0 | H88: 0 | I88: 0 | J88: 0 | K88: 0
A89: ='Org structure'!A16 -> Vote 15 - Other | C89: 0 | D89: 0 | E89: 0 | F89: 0 | G89: 0 | H89: 0 | I89: 0 | J89: 0 | K89: 0
A90: Total Expenditure by Vote | B90: 2 | C90: =C49+C51+C53+C55+C57+C65+C80+C82+C83+C84+C85+C86+C87+C88+C89 -> 0 | D90: 297563973.3 | E90: 275634159.3 | F90: 312413242 | G90: 313510686 | H90: 313510686 | I90: 335640866 | J90: 359476271 | K90: 379498270 | L90: =SUM(L49:L81) -> 0 | M90: 0 | N90: 0 | O90: 0 | P90: 0 | Q90: 0 | R90: 0 | S90: 0 | T90: 0 | U90: 0 | V90: 0 | W90: 0
A92: =result -> Surplus/(Deficit) for the year | B92: 2 | C92: =C46-C90 -> 0 | D92: 21544228.26 | E92: 15486731.02 | F92: 20704194 | G92: 15556750 | H92: 15556750 | I92: 7634610 | J92: 21074082 | K92: 23617852
A93: =head27a -> References
A94: 1. Insert 'Vote'; e.g. Department, if different to Functional structure
A95: 2. Must reconcile to Financial Performance ('Revenue and Expenditure by Functional Classification' and 'Revenue and Expenditure')
A96: 3. Assign share in 'associate' to relevant Vote
A98: check revenue | C98: =C46-'A4-FinPerf RE'!C59 -> 0 | D98: =D46-'A4-FinPerf RE'!D59 -> 0 | E98: =E46-'A4-FinPerf RE'!E59 -> 0 | F98: =F46-'A4-FinPerf RE'!F59 -> 0 | G98: =G46-'A4-FinPerf RE'!G59 -> 0 | H98: =H46-'A4-FinPerf RE'!H59 -> 0 | I98: =I46-'A4-FinPerf RE'!J59 -> 0 | J98: =J46-'A4-FinPerf RE'!K59 -> 0 | K98: =K46-'A4-FinPerf RE'!L59 -> 0
A99: check expenditure | C99: =C90-'A4-FinPerf RE'!C35 -> 0 | D99: =D90-'A4-FinPerf RE'!D35 -> 0 | E99: =E90-'A4-FinPerf RE'!E35 -> 0 | F99: =F90-'A4-FinPerf RE'!F35 -> 0 | G99: =G90-'A4-FinPerf RE'!G35 -> 0 | H99: =H90-'A4-FinPerf RE'!H35 -> 0 | I99: =I90-'A4-FinPerf RE'!J35 -> 0 | J99: =J90-'A4-FinPerf RE'!K35 -> 0 | K99: =K90-'A4-FinPerf RE'!L35 -> 0

Sheet A4-FinPerf RE
A1: =muni&" - "&Approve4 -> LIM351 Blouberg - Table A4 Budgeted Financial Performance (revenue and expenditure)
A2: =desc -> Description | B2: =head27 -> Ref | C2: =head1b -> 2016/17 | D2: =head1A -> 2017/18 | E2: =Head1 -> 2018/19 | F2: =Head2 -> Current Year 2019/20 | J2: =Head3 -> 2020/21 Medium Term Revenue & Expenditure Framework | M2: =Head4 -> LTFS
A3: R thousand | B3: 1 | C3: =Head5 -> Audited Outcome | D3: =Head5 -> Audited Outcome | E3: =Head5 -> Audited Outcome | F3: =Head6 -> Original Budget | G3: =Head7 -> Adjusted Budget | H3: =Head8 -> Full Year Forecast | I3: =Head5b -> Pre-audit outcome | J3: =Head9 -> Budget Year 2020/21 | K3: =Head10 -> Budget Year +1 2021/22 | L3: =Head11 -> Budget Year +2 2022/23 | M3: =Head12 -> Forecast 2023/24 | N3: =Head13 -> Forecast 2024/25 | O3: =Head14 -> Forecast 2025/26 | P3: =Head15 -> Forecast 2026/27 | Q3: =Head16 -> Forecast 2027/28 | R3: =Head17 -> Forecast 2028/29 | S3: =Head18 -> Forecast 2029/30 | T3: =Head19 -> Forecast 2030/31 | U3: =Head20 -> Forecast 2031/32 | V3: =Head21 -> Forecast 2032/33 | W3: =Head22 -> Forecast 2033/34 | X3: =Head23 -> Forecast 2034/35
A4: Revenue By Source
A5: Property rates | B5: 2 | C5: ='SA1'!C9 -> 0 | D5: ='SA1'!D9 -> 26601780.26 | E5: ='SA1'!E9 -> 24056426.6 | F5: ='SA1'!F9 -> 28090001 | G5: ='SA1'!G9 -> 28090001 | H5: ='SA1'!H9 -> 28090001 | I5: ='SA1'!I9 -> 24302770.86 | J5: ='SA1'!J9 -> 32475401 | K5: ='SA1'!K9 -> 33510449 | L5: ='SA1'!L9 -> 35462979
A6: Service charges - electricity revenue | B6: 2 | C6: ='SA1'!C15 -> 0 | D6: ='SA1'!D15 -> 22515604.9 | E6: ='SA1'!E15 -> 22470453.13 | F6: ='SA1'!F15 -> 32302400 | G6: ='SA1'!G15 -> 32302400 | H6: ='SA1'!H15 -> 32302400 | I6: ='SA1'!I15 -> 18277448.46 | J6: ='SA1'!J15 -> 39317019 | K6: ='SA1'!K15 -> 41466041 | L6: ='SA1'!L15 -> 43744003
A7: Service charges - water revenue | B7: 2 | C7: ='SA1'!C21 -> 0 | D7: ='SA1'!D21 -> 0 | E7: ='SA1'!E21 -> 0 | F7: ='SA1'!F21 -> 0 | G7: ='SA1'!G21 -> 0 | H7: ='SA1'!H21 -> 0 | I7: ='SA1'!I21 -> 3417441.39 | J7: ='SA1'!J21 -> 0 | K7: ='SA1'!K21 -> 0 | L7: ='SA1'!L21 -> 0
A8: Service charges - sanitation revenue | B8: 2 | C8: ='SA1'!C27 -> 0 | D8: ='SA1'!D27 -> 0 | E8: ='SA1'!E27 -> 0 | F8: ='SA1'!F27 -> 0 | G8: ='SA1'!G27 -> 0 | H8: ='SA1'!H27 -> 0 | I8: ='SA1'!I27 -> 19494.64 | J8: ='SA1'!J27 -> 0 | K8: ='SA1'!K27 -> 0 | L8: ='SA1'!L27 -> 0
A9: Service charges - refuse revenue | B9: 2 | C9: ='SA1'!C34 -> 0 | D9: ='SA1'!D34 -> 426832.3 | E9: ='SA1'!E34 -> 513631.81 | F9: ='SA1'!F34 -> 534000 | G9: ='SA1'!G34 -> 784000 | H9: ='SA1'!H34 -> 784000 | I9: ='SA1'!I34 -> 704572.44 | J9: ='SA1'!J34 -> 831040 | K9: ='SA1'!K34 -> 880903 | L9: ='SA1'!L34 -> 933757
A11: Rental of facilities and equipment | C11: 0 | D11: 0 | E11: 0 | F11: 200000 | G11: 200000 | H11: 200000 | I11: 0 | J11: 218000 | K11: 231080 | L11: 244945
A12: Interest earned - external investments | C12: 0 | D12: 2475497.02 | E12: 1307930.57 | F12: 1700000 | G12: 1700000 | H12: 1700000 | I12: 684943.89 | J12: 1802000 | K12: 1910120 | L12: 2024728
A13: Interest earned - outstanding debtors | C13: 0 | D13: 522577.05 | E13: 1286914.29 | F13: 616820 | G13: 616820 | H13: 616820 | I13: 1237535.72 | J13: 1587075 | K13: 1682300 | L13: 1783240
A14: Dividends received
A15: Fines, penalties and forfeits | C15: 0 | D15: 3300527.94 | E15: 1814775.66 | F15: 3390343 | G15: 3390343 | H15: 3390343 | I15: 223077.18 | J15: 3593764 | K15: 3809390 | L15: 4037954
A16: Licences and permits | C16: 0 | D16: 3999117.55 | E16: 3699165.54 | F16: 4109269 | G16: 4109269 | H16: 4109269 | I16: 2467439.09 | J16: 4355825 | K16: 4617176 | L16: 4894206
A17: Agency services | C17: 0 | D17: 0 | E17: 0 | F17: 3300000 | G17: 3150000 | H17: 3150000 | I17: 1500000 | J17: 1100000 | K17: 1166000 | L17: 1235960
A18: Transfers and subsidies | C18: 0 | D18: 209412876.3 | E18: 182423931.8 | F18: 210915000 | G18: 191915000 | H18: 191915000 | I18: 144746478.3 | J18: 201287000 | K18: 211808000 | L18: 221502000
A19: Other revenue | B19: 2 | C19: ='SA1'!C49 -> 0 | D19: ='SA1'!D49 -> 3298871.85 | E19: ='SA1'!E49 -> 1672569.42 | F19: ='SA1'!F49 -> 3609603 | G19: ='SA1'!G49 -> 3459603 | H19: ='SA1'!H49 -> 3459603 | I19: ='SA1'!I49 -> 1027313.35 | J19: ='SA1'!J49 -> 6642352 | K19: ='SA1'!K49 -> 6740894 | L19: ='SA1'!L49 -> 6845350
A20: Gains | C20: 0 | D20: 0 | E20: 0 | F20: 0 | G20: 0 | H20: 0 | I20: 0 | J20: 0 | K20: 0 | L20: 0
A21: Total Revenue (excluding capital transfers and contributions) | C21: =SUM(C5:C9)+SUM(C11:C20) -> 0 | D21: =SUM(D5:D9)+SUM(D11:D20) -> 272553685.2 | E21: 239245798.8 | F21: 288767436 | G21: 269717436 | H21: 269717436 | I21: 198608515.3 | J21: 293209476 | K21: 307822353 | L21: 322709122 | M21: =SUM(M5:M20) -> 0 | N21: 0 | O21: 0 | P21: 0 | Q21: 0 | R21: 0 | S21: 0 | T21: 0 | U21: 0 | V21: 0 | W21: 0 | X21: 0
A23: Expenditure By Type
A24: Employee related costs | B24: 2 | C24: ='SA1'!C67 -> 0 | D24: ='SA1'!D67 -> 99327666.72 | E24: ='SA1'!E67 -> 103612611.1 | F24: ='SA1'!F67 -> 123855157 | G24: ='SA1'!G67 -> 120627836 | H24: ='SA1'!H67 -> 120627836 | I24: ='SA1'!I67 -> 71847386.77 | J24: ='SA1'!J67 -> 129158870 | K24: ='SA1'!K67 -> 138095312 | L24: ='SA1'!L67 -> 147653119
A25: Remuneration of councillors | C25: 0 | D25: 15739124.61 | E25: 16186992.01 | F25: 15433577 | G25: 17090931 | H25: 17090931 | I25: 10960892.84 | J25: 18116396 | K25: 19203378 | L25: 20355581
A26: Debt impairment | B26: 3 | C26: 0 | D26: 2308637.4 | E26: -2313301.99 | F26: 8330407 | G26: 8330407 | H26: 8330407 | I26: 0 | J26: 8746928 | K26: 9621621 | L26: 10583783
A27: Depreciation & asset impairment | B27: 2 | C27: ='SA1'!C83 -> 0 | D27: ='SA1'!D83 -> 35462508.13 | E27: ='SA1'!E83 -> 35256654.26 | F27: ='SA1'!F83 -> 41673731 | G27: ='SA1'!G83 -> 41117719 | H27: ='SA1'!H83 -> 41117719 | I27: ='SA1'!I83 -> 0 | J27: ='SA1'!J83 -> 43757411 | K27: ='SA1'!K83 -> 46382859 | L27: ='SA1'!L83 -> 49165828
A28: Finance charges
A29: Bulk purchases | B29: 2 | C29: ='SA1'!C88 -> 0 | D29: ='SA1'!D88 -> 30340752.49 | E29: ='SA1'!E88 -> 29686446.43 | F29: ='SA1'!F88 -> 31000000 | G29: ='SA1'!G88 -> 35000000 | H29: ='SA1'!H88 -> 35000000 | I29: ='SA1'!I88 -> 22959506.22 | J29: ='SA1'!J88 -> 37100000 | K29: ='SA1'!K88 -> 39326000 | L29: ='SA1'!L88 -> 41685560
A30: Other materials | B30: 8 | C30: 0 | D30: 1294500.51 | E30: 1883873.03 | F30: 2615000 | G30: 2695450 | H30: 2695450 | I30: 1080524.95 | J30: 2926200 | K30: 2995772 | L30: 3175519
A31: Contracted services | C31: ='SA1'!C127 -> 0 | D31: ='SA1'!D127 -> 66532219.32 | E31: ='SA1'!E127 -> 45322853.94 | F31: ='SA1'!F127 -> 40679970 | G31: ='SA1'!G127 -> 42070356 | H31: ='SA1'!H127 -> 42070356 | I31: ='SA1'!I127 -> 26860738.51 | J31: ='SA1'!J127 -> 54025962 | K31: ='SA1'!K127 -> 58061419 | L31: ='SA1'!L127 -> 58453348
A32: Transfers and subsidies | C32: ='SA1'!C93 -> 0 | D32: ='SA1'!D93 -> 0 | E32: ='SA1'!E93 -> 73220 | F32: ='SA1'!F93 -> 0 | G32: ='SA1'!G93 -> 0 | H32: ='SA1'!H93 -> 0 | I32: ='SA1'!I93 -> 0 | J32: ='SA1'!J93 -> 0 | K32: ='SA1'!K93 -> 0 | L32: ='SA1'!L93 -> 0
A33: Other expenditure | B33: 4, 5 | C33: ='SA1'!C157 -> 0 | D33: ='SA1'!D157 -> 45803718.52 | E33: ='SA1'!E157 -> 45805680.72 | F33: ='SA1'!F157 -> 48825400 | G33: ='SA1'!G157 -> 46577987 | H33: ='SA1'!H157 -> 46577987 | I33: ='SA1'!I157 -> 29189443.8 | J33: ='SA1'!J157 -> 41809099 | K33: ='SA1'!K157 -> 45789910 | L33: ='SA1'!L157 -> 48425532
A34: Losses | C34: 0 | D34: 754845.57 | E34: 119129.79 | F34: 0 | G34: 0 | H34: 0 | I34: 0 | J34: 0 | K34: 0 | L34: 0
A35: Total Expenditure | C35: =SUM(C24:C34) -> 0 | D35: =SUM(D24:D34) -> 297563973.3 | E35: 275634159.3 | F35: 312413242 | G35: 313510686 | H35: 313510686 | I35: 162898493.1 | J35: 335640866 | K35: 359476271 | L35: 379498270 | M35: =SUM(M24:M34) -> 0 | N35: 0 | O35: 0 | P35: 0 | Q35: 0 | R35: 0 | S35: 0 | T35: 0 | U35: 0 | V35: 0 | W35: 0 | X35: 0
A37: Surplus/(Deficit) | C37: =C21-C35 -> 0 | D37: -25010288.11 | E37: -36388360.47 | F37: -23645806 | G37: -43793250 | H37: -43793250 | I37: 35710022.19 | J37: -42431390 | K37: -51653918 | L37: -56789148 | M37: =M21+M35 -> 0 | N37: 0 | O37: 0 | P37: 0 | Q37: 0 | R37: 0 | S37: 0 | T37: 0 | U37: 0 | V37: 0 | W37: 0 | X37: 0
A38: Transfers and subsidies - capital (monetary allocations) (National / Provincial and District) | C38: 0 | D38: 0 | E38: 51875091.49 | F38: 44350000 | G38: 59350000 | H38: 59350000 | I38: 46191000 | J38: 50066000 | K38: 72728000 | L38: 80407000
A39: Transfers and subsidies - capital (monetary allocations) (National / Provincial Departmental Agencies, Households, Non-profit Institutions, Private Enterprises, Public Corporatons, Higher Educational Institutions) | B39: 6 | C39: ='SA1'!C76 -> 0
A40: Transfers and subsidies - capital (in-kind - all) | C40: 0 | D40: 46554516.37 | E40: 0 | F40: 0 | G40: 0 | H40: 0 | I40: 0 | J40: 0 | K40: 0 | L40: 0
A41: Surplus/(Deficit) after capital transfers & contributions | C41: =SUM(C37:C40) -> 0 | D41: 21544228.26 | E41: 15486731.02 | F41: 20704194 | G41: 15556750 | H41: 15556750 | I41: 81901022.19 | J41: 7634610 | K41: 21074082 | L41: 23617852
A42: Taxation
A43: Surplus/(Deficit) after taxation | C43: =C41-C42 -> 0 | D43: 21544228.26 | E43: 15486731.02 | F43: 20704194 | G43: 15556750 | H43: 15556750 | I43: 81901022.19 | J43: 7634610 | K43: 21074082 | L43: 23617852
A44: Attributable to minorities
A45: Surplus/(Deficit) attributable to municipality | C45: =SUM(C43:C44) -> 0 | D45: 21544228.26 | E45: 15486731.02 | F45: 20704194 | G45: 15556750 | H45: 15556750 | I45: 81901022.19 | J45: 7634610 | K45: 21074082 | L45: 23617852
A46: Share of surplus/ (deficit) of associate | B46: 7
A47: =result -> Surplus/(Deficit) for the year | C47: =SUM(C45:C46) -> 0 | D47: 21544228.26 | E47: 15486731.02 | F47: 20704194 | G47: 15556750 | H47: 15556750 | I47: 81901022.19 | J47: 7634610 | K47: 21074082 | L47: 23617852 | M47: =M25+M46 -> 0 | N47: 0 | O47: 0 | P47: 0 | Q47: 0 | R47: 0 | S47: 0 | T47: 0 | U47: 0 | V47: 0 | W47: 0 | X47: 0
A48: =head27a -> References
A49: 1. Classifications are revenue sources and expenditure type
A50: 2. Detail to be provided in Table SA1
A51: 3. Previously described as 'bad or doubtful debts' - amounts shown should reflect the change in the provision for debt impairment
A52: 4. Expenditure type components previously shown under repairs and maintenance should be allocated back to the originating expenditure group/item; e.g. employee costs
A53: 5. Repairs & maintenance detailed in Table A9 and Table SA34c
A54: 6. Contributions are funds provided by external organisations to assist with infrastructure development; e.g. developer contributions (detail to be provided in Table SA1)
A55: 7. Equity method ( Includes Joint Ventures)
A56: 8. All materials not part of 'bulk' e.g road making materials, pipe, cable etc.
A57: check balance | C57: =C45-'A3-FinPerf V'!C39 -> 0 | D57: =D45-'A3-FinPerf V'!D39 -> 0 | E57: =E45-'A3-FinPerf V'!E39 -> 0 | F57: =F45-'A3-FinPerf V'!F39 -> 0 | G57: =G45-'A3-FinPerf V'!G39 -> 0 | H57: =H45-'A3-FinPerf V'!H39 -> 0 | J57: =J45-'A3-FinPerf V'!I39 -> 0 | K57: =K45-'A3-FinPerf V'!J39 -> 0 | L57: =L45-'A3-FinPerf V'!K39 -> 0
A59: Total revenue | C59: =C21+SUM(C38:C40) -> 0 | D59: 319108201.5 | E59: 291120890.3 | F59: 333117436 | G59: 329067436 | H59: 329067436 | I59: 244799515.3 | J59: 343275476 | K59: 380550353 | L59: 403116122

Sheet A5-Capex
A2: =Vdesc -> Vote Description | B2: =head27 -> Ref | C2: =head1b -> 2016/17 | D2: =head1A -> 2017/18 | E2: =Head1 -> 2018/19 | F2: =Head2 -> Current Year 2019/20 | J2: =Head3 -> 2020/21 Medium Term Revenue & Expenditure Framework
A3: R thousand | B3: 1 | C3: =Head5 -> Audited Outcome | D3: =Head5 -> Audited Outcome | E3: =Head5 -> Audited Outcome | F3: =Head6 -> Original Budget | G3: =Head7 -> Adjusted Budget | H3: =Head8 -> Full Year Forecast | I3: =Head5b -> Pre-audit outcome | J3: =Head9 -> Budget Year 2020/21 | K3: =Head10 -> Budget Year +1 2021/22 | L3: =Head11 -> Budget Year +2 2022/23
A4: Capital expenditure - Vote
A5: Multi-year expenditure to be appropriated | B5: 2
A6: =A5A!A6 -> Vote 01 - Executive & Council | C6: =A5A!C6 -> 0 | D6: =A5A!D6 -> 0 | E6: =A5A!E6 -> 0 | F6: =A5A!F6 -> 0 | G6: =A5A!G6 -> 0 | H6: =A5A!H6 -> 0 | I6: =A5A!I6 -> 0 | J6: =A5A!J6 -> 0 | K6: =A5A!K6 -> 0 | L6: =A5A!L6 -> 0
A7: =A5A!A8 -> Vote 02 - Finance And Administration | C7: =A5A!C8 -> 0 | D7: =A5A!D8 -> 0 | E7: =A5A!E8 -> 0 | F7: =A5A!F8 -> 100000 | G7: =A5A!G8 -> 56930 | H7: =A5A!H8 -> 56930 | I7: =A5A!I8 -> 56930 | J7: =A5A!J8 -> 0 | K7: =A5A!K8 -> 0 | L7: =A5A!L8 -> 0
A8: =A5A!A10 -> Vote 03 - Community Service | C8: =A5A!C10 -> 0 | D8: =A5A!D10 -> 0 | E8: =A5A!E10 -> 0 | F8: =A5A!F10 -> 0 | G8: =A5A!G10 -> 0 | H8: =A5A!H10 -> 0 | I8: =A5A!I10 -> 0 | J8: =A5A!J10 -> 0 | K8: =A5A!K10 -> 0 | L8: =A5A!L10 -> 0
A9: =A5A!A12 -> Vote 04 - Public And Safety | C9: =A5A!C12 -> 0 | D9: =A5A!D12 -> 0 | E9: =A5A!E12 -> 0 | F9: =A5A!F12 -> 0 | G9: =A5A!G12 -> 0 | H9: =A5A!H12 -> 0 | I9: =A5A!I12 -> 0 | J9: =A5A!J12 -> 0 | K9: =A5A!K12 -> 0 | L9: =A5A!L12 -> 0
A10: =A5A!A14 -> Vote 05 - Waste Management | C10: =A5A!C14 -> 0 | D10: =A5A!D14 -> 0 | E10: =A5A!E14 -> 0 | F10: =A5A!F14 -> 0 | G10: =A5A!G14 -> 0 | H10: =A5A!H14 -> 0 | I10: =A5A!I14 -> 0 | J10: =A5A!J14 -> 0 | K10: =A5A!K14 -> 0 | L10: =A5A!L14 -> 0
A11: =A5A!A22 -> Vote 06 - Roads Services | C11: =A5A!C22 -> 0 | D11: =A5A!D22 -> 0 | E11: =A5A!E22 -> 0 | F11: =A5A!F22 -> 0 | G11: =A5A!G22 -> 0 | H11: =A5A!H22 -> 0 | I11: =A5A!I22 -> 0 | J11: =A5A!J22 -> 0 | K11: =A5A!K22 -> 0 | L11: =A5A!L22 -> 0
A12: =A5A!A37 -> Vote 07 - Econominc Development And Planning | C12: =A5A!C37 -> 0 | D12: =A5A!D37 -> 0 | E12: =A5A!E37 -> 0 | F12: =A5A!F37 -> 0 | G12: =A5A!G37 -> 0 | H12: =A5A!H37 -> 0 | I12: =A5A!I37 -> 0 | J12: =A5A!J37 -> 0 | K12: =A5A!K37 -> 0 | L12: =A5A!L37 -> 0
A13: ='Org structure'!A9 -> Vote 08 - | C13: =A5A!C39 -> 0 | D13: =A5A!D39 -> 0 | E13: =A5A!E39 -> 0 | F13: =A5A!F39 -> 0 | G13: =A5A!G39 -> 0 | H13: =A5A!H39 -> 0 | I13: =A5A!I39 -> 0 | J13: =A5A!J39 -> 0 | K13: =A5A!K39 -> 0 | L13: =A5A!L39 -> 0
A14: ='Org structure'!A10 -> Vote 09 - | C14: =A5A!C40 -> 0 | D14: =A5A!D40 -> 0 | E14: =A5A!E40 -> 0 | F14: =A5A!F40 -> 0 | G14: =A5A!G40 -> 0 | H14: =A5A!H40 -> 0 | I14: =A5A!I40 -> 0 | J14: =A5A!J40 -> 0 | K14: =A5A!K40 -> 0 | L14: =A5A!L40 -> 0
A15: ='Org structure'!A11 -> Vote 10 - | C15: =A5A!C41 -> 0 | D15: =A5A!D41 -> 0 | E15: =A5A!E41 -> 0 | F15: =A5A!F41 -> 0 | G15: =A5A!G41 -> 0 | H15: =A5A!H41 -> 0 | I15: =A5A!I41 -> 0 | J15: =A5A!J41 -> 0 | K15: =A5A!K41 -> 0 | L15: =A5A!L41 -> 0
A16: ='Org structure'!A12 -> Vote 11 - | C16: =A5A!C42 -> 0 | D16: =A5A!D42 -> 0 | E16: =A5A!E42 -> 0 | F16: =A5A!F42 -> 0 | G16: =A5A!G42 -> 0 | H16: =A5A!H42 -> 0 | I16: =A5A!I42 -> 0 | J16: =A5A!J42 -> 0 | K16: =A5A!K42 -> 0 | L16: =A5A!L42 -> 0
A17: ='Org structure'!A13 -> Vote 12 - | C17: =A5A!C43 -> 0 | D17: =A5A!D43 -> 0 | E17: =A5A!E43 -> 0 | F17: =A5A!F43 -> 0 | G17: =A5A!G43 -> 0 | H17: =A5A!H43 -> 0 | I17: =A5A!I43 -> 0 | J17: =A5A!J43 -> 0 | K17: =A5A!K43 -> 0 | L17: =A5A!L43 -> 0
A18: ='Org structure'!A14 -> Vote 13 - | C18: =A5A!C44 -> 0 | D18: =A5A!D44 -> 0 | E18: =A5A!E44 -> 0 | F18: =A5A!F44 -> 0 | G18: =A5A!G44 -> 0 | H18: =A5A!H44 -> 0 | I18: =A5A!I44 -> 0 | J18: =A5A!J44 -> 0 | K18: =A5A!K44 -> 0 | L18: =A5A!L44 -> 0
A19: ='Org structure'!A15 -> Vote 14 - | C19: =A5A!C45 -> 0 | D19: =A5A!D45 -> 0 | E19: =A5A!E45 -> 0 | F19: =A5A!F45 -> 0 | G19: =A5A!G45 -> 0 | H19: =A5A!H45 -> 0 | I19: =A5A!I45 -> 0 | J19: =A5A!J45 -> 0 | K19: =A5A!K45 -> 0 | L19: =A5A!L45 -> 0
A20: ='Org structure'!A16 -> Vote 15 - Other | C20: =A5A!C46 -> 0 | D20: =A5A!D46 -> 0 | E20: =A5A!E46 -> 0 | F20: =A5A!F46 -> 0 | G20: =A5A!G46 -> 0 | H20: =A5A!H46 -> 0 | I20: =A5A!I46 -> 0 | J20: =A5A!J46 -> 0 | K20: =A5A!K46 -> 0 | L20: =A5A!L46 -> 0
A21: Capital multi-year expenditure sub-total | B21: 7 | C21: =SUM(C6:C20) -> 0 | D21: =SUM(D6:D20) -> 0 | E21: 0 | F21: 100000 | G21: 56930 | H21: =SUM(H6:H20) -> 56930 | I21: 56930 | J21: 0 | K21: 0 | L21: 0
A23: Single-year expenditure to be appropriated | B23: 2
A24: =A5A!A51 -> Vote 01 - Executive & Council | C24: =A5A!C51 -> 0 | D24: =A5A!D51 -> 0 | E24: =A5A!E51 -> 0 | F24: =A5A!F51 -> 0 | G24: =A5A!G51 -> 0 | H24: =A5A!H51 -> 0 | I24: =A5A!I51 -> 0 | J24: =A5A!J51 -> 0 | K24: =A5A!K51 -> 0 | L24: =A5A!L51 -> 0
A25: =A5A!A53 -> Vote 02 - Finance And Administration | C25: =A5A!C53 -> 0 | D25: =A5A!D53 -> 0 | E25: =A5A!E53 -> 0 | F25: =A5A!F53 -> 0 | G25: =A5A!G53 -> 0 | H25: =A5A!H53 -> 0 | I25: =A5A!I53 -> 0 | J25: =A5A!J53 -> 800000 | K25: =A5A!K53 -> 1007000 | L25: =A5A!L53 -> 1067420
A26: =A5A!A55 -> Vote 03 - Community Service | C26: =A5A!C55 -> 0 | D26: =A5A!D55 -> 6801972.23 | E26: =A5A!E55 -> 1389839.35 | F26: =A5A!F55 -> 950000 | G26: =A5A!G55 -> 950000 | H26: =A5A!H55 -> 950000 | I26: =A5A!I55 -> 523768.82 | J26: =A5A!J55 -> 350000 | K26: =A5A!K55 -> 0 | L26: =A5A!L55 -> 0
A27: =A5A!A57 -> Vote 04 - Public And Safety | C27: =A5A!C57 -> 0 | D27: =A5A!D57 -> 0 | E27: =A5A!E57 -> 0 | F27: =A5A!F57 -> 0 | G27: =A5A!G57 -> 0 | H27: =A5A!H57 -> 0 | I27: =A5A!I57 -> 0 | J27: =A5A!J57 -> 4908000 | K27: =A5A!K57 -> 1616000 | L27: =A5A!L57 -> 1685960
A28: =A5A!A59 -> Vote 05 - Waste Management | C28: =A5A!C59 -> 0 | D28: =A5A!D59 -> 29296797.56 | E28: =A5A!E59 -> 708928.26 | F28: =A5A!F59 -> 66127500 | G28: =A5A!G59 -> 62492527 | H28: =A5A!H59 -> 62492527 | I28: =A5A!I59 -> 30173657.52 | J28: =A5A!J59 -> 51125788 | K28: =A5A!K59 -> 70984601 | L28: =A5A!L59 -> 78574631
A29: =A5A!A67 -> Vote 06 - Roads Services | C29: =A5A!C67 -> 0 | D29: =A5A!D67 -> 0 | E29: =A5A!E67 -> 143141.31 | F29: =A5A!F67 -> 2355000 | G29: =A5A!G67 -> 885600 | H29: =A5A!H67 -> 885600 | I29: =A5A!I67 -> 77600 | J29: =A5A!J67 -> 1700000 | K29: =A5A!K67 -> 1594000 | L29: =A5A!L67 -> 640000
A30: =A5A!A82 -> Vote 07 - Econominc Development And Planning | C30: =A5A!C82 -> 0 | D30: =A5A!D82 -> 0 | E30: =A5A!E82 -> 0 | F30: =A5A!F82 -> 0 | G30: =A5A!G82 -> 0 | H30: =A5A!H82 -> 0 | I30: =A5A!I82 -> 0 | J30: =A5A!J82 -> 450000 | K30: =A5A!K82 -> 750000 | L30: =A5A!L82 -> 0
A31: ='Org structure'!A9 -> Vote 08 - | C31: =A5A!C84 -> 0 | D31: =A5A!D84 -> 0 | E31: =A5A!E84 -> 0 | F31: =A5A!F84 -> 0 | G31: =A5A!G84 -> 0 | H31: =A5A!H84 -> 0 | I31: =A5A!I84 -> 0 | J31: =A5A!J84 -> 0 | K31: =A5A!K84 -> 0 | L31: =A5A!L84 -> 0
A32: ='Org structure'!A10 -> Vote 09 - | C32: =A5A!C85 -> 0 | D32: =A5A!D85 -> 0 | E32: =A5A!E85 -> 0 | F32: =A5A!F85 -> 0 | G32: =A5A!G85 -> 0 | H32: =A5A!H85 -> 0 | I32: =A5A!I85 -> 0 | J32: =A5A!J85 -> 0 | K32: =A5A!K85 -> 0 | L32: =A5A!L85 -> 0
A33: ='Org structure'!A11 -> Vote 10 - | C33: =A5A!C86 -> 0 | D33: =A5A!D86 -> 0 | E33: =A5A!E86 -> 0 | F33: =A5A!F86 -> 0 | G33: =A5A!G86 -> 0 | H33: =A5A!H86 -> 0 | I33: =A5A!I86 -> 0 | J33: =A5A!J86 -> 0 | K33: =A5A!K86 -> 0 | L33: =A5A!L86 -> 0
A34: ='Org structure'!A12 -> Vote 11 - | C34: =A5A!C87 -> 0 | D34: =A5A!D87 -> 0 | E34: =A5A!E87 -> 0 | F34: =A5A!F87 -> 0 | G34: =A5A!G87 -> 0 | H34: =A5A!H87 -> 0 | I34: =A5A!I87 -> 0 | J34: =A5A!J87 -> 0 | K34: =A5A!K87 -> 0 | L34: =A5A!L87 -> 0
A35: ='Org structure'!A13 -> Vote 12 - | C35: =A5A!C88 -> 0 | D35: =A5A!D88 -> 0 | E35: =A5A!E88 -> 0 | F35: =A5A!F88 -> 0 | G35: =A5A!G88 -> 0 | H35: =A5A!H88 -> 0 | I35: =A5A!I88 -> 0 | J35: =A5A!J88 -> 0 | K35: =A5A!K88 -> 0 | L35: =A5A!L88 -> 0
A36: ='Org structure'!A14 -> Vote 13 - | C36: =A5A!C89 -> 0 | D36: =A5A!D89 -> 0 | E36: =A5A!E89 -> 0 | F36: =A5A!F89 -> 0 | G36: =A5A!G89 -> 0 | H36: =A5A!H89 -> 0 | I36: =A5A!I89 -> 0 | J36: =A5A!J89 -> 0 | K36: =A5A!K89 -> 0 | L36: =A5A!L89 -> 0
A37: ='Org structure'!A15 -> Vote 14 - | C37: =A5A!C90 -> 0 | D37: =A5A!D90 -> 0 | E37: =A5A!E90 -> 0 | F37: =A5A!F90 -> 0 | G37: =A5A!G90 -> 0 | H37: =A5A!H90 -> 0 | I37: =A5A!I90 -> 0 | J37: =A5A!J90 -> 0 | K37: =A5A!K90 -> 0 | L37: =A5A!L90 -> 0
A38: ='Org structure'!A16 -> Vote 15 - Other | C38: =A5A!C91 -> 0 | D38: =A5A!D91 -> 0 | E38: =A5A!E91 -> 0 | F38: =A5A!F91 -> 0 | G38: =A5A!G91 -> 0 | H38: =A5A!H91 -> 0 | I38: =A5A!I91 -> 0 | J38: =A5A!J91 -> 0 | K38: =A5A!K91 -> 0 | L38: =A5A!L91 -> 0
A39: Capital single-year expenditure sub-total | C39: =SUM(C24:C38) -> 0 | D39: =SUM(D24:D38) -> 36098769.79 | E39: 2241908.92 | F39: 69432500 | G39: 64328127 | H39: 64328127 | I39: 30775026.34 | J39: 59333788 | K39: 75951601 | L39: 81968011
A40: Total Capital Expenditure - Vote | C40: =C39+C21 -> 0 | D40: =D39+D21 -> 36098769.79 | E40: 2241908.92 | F40: 69532500 | G40: 64385057 | H40: 64385057 | I40: 30831956.34 | J40: 59333788 | K40: 75951601 | L40: 81968011
A42: Capital Expenditure - Functional
A43: Governance and administration | C43: =SUM(C44:C46) -> 0 | D43: =SUM(D44:D46) -> 6801972.23 | E43: 1389839.35 | F43: 1050000 | G43: 1006930 | H43: 1006930 | I43: 580698.82 | J43: 6058000 | K43: 2623000 | L43: 2753380
A44: Executive and council | C44: 0 | D44: 0 | E44: 0 | F44: 100000 | G44: 56930 | H44: 56930 | I44: 56930 | J44: 800000 | K44: 1007000 | L44: 1067420
A45: Finance and administration | C45: 0 | D45: 6801972.23 | E45: 1389839.35 | F45: 950000 | G45: 950000 | H45: 950000 | I45: 523768.82 | J45: 5258000 | K45: 1616000 | L45: 1685960
A46: Internal audit
A47: Community and public safety | C47: =SUM(C48:C52) -> 0 | D47: =SUM(D48:D52) -> 0 | E47: 143141.31 | F47: 1300000 | G47: 0 | H47: 0 | I47: 0 | J47: 500000 | K47: 534000 | L47: 70000
A48: Community and social services
A49: Sport and recreation
A50: Public safety | C50: 0 | D50: 0 | E50: 143141.31 | F50: 1300000 | G50: 0 | H50: 0 | I50: 0 | J50: 500000 | K50: 534000 | L50: 70000
A51: Housing
A52: Health
A53: Economic and environmental services | C53: =SUM(C54:C56) -> 0 | D53: =SUM(D54:D56) -> 36150444.93 | E53: 0 | F53: 2020000 | G53: 23931091 | H53: 23931091 | I53: 14012723.75 | J53: 25568518 | K53: 46151601 | L53: 34756651
A54: Planning and development | C54: 0 | D54: 0 | E54: 0 | F54: 0 | G54: 0 | H54: 0 | I54: 0 | J54: 450000 | K54: 750000 | L54: 0
A55: Road transport | C55: 0 | D55: 36150444.93 | E55: 0 | F55: 2020000 | G55: 23931091 | H55: 23931091 | I55: 14012723.75 | J55: 25118518 | K55: 45401601 | L55: 34756651
A56: Environmental protection
A57: Trading services | C57: =SUM(C58:C61) -> 0 | D57: =SUM(D58:D61) -> -6853647.37 | E57: 708928.26 | F57: 65162500 | G57: 39447036 | H57: 39447036 | I57: 16238533.77 | J57: 27207270 | K57: 26643000 | L57: 44387980
A58: Energy sources | C58: 0 | D58: -6853647.37 | E58: 708928.26 | F58: 64107500 | G58: 38561436 | H58: 38561436 | I58: 16160933.77 | J58: 26007270 | K58: 25583000 | L58: 43817980
A59: Water management
A60: Waste water management | C60: 0 | D60: 0 | E60: 0 | F60: 0 | G60: 0 | H60: 0 | I60: 0 | J60: 0 | K60: 0 | L60: 0
A61: Waste management | C61: 0 | D61: 0 | E61: 0 | F61: 1055000 | G61: 885600 | H61: 885600 | I61: 77600 | J61: 1200000 | K61: 1060000 | L61: 570000
A62: Other
A63: Total Capital Expenditure - Functional | B63: 3 | C63: =C43+C47+C53+C57+C62 -> 0 | D63: =D43+D47+D53+D57+D62 -> 36098769.79 | E63: 2241908.92 | F63: 69532500 | G63: 64385057 | H63: 64385057 | I63: 30831956.34 | J63: 59333788 | K63: 75951601 | L63: =L43+L47+L53+L57+L62 -> 81968011
A65: Funded by:
A66: National Government | C66: 0 | D66: 5590792.56 | E66: 0 | F66: 57482500 | G66: 57402500 | H66: 57402500 | I66: 28829501.42 | J66: 47912701 | K66: 70401601 | L66: 77956651
A67: Provincial Government
A68: District Municipality
A69: ='A4-FinPerf RE'!A39 -> Transfers and subsidies - capital (monetary allocations) (National / Provincial Departmental Agencies, Households, Non-profit Institutions, Private Enterprises, Public Corporatons, Higher Educational Institutions) | C69: 0 | D69: 0 | E69: 0 | F69: 6000000 | G69: 2728081 | H69: 2728081 | I69: 871838.22 | J69: 0 | K69: 0 | L69: 0
A70: Transfers recognised - capital | B70: 4 | C70: =SUM(C66:C69) -> 0 | D70: 5590792.56 | E70: 0 | F70: 63482500 | G70: 60130581 | H70: 60130581 | I70: 29701339.64 | J70: 47912701 | K70: 70401601 | L70: 77956651
A72: Borrowing | B72: 6 | C72: 0 | D72: 0 | E72: 0 | F72: 200000 | G72: 78634 | H72: 78634 | I72: 0 | J72: 0 | K72: 0 | L72: 0
A73: Internally generated funds | C73: 0 | D73: 0 | E73: 957161.79 | F73: 5850000 | G73: 4175842 | H73: 4175842 | I73: 1130616.7 | J73: 11421087 | K73: 5550000 | L73: 4011360
A74: Total Capital Funding | B74: 7 | C74: =+C70+C72+C73 -> 0 | D74: =+D70+D72+D73 -> 5590792.56 | E74: 957161.79 | F74: 69532500 | G74: 64385057 | H74: 64385057 | I74: 30831956.34 | J74: 59333788 | K74: 75951601 | L74: 81968011
A75: =head27a -> References
A76: 1. Municipalities may choose to appropriate for capital expenditure for three years or for one year (if one year appropriation projected expenditure required for yr2 and yr3).
A77: 2. Include capital component of PPP unitary payment. Note that capital transfers are only appropriated to municipalities for the budget year
A78: 3. Capital expenditure by functional classification must reconcile to the appropriations by vote
A79: 4. Must reconcile to supporting table SA20 and to Budgeted Financial Performance (revenue and expenditure)
A81: 6. Include finance leases and PPP capital funding component of unitary payment - total borrowing/repayments to reconcile to changes in Table SA17
A82: 7. Total Capital Funding must balance with Total Capital Expenditure
A83: 8. Include any capitalised interest (MFMA section 46) as part of relevant capital budget
A85: check balance | C85: =IF((C63-C74)=0,0,"Unbalanced") -> 0 | D85: =IF((D63-D74)=0,0,"Unbalanced") -> Unbalanced | E85: Unbalanced | F85: 0 | G85: 0 | H85: 0 | I85: 0 | J85: 0 | K85: 0 | L85: 0

Sheet A5A
A1: =muni&" - "&Approve5 -> LIM351 Blouberg - Table A5 Budgeted Capital Expenditure by vote, functional classification and funding
A2: =Vdesc -> Vote Description | B2: =head27 -> Ref | C2: =head1b -> 2016/17 | D2: =head1A -> 2017/18 | E2: =Head1 -> 2018/19 | F2: =Head2 -> Current Year 2019/20 | J2: =Head3 -> 2020/21 Medium Term Revenue & Expenditure Framework | N2: ="Multi-year appropriation for "&Head9& " in the "&Head2A&" Annual Budget" -> Multi-year appropriation for Budget Year 2020/21 in the 2019/20 Annual Budget | R2: ="Multi-year appropriation for "&RIGHT(Head10,7)& " in the "&Head2A&" Annual Budget" -> Multi-year appropriation for 2021/22 in the 2019/20 Annual Budget | V2: New multi-year appropriations (funds for new and existing projects)
A3: R thousand | B3: 1 | C3: =Head5 -> Audited Outcome | D3: =Head5 -> Audited Outcome | E3: =Head5 -> Audited Outcome | F3: =Head6 -> Original Budget | G3: =Head7 -> Adjusted Budget | H3: =Head8 -> Full Year Forecast | I3: =Head5b -> Pre-audit outcome | J3: =Head9 -> Budget Year 2020/21 | K3: =Head10 -> Budget Year +1 2021/22 | L3: =Head11 -> Budget Year +2 2022/23 | N3: ="Appropriation for "&RIGHT(Head9,7) -> Appropriation for 2020/21 | O3: ="Adjustments in "&Head2A -> Adjustments in 2019/20 | P3: ="Downward adjustments for "&RIGHT(Head9,7) -> Downward adjustments for 2020/21 | Q3: Appropriation carried forward | R3: ="Appropriation for "&RIGHT(Head9,7) -> Appropriation for 2020/21 | S3: ="Adjustments in "&Head2A -> Adjustments in 2019/20 | T3: ="Downward adjustments for "&RIGHT(Head9,7) -> Downward adjustments for 2020/21 | U3: Appropriation carried forward | V3: =Head9 -> Budget Year 2020/21 | W3: =Head10 -> Budget Year +1 2021/22 | X3: =Head11 -> Budget Year +2 2022/23
A4: Capital expenditure - Municipal Vote
A5: Multi-year expenditure appropriation | B5: 2
A6: ='Org structure'!A2 -> Vote 01 - Executive & Council | C6: =SUM(C7:C7) -> 0 | D6: 0 | E6: 0 | F6: 0 | G6: 0 | H6: 0 | I6: 0 | J6: 0 | K6: 0 | L6: 0 | N6: =SUM(N7:N7) -> 0 | O6: 0 | P6: 0 | Q6: 0 | R6: 0 | S6: 0 | T6: 0 | U6: 0 | V6: 0 | W6: 0 | X6: 0
A7: ='Org structure'!E3 -> 01.1 - Council General | C7: 0 | D7: 0 | E7: 0 | F7: 0 | G7: 0 | H7: 0 | I7: 0 | J7: =Q7+V7 -> 0 | K7: =U7+W7 -> 0 | L7: =X7 -> 0 | N7: 0 | O7: 0 | P7: 0 | Q7: =SUM(N7:P7) -> 0 | R7: 0 | S7: 0 | T7: 0 | U7: =SUM(R7:T7) -> 0 | V7: 0 | W7: 0 | X7: 0
A8: ='Org structure'!A3 -> Vote 02 - Finance And Administration | C8: =SUM(C9:C9) -> 0 | D8: 0 | E8: 0 | F8: 100000 | G8: 56930 | H8: 56930 | I8: 56930 | J8: 0 | K8: 0 | L8: 0 | N8: =SUM(N9:N9) -> 0 | O8: 0 | P8: 0 | Q8: 0 | R8: 0 | S8: 0 | T8: 0 | U8: 0 | V8: 0 | W8: 0 | X8: 0
A9: ='Org structure'!E5 -> 02.1 - Municipal Manager | C9: 0 | D9: 0 | E9: 0 | F9: 100000 | G9: 56930 | H9: 56930 | I9: 56930 | J9: =Q9+V9 -> 0 | K9: =U9+W9 -> 0 | L9: =X9 -> 0 | N9: 0 | O9: 0 | P9: 0 | Q9: =SUM(N9:P9) -> 0 | R9: 0 | S9: 0 | T9: 0 | U9: =SUM(R9:T9) -> 0 | V9: 0 | W9: 0 | X9: 0
A10: ='Org structure'!A4 -> Vote 03 - Community Service | C10: =SUM(C11:C11) -> 0 | D10: 0 | E10: 0 | F10: 0 | G10: 0 | H10: 0 | I10: 0 | J10: 0 | K10: 0 | L10: 0 | N10: =SUM(N11:N11) -> 0 | O10: 0 | P10: 0 | Q10: 0 | R10: 0 | S10: 0 | T10: 0 | U10: 0 | V10: 0 | W10: 0 | X10: 0
A11: ='Org structure'!E7 -> 03.1 - Finance Services Administration | C11: 0 | D11: 0 | E11: 0 | F11: 0 | G11: 0 | H11: 0 | I11: 0 | J11: =Q11+V11 -> 0 | K11: =U11+W11 -> 0 | L11: =X11 -> 0 | N11: 0 | O11: 0 | P11: 0 | Q11: =SUM(N11:P11) -> 0 | R11: 0 | S11: 0 | T11: 0 | U11: =SUM(R11:T11) -> 0 | V11: 0 | W11: 0 | X11: 0
A12: ='Org structure'!A5 -> Vote 04 - Public And Safety | C12: =SUM(C13:C13) -> 0 | D12: 0 | E12: 0 | F12: 0 | G12: 0 | H12: 0 | I12: 0 | J12: 0 | K12: 0 | L12: 0 | N12: =SUM(N13:N13) -> 0 | O12: 0 | P12: 0 | Q12: 0 | R12: 0 | S12: 0 | T12: 0 | U12: 0 | V12: 0 | W12: 0 | X12: 0
A13: ='Org structure'!E9 -> 04.1 - Corporate Services Administration | C13: 0 | D13: 0 | E13: 0 | F13: 0 | G13: 0 | H13: 0 | I13: 0 | J13: =Q13+V13 -> 0 | K13: =U13+W13 -> 0 | L13: =X13 -> 0 | N13: 0 | O13: 0 | P13: 0 | Q13: =SUM(N13:P13) -> 0 | R13: 0 | S13: 0 | T13: 0 | U13: =SUM(R13:T13) -> 0 | V13: 0 | W13: 0 | X13: 0
A14: ='Org structure'!A6 -> Vote 05 - Waste Management | C14: =SUM(C15:C21) -> 0 | D14: 0 | E14: 0 | F14: 0 | G14: 0 | H14: 0 | I14: 0 | J14: 0 | K14: 0 | L14: 0 | N14: =SUM(N15:N21) -> 0 | O14: 0 | P14: 0 | Q14: 0 | R14: 0 | S14: 0 | T14: 0 | U14: 0 | V14: 0 | W14: 0 | X14: 0
A15: ='Org structure'!E11 -> 05.1 - Technical Services Administration | C15: 0 | D15: 0 | E15: 0 | F15: 0 | G15: 0 | H15: 0 | I15: 0 | J15: =Q15+V15 -> 0 | K15: =U15+W15 -> 0 | L15: =X15 -> 0 | N15: 0 | O15: 0 | P15: 0 | Q15: =SUM(N15:P15) -> 0 | R15: 0 | S15: 0 | T15: 0 | U15: =SUM(R15:T15) -> 0 | V15: 0 | W15: 0 | X15: 0
A16: ='Org structure'!E12 -> 05.2 - Electrical Services | C16: 0 | D16: 0 | E16: 0 | F16: 0 | G16: 0 | H16: 0 | I16: 0 | J16: 0 | K16: 0 | L16: 0 | N16: 0 | O16: 0 | P16: 0 | Q16: 0 | R16: 0 | S16: 0 | T16: 0 | U16: 0 | V16: 0 | W16: 0 | X16: 0
A17: ='Org structure'!E13 -> 05.3 - Water Services | C17: 0 | D17: 0 | E17: 0 | F17: 0 | G17: 0 | H17: 0 | I17: 0 | J17: 0 | K17: 0 | L17: 0 | N17: 0 | O17: 0 | P17: 0 | Q17: 0 | R17: 0 | S17: 0 | T17: 0 | U17: 0 | V17: 0 | W17: 0 | X17: 0
A18: ='Org structure'!E14 -> 05.4 - Sanitation Services | C18: 0 | D18: 0 | E18: 0 | F18: 0 | G18: 0 | H18: 0 | I18: 0 | J18: 0 | K18: 0 | L18: 0 | N18: 0 | O18: 0 | P18: 0 | Q18: 0 | R18: 0 | S18: 0 | T18: 0 | U18: 0 | V18: 0 | W18: 0 | X18: 0
A19: ='Org structure'!E15 -> 05.5 - Roads Services | C19: 0 | D19: 0 | E19: 0 | F19: 0 | G19: 0 | H19: 0 | I19: 0 | J19: 0 | K19: 0 | L19: 0 | N19: 0 | O19: 0 | P19: 0 | Q19: 0 | R19: 0 | S19: 0 | T19: 0 | U19: 0 | V19: 0 | W19: 0 | X19: 0
A20: ='Org structure'!E16 -> 05.6 - Storm Water Services | C20: 0 | D20: 0 | E20: 0 | F20: 0 | G20: 0 | H20: 0 | I20: 0 | J20: 0 | K20: 0 | L20: 0 | N20: 0 | O20: 0 | P20: 0 | Q20: 0 | R20: 0 | S20: 0 | T20: 0 | U20: 0 | V20: 0 | W20: 0 | X20: 0
A21: ='Org structure'!E17 -> 05.7 - Water Reporting Function | C21: 0 | D21: 0 | E21: 0 | F21: 0 | G21: 0 | H21: 0 | I21: 0 | J21: 0 | K21: 0 | L21: 0 | N21: 0 | O21: 0 | P21: 0 | Q21: 0 | R21: 0 | S21: 0 | T21: 0 | U21: 0 | V21: 0 | W21: 0 | X21: 0
A22: ='Org structure'!A7 -> Vote 06 - Roads Services | C22: =SUM(C23:C36) -> 0 | D22: 0 | E22: 0 | F22: 0 | G22: 0 | H22: 0 | I22: 0 | J22: 0 | K22: 0 | L22: 0 | N22: =SUM(N23:N36) -> 0 | O22: 0 | P22: 0 | Q22: 0 | R22: 0 | S22: 0 | T22: 0 | U22: 0 | V22: 0 | W22: 0 | X22: 0
A23: ='Org structure'!E19 -> 06.1 - Community Services Administration | C23: 0 | D23: 0 | E23: 0 | F23: 0 | G23: 0 | H23: 0 | I23: 0 | J23: =Q23+V23 -> 0 | K23: =U23+W23 -> 0 | L23: =X23 -> 0 | N23: 0 | O23: 0 | P23: 0 | Q23: =SUM(N23:P23) -> 0 | R23: 0 | S23: 0 | T23: 0 | U23: =SUM(R23:T23) -> 0 | V23: 0 | W23: 0 | X23: 0
A24: ='Org structure'!E20 -> 06.2 - Traffic Services | C24: 0 | D24: 0 | E24: 0 | F24: 0 | G24: 0 | H24: 0 | I24: 0 | J24: 0 | K24: 0 | L24: 0 | N24: 0 | O24: 0 | P24: 0 | Q24: 0 | R24: 0 | S24: 0 | T24: 0 | U24: 0 | V24: 0 | W24: 0 | X24: 0
A25: ='Org structure'!E21 -> 06.3 - Traffic Services | C25: 0 | D25: 0 | E25: 0 | F25: 0 | G25: 0 | H25: 0 | I25: 0 | J25: 0 | K25: 0 | L25: 0 | N25: 0 | O25: 0 | P25: 0 | Q25: 0 | R25: 0 | S25: 0 | T25: 0 | U25: 0 | V25: 0 | W25: 0 | X25: 0
A26: ='Org structure'!E22 -> 06.4 - Libraries | C26: 0 | D26: 0 | E26: 0 | F26: 0 | G26: 0 | H26: 0 | I26: 0 | J26: 0 | K26: 0 | L26: 0 | N26: 0 | O26: 0 | P26: 0 | Q26: 0 | R26: 0 | S26: 0 | T26: 0 | U26: 0 | V26: 0 | W26: 0 | X26: 0
A27: ='Org structure'!E23 -> 06.5 - Sport | C27: 0 | D27: 0 | E27: 0 | F27: 0 | G27: 0 | H27: 0 | I27: 0 | J27: 0 | K27: 0 | L27: 0 | N27: 0 | O27: 0 | P27: 0 | Q27: 0 | R27: 0 | S27: 0 | T27: 0 | U27: 0 | V27: 0 | W27: 0 | X27: 0
A28: ='Org structure'!E24 -> 06.6 - Cemetery | C28: 0 | D28: 0 | E28: 0 | F28: 0 | G28: 0 | H28: 0 | I28: 0 | J28: 0 | K28: 0 | L28: 0 | N28: 0 | O28: 0 | P28: 0 | Q28: 0 | R28: 0 | S28: 0 | T28: 0 | U28: 0 | V28: 0 | W28: 0 | X28: 0
A29: ='Org structure'!E25 -> 06.7 - Refuse | C29: 0 | D29: 0 | E29: 0 | F29: 0 | G29: 0 | H29: 0 | I29: 0 | J29: 0 | K29: 0 | L29: 0 | N29: 0 | O29: 0 | P29: 0 | Q29: 0 | R29: 0 | S29: 0 | T29: 0 | U29: 0 | V29: 0 | W29: 0 | X29: 0
A30: ='Org structure'!E26 -> 06.8 - Pound Services | C30: 0 | D30: 0 | E30: 0 | F30: 0 | G30: 0 | H30: 0 | I30: 0 | J30: 0 | K30: 0 | L30: 0 | N30: 0 | O30: 0 | P30: 0 | Q30: 0 | R30: 0 | S30: 0 | T30: 0 | U30: 0 | V30: 0 | W30: 0 | X30: 0
A31: ='Org structure'!E27 -> 06.9 - Pound Services | C31: 0 | D31: 0 | E31: 0 | F31: 0 | G31: 0 | H31: 0 | I31: 0 | J31: 0 | K31: 0 | L31: 0 | N31: 0 | O31: 0 | P31: 0 | Q31: 0 | R31: 0 | S31: 0 | T31: 0 | U31: 0 | V31: 0 | W31: 0 | X31: 0
A32: ='Org structure'!E28 -> 06.10 - Satellite Offices | C32: 0 | D32: 0 | E32: 0 | F32: 0 | G32: 0 | H32: 0 | I32: 0 | J32: 0 | K32: 0 | L32: 0 | N32: 0 | O32: 0 | P32: 0 | Q32: 0 | R32: 0 | S32: 0 | T32: 0 | U32: 0 | V32: 0 | W32: 0 | X32: 0
A33: ='Org structure'!E29 -> 06.11 - Alldays Offices | C33: 0 | D33: 0 | E33: 0 | F33: 0 | G33: 0 | H33: 0 | I33: 0 | J33: 0 | K33: 0 | L33: 0 | N33: 0 | O33: 0 | P33: 0 | Q33: 0 | R33: 0 | S33: 0 | T33: 0 | U33: 0 | V33: 0 | W33: 0 | X33: 0
A34: ='Org structure'!E30 -> 06.12 - Eldorado Offices | C34: 0 | D34: 0 | E34: 0 | F34: 0 | G34: 0 | H34: 0 | I34: 0 | J34: 0 | K34: 0 | L34: 0 | N34: 0 | O34: 0 | P34: 0 | Q34: 0 | R34: 0 | S34: 0 | T34: 0 | U34: 0 | V34: 0 | W34: 0 | X34: 0
A35: ='Org structure'!E31 -> 06.13 - Tolwe Offices | C35: 0 | D35: 0 | E35: 0 | F35: 0 | G35: 0 | H35: 0 | I35: 0 | J35: 0 | K35: 0 | L35: 0 | N35: 0 | O35: 0 | P35: 0 | Q35: 0 | R35: 0 | S35: 0 | T35: 0 | U35: 0 | V35: 0 | W35: 0 | X35: 0
A36: ='Org structure'!E32 -> 06.14 - Senwabarwarna Offices | C36: 0 | D36: 0 | E36: 0 | F36: 0 | G36: 0 | H36: 0 | I36: 0 | J36: 0 | K36: 0 | L36: 0 | N36: 0 | O36: 0 | P36: 0 | Q36: 0 | R36: 0 | S36: 0 | T36: 0 | U36: 0 | V36: 0 | W36: 0 | X36: 0
A37: ='Org structure'!A8 -> Vote 07 - Econominc Development And Planning | C37: =SUM(C38:C38) -> 0 | D37: 0 | E37: 0 | F37: 0 | G37: 0 | H37: 0 | I37: 0 | J37: 0 | K37: 0 | L37: 0 | N37: =SUM(N38:N38) -> 0 | O37: 0 | P37: 0 | Q37: 0 | R37: 0 | S37: 0 | T37: 0 | U37: 0 | V37: 0 | W37: 0 | X37: 0
A38: ='Org structure'!E34 -> 07.1 - Economic Development And Planning | C38: 0 | D38: 0 | E38: 0 | F38: 0 | G38: 0 | H38: 0 | I38: 0 | J38: =Q38+V38 -> 0 | K38: =U38+W38 -> 0 | L38: =X38 -> 0 | N38: 0 | O38: 0 | P38: 0 | Q38: =SUM(N38:P38) -> 0 | R38: 0 | S38: 0 | T38: 0 | U38: =SUM(R38:T38) -> 0 | V38: 0 | W38: 0 | X38: 0
A39: ='Org structure'!A9 -> Vote 08 - | C39: 0 | D39: 0 | E39: 0 | F39: 0 | G39: 0 | H39: 0 | I39: 0 | J39: 0 | K39: 0 | L39: 0 | N39: 0 | O39: 0 | P39: 0 | Q39: 0 | R39: 0 | S39: 0 | T39: 0 | U39: 0 | V39: 0 | W39: 0
A40: ='Org structure'!A10 -> Vote 09 - | C40: 0 | D40: 0 | E40: 0 | F40: 0 | G40: 0 | H40: 0 | I40: 0 | J40: 0 | K40: 0 | L40: 0 | N40: 0 | O40: 0 | P40: 0 | Q40: 0 | R40: 0 | S40: 0 | T40: 0 | U40: 0 | V40: 0 | W40: 0
A41: ='Org structure'!A11 -> Vote 10 - | C41: 0 | D41: 0 | E41: 0 | F41: 0 | G41: 0 | H41: 0 | I41: 0 | J41: 0 | K41: 0 | L41: 0 | N41: 0 | O41: 0 | P41: 0 | Q41: 0 | R41: 0 | S41: 0 | T41: 0 | U41: 0 | V41: 0 | W41: 0
A42: ='Org structure'!A12 -> Vote 11 - | C42: 0 | D42: 0 | E42: 0 | F42: 0 | G42: 0 | H42: 0 | I42: 0 | J42: 0 | K42: 0 | L42: 0 | N42: 0 | O42: 0 | P42: 0 | Q42: 0 | R42: 0 | S42: 0 | T42: 0 | U42: 0 | V42: 0 | W42: 0
A43: ='Org structure'!A13 -> Vote 12 - | C43: 0 | D43: 0 | E43: 0 | F43: 0 | G43: 0 | H43: 0 | I43: 0 | J43: 0 | K43: 0 | L43: 0 | N43: 0 | O43: 0 | P43: 0 | Q43: 0 | R43: 0 | S43: 0 | T43: 0 | U43: 0 | V43: 0 | W43: 0
A44: ='Org structure'!A14 -> Vote 13 - | C44: 0 | D44: 0 | E44: 0 | F44: 0 | G44: 0 | H44: 0 | I44: 0 | J44: 0 | K44: 0 | L44: 0 | N44: 0 | O44: 0 | P44: 0 | Q44: 0 | R44: 0 | S44: 0 | T44: 0 | U44: 0 | V44: 0 | W44: 0
A45: ='Org structure'!A15 -> Vote 14 - | C45: 0 | D45: 0 | E45: 0 | F45: 0 | G45: 0 | H45: 0 | I45: 0 | J45: 0 | K45: 0 | L45: 0 | N45: 0 | O45: 0 | P45: 0 | Q45: 0 | R45: 0 | S45: 0 | T45: 0 | U45: 0 | V45: 0 | W45: 0
A46: ='Org structure'!A16 -> Vote 15 - Other | C46: 0 | D46: 0 | E46: 0 | F46: 0 | G46: 0 | H46: 0 | I46: 0 | J46: 0 | K46: 0 | L46: 0 | N46: 0 | O46: 0 | P46: 0 | Q46: 0 | R46: 0 | S46: 0 | T46: 0 | U46: 0 | V46: 0 | W46: 0
A47: Capital multi-year expenditure sub-total | C47: =C6+C8+C10+C12+C14+C22+C37+C39+C40+C41+C42+C43+C44+C45+C46 -> 0 | D47: 0 | E47: 0 | F47: 100000 | G47: 56930 | H47: 56930 | I47: 56930 | J47: 0 | K47: 0 | L47: 0 | N47: =N6+N8+N10+N12+N14+N22+N37+N39+N40+N41+N42+N43+N44+N45+N46 -> 0 | O47: 0 | P47: 0 | Q47: 0 | R47: 0 | S47: 0 | T47: 0 | U47: 0 | V47: 0 | W47: 0
A49: Capital expenditure - Municipal Vote
A50: Single-year expenditure appropriation | B50: 2
A51: ='Org structure'!A2 -> Vote 01 - Executive & Council | C51: =SUM(C52:C52) -> 0 | D51: 0 | E51: 0 | F51: 0 | G51: 0 | H51: 0 | I51: 0 | J51: 0 | K51: 0 | L51: 0
A52: ='Org structure'!E3 -> 01.1 - Council General | C52: 0 | D52: 0 | E52: 0 | F52: 0 | G52: 0 | H52: 0 | I52: 0 | J52: 0 | K52: 0 | L52: 0
A53: ='Org structure'!A3 -> Vote 02 - Finance And Administration | C53: =SUM(C54:C54) -> 0 | D53: 0 | E53: 0 | F53: 0 | G53: 0 | H53: 0 | I53: 0 | J53: 800000 | K53: 1007000 | L53: 1067420
A54: ='Org structure'!E5 -> 02.1 - Municipal Manager | C54: 0 | D54: 0 | E54: 0 | F54: 0 | G54: 0 | H54: 0 | I54: 0 | J54: 800000 | K54: 1007000 | L54: 1067420
A55: ='Org structure'!A4 -> Vote 03 - Community Service | C55: =SUM(C56:C56) -> 0 | D55: 6801972.23 | E55: 1389839.35 | F55: 950000 | G55: 950000 | H55: 950000 | I55: 523768.82 | J55: 350000 | K55: 0 | L55: 0
A56: ='Org structure'!E7 -> 03.1 - Finance Services Administration | C56: 0 | D56: 6801972.23 | E56: 1389839.35 | F56: 950000 | G56: 950000 | H56: 950000 | I56: 523768.82 | J56: 350000 | K56: 0 | L56: 0
A57: ='Org structure'!A5 -> Vote 04 - Public And Safety | C57: =SUM(C58:C58) -> 0 | D57: 0 | E57: 0 | F57: 0 | G57: 0 | H57: 0 | I57: 0 | J57: 4908000 | K57: 1616000 | L57: 1685960
A58: ='Org structure'!E9 -> 04.1 - Corporate Services Administration | C58: 0 | D58: 0 | E58: 0 | F58: 0 | G58: 0 | H58: 0 | I58: 0 | J58: 4908000 | K58: 1616000 | L58: 1685960
A59: ='Org structure'!A6 -> Vote 05 - Waste Management | C59: =SUM(C60:C66) -> 0 | D59: 29296797.56 | E59: 708928.26 | F59: 66127500 | G59: 62492527 | H59: 62492527 | I59: 30173657.52 | J59: 51125788 | K59: 70984601 | L59: 78574631
A60: ='Org structure'!E11 -> 05.1 - Technical Services Administration | C60: 0 | D60: 0 | E60: 0 | F60: 0 | G60: 0 | H60: 0 | I60: 0 | J60: 0 | K60: 0 | L60: 0
A61: ='Org structure'!E12 -> 05.2 - Electrical Services | C61: 0 | D61: -6853647.37 | E61: 708928.26 | F61: 64107500 | G61: 38561436 | H61: 38561436 | I61: 16160933.77 | J61: 26007270 | K61: 25583000 | L61: 43817980
A62: ='Org structure'!E13 -> 05.3 - Water Services | C62: 0 | D62: 0 | E62: 0 | F62: 0 | G62: 0 | H62: 0 | I62: 0 | J62: 0 | K62: 0 | L62: 0
A63: ='Org structure'!E14 -> 05.4 - Sanitation Services | C63: 0 | D63: 0 | E63: 0 | F63: 0 | G63: 0 | H63: 0 | I63: 0 | J63: 0 | K63: 0 | L63: 0
A64: ='Org structure'!E15 -> 05.5 - Roads Services | C64: 0 | D64: 36150444.93 | E64: 0 | F64: 2020000 | G64: 23931091 | H64: 23931091 | I64: 14012723.75 | J64: 25118518 | K64: 45401601 | L64: 34756651
A65: ='Org structure'!E16 -> 05.6 - Storm Water Services | C65: 0 | D65: 0 | E65: 0 | F65: 0 | G65: 0 | H65: 0 | I65: 0 | J65: 0 | K65: 0 | L65: 0
A66: ='Org structure'!E17 -> 05.7 - Water Reporting Function | C66: 0 | D66: 0 | E66: 0 | F66: 0 | G66: 0 | H66: 0 | I66: 0 | J66: 0 | K66: 0 | L66: 0
A67: ='Org structure'!A7 -> Vote 06 - Roads Services | C67: =SUM(C68:C81) -> 0 | D67: 0 | E67: 143141.31 | F67: 2355000 | G67: 885600 | H67: 885600 | I67: 77600 | J67: 1700000 | K67: 1594000 | L67: 640000
A68: ='Org structure'!E19 -> 06.1 - Community Services Administration | C68: 0 | D68: 0 | E68: 0 | F68: 1055000 | G68: 885600 | H68: 885600 | I68: 77600 | J68: 500000 | K68: 500000 | L68: 0
A69: ='Org structure'!E20 -> 06.2 - Traffic Services | C69: 0 | D69: 0 | E69: 0 | F69: 0 | G69: 0 | H69: 0 | I69: 0 | J69: 0 | K69: 0 | L69: 0
A70: ='Org structure'!E21 -> 06.3 - Traffic Services | C70: 0 | D70: 0 | E70: 143141.31 | F70: 1300000 | G70: 0 | H70: 0 | I70: 0 | J70: 500000 | K70: 534000 | L70: 70000
A71: ='Org structure'!E22 -> 06.4 - Libraries | C71: 0 | D71: 0 | E71: 0 | F71: 0 | G71: 0 | H71: 0 | I71: 0 | J71: 0 | K71: 0 | L71: 0
A72: ='Org structure'!E23 -> 06.5 - Sport | C72: 0 | D72: 0 | E72: 0 | F72: 0 | G72: 0 | H72: 0 | I72: 0 | J72: 0 | K72: 0 | L72: 0
A73: ='Org structure'!E24 -> 06.6 - Cemetery | C73: 0 | D73: 0 | E73: 0 | F73: 0 | G73: 0 | H73: 0 | I73: 0 | J73: 0 | K73: 0 | L73: 0
A74: ='Org structure'!E25 -> 06.7 - Refuse | C74: 0 | D74: 0 | E74: 0 | F74: 0 | G74: 0 | H74: 0 | I74: 0 | J74: 700000 | K74: 560000 | L74: 570000
A75: ='Org structure'!E26 -> 06.8 - Pound Services | C75: 0 | D75: 0 | E75: 0 | F75: 0 | G75: 0 | H75: 0 | I75: 0 | J75: 0 | K75: 0 | L75: 0
A76: ='Org structure'!E27 -> 06.9 - Pound Services | C76: 0 | D76: 0 | E76: 0 | F76: 0 | G76: 0 | H76: 0 | I76: 0 | J76: 0 | K76: 0 | L76: 0
A77: ='Org structure'!E28 -> 06.10 - Satellite Offices | C77: 0 | D77: 0 | E77: 0 | F77: 0 | G77: 0 | H77: 0 | I77: 0 | J77: 0 | K77: 0 | L77: 0
A78: ='Org structure'!E29 -> 06.11 - Alldays Offices | C78: 0 | D78: 0 | E78: 0 | F78: 0 | G78: 0 | H78: 0 | I78: 0 | J78: 0 | K78: 0 | L78: 0
A79: ='Org structure'!E30 -> 06.12 - Eldorado Offices | C79: 0 | D79: 0 | E79: 0 | F79: 0 | G79: 0 | H79: 0 | I79: 0 | J79: 0 | K79: 0 | L79: 0
A80: ='Org structure'!E31 -> 06.13 - Tolwe Offices | C80: 0 | D80: 0 | E80: 0 | F80: 0 | G80: 0 | H80: 0 | I80: 0 | J80: 0 | K80: 0 | L80: 0
A81: ='Org structure'!E32 -> 06.14 - Senwabarwarna Offices | C81: 0 | D81: 0 | E81: 0 | F81: 0 | G81: 0 | H81: 0 | I81: 0 | J81: 0 | K81: 0 | L81: 0
A82: ='Org structure'!A8 -> Vote 07 - Econominc Development And Planning | C82: =SUM(C83:C83) -> 0 | D82: 0 | E82: 0 | F82: 0 | G82: 0 | H82: 0 | I82: 0 | J82: 450000 | K82: 750000 | L82: 0
A83: ='Org structure'!E34 -> 07.1 - Economic Development And Planning | C83: 0 | D83: 0 | E83: 0 | F83: 0 | G83: 0 | H83: 0 | I83: 0 | J83: 450000 | K83: 750000 | L83: 0
A84: ='Org structure'!A9 -> Vote 08 - | C84: 0 | D84: 0 | E84: 0 | F84: 0 | G84: 0 | H84: 0 | I84: 0 | J84: 0 | K84: 0 | L84: 0
A85: ='Org structure'!A10 -> Vote 09 - | C85: 0 | D85: 0 | E85: 0 | F85: 0 | G85: 0 | H85: 0 | I85: 0 | J85: 0 | K85: 0 | L85: 0
A86: ='Org structure'!A11 -> Vote 10 - | C86: 0 | D86: 0 | E86: 0 | F86: 0 | G86: 0 | H86: 0 | I86: 0 | J86: 0 | K86: 0 | L86: 0
A87: ='Org structure'!A12 -> Vote 11 - | C87: 0 | D87: 0 | E87: 0 | F87: 0 | G87: 0 | H87: 0 | I87: 0 | J87: 0 | K87: 0 | L87: 0
A88: ='Org structure'!A13 -> Vote 12 - | C88: 0 | D88: 0 | E88: 0 | F88: 0 | G88: 0 | H88: 0 | I88: 0 | J88: 0 | K88: 0 | L88: 0
A89: ='Org structure'!A14 -> Vote 13 - | C89: 0 | D89: 0 | E89: 0 | F89: 0 | G89: 0 | H89: 0 | I89: 0 | J89: 0 | K89: 0 | L89: 0
A90: ='Org structure'!A15 -> Vote 14 - | C90: 0 | D90: 0 | E90: 0 | F90: 0 | G90: 0 | H90: 0 | I90: 0 | J90: 0 | K90: 0 | L90: 0
A91: ='Org structure'!A16 -> Vote 15 - Other | C91: 0 | D91: 0 | E91: 0 | F91: 0 | G91: 0 | H91: 0 | I91: 0 | J91: 0 | K91: 0 | L91: 0
A92: Capital single-year expenditure sub-total | C92: =C51+C53+C55+C57+C59+C67+C82+C84+C85+C86+C87+C88+C89+C90+C91 -> 0 | D92: 36098769.79 | E92: 2241908.92 | F92: 69432500 | G92: 64328127 | H92: 64328127 | I92: 30775026.34 | J92: 59333788 | K92: 75951601 | L92: 81968011
A93: Total Capital Expenditure | C93: =C47+C92 -> 0 | D93: 36098769.79 | E93: 2241908.92 | F93: 69532500 | G93: 64385057 | H93: 64385057 | I93: 30831956.34 | J93: 59333788 | K93: 75951601 | L93: 81968011

Sheet A6-FinPos
A1: =muni&" - "&Approve6 -> LIM351 Blouberg - Table A6 Budgeted Financial Position
A2: =desc -> Description | B2: =head27 -> Ref | C2: =head1b -> 2016/17 | D2: =head1A -> 2017/18 | E2: =Head1 -> 2018/19 | F2: =Head2 -> Current Year 2019/20 | J2: =Head3 -> 2020/21 Medium Term Revenue & Expenditure Framework
A3: R thousand | C3: =Head5 -> Audited Outcome | D3: =Head5 -> Audited Outcome | E3: =Head5 -> Audited Outcome | F3: =Head6 -> Original Budget | G3: =Head7 -> Adjusted Budget | H3: =Head8 -> Full Year Forecast | I3: =Head5b -> Pre-audit outcome | J3: =Head9 -> Budget Year 2020/21 | K3: =Head10 -> Budget Year +1 2021/22 | L3: =Head11 -> Budget Year +2 2022/23
A4: ASSETS
A5: Current assets
A6: Cash | C6: 0 | D6: 15583402.37 | E6: 7563567.5 | F6: 51591707 | G6: 9523308 | H6: 9523308 | I6: -10410554.4 | J6: 13084369 | K6: 18208277 | L6: 20890668
A7: Call investment deposits | B7: 1 | C7: 0 | D7: 3767074.32 | E7: 3090652.11 | F7: 3097326 | G7: 3097326 | H7: 3097326 | I7: 28090652.11 | J7: 3252192 | K7: 3327192 | L7: 3390451
A8: Consumer debtors | B8: 1 | C8: ='SA3'!C14 -> 0 | D8: ='SA3'!D14 -> 95664779.58 | E8: ='SA3'!E14 -> 100806671 | F8: ='SA3'!F14 -> 15456686 | G8: ='SA3'!G14 -> 120569210 | H8: ='SA3'!H14 -> 120569210 | I8: ='SA3'!I14 -> 126294774.5 | J8: ='SA3'!J14 -> 139188911 | K8: ='SA3'!K14 -> 155978097 | L8: ='SA3'!L14 -> 174574145
A9: Other debtors | C9: 0 | D9: 5353490.47 | E9: 14087640.58 | F9: 1011486 | G9: 8693757 | H9: 8693757 | I9: 18869197.53 | J9: 8267054 | K9: 8520159 | L9: 9262866
A10: Current portion of long-term receivables
A11: Inventory | B11: 2 | C11: 0 | D11: 2211354.66 | E11: 3281383.45 | F11: 0 | G11: 4171383 | H11: 4171383 | I11: 3281383.45 | J11: 4521648 | K11: 4911300 | L11: 5396923
A12: Total current assets | C12: =SUM(C6:C11) -> 0 | D12: 122580101.4 | E12: 128829914.6 | F12: 71157205 | G12: 146054984 | H12: 146054984 | I12: 166125453.2 | J12: 168314174 | K12: 190945025 | L12: 213515053
A14: Non current assets
A15: Long-term receivables
A16: Investments
A17: Investment property | C17: 0 | D17: 205000 | E17: 3010000 | F17: 205000 | G17: 3010000 | H17: 3010000 | I17: 3010000 | J17: 3010000 | K17: 3010000 | L17: 3010000
A18: Investment in Associate
A19: Property, plant and equipment | B19: 3 | C19: ='SA3'!C26 -> 0 | D19: ='SA3'!D26 -> 893667373.2 | E19: ='SA3'!E26 -> 916082651.2 | F19: ='SA3'!F26 -> 327782775 | G19: ='SA3'!G26 -> 938793979 | H19: ='SA3'!H26 -> 938793979 | I19: ='SA3'!I26 -> 946914607.5 | J19: ='SA3'!J26 -> 935146980 | K19: ='SA3'!K26 -> 967768069 | L19: ='SA3'!L26 -> 990421063
A21: Biological
A22: Intangible | C22: 0 | D22: 286964.87 | E22: 543961.1 | F22: 390077 | G22: 543961 | H22: 543961 | I22: 543961.1 | J22: 2641961 | K22: 543961 | L22: 543961
A23: Other non-current assets | C23: 0 | D23: 0 | E23: 0 | F23: 0 | G23: 0 | H23: 0 | I23: 0 | J23: 0 | K23: 450000 | L23: 0
A24: Total non current assets | C24: =SUM(C15:C19)+SUM(C21:C23) -> 0 | D24: =SUM(D15:D19)+SUM(D21:D23) -> 894159338.1 | E24: 919636612.3 | F24: 328377852 | G24: 942347940 | H24: 942347940 | I24: 950468568.6 | J24: 940798941 | K24: 971772030 | L24: 993975024
A25: TOTAL ASSETS | C25: =C12+C24 -> 0 | D25: =D12+D24 -> 1016739439 | E25: =E12+E24 -> 1048466527 | F25: =F12+F24 -> 399535057 | G25: 1088402924 | H25: 1088402924 | I25: 1116594022 | J25: 1109113115 | K25: 1162717055 | L25: 1207490077
A27: LIABILITIES
A28: Current liabilities
A29: Bank overdraft | B29: 1
A30: Borrowing | B30: 4 | C30: ='SA3'!C32 -> 0 | D30: ='SA3'!D32 -> 0 | E30: ='SA3'!E32 -> 0 | F30: ='SA3'!F32 -> 0 | G30: ='SA3'!G32 -> 0 | H30: ='SA3'!H32 -> 0 | I30: ='SA3'!I32 -> 0 | J30: ='SA3'!J32 -> 0 | K30: ='SA3'!K32 -> 0 | L30: ='SA3'!L32 -> 0
A31: Consumer deposits | C31: 0 | D31: -8680.44 | E31: -8680.44 | F31: 0 | G31: 0 | H31: 0 | I31: -8680.44 | J31: 0 | K31: 0 | L31: 0
A32: Trade and other payables | B32: 4 | C32: ='SA3'!C39 -> 0 | D32: ='SA3'!D39 -> 52088091.91 | E32: ='SA3'!E39 -> 60192501.75 | F32: ='SA3'!F39 -> -3114879 | G32: ='SA3'!G39 -> 61930222 | H32: ='SA3'!H39 -> 61930222 | I32: ='SA3'!I39 -> 45955493.42 | J32: ='SA3'!J39 -> 65563869 | K32: ='SA3'!K39 -> 69899201 | L32: ='SA3'!L39 -> 74535315
A33: Provisions
A34: Total current liabilities | C34: =SUM(C29:C33) -> 0 | D34: 52079411.47 | E34: 60183821.31 | F34: -3114879 | G34: 61930222 | H34: 61930222 | I34: 45946812.98 | J34: 65563869 | K34: 69899201 | L34: 74535315
A36: Non current liabilities
A37: Borrowing | C37: ='SA3'!C44 -> 0 | D37: ='SA3'!D44 -> 1288648.61 | E37: ='SA3'!E44 -> 821059.88 | F37: ='SA3'!F44 -> 0 | G37: ='SA3'!G44 -> 721060 | H37: ='SA3'!H44 -> 721060 | I37: ='SA3'!I44 -> 821059.88 | J37: ='SA3'!J44 -> 621060 | K37: ='SA3'!K44 -> 521060 | L37: ='SA3'!L44 -> 421060
A38: Provisions | C38: ='SA3'!C51 -> 0 | D38: ='SA3'!D51 -> 15477617.9 | E38: ='SA3'!E51 -> 16755265.04 | F38: ='SA3'!F51 -> 0 | G38: ='SA3'!G51 -> 18555265 | H38: ='SA3'!H51 -> 18555265 | I38: ='SA3'!I51 -> 16755265.04 | J38: ='SA3'!J51 -> 20105265 | K38: ='SA3'!K51 -> 21819801 | L38: ='SA3'!L51 -> 23647693
A39: Total non current liabilities | C39: =SUM(C37:C38) -> 0 | D39: =SUM(D37:D38) -> 16766266.51 | E39: =SUM(E37:E38) -> 17576324.92 | F39: =SUM(F37:F38) -> 0 | G39: 19276325 | H39: 19276325 | I39: 17576324.92 | J39: 20726325 | K39: =SUM(K37:K38) -> 22340861 | L39: 24068753
A40: TOTAL LIABILITIES | C40: =C34+C39 -> 0 | D40: =D34+D39 -> 68845677.98 | E40: =E34+E39 -> 77760146.23 | F40: =F34+F39 -> -3114879 | G40: 81206547 | H40: 81206547 | I40: 63523137.9 | J40: 86290194 | K40: =K34+K39 -> 92240062 | L40: 98604068
A42: NET ASSETS | B42: 5 | C42: =C25-C40 -> 0 | D42: 947893761.5 | E42: 970706380.6 | F42: 402649936 | G42: 1007196377 | H42: 1007196377 | I42: 1053070884 | J42: 1022822921 | K42: 1070476993 | L42: 1108886009
A44: COMMUNITY WEALTH/EQUITY
A45: Accumulated Surplus/(Deficit) | C45: ='SA3'!C63 -> 0 | D45: ='SA3'!D63 -> 947893761.5 | E45: ='SA3'!E63 -> 957432464.1 | F45: ='SA3'!F63 -> 402649936 | G45: ='SA3'!G63 -> 1007196377 | H45: ='SA3'!H63 -> 1007196377 | I45: ='SA3'!I63 -> 1052598553 | J45: ='SA3'!J63 -> 1022822921 | K45: ='SA3'!K63 -> 1070476993 | L45: ='SA3'!L63 -> 1108886009
A46: Reserves | B46: 4 | C46: ='SA3'!C70 -> 0 | D46: ='SA3'!D70 -> 0 | E46: ='SA3'!E70 -> 0 | F46: ='SA3'!F70 -> 0 | G46: ='SA3'!G70 -> 0 | H46: ='SA3'!H70 -> 0 | I46: ='SA3'!I70 -> 0 | J46: ='SA3'!J70 -> 0 | K46: ='SA3'!K70 -> 0 | L46: ='SA3'!L70 -> 0
A48: TOTAL COMMUNITY WEALTH/EQUITY | B48: 5 | C48: =SUM(C45:C46) -> 0 | D48: =SUM(D45:D46) -> 947893761.5 | E48: 957432464.1 | F48: 402649936 | G48: 1007196377 | H48: 1007196377 | I48: 1052598553 | J48: 1022822921 | K48: 1070476993 | L48: 1108886009
A49: =head27a -> References
A50: 1. Detail to be provided in Table SA3
A51: 2. Include completed low cost housing to be transferred to beneficiaries within 12 months
A52: 3. Include 'Construction-work-in-progress' (disclosed separately in annual financial statements)
A53: 4. Detail to be provided in Table SA3. Includes reserves to be funded by statute.
A54: 5. Net assets must balance with Total Community Wealth/Equity
A55: check balance | C55: =IF((C42-C48)=0,0,"Unbalanced") -> 0 | D55: =IF((D42-D48)=0,0,"Unbalanced") -> Unbalanced | E55: Unbalanced | F55: 0 | G55: 0 | H55: 0 | I55: Unbalanced | J55: 0 | K55: 0 | L55: 0

Sheet A7-CFlow
A1: =muni&" - "&Approve7 -> LIM351 Blouberg - Table A7 Budgeted Cash Flows
A2: =desc -> Description | B2: =head27 -> Ref | C2: =head1b -> 2016/17 | D2: =head1A -> 2017/18 | E2: =Head1 -> 2018/19 | F2: =Head2 -> Current Year 2019/20 | J2: =Head3 -> 2020/21 Medium Term Revenue & Expenditure Framework
A3: R thousand | C3: =Head5 -> Audited Outcome | D3: =Head5 -> Audited Outcome | E3: =Head5 -> Audited Outcome | F3: =Head6 -> Original Budget | G3: =Head7 -> Adjusted Budget | H3: =Head8 -> Full Year Forecast | I3: =Head5b -> Pre-audit outcome | J3: =Head9 -> Budget Year 2020/21 | K3: =Head10 -> Budget Year +1 2021/22 | L3: =Head11 -> Budget Year +2 2022/23
A4: CASH FLOW FROM OPERATING ACTIVITIES
A5: Receipts
A6: Property rates | J6: ='SA30'!N5 -> 0 | K6: ='SA30'!O5 -> 0 | L6: ='SA30'!P5 -> 0
A7: Service charges | J7: ='SA30'!N6+'SA30'!N7+'SA30'!N8+'SA30'!N9 -> 0 | K7: ='SA30'!O6+'SA30'!O7+'SA30'!O8+'SA30'!O9 -> 0 | L7: ='SA30'!P6+'SA30'!P7+'SA30'!P8+'SA30'!P9 -> 0
A8: Other revenue | J8: ='SA30'!N11+'SA30'!N15+'SA30'!N16+'SA30'!N17+'SA30'!N19 -> 0 | K8: ='SA30'!O11+'SA30'!O15+'SA30'!O16+'SA30'!O17+'SA30'!O19 -> 0 | L8: ='SA30'!P11+'SA30'!P15+'SA30'!P16+'SA30'!P17+'SA30'!P19 -> 0
A9: Transfers and Subsidies - Operational | B9: 1 | J9: ='SA30'!N18 -> 0 | K9: ='SA30'!O18 -> 0 | L9: ='SA30'!P18 -> 0
A10: Transfers and Subsidies - Capital | B10: 1 | J10: ='SA30'!N23 -> 0 | K10: ='SA30'!O23 -> 0 | L10: ='SA30'!P23 -> 0
A11: Interest | J11: ='SA30'!N12+'SA30'!N13 -> 0 | K11: ='SA30'!O12+'SA30'!O13 -> 0 | L11: ='SA30'!P12+'SA30'!P13 -> 0
A12: Dividends | J12: ='SA30'!N14 -> 0 | K12: ='SA30'!O14 -> 0 | L12: ='SA30'!P14 -> 0
A13: Payments
A14: Suppliers and employees | C14: 0 | D14: -259037982.2 | E14: -242498457.2 | F14: -262409104 | G14: -264062560 | H14: -264062560 | I14: -162898493.1 | J14: =-('SA30'!N35+'SA30'!N36+'SA30'!N38+'SA30'!N39+'SA30'!N40+'SA30'!N41+'SA30'!N44+'SA30'!N50) -> -283136527 | K14: =-('SA30'!O35+'SA30'!O36+'SA30'!O38+'SA30'!O39+'SA30'!O40+'SA30'!O41+'SA30'!O44+'SA30'!O50) -> -303471791 | L14: =-('SA30'!P35+'SA30'!P36+'SA30'!P38+'SA30'!P39+'SA30'!P40+'SA30'!P41+'SA30'!P44+'SA30'!P50) -> -319748659
A15: Finance charges | J15: =-('SA30'!N37) -> 0 | K15: =-('SA30'!O37) -> 0 | L15: =-('SA30'!P37) -> 0
A16: Transfers and Grants | B16: 1 | C16: 0 | D16: 0 | E16: -73220 | F16: 0 | G16: 0 | H16: 0 | I16: 0 | J16: =-('SA30'!N42+'SA30'!N43) -> 0 | K16: =-('SA30'!O42+'SA30'!O43) -> 0 | L16: =-('SA30'!P42+'SA30'!P43) -> 0
A17: NET CASH FROM/(USED) OPERATING ACTIVITIES | C17: =SUM(C6:C12)+SUM(C14:C16) -> 0 | D17: -259037982.2 | E17: -242571677.2 | F17: -262409104 | G17: -264062560 | H17: -264062560 | I17: -162898493.1 | J17: -283136527 | K17: -303471791 | L17: -319748659
A19: CASH FLOWS FROM INVESTING ACTIVITIES
A20: Receipts
A21: Proceeds on disposal of PPE | J21: ='SA30'!N24+'SA30'!N25 -> 0 | K21: ='SA30'!O24+'SA30'!O25 -> 0 | L21: ='SA30'!P24+'SA30'!P25 -> 0
A23: Decrease (increase) in non-current receivables | J23: ='SA30'!N30 -> 0 | K23: ='SA30'!O30 -> 0 | L23: ='SA30'!P30 -> 0
A24: Decrease (increase) in non-current investments | J24: ='SA30'!N31 -> 0 | K24: ='SA30'!O31 -> 0 | L24: ='SA30'!P31 -> 0
A25: Payments
A26: Capital assets | J26: =-('SA30'!N48) -> 0 | K26: =-('SA30'!O48) -> 0 | L26: =-('SA30'!P48) -> 0
A27: NET CASH FROM/(USED) INVESTING ACTIVITIES | C27: =+C21+C23+C24+C26 -> 0 | D27: =+D21+D23+D24+D26 -> 0 | E27: 0 | F27: 0 | G27: 0 | H27: 0 | I27: 0 | J27: 0 | K27: 0 | L27: 0
A29: CASH FLOWS FROM FINANCING ACTIVITIES
A30: Receipts
A31: Short term loans | J31: ='SA30'!N26 -> 0 | K31: ='SA30'!O26 -> 0 | L31: ='SA30'!P26 -> 0
A32: Borrowing long term/refinancing | J32: ='SA30'!N27 -> 0 | K32: ='SA30'!O27 -> 0 | L32: ='SA30'!P27 -> 0
A33: Increase (decrease) in consumer deposits | C33: 0 | D33: 8680.44 | E33: 0 | F33: -8680.44 | G33: 0 | H33: 0 | I33: 0 | J33: ='SA30'!N28 -> 0 | K33: ='SA30'!O28 -> 0 | L33: ='SA30'!P28 -> 0
A34: Payments
A35: Repayment of borrowing | J35: =-('SA30'!N49) -> 0 | K35: =-('SA30'!O49) -> 0 | L35: =-('SA30'!P49) -> 0
A36: NET CASH FROM/(USED) FINANCING ACTIVITIES | C36: =SUM(C31:C33)+C35 -> 0 | D36: =SUM(D31:D33)+D35 -> 8680.44 | E36: 0 | F36: -8680.44 | G36: 0 | H36: 0 | I36: 0 | J36: 0 | K36: 0 | L36: 0
A38: NET INCREASE/ (DECREASE) IN CASH HELD | C38: =C17+C27+C36 -> 0 | D38: =D17+D27+D36 -> -259029301.7 | E38: -242571677.2 | F38: -262417784.4 | G38: -264062560 | H38: -264062560 | I38: -162898493.1 | J38: -283136527 | K38: -303471791 | L38: -319748659
A39: Cash/cash equivalents at the year begin: | B39: 2 | C39: 0 | D39: 44204502.79 | E39: 18672302.47 | F39: 54689033 | G39: 12618991 | H39: 12618991 | I39: 0 | J39: ='SA30'!N54 -> 1064489 | K39: =J40 -> -282072038 | L39: =K40 -> -585543829
A40: Cash/cash equivalents at the year end: | B40: 2 | C40: =C38+C39 -> 0 | D40: =D38+D39 -> -214824798.9 | E40: =E38+E39 -> -223899374.8 | F40: =F38+F39 -> -207728751.4 | G40: -251443569 | H40: -251443569 | I40: -162898493.1 | J40: -282072038 | K40: -585543829 | L40: -905292488
A41: =head27a -> References
A42: 1. Local/District municipalities to include transfers from/to District/Local Municipalities
A43: 2. Cash equivalents includes investments with maturities of 3 months or less
A44: 3. The MTREF is populated directly from SA30.
A45: Total receipts | C45: =SUM(C6:C12)+SUM(C21:C23) -> 0 | D45: 0 | E45: 0 | F45: 0 | G45: 0 | H45: 0 | I45: 0 | J45: 0 | K45: 0 | L45: 0
A46: Total payments | C46: =SUM(C14:C16)+C26 -> 0 | D46: =SUM(D14:D16)+D26 -> -259037982.2 | E46: -242571677.2 | F46: -262409104 | G46: -264062560 | H46: -264062560 | I46: -162898493.1 | J46: -283136527 | K46: -303471791 | L46: -319748659
C47: =C45+C46 -> 0 | D47: =D45+D46 -> -259037982.2 | E47: -242571677.2 | F47: -262409104 | G47: -264062560 | H47: -264062560 | I47: -162898493.1 | J47: -283136527 | K47: -303471791 | L47: -319748659
A48: Borrowings & investments & c.deposits | C48: =C24+C32+C33 -> 0 | D48: =D24+D32+D33 -> 8680.44 | E48: 0 | F48: -8680.44 | G48: 0 | H48: 0 | I48: 0 | J48: 0 | K48: 0 | L48: 0
A49: =A35 -> Repayment of borrowing | C49: =C35 -> 0 | D49: =D35 -> 0 | E49: 0 | F49: 0 | G49: 0 | H49: 0 | I49: =I35 -> 0 | J49: 0 | K49: 0 | L49: 0
C50: =C47+C48+C49 -> 0 | D50: =D47+D48+D49 -> -259029301.7 | E50: -242571677.2 | F50: -262417784.4 | G50: -264062560 | H50: -264062560 | I50: -162898493.1 | J50: -283136527 | K50: -303471791 | L50: -319748659
C51: =C38-C50 -> 0 | D51: 0 | E51: 0 | F51: 0 | G51: 0 | H51: 0 | I51: 0 | J51: 0 | K51: 0 | L51: 0

Sheet A8-ResRecon
A1: =muni&" - "&Approve8 -> LIM351 Blouberg - Table A8 Cash backed reserves/accumulated surplus reconciliation
A2: =desc -> Description | B2: =head27 -> Ref | C2: =head1b -> 2016/17 | D2: =head1A -> 2017/18 | E2: =Head1 -> 2018/19 | F2: =Head2 -> Current Year 2019/20 | J2: =Head3 -> 2020/21 Medium Term Revenue & Expenditure Framework
A3: R thousand | C3: =Head5 -> Audited Outcome | D3: =Head5 -> Audited Outcome | E3: =Head5 -> Audited Outcome | F3: =Head6 -> Original Budget | G3: =Head7 -> Adjusted Budget | H3: =Head8 -> Full Year Forecast | I3: =Head5b -> Pre-audit outcome | J3: =Head9 -> Budget Year 2020/21 | K3: =Head10 -> Budget Year +1 2021/22 | L3: =Head11 -> Budget Year +2 2022/23
A4: Cash and investments available
A5: =LEFT('A7-CFlow'!A40,37) -> Cash/cash equivalents at the year end | B5: 1 | C5: ='A7-CFlow'!C40 -> 0 | D5: ='A7-CFlow'!D40 -> -214824798.9 | E5: ='A7-CFlow'!E40 -> -223899374.8 | F5: ='A7-CFlow'!F40 -> -207728751.4 | G5: ='A7-CFlow'!G40 -> -251443569 | H5: ='A7-CFlow'!H40 -> -251443569 | I5: ='A7-CFlow'!I40 -> -162898493.1 | J5: ='A7-CFlow'!J40 -> -282072038 | K5: ='A7-CFlow'!K40 -> -585543829 | L5: ='A7-CFlow'!L40 -> -905292488
A6: Other current investments > 90 days | C6: ='A6-FinPos'!C6+'A6-FinPos'!C7-'A6-FinPos'!C29-'A8-ResRecon'!C5 -> 0 | D6: ='A6-FinPos'!D6+'A6-FinPos'!D7-'A6-FinPos'!D29-'A8-ResRecon'!D5 -> 234175275.6 | E6: ='A6-FinPos'!E6+'A6-FinPos'!E7-'A6-FinPos'!E29-'A8-ResRecon'!E5 -> 234553594.4 | F6: ='A6-FinPos'!F6+'A6-FinPos'!F7-'A6-FinPos'!F29-'A8-ResRecon'!F5 -> 262417784.4 | G6: ='A6-FinPos'!G6+'A6-FinPos'!G7-'A6-FinPos'!G29-'A8-ResRecon'!G5 -> 264064203 | H6: ='A6-FinPos'!H6+'A6-FinPos'!H7-'A6-FinPos'!H29-'A8-ResRecon'!H5 -> 264064203 | I6: ='A6-FinPos'!I6+'A6-FinPos'!I7-'A6-FinPos'!I29-'A8-ResRecon'!I5 -> 180578590.8 | J6: ='A6-FinPos'!J6+'A6-FinPos'!J7-'A6-FinPos'!J29-'A8-ResRecon'!J5 -> 298408599 | K6: ='A6-FinPos'!K6+'A6-FinPos'!K7-'A6-FinPos'!K29-'A8-ResRecon'!K5 -> 607079298 | L6: ='A6-FinPos'!L6+'A6-FinPos'!L7-'A6-FinPos'!L29-'A8-ResRecon'!L5 -> 929573607
A7: ='A6-FinPos'!A14&" - "&'A6-FinPos'!A16 -> Non current assets - Investments | B7: 1 | C7: ='A6-FinPos'!C16 -> 0 | D7: ='A6-FinPos'!D16 -> 0 | E7: ='A6-FinPos'!E16 -> 0 | F7: ='A6-FinPos'!F16 -> 0 | G7: ='A6-FinPos'!G16 -> 0 | H7: ='A6-FinPos'!H16 -> 0 | I7: ='A6-FinPos'!I16 -> 0 | J7: ='A6-FinPos'!J16 -> 0 | K7: ='A6-FinPos'!K16 -> 0 | L7: ='A6-FinPos'!L16 -> 0
A8: Cash and investments available: | C8: =SUM(C5:C7) -> 0 | D8: =SUM(D5:D7) -> 19350476.69 | E8: 10654219.61 | F8: 54689033 | G8: 12620634 | H8: 12620634 | I8: 17680097.71 | J8: 16336561 | K8: 21535469 | L8: 24281119
A10: Application of cash and investments
A11: ='SA3'!A37 -> Unspent conditional transfers | C11: ='SA3'!C37 -> 0 | D11: ='SA3'!D37 -> 699785.67 | E11: ='SA3'!E37 -> 1139231.07 | F11: ='SA3'!F37 -> -1400000 | G11: ='SA3'!G37 -> 1250000 | H11: ='SA3'!H37 -> 1250000 | I11: ='SA3'!I37 -> 1139231.07 | J11: ='SA3'!J37 -> 725000 | K11: ='SA3'!K37 -> 725200 | L11: ='SA3'!L37 -> 600500
A12: Unspent borrowing | C12: ='SA17'!C67 -> 0 | D12: ='SA17'!D67 -> 0 | E12: ='SA17'!E67 -> 0 | F12: ='SA17'!F67 -> 0 | G12: ='SA17'!G67 -> 0 | H12: ='SA17'!H67 -> 0 | J12: ='SA17'!I67 -> 0 | K12: ='SA17'!J67 -> 0 | L12: ='SA17'!K67 -> 0
A13: Statutory requirements | B13: 2
A14: Other working capital requirements | B14: 3 | C14: =-C32 -> 0 | D14: =-D32 -> 50717580.55 | E14: 50688620.83 | F14: =-F32 -> -1714879 | G14: 60680222 | H14: 60680222 | I14: 32051369.96 | J14: 64838869 | K14: 69174001 | L14: 73934815
A15: Other provisions
A16: Long term investments committed | B16: 4 | C16: =C42 -> 0 | D16: =D42 -> 0 | E16: 0 | F16: 0 | G16: 0 | H16: 0 | I16: 0 | J16: 0 | K16: 0 | L16: 0
A17: Reserves to be backed by cash/investments | B17: 5 | C17: =SUM(C44:C48) -> 0 | D17: 0 | E17: 0 | F17: 0 | G17: 0 | H17: 0 | I17: 0 | J17: 0 | K17: 0 | L17: 0
A18: ="Total "&A10&":" -> Total Application of cash and investments: | C18: =SUM(C11:C17) -> 0 | D18: =SUM(D11:D17) -> 51417366.22 | E18: 51827851.9 | F18: -3114879 | G18: 61930222 | H18: 61930222 | I18: 33190601.03 | J18: 65563869 | K18: 69899201 | L18: 74535315
A19: Surplus(shortfall) | C19: =C8-C18 -> 0 | D19: =D8-D18 -> -32066889.53 | E19: -41173632.29 | F19: 57803912 | G19: -49309588 | H19: -49309588 | I19: -15510503.32 | J19: -49227308 | K19: -48363732 | L19: -50254196
A20: =head27a -> References
A21: 1. Must reconcile with Budgeted Cash Flows
A22: 2. For example: VAT, taxation
A23: 3. Council approval for policy required - include sufficient working capital (e.g. allowing for a % of current debtors > 90 days as uncollectable)
A24: 4. For example: sinking fund requirements for borrowing
A25: 5. Council approval required for each reserve created and basis of cash backing of reserves
A28: Other working capital requirements
A29: Debtors | C29: =IF(ISERROR(ROUND(C35*C36,-3)),0,(ROUND(C35*C36,-3))) -> 0 | D29: =IF(ISERROR(ROUND(D35*D36,-3)),0,(ROUND(D35*D36,-3))) -> 0 | E29: 0 | F29: 0 | G29: 0 | H29: 0 | I29: 0 | J29: 0 | K29: 0 | L29: 0
A31: Creditors due | C31: ='SA3'!C35+'SA3'!C36 -> 0 | D31: ='SA3'!D35+'SA3'!D36 -> 50717580.55 | E31: ='SA3'!E35+'SA3'!E36 -> 50688620.83 | F31: ='SA3'!F35+'SA3'!F36 -> -1714879 | G31: ='SA3'!G35+'SA3'!G36 -> 60680222 | H31: ='SA3'!H35+'SA3'!H36 -> 60680222 | I31: ='SA3'!I35+'SA3'!I36 -> 32051369.96 | J31: ='SA3'!J35+'SA3'!J36 -> 64838869 | K31: ='SA3'!K35+'SA3'!K36 -> 69174001 | L31: ='SA3'!L35+'SA3'!L36 -> 73934815
A32: Total | C32: =C29-C31 -> 0 | D32: =D29-D31 -> -50717580.55 | E32: -50688620.83 | F32: 1714879 | G32: -60680222 | H32: -60680222 | I32: -32051369.96 | J32: -64838869 | K32: -69174001 | L32: -73934815
A34: Debtors collection assumptions
A35: Balance outstanding - debtors | C35: ='A6-FinPos'!C8+'A6-FinPos'!C9+'A6-FinPos'!C15 -> 0 | D35: ='A6-FinPos'!D8+'A6-FinPos'!D9+'A6-FinPos'!D15 -> 101018270.1 | E35: ='A6-FinPos'!E8+'A6-FinPos'!E9+'A6-FinPos'!E15 -> 114894311.5 | F35: ='A6-FinPos'!F8+'A6-FinPos'!F9+'A6-FinPos'!F15 -> 16468172 | G35: ='A6-FinPos'!G8+'A6-FinPos'!G9+'A6-FinPos'!G15 -> 129262967 | H35: ='A6-FinPos'!H8+'A6-FinPos'!H9+'A6-FinPos'!H15 -> 129262967 | I35: ='A6-FinPos'!I8+'A6-FinPos'!I9+'A6-FinPos'!I15 -> 145163972.1 | J35: ='A6-FinPos'!J8+'A6-FinPos'!J9+'A6-FinPos'!J15 -> 147455965 | K35: ='A6-FinPos'!K8+'A6-FinPos'!K9+'A6-FinPos'!K15 -> 164498256 | L35: ='A6-FinPos'!L8+'A6-FinPos'!L9+'A6-FinPos'!L15 -> 183837011
A36: Estimate of debtors collection rate | C36: =IF(ISERROR('SA10'!D10),0,('SA10'!D10)) -> 0 | D36: =IF(ISERROR('SA10'!E10),0,('SA10'!E10)) -> 0 | E36: =IF(ISERROR('SA10'!F10),0,('SA10'!F10)) -> 0 | F36: =IF(ISERROR('SA10'!G10),0,('SA10'!G10)) -> 0 | G36: =IF(ISERROR('SA10'!H10),0,('SA10'!H10)) -> 0 | H36: =IF(ISERROR('SA10'!I10),0,('SA10'!I10)) -> 0 | I36: =IF(ISERROR('SA10'!J10),0,('SA10'!J10)) -> 0 | J36: =IF(ISERROR('SA10'!K10),0,('SA10'!K10)) -> 0 | K36: =IF(ISERROR('SA10'!L10),0,('SA10'!L10)) -> 0 | L36: =IF(ISERROR('SA10'!M10),0,('SA10'!M10)) -> 0
K39: `
A40: =A16 -> Long term investments committed
A41: Balance (Insert description; eg sinking fund)
C42: =SUM(C41:C41) -> 0 | D42: 0 | E42: 0 | F42: 0 | G42: 0 | H42: 0 | I42: 0 | J42: 0 | K42: 0 | L42: 0
A43: =A17 -> Reserves to be backed by cash/investments
A44: ='SA3'!A65 -> Housing Development Fund | C44: ='SA3'!C65 -> 0 | D44: ='SA3'!D65 -> 0 | E44: ='SA3'!E65 -> 0 | F44: ='SA3'!F65 -> 0 | G44: ='SA3'!G65 -> 0 | H44: ='SA3'!H65 -> 0 | I44: ='SA3'!I65 -> 0 | J44: ='SA3'!J65 -> 0 | K44: ='SA3'!K65 -> 0 | L44: ='SA3'!L65 -> 0
A45: ='SA3'!A66 -> Capital replacement | C45: ='SA3'!C66 -> 0 | D45: ='SA3'!D66 -> 0 | E45: ='SA3'!E66 -> 0 | F45: ='SA3'!F66 -> 0 | G45: ='SA3'!G66 -> 0 | H45: ='SA3'!H66 -> 0 | I45: ='SA3'!I66 -> 0 | J45: ='SA3'!J66 -> 0 | K45: ='SA3'!K66 -> 0 | L45: ='SA3'!L66 -> 0
A46: ='SA3'!A67 -> Self-insurance | C46: ='SA3'!C67 -> 0 | D46: ='SA3'!D67 -> 0 | E46: ='SA3'!E67 -> 0 | F46: ='SA3'!F67 -> 0 | G46: ='SA3'!G67 -> 0 | H46: ='SA3'!H67 -> 0 | I46: ='SA3'!I67 -> 0 | J46: ='SA3'!J67 -> 0 | K46: ='SA3'!K67 -> 0 | L46: ='SA3'!L67 -> 0
A47: ='SA3'!A68 -> Other reserves | C47: ='SA3'!C68 -> 0 | D47: ='SA3'!D68 -> 0 | E47: ='SA3'!E68 -> 0 | F47: ='SA3'!F68 -> 0 | G47: ='SA3'!G68 -> 0 | H47: ='SA3'!H68 -> 0 | I47: ='SA3'!I68 -> 0 | J47: ='SA3'!J68 -> 0 | K47: ='SA3'!K68 -> 0 | L47: ='SA3'!L68 -> 0
A48: ='SA3'!A69 -> Revaluation | C48: ='SA3'!C69 -> 0 | D48: ='SA3'!D69 -> 0 | E48: ='SA3'!E69 -> 0 | F48: ='SA3'!F69 -> 0 | G48: ='SA3'!G69 -> 0 | H48: ='SA3'!H69 -> 0 | I48: ='SA3'!I69 -> 0 | J48: ='SA3'!J69 -> 0 | K48: ='SA3'!K69 -> 0 | L48: ='SA3'!L69 -> 0
C49: =SUM(C44:C48) -> 0 | D49: 0 | E49: 0 | F49: 0 | G49: 0 | H49: 0 | I49: 0 | J49: 0 | K49: 0 | L49: 0

Sheet A9-Asset
A1: =muni&" - "&Approve9 -> LIM351 Blouberg - Table A9 Asset Management
A2: =desc -> Description | B2: =head27 -> Ref | C2: =head1b -> 2016/17 | D2: =head1A -> 2017/18 | E2: =Head1 -> 2018/19 | F2: =Head2 -> Current Year 2019/20 | I2: =Head3 -> 2020/21 Medium Term Revenue & Expenditure Framework
A3: R thousand | C3: =Head5 -> Audited Outcome | D3: =Head5 -> Audited Outcome | E3: =Head5 -> Audited Outcome | F3: =Head6 -> Original Budget | G3: =Head7 -> Adjusted Budget | H3: =Head8 -> Full Year Forecast | I3: =Head9 -> Budget Year 2020/21 | J3: =Head10 -> Budget Year +1 2021/22 | K3: =Head11 -> Budget Year +2 2022/23
A4: CAPITAL EXPENDITURE
A5: Total New Assets | B5: 1 | C5: =C15+C18+C19+C22+C25+C26+SUM(C29:C35) -> 0 | D5: =D15+D18+D19+D22+D25+D26+SUM(D29:D35) -> 36098769.79 | E5: 1742688.01 | F5: 57426883 | G5: 39025723 | H5: 39025723 | I5: 16321087 | J5: 30610000 | K5: 34081360
A6: Roads Infrastructure | C6: =SA34a!C7 -> 0 | D6: =SA34a!D7 -> 20187191.49 | E6: =SA34a!E7 -> 0 | F6: =SA34a!F7 -> 38556883 | G6: =SA34a!G7 -> 20636847 | H6: =SA34a!H7 -> 20636847 | I6: =SA34a!I7 -> 0 | J6: =SA34a!J7 -> 0 | K6: =SA34a!K7 -> 0
A7: Storm water Infrastructure | C7: =SA34a!C12 -> 0 | D7: =SA34a!D12 -> 0 | E7: =SA34a!E12 -> 0 | F7: =SA34a!F12 -> 0 | G7: =SA34a!G12 -> 0 | H7: =SA34a!H12 -> 0 | I7: =SA34a!I12 -> 0 | J7: =SA34a!J12 -> 0 | K7: =SA34a!K12 -> 0
A8: Electrical Infrastructure | C8: =SA34a!C16 -> 0 | D8: =SA34a!D16 -> -6708935.49 | E8: =SA34a!E16 -> 708928.26 | F8: =SA34a!F16 -> 15700000 | G8: =SA34a!G16 -> 15578634 | H8: =SA34a!H16 -> 15578634 | I8: =SA34a!I16 -> 6400000 | J8: =SA34a!J16 -> 25583000 | K8: =SA34a!K16 -> 30617980
A9: Water Supply Infrastructure | C9: =SA34a!C26 -> 0 | D9: =SA34a!D26 -> 0 | E9: =SA34a!E26 -> 0 | F9: =SA34a!F26 -> 0 | G9: =SA34a!G26 -> 0 | H9: =SA34a!H26 -> 0 | I9: =SA34a!I26 -> 0 | J9: =SA34a!J26 -> 0 | K9: =SA34a!K26 -> 0
A10: Sanitation Infrastructure | C10: =SA34a!C37 -> 0 | D10: =SA34a!D37 -> 0 | E10: =SA34a!E37 -> 0 | F10: =SA34a!F37 -> 0 | G10: =SA34a!G37 -> 0 | H10: =SA34a!H37 -> 0 | I10: =SA34a!I37 -> 0 | J10: =SA34a!J37 -> 0 | K10: =SA34a!K37 -> 0
A11: Solid Waste Infrastructure | C11: =SA34a!C44 -> 0 | D11: =SA34a!D44 -> 739570.03 | E11: =SA34a!E44 -> 0 | F11: =SA34a!F44 -> 0 | G11: =SA34a!G44 -> 0 | H11: =SA34a!H44 -> 0 | I11: =SA34a!I44 -> 0 | J11: =SA34a!J44 -> 0 | K11: =SA34a!K44 -> 0
A12: Rail Infrastructure | C12: =SA34a!C52 -> 0 | D12: =SA34a!D52 -> 0 | E12: =SA34a!E52 -> 0 | F12: =SA34a!F52 -> 0 | G12: =SA34a!G52 -> 0 | H12: =SA34a!H52 -> 0 | I12: =SA34a!I52 -> 0 | J12: =SA34a!J52 -> 0 | K12: =SA34a!K52 -> 0
A13: Coastal Infrastructure | C13: =SA34a!C62 -> 0 | D13: =SA34a!D62 -> 0 | E13: =SA34a!E62 -> 0 | F13: =SA34a!F62 -> 0 | G13: =SA34a!G62 -> 0 | H13: =SA34a!H62 -> 0 | I13: =SA34a!I62 -> 0 | J13: =SA34a!J62 -> 0 | K13: =SA34a!K62 -> 0
A14: Information and Communication Infrastructure | C14: =SA34a!C68 -> 0 | D14: =SA34a!D68 -> 0 | E14: =SA34a!E68 -> 0 | F14: =SA34a!F68 -> 0 | G14: =SA34a!G68 -> 0 | H14: =SA34a!H68 -> 0 | I14: =SA34a!I68 -> 0 | J14: =SA34a!J68 -> 0 | K14: =SA34a!K68 -> 0
A15: Infrastructure | C15: =SUM(C6:C14) -> 0 | D15: =SUM(D6:D14) -> 14217826.03 | E15: 708928.26 | F15: 54256883 | G15: 36215481 | H15: 36215481 | I15: 6400000 | J15: 25583000 | K15: 30617980
A16: Community Facilities | C16: =SA34a!C75 -> 0 | D16: =SA34a!D75 -> 0 | E16: =SA34a!E75 -> 0 | F16: =SA34a!F75 -> 275000 | G16: =SA34a!G75 -> 200000 | H16: =SA34a!H75 -> 200000 | I16: =SA34a!I75 -> 430000 | J16: =SA34a!J75 -> 1300000 | K16: =SA34a!K75 -> 500000
A17: Sport and Recreation Facilities | C17: =SA34a!C98 -> 0 | D17: =SA34a!D98 -> 15223683.41 | E17: =SA34a!E98 -> 0 | F17: =SA34a!F98 -> 2020000 | G17: =SA34a!G98 -> 1883312 | H17: =SA34a!H98 -> 1883312 | I17: =SA34a!I98 -> 0 | J17: =SA34a!J98 -> 0 | K17: =SA34a!K98 -> 0
A18: Community Assets | C18: =SUM(C16:C17) -> 0 | D18: =SUM(D16:D17) -> 15223683.41 | E18: 0 | F18: 2295000 | G18: 2083312 | H18: 2083312 | I18: 430000 | J18: 1300000 | K18: 500000
A19: Heritage Assets | C19: =SA34a!C103 -> 0 | D19: =SA34a!D103 -> 0 | E19: =SA34a!E103 -> 0 | F19: =SA34a!F103 -> 0 | G19: =SA34a!G103 -> 0 | H19: =SA34a!H103 -> 0 | I19: =SA34a!I103 -> 0 | J19: =SA34a!J103 -> 450000 | K19: =SA34a!K103 -> 0
A20: Revenue Generating | C20: =SA34a!C111 -> 0 | D20: =SA34a!D111 -> 0 | E20: =SA34a!E111 -> 0 | F20: =SA34a!F111 -> 0 | G20: =SA34a!G111 -> 0 | H20: =SA34a!H111 -> 0 | I20: =SA34a!I111 -> 0 | J20: =SA34a!J111 -> 0 | K20: =SA34a!K111 -> 0
A21: Non-revenue Generating | C21: =SA34a!C114 -> 0 | D21: =SA34a!D114 -> 0 | E21: =SA34a!E114 -> 0 | F21: =SA34a!F114 -> 0 | G21: =SA34a!G114 -> 0 | H21: =SA34a!H114 -> 0 | I21: =SA34a!I114 -> 0 | J21: =SA34a!J114 -> 0 | K21: =SA34a!K114 -> 0
A22: Investment properties | C22: =SUM(C20:C21) -> 0 | D22: =SUM(D20:D21) -> 0 | E22: 0 | F22: 0 | G22: 0 | H22: 0 | I22: 0 | J22: 0 | K22: 0
A23: Operational Buildings | C23: =SA34a!C119 -> 0 | D23: =SA34a!D119 -> 44243.86 | E23: =SA34a!E119 -> 0 | F23: =SA34a!F119 -> 0 | G23: =SA34a!G119 -> 0 | H23: =SA34a!H119 -> 0 | I23: =SA34a!I119 -> 800000 | J23: =SA34a!J119 -> 60000 | K23: =SA34a!K119 -> 70000
A24: Housing | C24: =SA34a!C131 -> 0 | D24: =SA34a!D131 -> 0 | E24: =SA34a!E131 -> 0 | F24: =SA34a!F131 -> 0 | G24: =SA34a!G131 -> 0 | H24: =SA34a!H131 -> 0 | I24: =SA34a!I131 -> 0 | J24: =SA34a!J131 -> 0 | K24: =SA34a!K131 -> 0
A25: Other Assets | C25: =SUM(C23:C24) -> 0 | D25: =SUM(D23:D24) -> 44243.86 | E25: 0 | F25: 0 | G25: 0 | H25: 0 | I25: 800000 | J25: 60000 | K25: 70000
A26: Biological or Cultivated Assets | C26: =SA34a!C136 -> 0 | D26: =SA34a!D136 -> 0 | E26: =SA34a!E136 -> 0 | F26: =SA34a!F136 -> 0 | G26: =SA34a!G136 -> 0 | H26: =SA34a!H136 -> 0 | I26: =SA34a!I136 -> 0 | J26: =SA34a!J136 -> 0 | K26: =SA34a!K136 -> 0
A27: Servitudes | C27: =SA34a!C140 -> 0 | D27: =SA34a!D140 -> 0 | E27: =SA34a!E140 -> 0 | F27: =SA34a!F140 -> 0 | G27: =SA34a!G140 -> 0 | H27: =SA34a!H140 -> 0 | I27: =SA34a!I140 -> 0 | J27: =SA34a!J140 -> 0 | K27: =SA34a!K140 -> 0
A28: Licences and Rights | C28: =SA34a!C141 -> 0 | D28: =SA34a!D141 -> 156500 | E28: =SA34a!E141 -> 457940.88 | F28: =SA34a!F141 -> 0 | G28: =SA34a!G141 -> 0 | H28: =SA34a!H141 -> 0 | I28: =SA34a!I141 -> 2098000 | J28: =SA34a!J141 -> 0 | K28: =SA34a!K141 -> 0
A29: Intangible Assets | C29: =SUM(C27:C28) -> 0 | D29: =SUM(D27:D28) -> 156500 | E29: 457940.88 | F29: 0 | G29: 0 | H29: 0 | I29: 2098000 | J29: 0 | K29: 0
A30: Computer Equipment | C30: =SA34a!C149 -> 0 | D30: =SA34a!D149 -> 726705.27 | E30: =SA34a!E149 -> 575818.87 | F30: =SA34a!F149 -> 500000 | G30: =SA34a!G149 -> 500000 | H30: =SA34a!H149 -> 500000 | I30: =SA34a!I149 -> 3110000 | J30: =SA34a!J149 -> 2623000 | K30: =SA34a!K149 -> 2753380
A31: Furniture and Office Equipment | C31: =SA34a!C152 -> 0 | D31: =SA34a!D152 -> 1185796.9 | E31: =SA34a!E152 -> 0 | F31: =SA34a!F152 -> 0 | G31: =SA34a!G152 -> 0 | H31: =SA34a!H152 -> 0 | I31: =SA34a!I152 -> 100000 | J31: =SA34a!J152 -> 60000 | K31: =SA34a!K152 -> 70000
A32: Machinery and Equipment | C32: =SA34a!C155 -> 0 | D32: =SA34a!D155 -> 0 | E32: =SA34a!E155 -> 0 | F32: =SA34a!F155 -> 375000 | G32: =SA34a!G155 -> 226930 | H32: =SA34a!H155 -> 226930 | I32: =SA34a!I155 -> 1583087 | J32: =SA34a!J155 -> 534000 | K32: =SA34a!K155 -> 70000
A33: Transport Assets | C33: =SA34a!C158 -> 0 | D33: =SA34a!D158 -> 4544014.32 | E33: =SA34a!E158 -> 0 | F33: =SA34a!F158 -> 0 | G33: =SA34a!G158 -> 0 | H33: =SA34a!H158 -> 0 | I33: =SA34a!I158 -> 1800000 | J33: =SA34a!J158 -> 0 | K33: =SA34a!K158 -> 0
A34: Land | C34: =SA34a!C161 -> 0 | D34: =SA34a!D161 -> 0 | E34: =SA34a!E161 -> 0 | F34: =SA34a!F161 -> 0 | G34: =SA34a!G161 -> 0 | H34: =SA34a!H161 -> 0 | I34: =SA34a!I161 -> 0 | J34: =SA34a!J161 -> 0 | K34: =SA34a!K161 -> 0
A35: Zoo's, Marine and Non-biological Animals | C35: =SA34a!C164 -> 0 | D35: =SA34a!D164 -> 0 | E35: =SA34a!E164 -> 0 | F35: =SA34a!F164 -> 0 | G35: =SA34a!G164 -> 0 | H35: =SA34a!H164 -> 0 | I35: =SA34a!I164 -> 0 | J35: =SA34a!J164 -> 0 | K35: =SA34a!K164 -> 0
A37: Total Renewal of Existing Assets | B37: 2 | C37: =C47+C50+C51+C54+C57+C58+SUM(C61:C67) -> 0 | D37: =D47+D50+D51+D54+D57+D58+SUM(D61:D67) -> 0 | E37: 244079.6 | F37: 6580000 | G37: 21145717 | H37: 21145717 | I37: 43012701 | J37: 45341601 | K37: 47886651
A38: Roads Infrastructure | C38: =SA34b!C7 -> 0 | D38: =SA34b!D7 -> 0 | E38: =SA34b!E7 -> 0 | F38: =SA34b!F7 -> 0 | G38: =SA34b!G7 -> 17920036 | H38: =SA34b!H7 -> 17920036 | I38: =SA34b!I7 -> 24758518 | J38: =SA34b!J7 -> 45341601 | K38: =SA34b!K7 -> 34686651
A39: Storm water Infrastructure | C39: =SA34b!C12 -> 0 | D39: =SA34b!D12 -> 0 | E39: =SA34b!E12 -> 0 | F39: =SA34b!F12 -> 0 | G39: =SA34b!G12 -> 0 | H39: =SA34b!H12 -> 0 | I39: =SA34b!I12 -> 0 | J39: =SA34b!J12 -> 0 | K39: =SA34b!K12 -> 0
A40: Electrical Infrastructure | C40: =SA34b!C16 -> 0 | D40: =SA34b!D16 -> 0 | E40: =SA34b!E16 -> 0 | F40: =SA34b!F16 -> 6000000 | G40: =SA34b!G16 -> 2728081 | H40: =SA34b!H16 -> 2728081 | I40: =SA34b!I16 -> 150000 | J40: =SA34b!J16 -> 0 | K40: =SA34b!K16 -> 3200000
A41: Water Supply Infrastructure | C41: =SA34b!C26 -> 0 | D41: =SA34b!D26 -> 0 | E41: =SA34b!E26 -> 0 | F41: =SA34b!F26 -> 80000 | G41: =SA34b!G26 -> 77600 | H41: =SA34b!H26 -> 77600 | I41: =SA34b!I26 -> 0 | J41: =SA34b!J26 -> 0 | K41: =SA34b!K26 -> 0
A42: Sanitation Infrastructure | C42: =SA34b!C37 -> 0 | D42: =SA34b!D37 -> 0 | E42: =SA34b!E37 -> 0 | F42: =SA34b!F37 -> 0 | G42: =SA34b!G37 -> 0 | H42: =SA34b!H37 -> 0 | I42: =SA34b!I37 -> 0 | J42: =SA34b!J37 -> 0 | K42: =SA34b!K37 -> 0
A43: Solid Waste Infrastructure | C43: =SA34b!C44 -> 0 | D43: =SA34b!D44 -> 0 | E43: =SA34b!E44 -> 0 | F43: =SA34b!F44 -> 0 | G43: =SA34b!G44 -> 0 | H43: =SA34b!H44 -> 0 | I43: =SA34b!I44 -> 0 | J43: =SA34b!J44 -> 0 | K43: =SA34b!K44 -> 10000000
A44: Rail Infrastructure | C44: =SA34b!C52 -> 0 | D44: =SA34b!D52 -> 0 | E44: =SA34b!E52 -> 0 | F44: =SA34b!F52 -> 0 | G44: =SA34b!G52 -> 0 | H44: =SA34b!H52 -> 0 | I44: =SA34b!I52 -> 0 | J44: =SA34b!J52 -> 0 | K44: =SA34b!K52 -> 0
A45: Coastal Infrastructure | C45: =SA34b!C62 -> 0 | D45: =SA34b!D62 -> 0 | E45: =SA34b!E62 -> 0 | F45: =SA34b!F62 -> 0 | G45: =SA34b!G62 -> 0 | H45: =SA34b!H62 -> 0 | I45: =SA34b!I62 -> 0 | J45: =SA34b!J62 -> 0 | K45: =SA34b!K62 -> 0
A46: Information and Communication Infrastructure | C46: =SA34b!C68 -> 0 | D46: =SA34b!D68 -> 0 | E46: =SA34b!E68 -> 0 | F46: =SA34b!F68 -> 0 | G46: =SA34b!G68 -> 0 | H46: =SA34b!H68 -> 0 | I46: =SA34b!I68 -> 0 | J46: =SA34b!J68 -> 0 | K46: =SA34b!K68 -> 0
A47: Infrastructure | C47: =SUM(C38:C46) -> 0 | D47: =SUM(D38:D46) -> 0 | E47: 0 | F47: 6080000 | G47: 20725717 | H47: 20725717 | I47: 24908518 | J47: 45341601 | K47: 47886651
A48: Community Facilities | C48: =SA34b!C75 -> 0 | D48: =SA34b!D75 -> 0 | E48: =SA34b!E75 -> 0 | F48: =SA34b!F75 -> 350000 | G48: =SA34b!G75 -> 270000 | H48: =SA34b!H75 -> 270000 | I48: =SA34b!I75 -> 0 | J48: =SA34b!J75 -> 0 | K48: =SA34b!K75 -> 0
A49: Sport and Recreation Facilities | C49: =SA34b!C98 -> 0 | D49: =SA34b!D98 -> 0 | E49: =SA34b!E98 -> 0 | F49: =SA34b!F98 -> 0 | G49: =SA34b!G98 -> 0 | H49: =SA34b!H98 -> 0 | I49: =SA34b!I98 -> 18104183 | J49: =SA34b!J98 -> 0 | K49: =SA34b!K98 -> 0
A50: Community Assets | C50: =SUM(C48:C49) -> 0 | D50: =SUM(D48:D49) -> 0 | E50: 0 | F50: 350000 | G50: 270000 | H50: 270000 | I50: 18104183 | J50: 0 | K50: 0
A51: Heritage Assets | C51: =SA34b!C103 -> 0 | D51: =SA34b!D103 -> 0 | E51: =SA34b!E103 -> 0 | F51: =SA34b!F103 -> 0 | G51: =SA34b!G103 -> 0 | H51: =SA34b!H103 -> 0 | I51: =SA34b!I103 -> 0 | J51: =SA34b!J103 -> 0 | K51: =SA34b!K103 -> 0
A52: Revenue Generating | C52: =SA34b!C111 -> 0 | D52: =SA34b!D111 -> 0 | E52: =SA34b!E111 -> 0 | F52: =SA34b!F111 -> 0 | G52: =SA34b!G111 -> 0 | H52: =SA34b!H111 -> 0 | I52: =SA34b!I111 -> 0 | J52: =SA34b!J111 -> 0 | K52: =SA34b!K111 -> 0
A53: Non-revenue Generating | C53: =SA34b!C114 -> 0 | D53: =SA34b!D114 -> 0 | E53: =SA34b!E114 -> 0 | F53: =SA34b!F114 -> 0 | G53: =SA34b!G114 -> 0 | H53: =SA34b!H114 -> 0 | I53: =SA34b!I114 -> 0 | J53: =SA34b!J114 -> 0 | K53: =SA34b!K114 -> 0
A54: Investment properties | C54: =SUM(C52:C53) -> 0 | D54: =SUM(D52:D53) -> 0 | E54: 0 | F54: 0 | G54: 0 | H54: 0 | I54: 0 | J54: 0 | K54: 0
A55: Operational Buildings | C55: =SA34b!C119 -> 0 | D55: =SA34b!D119 -> 0 | E55: =SA34b!E119 -> 0 | F55: =SA34b!F119 -> 0 | G55: =SA34b!G119 -> 0 | H55: =SA34b!H119 -> 0 | I55: =SA34b!I119 -> 0 | J55: =SA34b!J119 -> 0 | K55: =SA34b!K119 -> 0
A56: Housing | C56: =SA34b!C131 -> 0 | D56: =SA34b!D131 -> 0 | E56: =SA34b!E131 -> 0 | F56: =SA34b!F131 -> 0 | G56: =SA34b!G131 -> 0 | H56: =SA34b!H131 -> 0 | I56: =SA34b!I131 -> 0 | J56: =SA34b!J131 -> 0 | K56: =SA34b!K131 -> 0
A57: Other Assets | C57: =SUM(C55:C56) -> 0 | D57: =SUM(D55:D56) -> 0 | E57: 0 | F57: 0 | G57: 0 | H57: 0 | I57: 0 | J57: 0 | K57: 0
A58: Biological or Cultivated Assets | C58: =SA34b!C136 -> 0 | D58: =SA34b!D136 -> 0 | E58: =SA34b!E136 -> 0 | F58: =SA34b!F136 -> 0 | G58: =SA34b!G136 -> 0 | H58: =SA34b!H136 -> 0 | I58: =SA34b!I136 -> 0 | J58: =SA34b!J136 -> 0 | K58: =SA34b!K136 -> 0
A59: Servitudes | C59: =SA34b!C140 -> 0 | D59: =SA34b!D140 -> 0 | E59: =SA34b!E140 -> 0 | F59: =SA34b!F140 -> 0 | G59: =SA34b!G140 -> 0 | H59: =SA34b!H140 -> 0 | I59: =SA34b!I140 -> 0 | J59: =SA34b!J140 -> 0 | K59: =SA34b!K140 -> 0
A60: Licences and Rights | C60: =SA34b!C141 -> 0 | D60: =SA34b!D141 -> 0 | E60: =SA34b!E141 -> 0 | F60: =SA34b!F141 -> 0 | G60: =SA34b!G141 -> 0 | H60: =SA34b!H141 -> 0 | I60: =SA34b!I141 -> 0 | J60: =SA34b!J141 -> 0 | K60: =SA34b!K141 -> 0
A61: Intangible Assets | C61: =SUM(C59:C60) -> 0 | D61: =SUM(D59:D60) -> 0 | E61: 0 | F61: 0 | G61: 0 | H61: 0 | I61: 0 | J61: 0 | K61: 0
A62: Computer Equipment | C62: =SA34b!C149 -> 0 | D62: =SA34b!D149 -> 0 | E62: =SA34b!E149 -> 0 | F62: =SA34b!F149 -> 0 | G62: =SA34b!G149 -> 0 | H62: =SA34b!H149 -> 0 | I62: =SA34b!I149 -> 0 | J62: =SA34b!J149 -> 0 | K62: =SA34b!K149 -> 0
A63: Furniture and Office Equipment | C63: =SA34b!C152 -> 0 | D63: =SA34b!D152 -> 0 | E63: =SA34b!E152 -> 244079.6 | F63: =SA34b!F152 -> 150000 | G63: =SA34b!G152 -> 150000 | H63: =SA34b!H152 -> 150000 | I63: =SA34b!I152 -> 0 | J63: =SA34b!J152 -> 0 | K63: =SA34b!K152 -> 0
A64: Machinery and Equipment | C64: =SA34b!C155 -> 0 | D64: =SA34b!D155 -> 0 | E64: =SA34b!E155 -> 0 | F64: =SA34b!F155 -> 0 | G64: =SA34b!G155 -> 0 | H64: =SA34b!H155 -> 0 | I64: =SA34b!I155 -> 0 | J64: =SA34b!J155 -> 0 | K64: =SA34b!K155 -> 0
A65: Transport Assets | C65: =SA34b!C158 -> 0 | D65: =SA34b!D158 -> 0 | E65: =SA34b!E158 -> 0 | F65: =SA34b!F158 -> 0 | G65: =SA34b!G158 -> 0 | H65: =SA34b!H158 -> 0 | I65: =SA34b!I158 -> 0 | J65: =SA34b!J158 -> 0 | K65: =SA34b!K158 -> 0
A66: Land | C66: =SA34b!C161 -> 0 | D66: =SA34b!D161 -> 0 | E66: =SA34b!E161 -> 0 | F66: =SA34b!F161 -> 0 | G66: =SA34b!G161 -> 0 | H66: =SA34b!H161 -> 0 | I66: =SA34b!I161 -> 0 | J66: =SA34b!J161 -> 0 | K66: =SA34b!K161 -> 0
A67: Zoo's, Marine and Non-biological Animals | C67: =SA34b!C164 -> 0 | D67: =SA34b!D164 -> 0 | E67: =SA34b!E164 -> 0 | F67: =SA34b!F164 -> 0 | G67: =SA34b!G164 -> 0 | H67: =SA34b!H164 -> 0 | I67: =SA34b!I164 -> 0 | J67: =SA34b!J164 -> 0 | K67: =SA34b!K164 -> 0
A69: Total Upgrading of Existing Assets | B69: 6 | C69: =C79+C82+C83+C86+C89+C90+SUM(C93:C99) -> 0 | D69: =D79+D82+D83+D86+D89+D90+SUM(D93:D99) -> 0 | E69: 255141.31 | F69: 5525617 | G69: 4213617 | H69: 4213617 | I69: 0 | J69: 0 | K69: 0
A70: Roads Infrastructure | C70: =SA34e!C7 -> 0 | D70: =SA34e!D7 -> 0 | E70: =SA34e!E7 -> 0 | F70: =SA34e!F7 -> 0 | G70: =SA34e!G7 -> 0 | H70: =SA34e!H7 -> 0 | I70: =SA34e!I7 -> 0 | J70: =SA34e!J7 -> 0 | K70: =SA34e!K7 -> 0
A71: Storm water Infrastructure | C71: =SA34e!C12 -> 0 | D71: =SA34e!D12 -> 0 | E71: =SA34e!E12 -> 0 | F71: =SA34e!F12 -> 0 | G71: =SA34e!G12 -> 0 | H71: =SA34e!H12 -> 0 | I71: =SA34e!I12 -> 0 | J71: =SA34e!J12 -> 0 | K71: =SA34e!K12 -> 0
A72: Electrical Infrastructure | C72: =SA34e!C16 -> 0 | D72: =SA34e!D16 -> 0 | E72: =SA34e!E16 -> 0 | F72: =SA34e!F16 -> 0 | G72: =SA34e!G16 -> 0 | H72: =SA34e!H16 -> 0 | I72: =SA34e!I16 -> 0 | J72: =SA34e!J16 -> 0 | K72: =SA34e!K16 -> 0
A73: Water Supply Infrastructure | C73: =SA34e!C26 -> 0 | D73: =SA34e!D26 -> 0 | E73: =SA34e!E26 -> 0 | F73: =SA34e!F26 -> 0 | G73: =SA34e!G26 -> 0 | H73: =SA34e!H26 -> 0 | I73: =SA34e!I26 -> 0 | J73: =SA34e!J26 -> 0 | K73: =SA34e!K26 -> 0
A74: Sanitation Infrastructure | C74: =SA34e!C37 -> 0 | D74: =SA34e!D37 -> 0 | E74: =SA34e!E37 -> 0 | F74: =SA34e!F37 -> 0 | G74: =SA34e!G37 -> 0 | H74: =SA34e!H37 -> 0 | I74: =SA34e!I37 -> 0 | J74: =SA34e!J37 -> 0 | K74: =SA34e!K37 -> 0
A75: Solid Waste Infrastructure | C75: =SA34e!C44 -> 0 | D75: =SA34e!D44 -> 0 | E75: =SA34e!E44 -> 0 | F75: =SA34e!F44 -> 1500000 | G75: =SA34e!G44 -> 1500000 | H75: =SA34e!H44 -> 1500000 | I75: =SA34e!I44 -> 0 | J75: =SA34e!J44 -> 0 | K75: =SA34e!K44 -> 0
A76: Rail Infrastructure | C76: =SA34e!C52 -> 0 | D76: =SA34e!D52 -> 0 | E76: =SA34e!E52 -> 0 | F76: =SA34e!F52 -> 0 | G76: =SA34e!G52 -> 0 | H76: =SA34e!H52 -> 0 | I76: =SA34e!I52 -> 0 | J76: =SA34e!J52 -> 0 | K76: =SA34e!K52 -> 0
A77: Coastal Infrastructure | C77: =SA34e!C62 -> 0 | D77: =SA34e!D62 -> 0 | E77: =SA34e!E62 -> 0 | F77: =SA34e!F62 -> 0 | G77: =SA34e!G62 -> 0 | H77: =SA34e!H62 -> 0 | I77: =SA34e!I62 -> 0 | J77: =SA34e!J62 -> 0 | K77: =SA34e!K62 -> 0
A78: Information and Communication Infrastructure | C78: =SA34e!C68 -> 0 | D78: =SA34e!D68 -> 0 | E78: =SA34e!E68 -> 0 | F78: =SA34e!F68 -> 0 | G78: =SA34e!G68 -> 0 | H78: =SA34e!H68 -> 0 | I78: =SA34e!I68 -> 0 | J78: =SA34e!J68 -> 0 | K78: =SA34e!K68 -> 0
A79: Infrastructure | C79: =SUM(C70:C78) -> 0 | D79: 0 | E79: 0 | F79: 1500000 | G79: 1500000 | H79: 1500000 | I79: 0 | J79: 0 | K79: 0
A80: Community Facilities | C80: =SA34e!C75 -> 0 | D80: =SA34e!D75 -> 0 | E80: =SA34e!E75 -> 0 | F80: =SA34e!F75 -> 0 | G80: =SA34e!G75 -> 0 | H80: =SA34e!H75 -> 0 | I80: =SA34e!I75 -> 0 | J80: =SA34e!J75 -> 0 | K80: =SA34e!K75 -> 0
A81: Sport and Recreation Facilities | C81: =SA34e!C98 -> 0 | D81: =SA34e!D98 -> 0 | E81: =SA34e!E98 -> 0 | F81: =SA34e!F98 -> 2075617 | G81: =SA34e!G98 -> 2075617 | H81: =SA34e!H98 -> 2075617 | I81: =SA34e!I98 -> 0 | J81: =SA34e!J98 -> 0 | K81: =SA34e!K98 -> 0
A82: Community Assets | C82: =SUM(C80:C81) -> 0 | D82: 0 | E82: 0 | F82: 2075617 | G82: 2075617 | H82: 2075617 | I82: 0 | J82: 0 | K82: 0
A83: Heritage Assets | C83: =SA34e!C103 -> 0 | D83: =SA34e!D103 -> 0 | E83: =SA34e!E103 -> 0 | F83: =SA34e!F103 -> 0 | G83: =SA34e!G103 -> 0 | H83: =SA34e!H103 -> 0 | I83: =SA34e!I103 -> 0 | J83: =SA34e!J103 -> 0 | K83: =SA34e!K103 -> 0
A84: Revenue Generating | C84: =SA34e!C111 -> 0 | D84: =SA34e!D111 -> 0 | E84: =SA34e!E111 -> 0 | F84: =SA34e!F111 -> 0 | G84: =SA34e!G111 -> 0 | H84: =SA34e!H111 -> 0 | I84: =SA34e!I111 -> 0 | J84: =SA34e!J111 -> 0 | K84: =SA34e!K111 -> 0
A85: Non-revenue Generating | C85: =SA34e!C114 -> 0 | D85: =SA34e!D114 -> 0 | E85: =SA34e!E114 -> 0 | F85: =SA34e!F114 -> 0 | G85: =SA34e!G114 -> 0 | H85: =SA34e!H114 -> 0 | I85: =SA34e!I114 -> 0 | J85: =SA34e!J114 -> 0 | K85: =SA34e!K114 -> 0
A86: Investment properties | C86: =SUM(C84:C85) -> 0 | D86: 0 | E86: 0 | F86: 0 | G86: 0 | H86: 0 | I86: 0 | J86: 0 | K86: 0
A87: Operational Buildings | C87: =SA34e!C119 -> 0 | D87: =SA34e!D119 -> 0 | E87: =SA34e!E119 -> 0 | F87: =SA34e!F119 -> 0 | G87: =SA34e!G119 -> 0 | H87: =SA34e!H119 -> 0 | I87: =SA34e!I119 -> 0 | J87: =SA34e!J119 -> 0 | K87: =SA34e!K119 -> 0
A88: Housing | C88: =SA34e!C131 -> 0 | D88: =SA34e!D131 -> 0 | E88: =SA34e!E131 -> 0 | F88: =SA34e!F131 -> 0 | G88: =SA34e!G131 -> 0 | H88: =SA34e!H131 -> 0 | I88: =SA34e!I131 -> 0 | J88: =SA34e!J131 -> 0 | K88: =SA34e!K131 -> 0
A89: Other Assets | C89: =SUM(C87:C88) -> 0 | D89: 0 | E89: 0 | F89: 0 | G89: 0 | H89: 0 | I89: 0 | J89: 0 | K89: 0
A90: Biological or Cultivated Assets | C90: =SA34e!C136 -> 0 | D90: =SA34e!D136 -> 0 | E90: =SA34e!E136 -> 0 | F90: =SA34e!F136 -> 0 | G90: =SA34e!G136 -> 0 | H90: =SA34e!H136 -> 0 | I90: =SA34e!I136 -> 0 | J90: =SA34e!J136 -> 0 | K90: =SA34e!K136 -> 0
A91: Servitudes | C91: =SA34e!C140 -> 0 | D91: =SA34e!D140 -> 0 | E91: =SA34e!E140 -> 0 | F91: =SA34e!F140 -> 0 | G91: =SA34e!G140 -> 0 | H91: =SA34e!H140 -> 0 | I91: =SA34e!I140 -> 0 | J91: =SA34e!J140 -> 0 | K91: =SA34e!K140 -> 0
A92: Licences and Rights | C92: =SA34e!C141 -> 0 | D92: =SA34e!D141 -> 0 | E92: =SA34e!E141 -> 0 | F92: =SA34e!F141 -> 0 | G92: =SA34e!G141 -> 0 | H92: =SA34e!H141 -> 0 | I92: =SA34e!I141 -> 0 | J92: =SA34e!J141 -> 0 | K92: =SA34e!K141 -> 0
A93: Intangible Assets | C93: =SUM(C91:C92) -> 0 | D93: 0 | E93: 0 | F93: 0 | G93: 0 | H93: 0 | I93: 0 | J93: 0 | K93: 0
A94: Computer Equipment | C94: =SA34e!C149 -> 0 | D94: =SA34e!D149 -> 0 | E94: =SA34e!E149 -> 0 | F94: =SA34e!F149 -> 0 | G94: =SA34e!G149 -> 0 | H94: =SA34e!H149 -> 0 | I94: =SA34e!I149 -> 0 | J94: =SA34e!J149 -> 0 | K94: =SA34e!K149 -> 0
A95: Furniture and Office Equipment | C95: =SA34e!C152 -> 0 | D95: =SA34e!D152 -> 0 | E95: =SA34e!E152 -> 143141.31 | F95: =SA34e!F152 -> 1000000 | G95: =SA34e!G152 -> 0 | H95: =SA34e!H152 -> 0 | I95: =SA34e!I152 -> 0 | J95: =SA34e!J152 -> 0 | K95: =SA34e!K152 -> 0
A96: Machinery and Equipment | C96: =SA34e!C155 -> 0 | D96: =SA34e!D155 -> 0 | E96: =SA34e!E155 -> 112000 | F96: =SA34e!F155 -> 950000 | G96: =SA34e!G155 -> 638000 | H96: =SA34e!H155 -> 638000 | I96: =SA34e!I155 -> 0 | J96: =SA34e!J155 -> 0 | K96: =SA34e!K155 -> 0
A97: Transport Assets | C97: =SA34e!C158 -> 0 | D97: =SA34e!D158 -> 0 | E97: =SA34e!E158 -> 0 | F97: =SA34e!F158 -> 0 | G97: =SA34e!G158 -> 0 | H97: =SA34e!H158 -> 0 | I97: =SA34e!I158 -> 0 | J97: =SA34e!J158 -> 0 | K97: =SA34e!K158 -> 0
A98: Land | C98: =SA34e!C161 -> 0 | D98: =SA34e!D161 -> 0 | E98: =SA34e!E161 -> 0 | F98: =SA34e!F161 -> 0 | G98: =SA34e!G161 -> 0 | H98: =SA34e!H161 -> 0 | I98: =SA34e!I161 -> 0 | J98: =SA34e!J161 -> 0 | K98: =SA34e!K161 -> 0
A99: Zoo's, Marine and Non-biological Animals | C99: =SA34e!C164 -> 0 | D99: =SA34e!D164 -> 0 | E99: =SA34e!E164 -> 0 | F99: =SA34e!F164 -> 0 | G99: =SA34e!G164 -> 0 | H99: =SA34e!H164 -> 0 | I99: =SA34e!I164 -> 0 | J99: =SA34e!J164 -> 0 | K99: =SA34e!K164 -> 0
A101: Total Capital Expenditure | B101: 4 | C101: =+C5+C37+C69 -> 0 | D101: =+D5+D37+D69 -> 36098769.79 | E101: 2241908.92 | F101: 69532500 | G101: 64385057 | H101: 64385057 | I101: 59333788 | J101: 75951601 | K101: 81968011
A102: Roads Infrastructure | C102: =+C6+C38+C70 -> 0 | D102: =+D6+D38+D70 -> 20187191.49 | E102: 0 | F102: 38556883 | G102: 38556883 | H102: 38556883 | I102: 24758518 | J102: 45341601 | K102: 34686651
A103: Storm water Infrastructure | C103: =+C7+C39+C71 -> 0 | D103: 0 | E103: 0 | F103: 0 | G103: 0 | H103: 0 | I103: 0 | J103: 0 | K103: 0
A104: Electrical Infrastructure | C104: 0 | D104: -6708935.49 | E104: 708928.26 | F104: 21700000 | G104: 18306715 | H104: 18306715 | I104: 6550000 | J104: 25583000 | K104: 33817980
A105: Water Supply Infrastructure | C105: 0 | D105: 0 | E105: 0 | F105: 80000 | G105: 77600 | H105: 77600 | I105: 0 | J105: 0 | K105: 0
A106: Sanitation Infrastructure | C106: 0 | D106: 0 | E106: 0 | F106: 0 | G106: 0 | H106: 0 | I106: 0 | J106: 0 | K106: 0
A107: Solid Waste Infrastructure | C107: 0 | D107: 739570.03 | E107: 0 | F107: 1500000 | G107: 1500000 | H107: 1500000 | I107: 0 | J107: 0 | K107: 10000000
A108: Rail Infrastructure | C108: 0 | D108: 0 | E108: 0 | F108: 0 | G108: 0 | H108: 0 | I108: 0 | J108: 0 | K108: 0
A109: Coastal Infrastructure | C109: 0 | D109: 0 | E109: 0 | F109: 0 | G109: 0 | H109: 0 | I109: 0 | J109: 0 | K109: 0
A110: Information and Communication Infrastructure | C110: 0 | D110: 0 | E110: 0 | F110: 0 | G110: 0 | H110: 0 | I110: 0 | J110: 0 | K110: 0
A111: Infrastructure | C111: =SUM(C102:C110) -> 0 | D111: =SUM(D102:D110) -> 14217826.03 | E111: 708928.26 | F111: 61836883 | G111: 58441198 | H111: 58441198 | I111: 31308518 | J111: 70924601 | K111: 78504631
A112: Community Facilities | C112: =+C16+C48+C80 -> 0 | D112: =+D16+D48+D80 -> 0 | E112: 0 | F112: 625000 | G112: 470000 | H112: 470000 | I112: 430000 | J112: 1300000 | K112: 500000
A113: Sport and Recreation Facilities | C113: =+C17+C49+C81 -> 0 | D113: =+D17+D49+D81 -> 15223683.41 | E113: 0 | F113: 4095617 | G113: 3958929 | H113: 3958929 | I113: 18104183 | J113: 0 | K113: 0
A114: Community Assets | C114: =SUM(C112:C113) -> 0 | D114: =SUM(D112:D113) -> 15223683.41 | E114: 0 | F114: 4720617 | G114: 4428929 | H114: 4428929 | I114: 18534183 | J114: 1300000 | K114: 500000
A115: Heritage Assets | C115: =+C19+C51+C83 -> 0 | D115: =+D19+D51+D83 -> 0 | E115: 0 | F115: 0 | G115: 0 | H115: 0 | I115: 0 | J115: 450000 | K115: 0
A116: Revenue Generating | C116: =+C20+C52+C84 -> 0 | D116: =+D20+D52+D84 -> 0 | E116: 0 | F116: 0 | G116: 0 | H116: 0 | I116: 0 | J116: 0 | K116: 0
A117: Non-revenue Generating | C117: =+C21+C53+C85 -> 0 | D117: =+D21+D53+D85 -> 0 | E117: 0 | F117: 0 | G117: 0 | H117: 0 | I117: 0 | J117: 0 | K117: 0
A118: Investment properties | C118: =SUM(C116:C117) -> 0 | D118: =SUM(D116:D117) -> 0 | E118: 0 | F118: 0 | G118: 0 | H118: 0 | I118: 0 | J118: 0 | K118: 0
A119: Operational Buildings | C119: =+C23+C55+C87 -> 0 | D119: =+D23+D55+D87 -> 44243.86 | E119: 0 | F119: 0 | G119: 0 | H119: 0 | I119: 800000 | J119: 60000 | K119: 70000
A120: Housing | C120: =+C24+C56+C88 -> 0 | D120: =+D24+D56+D88 -> 0 | E120: 0 | F120: 0 | G120: 0 | H120: 0 | I120: 0 | J120: 0 | K120: 0
A121: Other Assets | C121: =SUM(C119:C120) -> 0 | D121: 44243.86 | E121: 0 | F121: 0 | G121: 0 | H121: 0 | I121: 800000 | J121: 60000 | K121: 70000
A122: Biological or Cultivated Assets | C122: =+C26+C58+C90 -> 0 | D122: =+D26+D58+D90 -> 0 | E122: 0 | F122: 0 | G122: 0 | H122: 0 | I122: 0 | J122: 0 | K122: 0
A123: Servitudes | C123: =+C27+C59+C91 -> 0 | D123: =+D27+D59+D91 -> 0 | E123: 0 | F123: 0 | G123: 0 | H123: 0 | I123: 0 | J123: 0 | K123: 0
A124: Licences and Rights | C124: =+C28+C60+C92 -> 0 | D124: =+D28+D60+D92 -> 156500 | E124: 457940.88 | F124: 0 | G124: 0 | H124: 0 | I124: 2098000 | J124: 0 | K124: 0
A125: Intangible Assets | C125: =SUM(C123:C124) -> 0 | D125: =SUM(D123:D124) -> 156500 | E125: 457940.88 | F125: 0 | G125: 0 | H125: 0 | I125: 2098000 | J125: 0 | K125: 0
A126: Computer Equipment | C126: =+C30+C62+C94 -> 0 | D126: =+D30+D62+D94 -> 726705.27 | E126: 575818.87 | F126: 500000 | G126: 500000 | H126: 500000 | I126: 3110000 | J126: 2623000 | K126: 2753380
A127: Furniture and Office Equipment | C127: =+C31+C63+C95 -> 0 | D127: 1185796.9 | E127: 387220.91 | F127: 1150000 | G127: 150000 | H127: 150000 | I127: 100000 | J127: 60000 | K127: 70000
A128: Machinery and Equipment | C128: 0 | D128: 0 | E128: 112000 | F128: 1325000 | G128: 864930 | H128: 864930 | I128: 1583087 | J128: 534000 | K128: 70000
A129: Transport Assets | C129: 0 | D129: 4544014.32 | E129: 0 | F129: 0 | G129: 0 | H129: 0 | I129: 1800000 | J129: 0 | K129: 0
A130: Land | C130: 0 | D130: 0 | E130: 0 | F130: 0 | G130: 0 | H130: 0 | I130: 0 | J130: 0 | K130: 0
A131: Zoo's, Marine and Non-biological Animals | C131: 0 | D131: 0 | E131: 0 | F131: 0 | G131: 0 | H131: 0 | I131: 0 | J131: 0 | K131: 0
A132: TOTAL CAPITAL EXPENDITURE - Asset class | C132: =+C5+C37+C69 -> 0 | D132: =+D5+D37+D69 -> 36098769.79 | E132: 2241908.92 | F132: 69532500 | G132: 64385057 | H132: 64385057 | I132: 59333788 | J132: 75951601 | K132: 81968011
A134: ASSET REGISTER SUMMARY - PPE (WDV) | B134: 5 | C134: =C144+C147+C148+C151+C154+C155+C158+C159+C160+C161+C162+C163+C164 -> 0 | D134: =D144+D147+D148+D151+D154+D155+D158+D159+D160+D161+D162+D163+D164 -> 855172870 | E134: 845946677.7 | F134: 328377852 | G134: 868658006 | H134: 868658006 | I134: 867109007 | J134: 898082096 | K134: 920285090
A135: Roads Infrastructure | C135: 0 | D135: 183569326.6 | E135: 195434829 | F135: 38556883 | G135: 211189980 | H135: 211189980 | I135: 193997970 | J135: 186514184 | K135: 190850994
A136: Storm water Infrastructure | C136: 0 | D136: 0 | E136: 0 | F136: 0 | G136: 0 | H136: 0 | I136: 0 | J136: 0 | K136: 0
A137: Electrical Infrastructure | C137: 0 | D137: 463287175.4 | E137: 440722629.7 | F137: 21700000 | G137: 459029345 | H137: 459029345 | I137: 465579345 | J137: 491162345 | K137: 499980325
A138: Water Supply Infrastructure | C138: 0 | D138: 0 | E138: 0 | F138: 80000 | G138: 77600 | H138: 77600 | I138: 77600 | J138: 77600 | K138: 77600
A139: Sanitation Infrastructure
A140: Solid Waste Infrastructure | C140: 0 | D140: 0 | E140: 0 | F140: 1500000 | G140: 1500000 | H140: 1500000 | I140: 0 | J140: 0 | K140: 10000000
A141: Rail Infrastructure
A142: Coastal Infrastructure
A143: Information and Communication Infrastructure
A144: Infrastructure | C144: =SUM(C135:C143) -> 0 | D144: =SUM(D135:D143) -> 646856502 | E144: 636157458.6 | F144: 61836883 | G144: 671796925 | H144: 671796925 | I144: 659654915 | J144: 677754129 | K144: 700908919
A147: Community Assets | C147: 0 | D147: 138450015 | E147: 128015978.8 | F147: 4720617 | G147: 114556933 | H147: 114556933 | I147: 115142881 | J147: 123898780 | K147: 120167628
A148: Heritage Assets | C148: 0 | D148: 0 | E148: 0 | F148: 0 | G148: 0 | H148: 0 | I148: 0 | J148: 450000 | K148: 0
A151: Investment properties | C151: 0 | D151: 205000 | E151: 3010000 | F151: 205000 | G151: 3010000 | H151: 3010000 | I151: 3010000 | J151: 3010000 | K151: 3010000
A154: Other Assets | C154: 0 | D154: 4.01 | E154: 0 | F154: 0 | G154: 0 | H154: 0 | I154: 800000 | J154: 60000 | K154: 70000
A155: Biological or Cultivated Assets
A158: Intangible Assets | C158: 0 | D158: 286964.87 | E158: 543961.1 | F158: 390077 | G158: 543961 | H158: 543961 | I158: 2641961 | J158: 543961 | K158: 543961
A159: Computer Equipment | C159: 0 | D159: 2964873 | E159: 3307789.19 | F159: 500000 | G159: 2823766 | H159: 2823766 | I159: 4949742 | J159: 3478718 | K159: 2625074
A160: Furniture and Office Equipment | C160: 0 | D160: 616929.15 | E160: 4526196.61 | F160: 1150000 | G160: 4676196 | H160: 4676196 | I160: 4776196 | J160: 6906196 | K160: 8043196
A161: Machinery and Equipment | C161: 0 | D161: 6185434.87 | E161: 2245650.16 | F161: 1325000 | G161: 3110581 | H161: 3110581 | I161: 6193668 | J161: 5249581 | K161: 4785581
A162: Transport Assets | C162: 0 | D162: 8994900.18 | E162: 13787396.26 | F162: 0 | G162: 13787397 | H162: 13787397 | I162: 15587397 | J162: 13787397 | K162: 13787397
A163: Land | C163: 0 | D163: 50612246.86 | E163: 54352246.86 | F163: 258250275 | G163: 54352247 | H163: 54352247 | I163: 54352247 | J163: 62943334 | K163: 66343334
A164: Zoo's, Marine and Non-biological Animals
A165: TOTAL ASSET REGISTER SUMMARY - PPE (WDV) | B165: 5 | C165: =C144+C147+C148+C151+C154+C155+C158+C159+C160+C161+C162+C163+C164 -> 0 | D165: =D144+D147+D148+D151+D154+D155+D158+D159+D160+D161+D162+D163+D164 -> 855172870 | E165: 845946677.7 | F165: 328377852 | G165: 868658006 | H165: 868658006 | I165: 867109007 | J165: 898082096 | K165: 920285090
A167: EXPENDITURE OTHER ITEMS | C167: =SUM(C168:C169) -> 0 | D167: =SUM(D168:D169) -> 38069159.28 | E167: 37109459.25 | F167: 45031548 | G167: 46615536 | H167: 46615536 | I167: 51407552 | J167: 57005414 | K167: 60304646
A168: Depreciation | B168: 7 | C168: =SA34d!C167 -> 0 | D168: =SA34d!D167 -> 35462508.13 | E168: =SA34d!E167 -> 35256654.26 | F168: =SA34d!F167 -> 41673731 | G168: =SA34d!G167 -> 41117719 | H168: =SA34d!H167 -> 41117719 | I168: =SA34d!I167 -> 43757411 | J168: =SA34d!J167 -> 46382859 | K168: =SA34d!K167 -> 49165828
A169: Repairs and Maintenance by Asset Class | B169: 3 | C169: =C179+C182+C183+C186+C189+C190+SUM(C193:C199) -> 0 | D169: =D179+D182+D183+D186+D189+D190+SUM(D193:D199) -> 2606651.15 | E169: 1852804.99 | F169: 3357817 | G169: 5497817 | H169: 5497817 | I169: 7650141 | J169: 10622555 | K169: 11138818
A170: Roads Infrastructure | C170: =SA34c!C7 -> 0 | D170: =SA34c!D7 -> 186500.37 | E170: =SA34c!E7 -> 214273.75 | F170: =SA34c!F7 -> 350000 | G170: =SA34c!G7 -> 550000 | H170: =SA34c!H7 -> 550000 | I170: =SA34c!I7 -> 627694 | J170: =SA34c!J7 -> 1124832 | K170: =SA34c!K7 -> 1038832
A171: Storm water Infrastructure | C171: =SA34c!C12 -> 0 | D171: =SA34c!D12 -> 0 | E171: =SA34c!E12 -> 0 | F171: =SA34c!F12 -> 0 | G171: =SA34c!G12 -> 0 | H171: =SA34c!H12 -> 0 | I171: =SA34c!I12 -> 450000 | J171: =SA34c!J12 -> 500000 | K171: =SA34c!K12 -> 550000
A172: Electrical Infrastructure | C172: =SA34c!C16 -> 0 | D172: =SA34c!D16 -> 927727.85 | E172: =SA34c!E16 -> 933437.4 | F172: =SA34c!F16 -> 987817 | G172: =SA34c!G16 -> 1087817 | H172: =SA34c!H16 -> 1087817 | I172: =SA34c!I16 -> 1383087 | J172: =SA34c!J16 -> 560000 | K172: =SA34c!K16 -> 590000
A173: Water Supply Infrastructure | C173: =SA34c!C26 -> 0 | D173: =SA34c!D26 -> 0 | E173: =SA34c!E26 -> 0 | F173: =SA34c!F26 -> 0 | G173: =SA34c!G26 -> 0 | H173: =SA34c!H26 -> 0 | I173: =SA34c!I26 -> 0 | J173: =SA34c!J26 -> 0 | K173: =SA34c!K26 -> 0
A174: Sanitation Infrastructure | C174: =SA34c!C37 -> 0 | D174: =SA34c!D37 -> 0 | E174: =SA34c!E37 -> 0 | F174: =SA34c!F37 -> 0 | G174: =SA34c!G37 -> 0 | H174: =SA34c!H37 -> 0 | I174: =SA34c!I37 -> 0 | J174: =SA34c!J37 -> 0 | K174: =SA34c!K37 -> 0
A175: Solid Waste Infrastructure | C175: =SA34c!C44 -> 0 | D175: =SA34c!D44 -> 0 | E175: =SA34c!E44 -> 0 | F175: =SA34c!F44 -> 0 | G175: =SA34c!G44 -> 0 | H175: =SA34c!H44 -> 0 | I175: =SA34c!I44 -> 0 | J175: =SA34c!J44 -> 0 | K175: =SA34c!K44 -> 0
A176: Rail Infrastructure | C176: =SA34c!C52 -> 0 | D176: =SA34c!D52 -> 0 | E176: =SA34c!E52 -> 0 | F176: =SA34c!F52 -> 0 | G176: =SA34c!G52 -> 0 | H176: =SA34c!H52 -> 0 | I176: =SA34c!I52 -> 0 | J176: =SA34c!J52 -> 0 | K176: =SA34c!K52 -> 0
A177: Coastal Infrastructure | C177: =SA34c!C62 -> 0 | D177: =SA34c!D62 -> 0 | E177: =SA34c!E62 -> 0 | F177: =SA34c!F62 -> 0 | G177: =SA34c!G62 -> 0 | H177: =SA34c!H62 -> 0 | I177: =SA34c!I62 -> 0 | J177: =SA34c!J62 -> 0 | K177: =SA34c!K62 -> 0
A178: Information and Communication Infrastructure | C178: =SA34c!C68 -> 0 | D178: =SA34c!D68 -> 0 | E178: =SA34c!E68 -> 0 | F178: =SA34c!F68 -> 300000 | G178: =SA34c!G68 -> 0 | H178: =SA34c!H68 -> 0 | I178: =SA34c!I68 -> 0 | J178: =SA34c!J68 -> 0 | K178: =SA34c!K68 -> 0
A179: Infrastructure | C179: =SUM(C170:C178) -> 0 | D179: =SUM(D170:D178) -> 1114228.22 | E179: 1147711.15 | F179: 1637817 | G179: 1637817 | H179: 1637817 | I179: 2460781 | J179: 2184832 | K179: 2178832
A180: Community Facilities | C180: =SA34c!C75 -> 0 | D180: =SA34c!D75 -> 85111.21 | E180: =SA34c!E75 -> 23440 | F180: =SA34c!F75 -> 120000 | G180: =SA34c!G75 -> 60000 | H180: =SA34c!H75 -> 60000 | I180: =SA34c!I75 -> 182320 | J180: =SA34c!J75 -> 193260 | K180: =SA34c!K75 -> 204855
A181: Sport and Recreation Facilities | C181: =SA34c!C98 -> 0 | D181: =SA34c!D98 -> 3375.09 | E181: =SA34c!E98 -> 0 | F181: =SA34c!F98 -> 120000 | G181: =SA34c!G98 -> 120000 | H181: =SA34c!H98 -> 120000 | I181: =SA34c!I98 -> 400000 | J181: =SA34c!J98 -> 500000 | K181: =SA34c!K98 -> 600000
A182: Community Assets | C182: =SUM(C180:C181) -> 0 | D182: 88486.3 | E182: 23440 | F182: 240000 | G182: 180000 | H182: 180000 | I182: 582320 | J182: 693260 | K182: 804855
A183: Heritage Assets | C183: =SA34c!C103 -> 0 | D183: =SA34c!D103 -> 0 | E183: =SA34c!E103 -> 0 | F183: =SA34c!F103 -> 0 | G183: =SA34c!G103 -> 0 | H183: =SA34c!H103 -> 0 | I183: =SA34c!I103 -> 0 | J183: =SA34c!J103 -> 0 | K183: =SA34c!K103 -> 0
A184: Revenue Generating | C184: =SA34c!C111 -> 0 | D184: =SA34c!D111 -> 0 | E184: =SA34c!E111 -> 0 | F184: =SA34c!F111 -> 0 | G184: =SA34c!G111 -> 0 | H184: =SA34c!H111 -> 0 | I184: =SA34c!I111 -> 0 | J184: =SA34c!J111 -> 0 | K184: =SA34c!K111 -> 0
A185: Non-revenue Generating | C185: =SA34c!C114 -> 0 | D185: =SA34c!D114 -> 0 | E185: =SA34c!E114 -> 0 | F185: =SA34c!F114 -> 0 | G185: =SA34c!G114 -> 0 | H185: =SA34c!H114 -> 0 | I185: =SA34c!I114 -> 0 | J185: =SA34c!J114 -> 0 | K185: =SA34c!K114 -> 0
A186: Investment properties | C186: =SUM(C184:C185) -> 0 | D186: 0 | E186: 0 | F186: 0 | G186: 0 | H186: 0 | I186: 0 | J186: 0 | K186: 0
A187: Operational Buildings | C187: =SA34c!C119 -> 0 | D187: =SA34c!D119 -> 244792.55 | E187: =SA34c!E119 -> 9378.26 | F187: =SA34c!F119 -> 120000 | G187: =SA34c!G119 -> 120000 | H187: =SA34c!H119 -> 120000 | I187: =SA34c!I119 -> 1000000 | J187: =SA34c!J119 -> 1000000 | K187: =SA34c!K119 -> 1000000
A188: Housing | C188: =SA34c!C131 -> 0 | D188: =SA34c!D131 -> 0 | E188: =SA34c!E131 -> 0 | F188: =SA34c!F131 -> 0 | G188: =SA34c!G131 -> 0 | H188: =SA34c!H131 -> 0 | I188: =SA34c!I131 -> 0 | J188: =SA34c!J131 -> 0 | K188: =SA34c!K131 -> 0
A189: Other Assets | C189: =SUM(C187:C188) -> 0 | D189: 244792.55 | E189: 9378.26 | F189: 120000 | G189: 120000 | H189: 120000 | I189: 1000000 | J189: 1000000 | K189: 1000000
A190: Biological or Cultivated Assets | C190: =SA34c!C136 -> 0 | D190: =SA34c!D136 -> 0 | E190: =SA34c!E136 -> 0 | F190: =SA34c!F136 -> 0 | G190: =SA34c!G136 -> 0 | H190: =SA34c!H136 -> 0 | I190: =SA34c!I136 -> 0 | J190: =SA34c!J136 -> 0 | K190: =SA34c!K136 -> 0
A191: Servitudes | C191: =SA34c!C140 -> 0 | D191: =SA34c!D140 -> 0 | E191: =SA34c!E140 -> 0 | F191: =SA34c!F140 -> 0 | G191: =SA34c!G140 -> 0 | H191: =SA34c!H140 -> 0 | I191: =SA34c!I140 -> 0 | J191: =SA34c!J140 -> 0 | K191: =SA34c!K140 -> 0
A192: Licences and Rights | C192: =SA34c!C141 -> 0 | D192: =SA34c!D141 -> 0 | E192: =SA34c!E141 -> 0 | F192: =SA34c!F141 -> 0 | G192: =SA34c!G141 -> 0 | H192: =SA34c!H141 -> 0 | I192: =SA34c!I141 -> 0 | J192: =SA34c!J141 -> 0 | K192: =SA34c!K141 -> 0
A193: Intangible Assets | C193: =SUM(C191:C192) -> 0 | D193: 0 | E193: 0 | F193: 0 | G193: 0 | H193: 0 | I193: 0 | J193: 0 | K193: 0
A194: Computer Equipment | C194: =SA34c!C149 -> 0 | D194: =SA34c!D149 -> -107520 | E194: =SA34c!E149 -> 0 | F194: =SA34c!F149 -> 0 | G194: =SA34c!G149 -> 0 | H194: =SA34c!H149 -> 0 | I194: =SA34c!I149 -> 300000 | J194: =SA34c!J149 -> 318000 | K194: =SA34c!K149 -> 337080
A195: Furniture and Office Equipment | C195: =SA34c!C152 -> 0 | D195: =SA34c!D152 -> 91575.54 | E195: =SA34c!E152 -> 19382.75 | F195: =SA34c!F152 -> 200000 | G195: =SA34c!G152 -> 2000000 | H195: =SA34c!H152 -> 2000000 | I195: =SA34c!I152 -> 0 | J195: =SA34c!J152 -> 0 | K195: =SA34c!K152 -> 0
A196: Machinery and Equipment | C196: =SA34c!C155 -> 0 | D196: =SA34c!D155 -> 972530.68 | E196: =SA34c!E155 -> 351886.49 | F196: =SA34c!F155 -> 1060000 | G196: =SA34c!G155 -> 1460000 | H196: =SA34c!H155 -> 1460000 | I196: =SA34c!I155 -> 1807040 | J196: =SA34c!J155 -> 5631463 | K196: =SA34c!K155 -> 5975351
A197: Transport Assets | C197: =SA34c!C158 -> 0 | D197: =SA34c!D158 -> 202557.86 | E197: =SA34c!E158 -> 301006.34 | F197: =SA34c!F158 -> 100000 | G197: =SA34c!G158 -> 100000 | H197: =SA34c!H158 -> 100000 | I197: =SA34c!I158 -> 1500000 | J197: =SA34c!J158 -> 795000 | K197: =SA34c!K158 -> 842700
A198: Land | C198: =SA34c!C161 -> 0 | D198: =SA34c!D161 -> 0 | E198: =SA34c!E161 -> 0 | F198: =SA34c!F161 -> 0 | G198: =SA34c!G161 -> 0 | H198: =SA34c!H161 -> 0 | I198: =SA34c!I161 -> 0 | J198: =SA34c!J161 -> 0 | K198: =SA34c!K161 -> 0
A199: Zoo's, Marine and Non-biological Animals | C199: =SA34c!C164 -> 0 | D199: =SA34c!D164 -> 0 | E199: =SA34c!E164 -> 0 | F199: =SA34c!F164 -> 0 | G199: =SA34c!G164 -> 0 | H199: =SA34c!H164 -> 0 | I199: =SA34c!I164 -> 0 | J199: =SA34c!J164 -> 0 | K199: =SA34c!K164 -> 0
A201: TOTAL EXPENDITURE OTHER ITEMS | C201: =SUM(C168:C169) -> 0 | D201: 38069159.28 | E201: 37109459.25 | F201: 45031548 | G201: 46615536 | H201: 46615536 | I201: 51407552 | J201: 57005414 | K201: 60304646
A203: Renewal and upgrading of Existing Assets as % of total capex | C203: =IF(ISERROR((C37+C69)/C132),0,((C37+C69)/C132)) -> 0 | D203: =IF(ISERROR((D37+D69)/D132),0,((D37+D69)/D132)) -> 0 | E203: 0.2226767134 | F203: 0.1741001258 | G203: 0.3938698695 | H203: 0.3938698695 | I203: 0.7249276079 | J203: 0.5969801874 | K203: 0.5842114554
A204: Renewal and upgrading of Existing Assets as % of deprecn | C204: =IF(ISERROR((C37+C69)/C168),0,((C37+C69)/C168)) -> 0 | D204: =IF(ISERROR((D37+D69)/D168),0,((D37+D69)/D168)) -> 0 | E204: 0.01415962236 | F204: 0.2904855579 | G204: 0.6167495332 | H204: 0.6167495332 | I204: 0.9829809401 | J204: 0.9775508017 | K204: 0.9739823969
A205: R&M as a % of PPE | C205: =IF(ISERROR(ROUND(C169/'A6-FinPos'!C19,3)),0,(ROUND(C169/'A6-FinPos'!C19,3))) -> 0 | D205: =IF(ISERROR(ROUND(D169/'A6-FinPos'!D19,3)),0,(ROUND(D169/'A6-FinPos'!D19,3))) -> 0.003 | E205: =IF(ISERROR(ROUND(E169/'A6-FinPos'!E19,3)),0,(ROUND(E169/'A6-FinPos'!E19,3))) -> 0.002 | F205: =IF(ISERROR(ROUND(F169/'A6-FinPos'!F19,3)),0,(ROUND(F169/'A6-FinPos'!F19,3))) -> 0.01 | G205: =IF(ISERROR(ROUND(G169/'A6-FinPos'!G19,3)),0,(ROUND(G169/'A6-FinPos'!G19,3))) -> 0.006 | H205: =IF(ISERROR(ROUND(H169/'A6-FinPos'!H19,3)),0,(ROUND(H169/'A6-FinPos'!H19,3))) -> 0.006 | I205: =IF(ISERROR(ROUND(I169/'A6-FinPos'!J19,3)),0,(ROUND(I169/'A6-FinPos'!J19,3))) -> 0.008 | J205: =IF(ISERROR(ROUND(J169/'A6-FinPos'!K19,3)),0,(ROUND(J169/'A6-FinPos'!K19,3))) -> 0.011 | K205: =IF(ISERROR(ROUND(K169/'A6-FinPos'!L19,3)),0,(ROUND(K169/'A6-FinPos'!L19,3))) -> 0.011
A206: Renewal and upgrading and R&M as a % of PPE | C206: =IF(ISERROR(ROUND((C37+C69+C169)/C165,2)),0,(ROUND((C37+C69+C169)/C165,2))) -> 0 | D206: =IF(ISERROR(ROUND((D37+D69+D169)/D165,2)),0,(ROUND((D37+D69+D169)/D165,2))) -> 0 | E206: 0 | F206: 0.05 | G206: 0.04 | H206: 0.04 | I206: 0.06 | J206: 0.06 | K206: 0.06
A208: =head27a -> References
A209: 1. Detail of new assets provided in Table SA34a
A210: 2. Detail of renewal of existing assets provided in Table SA34b
A211: 3. Detail of Repairs and Maintenance by Asset Class provided in Table SA34c
A212: 4. Must reconcile to total capital expenditure on Budgeted Capital Expenditure
A213: 5. Must reconcile to 'Budgeted Financial Position' (written down value)
A214: 6. Detail of upgrading of existing assets provided in Table SA34e
A215: 7. Detail of depreciation provided in Table SA34d
A217: Check balance to A6 | C217: =C165-'A6-FinPos'!D17-'A6-FinPos'!D19-'A6-FinPos'!D20-'A6-FinPos'!D21-'A6-FinPos'!D22-C148 -> -894159338.1 | D217: =D165-'A6-FinPos'!E17-'A6-FinPos'!E19-'A6-FinPos'!E20-'A6-FinPos'!E21-'A6-FinPos'!E22-D148 -> -64463742.3 | E217: =E165-'A6-FinPos'!F17-'A6-FinPos'!F19-'A6-FinPos'!F20-'A6-FinPos'!F21-'A6-FinPos'!F22-E148 -> 517568825.7 | F217: =F165-'A6-FinPos'!G17-'A6-FinPos'!G19-'A6-FinPos'!G20-'A6-FinPos'!G21-'A6-FinPos'!G22-F148 -> -613970088 | G217: =G165-'A6-FinPos'!H17-'A6-FinPos'!H19-'A6-FinPos'!H20-'A6-FinPos'!H21-'A6-FinPos'!H22-G148 -> -73689934 | H217: =H165-'A6-FinPos'!I17-'A6-FinPos'!I19-'A6-FinPos'!I20-'A6-FinPos'!I21-'A6-FinPos'!I22-H148 -> -81810562.6 | I217: =I165-'A6-FinPos'!J17-'A6-FinPos'!J19-'A6-FinPos'!J20-'A6-FinPos'!J21-'A6-FinPos'!J22-I148 -> -73689934 | J217: =J165-'A6-FinPos'!K17-'A6-FinPos'!K19-'A6-FinPos'!K20-'A6-FinPos'!K21-'A6-FinPos'!K22-J148 -> -73689934 | K217: =K165-'A6-FinPos'!L17-'A6-FinPos'!L19-'A6-FinPos'!L20-'A6-FinPos'!L21-'A6-FinPos'!L22-K148 -> -73689934

Sheet A10-SerDel
A1: =muni&" - "&Approve10 -> LIM351 Blouberg - Table A10 Basic service delivery measurement
A2: =desc -> Description | B2: =head27 -> Ref | C2: =head1b -> 2016/17 | D2: =head1A -> 2017/18 | E2: =Head1 -> 2018/19 | F2: =Head2 -> Current Year 2019/20 | I2: =Head3 -> 2020/21 Medium Term Revenue & Expenditure Framework
C3: =Head5A -> Outcome | D3: =Head5A -> Outcome | E3: =Head5A -> Outcome | F3: =Head6 -> Original Budget | G3: =Head7 -> Adjusted Budget | H3: =Head8 -> Full Year Forecast | I3: =Head9 -> Budget Year 2020/21 | J3: =Head10 -> Budget Year +1 2021/22 | K3: =Head11 -> Budget Year +2 2022/23
A4: Household service targets | B4: 1
A5: Water:
A6: Piped water inside dwelling | C6: ='SA9'!E67 -> 0 | D6: ='SA9'!F67 -> 0 | E6: ='SA9'!G67 -> 0 | F6: ='SA9'!H67 -> 0 | G6: ='SA9'!I67 -> 0 | H6: ='SA9'!J67 -> 0 | I6: ='SA9'!K67 -> 0 | J6: ='SA9'!L67 -> 0 | K6: ='SA9'!M67 -> 0
A7: Piped water inside yard (but not in dwelling) | C7: ='SA9'!E68 -> 0 | D7: ='SA9'!F68 -> 0 | E7: ='SA9'!G68 -> 0 | F7: ='SA9'!H68 -> 0 | G7: ='SA9'!I68 -> 0 | H7: ='SA9'!J68 -> 0 | I7: ='SA9'!K68 -> 0 | J7: ='SA9'!L68 -> 0 | K7: ='SA9'!M68 -> 0
A8: Using public tap (at least min.service level) | B8: 2 | C8: ='SA9'!E69 -> 0 | D8: ='SA9'!F69 -> 0 | E8: ='SA9'!G69 -> 0 | F8: ='SA9'!H69 -> 0 | G8: ='SA9'!I69 -> 0 | H8: ='SA9'!J69 -> 0 | I8: ='SA9'!K69 -> 0 | J8: ='SA9'!L69 -> 0 | K8: ='SA9'!M69 -> 0
A9: Other water supply (at least min.service level) | B9: 4 | C9: ='SA9'!E70 -> 0 | D9: ='SA9'!F70 -> 0 | E9: ='SA9'!G70 -> 0 | F9: ='SA9'!H70 -> 0 | G9: ='SA9'!I70 -> 0 | H9: ='SA9'!J70 -> 0 | I9: ='SA9'!K70 -> 0 | J9: ='SA9'!L70 -> 0 | K9: ='SA9'!M70 -> 0
A10: Minimum Service Level and Above sub-total | C10: =SUM(C6:C9) -> 0 | D10: =SUM(D6:D9) -> 0 | E10: 0 | F10: 0 | G10: 0 | H10: 0 | I10: 0 | J10: 0 | K10: 0
A11: Using public tap (< min.service level) | B11: 3 | C11: ='SA9'!E72 -> 0 | D11: ='SA9'!F72 -> 0 | E11: ='SA9'!G72 -> 0 | F11: ='SA9'!H72 -> 0 | G11: ='SA9'!I72 -> 0 | H11: ='SA9'!J72 -> 0 | I11: ='SA9'!K72 -> 0 | J11: ='SA9'!L72 -> 0 | K11: ='SA9'!M72 -> 0
A12: Other water supply (< min.service level) | B12: =B9 -> 4 | C12: ='SA9'!E73 -> 0 | D12: ='SA9'!F73 -> 0 | E12: ='SA9'!G73 -> 0 | F12: ='SA9'!H73 -> 0 | G12: ='SA9'!I73 -> 0 | H12: ='SA9'!J73 -> 0 | I12: ='SA9'!K73 -> 0 | J12: ='SA9'!L73 -> 0 | K12: ='SA9'!M73 -> 0
A13: No water supply | C13: ='SA9'!E74 -> 0 | D13: ='SA9'!F74 -> 0 | E13: ='SA9'!G74 -> 0 | F13: ='SA9'!H74 -> 0 | G13: ='SA9'!I74 -> 0 | H13: ='SA9'!J74 -> 0 | I13: ='SA9'!K74 -> 0 | J13: ='SA9'!L74 -> 0 | K13: ='SA9'!M74 -> 0
A14: Below Minimum Service Level sub-total | C14: =SUM(C11:C13) -> 0 | D14: =SUM(D11:D13) -> 0 | E14: 0 | F14: 0 | G14: 0 | H14: 0 | I14: 0 | J14: 0 | K14: 0
A15: Total number of households | B15: 5 | C15: =C10+C14 -> 0 | D15: =D10+D14 -> 0 | E15: 0 | F15: 0 | G15: 0 | H15: 0 | I15: 0 | J15: 0 | K15: 0
A16: Sanitation/sewerage:
A17: Flush toilet (connected to sewerage) | C17: ='SA9'!E78 -> 0 | D17: ='SA9'!F78 -> 0 | E17: ='SA9'!G78 -> 0 | F17: ='SA9'!H78 -> 0 | G17: ='SA9'!I78 -> 0 | H17: ='SA9'!J78 -> 0 | I17: ='SA9'!K78 -> 0 | J17: ='SA9'!L78 -> 0 | K17: ='SA9'!M78 -> 0
A18: Flush toilet (with septic tank) | C18: ='SA9'!E79 -> 0 | D18: ='SA9'!F79 -> 0 | E18: ='SA9'!G79 -> 0 | F18: ='SA9'!H79 -> 0 | G18: ='SA9'!I79 -> 0 | H18: ='SA9'!J79 -> 0 | I18: ='SA9'!K79 -> 0 | J18: ='SA9'!L79 -> 0 | K18: ='SA9'!M79 -> 0
A19: Chemical toilet | C19: ='SA9'!E80 -> 0 | D19: ='SA9'!F80 -> 0 | E19: ='SA9'!G80 -> 0 | F19: ='SA9'!H80 -> 0 | G19: ='SA9'!I80 -> 0 | H19: ='SA9'!J80 -> 0 | I19: ='SA9'!K80 -> 0 | J19: ='SA9'!L80 -> 0 | K19: ='SA9'!M80 -> 0
A20: Pit toilet (ventilated) | C20: ='SA9'!E81 -> 0 | D20: ='SA9'!F81 -> 0 | E20: ='SA9'!G81 -> 0 | F20: ='SA9'!H81 -> 0 | G20: ='SA9'!I81 -> 0 | H20: ='SA9'!J81 -> 0 | I20: ='SA9'!K81 -> 0 | J20: ='SA9'!L81 -> 0 | K20: ='SA9'!M81 -> 0
A21: Other toilet provisions (> min.service level) | C21: ='SA9'!E82 -> 0 | D21: ='SA9'!F82 -> 0 | E21: ='SA9'!G82 -> 0 | F21: ='SA9'!H82 -> 0 | G21: ='SA9'!I82 -> 0 | H21: ='SA9'!J82 -> 0 | I21: ='SA9'!K82 -> 0 | J21: ='SA9'!L82 -> 0 | K21: ='SA9'!M82 -> 0
A22: =$A$10 -> Minimum Service Level and Above sub-total | C22: =SUM(C17:C21) -> 0 | D22: =SUM(D17:D21) -> 0 | E22: 0 | F22: 0 | G22: 0 | H22: 0 | I22: 0 | J22: 0 | K22: 0
A23: Bucket toilet | C23: ='SA9'!E84 -> 0 | D23: ='SA9'!F84 -> 0 | E23: ='SA9'!G84 -> 0 | F23: ='SA9'!H84 -> 0 | G23: ='SA9'!I84 -> 0 | H23: ='SA9'!J84 -> 0 | I23: ='SA9'!K84 -> 0 | J23: ='SA9'!L84 -> 0 | K23: ='SA9'!M84 -> 0
A24: Other toilet provisions (< min.service level) | C24: ='SA9'!E85 -> 0 | D24: ='SA9'!F85 -> 0 | E24: ='SA9'!G85 -> 0 | F24: ='SA9'!H85 -> 0 | G24: ='SA9'!I85 -> 0 | H24: ='SA9'!J85 -> 0 | I24: ='SA9'!K85 -> 0 | J24: ='SA9'!L85 -> 0 | K24: ='SA9'!M85 -> 0
A25: No toilet provisions | C25: ='SA9'!E86 -> 0 | D25: ='SA9'!F86 -> 0 | E25: ='SA9'!G86 -> 0 | F25: ='SA9'!H86 -> 0 | G25: ='SA9'!I86 -> 0 | H25: ='SA9'!J86 -> 0 | I25: ='SA9'!K86 -> 0 | J25: ='SA9'!L86 -> 0 | K25: ='SA9'!M86 -> 0
A26: =$A$14 -> Below Minimum Service Level sub-total | C26: =SUM(C23:C25) -> 0 | D26: =SUM(D23:D25) -> 0 | E26: 0 | F26: 0 | G26: 0 | H26: 0 | I26: 0 | J26: 0 | K26: 0
A27: =$A$15 -> Total number of households | B27: =$B$15 -> 5 | C27: =C22+C26 -> 0 | D27: =D22+D26 -> 0 | E27: 0 | F27: 0 | G27: 0 | H27: 0 | I27: 0 | J27: 0 | K27: 0
A28: Energy:
A29: Electricity (at least min.service level) | C29: ='SA9'!E90 -> 0 | D29: ='SA9'!F90 -> 0 | E29: ='SA9'!G90 -> 0 | F29: ='SA9'!H90 -> 0 | G29: ='SA9'!I90 -> 0 | H29: ='SA9'!J90 -> 0 | I29: ='SA9'!K90 -> 0 | J29: ='SA9'!L90 -> 0 | K29: ='SA9'!M90 -> 0
A30: Electricity - prepaid (min.service level) | C30: ='SA9'!E91 -> 0 | D30: ='SA9'!F91 -> 0 | E30: ='SA9'!G91 -> 0 | F30: ='SA9'!H91 -> 0 | G30: ='SA9'!I91 -> 0 | H30: ='SA9'!J91 -> 0 | I30: ='SA9'!K91 -> 0 | J30: ='SA9'!L91 -> 0 | K30: ='SA9'!M91 -> 0
A31: =$A$10 -> Minimum Service Level and Above sub-total | C31: =SUM(C29:C30) -> 0 | D31: =SUM(D29:D30) -> 0 | E31: 0 | F31: 0 | G31: 0 | H31: 0 | I31: 0 | J31: 0 | K31: 0
A32: Electricity (< min.service level) | C32: ='SA9'!E93 -> 0 | D32: ='SA9'!F93 -> 0 | E32: ='SA9'!G93 -> 0 | F32: ='SA9'!H93 -> 0 | G32: ='SA9'!I93 -> 0 | H32: ='SA9'!J93 -> 0 | I32: ='SA9'!K93 -> 0 | J32: ='SA9'!L93 -> 0 | K32: ='SA9'!M93 -> 0
A33: Electricity - prepaid (< min. service level) | C33: ='SA9'!E94 -> 0 | D33: ='SA9'!F94 -> 0 | E33: ='SA9'!G94 -> 0 | F33: ='SA9'!H94 -> 0 | G33: ='SA9'!I94 -> 0 | H33: ='SA9'!J94 -> 0 | I33: ='SA9'!K94 -> 0 | J33: ='SA9'!L94 -> 0 | K33: ='SA9'!M94 -> 0
A34: Other energy sources | C34: ='SA9'!E95 -> 0 | D34: ='SA9'!F95 -> 0 | E34: ='SA9'!G95 -> 0 | F34: ='SA9'!H95 -> 0 | G34: ='SA9'!I95 -> 0 | H34: ='SA9'!J95 -> 0 | I34: ='SA9'!K95 -> 0 | J34: ='SA9'!L95 -> 0 | K34: ='SA9'!M95 -> 0
A35: =$A$14 -> Below Minimum Service Level sub-total | C35: =SUM(C32:C34) -> 0 | D35: =SUM(D32:D34) -> 0 | E35: 0 | F35: 0 | G35: 0 | H35: 0 | I35: 0 | J35: 0 | K35: 0
A36: =$A$15 -> Total number of households | B36: =$B$15 -> 5 | C36: =C31+C35 -> 0 | D36: =D31+D35 -> 0 | E36: 0 | F36: 0 | G36: 0 | H36: 0 | I36: 0 | J36: 0 | K36: 0
A37: Refuse:
A38: Removed at least once a week | C38: ='SA9'!E99 -> 0 | D38: ='SA9'!F99 -> 0 | E38: ='SA9'!G99 -> 0 | F38: ='SA9'!H99 -> 0 | G38: ='SA9'!I99 -> 0 | H38: ='SA9'!J99 -> 0 | I38: ='SA9'!K99 -> 0 | J38: ='SA9'!L99 -> 0 | K38: ='SA9'!M99 -> 0
A39: =$A$10 -> Minimum Service Level and Above sub-total | C39: =SUM(C38) -> 0 | D39: =SUM(D38) -> 0 | E39: 0 | F39: 0 | G39: 0 | H39: 0 | I39: 0 | J39: 0 | K39: 0
A40: Removed less frequently than once a week | C40: ='SA9'!E101 -> 0 | D40: ='SA9'!F101 -> 0 | E40: ='SA9'!G101 -> 0 | F40: ='SA9'!H101 -> 0 | G40: ='SA9'!I101 -> 0 | H40: ='SA9'!J101 -> 0 | I40: ='SA9'!K101 -> 0 | J40: ='SA9'!L101 -> 0 | K40: ='SA9'!M101 -> 0
A41: Using communal refuse dump | C41: ='SA9'!E102 -> 0 | D41: ='SA9'!F102 -> 0 | E41: ='SA9'!G102 -> 0 | F41: ='SA9'!H102 -> 0 | G41: ='SA9'!I102 -> 0 | H41: ='SA9'!J102 -> 0 | I41: ='SA9'!K102 -> 0 | J41: ='SA9'!L102 -> 0 | K41: ='SA9'!M102 -> 0
A42: Using own refuse dump | C42: ='SA9'!E103 -> 0 | D42: ='SA9'!F103 -> 0 | E42: ='SA9'!G103 -> 0 | F42: ='SA9'!H103 -> 0 | G42: ='SA9'!I103 -> 0 | H42: ='SA9'!J103 -> 0 | I42: ='SA9'!K103 -> 0 | J42: ='SA9'!L103 -> 0 | K42: ='SA9'!M103 -> 0
A43: Other rubbish disposal | C43: ='SA9'!E104 -> 0 | D43: ='SA9'!F104 -> 0 | E43: ='SA9'!G104 -> 0 | F43: ='SA9'!H104 -> 0 | G43: ='SA9'!I104 -> 0 | H43: ='SA9'!J104 -> 0 | I43: ='SA9'!K104 -> 0 | J43: ='SA9'!L104 -> 0 | K43: ='SA9'!M104 -> 0
A44: No rubbish disposal | C44: ='SA9'!E105 -> 0 | D44: ='SA9'!F105 -> 0 | E44: ='SA9'!G105 -> 0 | F44: ='SA9'!H105 -> 0 | G44: ='SA9'!I105 -> 0 | H44: ='SA9'!J105 -> 0 | I44: ='SA9'!K105 -> 0 | J44: ='SA9'!L105 -> 0 | K44: ='SA9'!M105 -> 0
A45: =$A$14 -> Below Minimum Service Level sub-total | C45: =SUM(C40:C44) -> 0 | D45: 0 | E45: 0 | F45: 0 | G45: 0 | H45: 0 | I45: 0 | J45: 0 | K45: 0
A46: =$A$15 -> Total number of households | B46: =$B$15 -> 5 | C46: =C39+C45 -> 0 | D46: =D39+D45 -> 0 | E46: 0 | F46: 0 | G46: 0 | H46: 0 | I46: 0 | J46: 0 | K46: 0
A48: Households receiving Free Basic Service | B48: 7
A49: Water (6 kilolitres per household per month) | C49: ='SA9'!E263 -> 0 | D49: ='SA9'!F263 -> 0 | E49: ='SA9'!G263 -> 0 | F49: ='SA9'!H263 -> 0 | G49: ='SA9'!I263 -> 0 | H49: ='SA9'!J263 -> 0 | I49: ='SA9'!K263 -> 0 | J49: ='SA9'!L263 -> 0 | K49: ='SA9'!M263 -> 0
A50: Sanitation (free minimum level service) | C50: ='SA9'!E275 -> 0 | D50: ='SA9'!F275 -> 0 | E50: ='SA9'!G275 -> 0 | F50: ='SA9'!H275 -> 0 | G50: ='SA9'!I275 -> 0 | H50: ='SA9'!J275 -> 0 | I50: ='SA9'!K275 -> 0 | J50: ='SA9'!L275 -> 0 | K50: ='SA9'!M275 -> 0
A51: Electricity/other energy (50kwh per household per month) | C51: ='SA9'!E251 -> 0 | D51: ='SA9'!F251 -> 0 | E51: ='SA9'!G251 -> 0 | F51: ='SA9'!H251 -> 0 | G51: ='SA9'!I251 -> 0 | H51: ='SA9'!J251 -> 0 | I51: ='SA9'!K251 -> 0 | J51: ='SA9'!L251 -> 0 | K51: ='SA9'!M251 -> 0
A52: Refuse (removed at least once a week) | C52: ='SA9'!E287 -> 0 | D52: ='SA9'!F287 -> 0 | E52: ='SA9'!G287 -> 0 | F52: ='SA9'!H287 -> 0 | G52: ='SA9'!I287 -> 0 | H52: ='SA9'!J287 -> 0 | I52: ='SA9'!K287 -> 0 | J52: ='SA9'!L287 -> 0 | K52: ='SA9'!M287 -> 0
A54: Cost of Free Basic Services provided - Formal Settlements (R'000) | B54: 8
A55: Water (6 kilolitres per indigent household per month) | C55: ='SA1'!C20 -> 0 | D55: ='SA1'!D20 -> 0 | E55: ='SA1'!E20 -> 0 | F55: ='SA1'!F20 -> 0 | G55: ='SA1'!G20 -> 0 | H55: ='SA1'!H20 -> 0 | I55: ='SA1'!J20 -> 0 | J55: ='SA1'!K20 -> 0 | K55: ='SA1'!L20 -> 0
A56: Sanitation (free sanitation service to indigent households) | C56: ='SA1'!C26 -> 0 | D56: ='SA1'!D26 -> 0 | E56: ='SA1'!E26 -> 0 | F56: ='SA1'!F26 -> 0 | G56: ='SA1'!G26 -> 0 | H56: ='SA1'!H26 -> 0 | I56: ='SA1'!J26 -> 0 | J56: ='SA1'!K26 -> 0 | K56: ='SA1'!L26 -> 0
A57: Electricity/other energy (50kwh per indigent household per month) | C57: ='SA1'!C14 -> 0 | D57: ='SA1'!D14 -> 0 | E57: ='SA1'!E14 -> 0 | F57: ='SA1'!F14 -> 0 | G57: ='SA1'!G14 -> 0 | H57: ='SA1'!H14 -> 0 | I57: ='SA1'!J14 -> 0 | J57: ='SA1'!K14 -> 0 | K57: ='SA1'!L14 -> 0
A58: Refuse (removed once a week for indigent households) | C58: ='SA1'!C33 -> 0 | D58: ='SA1'!D33 -> 0 | E58: ='SA1'!E33 -> 0 | F58: ='SA1'!F33 -> 0 | G58: ='SA1'!G33 -> 0 | H58: ='SA1'!H33 -> 0 | I58: ='SA1'!J33 -> 0 | J58: ='SA1'!K33 -> 0 | K58: ='SA1'!L33 -> 0
A59: Cost of Free Basic Services provided - Informal Formal Settlements (R'000) | C59: ='SA9'!E260+'SA9'!E272+'SA9'!E284+'SA9'!E296 -> 0 | D59: ='SA9'!F260+'SA9'!F272+'SA9'!F284+'SA9'!F296 -> 0 | E59: ='SA9'!G260+'SA9'!G272+'SA9'!G284+'SA9'!G296 -> 0 | F59: ='SA9'!H260+'SA9'!H272+'SA9'!H284+'SA9'!H296 -> 0 | G59: ='SA9'!I260+'SA9'!I272+'SA9'!I284+'SA9'!I296 -> 0 | H59: ='SA9'!J260+'SA9'!J272+'SA9'!J284+'SA9'!J296 -> 0 | I59: ='SA9'!K260+'SA9'!K272+'SA9'!K284+'SA9'!K296 -> 0 | J59: ='SA9'!L260+'SA9'!L272+'SA9'!L284+'SA9'!L296 -> 0 | K59: ='SA9'!M260+'SA9'!M272+'SA9'!M284+'SA9'!M296 -> 0
A60: Total cost of FBS provided | C60: =SUM(C55:C59) -> 0 | D60: 0 | E60: 0 | F60: 0 | G60: 0 | H60: 0 | I60: 0 | J60: 0 | K60: 0
A62: Highest level of free service provided per household
A63: Property rates (R value threshold)
A64: Water (kilolitres per household per month)
A65: Sanitation (kilolitres per household per month)
A66: Sanitation (Rand per household per month)
A67: Electricity (kwh per household per month)
A68: Refuse (average litres per week)
A69: Revenue cost of subsidised services provided (R'000) | B69: 9
A70: Property rates (tariff adjustment) ( impermissable values per section 17 of MPRA)
A71: Property rates exemptions, reductions and rebates and impermissable values in excess of section 17 of MPRA) | C71: ='SA1'!C8 -> 0 | D71: ='SA1'!D8 -> 10151231.21 | E71: ='SA1'!E8 -> 6466415.36 | F71: ='SA1'!F8 -> 0 | G71: ='SA1'!G8 -> 5668879 | H71: ='SA1'!H8 -> 5668879 | I71: ='SA1'!J8 -> 6009013 | J71: ='SA1'!K8 -> 6369555 | K71: ='SA1'!L8 -> 6751728
A72: Water (in excess of 6 kilolitres per indigent household per month) | C72: ='SA1'!C19 -> 0 | D72: ='SA1'!D19 -> 0 | E72: ='SA1'!E19 -> 0 | F72: ='SA1'!F19 -> 0 | G72: ='SA1'!G19 -> 0 | H72: ='SA1'!H19 -> 0 | I72: ='SA1'!J19 -> 0 | J72: ='SA1'!K19 -> 0 | K72: ='SA1'!L19 -> 0
A73: Sanitation (in excess of free sanitation service to indigent households) | C73: ='SA1'!C25 -> 0 | D73: ='SA1'!D25 -> 0 | E73: ='SA1'!E25 -> 0 | F73: ='SA1'!F25 -> 0 | G73: ='SA1'!G25 -> 0 | H73: ='SA1'!H25 -> 0 | I73: ='SA1'!J25 -> 0 | J73: ='SA1'!K25 -> 0 | K73: ='SA1'!L25 -> 0
A74: Electricity/other energy (in excess of 50 kwh per indigent household per month) | C74: ='SA1'!C13 -> 0 | D74: ='SA1'!D13 -> 0 | E74: ='SA1'!E13 -> 0 | F74: ='SA1'!F13 -> 0 | G74: ='SA1'!G13 -> 0 | H74: ='SA1'!H13 -> 0 | I74: ='SA1'!J13 -> 0 | J74: ='SA1'!K13 -> 0 | K74: ='SA1'!L13 -> 0
A75: Refuse (in excess of one removal a week for indigent households) | C75: ='SA1'!C32 -> 0 | D75: ='SA1'!D32 -> 0 | E75: ='SA1'!E32 -> 0 | F75: ='SA1'!F32 -> 0 | G75: ='SA1'!G32 -> 0 | H75: ='SA1'!H32 -> 0 | I75: ='SA1'!J32 -> 0 | J75: ='SA1'!K32 -> 0 | K75: ='SA1'!L32 -> 0
A76: Municipal Housing - rental rebates
A77: Housing - top structure subsidies | B77: 6
A78: Other
A79: Total revenue cost of subsidised services provided | C79: =SUM(C70:C78) -> 0 | D79: =SUM(D70:D78) -> 10151231.21 | E79: 6466415.36 | F79: 0 | G79: 5668879 | H79: 5668879 | I79: 6009013 | J79: =SUM(J70:J78) -> 6369555 | K79: =SUM(K70:K78) -> 6751728
A80: =head27a -> References
A81: 1. Include services provided by another entity; e.g. Eskom
A82: 2. Stand distance <= 200m from dwelling
A83: 3. Stand distance > 200m from dwelling
A84: 4. Borehole, spring, rain-water tank etc.
A85: 5. Must agree to total number of households in municipal area (informal settlements receiving services must be included)
A86: 6. Include value of subsidy provided by municipality above provincial subsidy level
A87: 7. Show number of households receiving at least these levels of services completely free (informal settlements must be included)
A88: 8. Must reflect the cost to the municipality of providing the Free Basic Service
A89: 9. Reflect the cost to the municipality in terms of 'revenue foregone' of providing free services (note this will not equal 'Revenue Foregone' on SA1)

Sheet SA1
A1: =muni&" - "&TableA1 -> LIM351 Blouberg - Supporting Table SA1 Supportinging detail to 'Budgeted Financial Performance'
A2: =desc -> Description | B2: =head27 -> Ref | C2: =head1b -> 2016/17 | D2: =head1A -> 2017/18 | E2: =Head1 -> 2018/19 | F2: =Head2 -> Current Year 2019/20 | J2: =Head3 -> 2020/21 Medium Term Revenue & Expenditure Framework
C3: =Head5 -> Audited Outcome | D3: =Head5 -> Audited Outcome | E3: =Head5 -> Audited Outcome | F3: =Head6 -> Original Budget | G3: =Head7 -> Adjusted Budget | H3: =Head8 -> Full Year Forecast | I3: =Head5b -> Pre-audit outcome | J3: =Head9 -> Budget Year 2020/21 | K3: =Head10 -> Budget Year +1 2021/22 | L3: =Head11 -> Budget Year +2 2022/23
A4: R thousand
A5: REVENUE ITEMS:
A6: ='A4-FinPerf RE'!A5 -> Property rates | B6: 6
A7: Total Property Rates | C7: 0 | D7: 36753011.47 | E7: 30522841.96 | F7: 28090001 | G7: 33758880 | H7: 33758880 | I7: 29838497.14 | J7: 38484414 | K7: 39880004 | L7: 42214707
A8: less Revenue Foregone (exemptions, reductions and rebates and impermissable values in excess of section 17 of MPRA) | C8: 0 | D8: 10151231.21 | E8: 6466415.36 | F8: 0 | G8: 5668879 | H8: 5668879 | I8: 5535726.28 | J8: 6009013 | K8: 6369555 | L8: 6751728
A9: Net Property Rates | C9: =C7-C8 -> 0 | D9: =D7-D8 -> 26601780.26 | E9: 24056426.6 | F9: 28090001 | G9: 28090001 | H9: 28090001 | I9: 24302770.86 | J9: 32475401 | K9: 33510449 | L9: 35462979
A11: ='A4-FinPerf RE'!A6 -> Service charges - electricity revenue | B11: 6
A12: ="Total "&A11 -> Total Service charges - electricity revenue | C12: 0 | D12: 22515604.9 | E12: 22470453.13 | F12: 32302400 | G12: 32302400 | H12: 32302400 | I12: 18277448.46 | J12: 39317019 | K12: 41466041 | L12: 43744003
A13: less Revenue Foregone (in excess of 50 kwh per indigent household per month)
A14: less Cost of Free Basis Services (50 kwh per indigent household per month) | C14: ='SA9'!E250 -> 0 | D14: ='SA9'!F250 -> 0 | E14: ='SA9'!G250 -> 0 | F14: ='SA9'!H250 -> 0 | G14: ='SA9'!I250 -> 0 | H14: ='SA9'!J250 -> 0 | J14: ='SA9'!K250 -> 0 | K14: ='SA9'!L250 -> 0 | L14: ='SA9'!M250 -> 0
A15: ="Net "& A11 -> Net Service charges - electricity revenue | C15: =C12-C13-C14 -> 0 | D15: =D12-D13-D14 -> 22515604.9 | E15: 22470453.13 | F15: 32302400 | G15: 32302400 | H15: 32302400 | I15: 18277448.46 | J15: 39317019 | K15: 41466041 | L15: 43744003
A17: ='A4-FinPerf RE'!A7 -> Service charges - water revenue | B17: 6
A18: ="Total "&A17 -> Total Service charges - water revenue | C18: 0 | D18: 0 | E18: 0 | F18: 0 | G18: 0 | H18: 0 | I18: 3417441.39 | J18: 0 | K18: 0 | L18: 0
A19: less Revenue Foregone (in excess of 6 kilolitres per indigent household per month) | C19: 0 | D19: 0 | E19: 0 | F19: 0 | G19: 0 | H19: 0 | I19: 0 | J19: 0 | K19: 0 | L19: 0
A20: less Cost of Free Basis Services (6 kilolitres per indigent household per month) | C20: ='SA9'!E262 -> 0 | D20: ='SA9'!F262 -> 0 | E20: ='SA9'!G262 -> 0 | F20: ='SA9'!H262 -> 0 | G20: ='SA9'!I262 -> 0 | H20: ='SA9'!J262 -> 0 | J20: ='SA9'!K262 -> 0 | K20: ='SA9'!L262 -> 0 | L20: ='SA9'!M262 -> 0
A21: ="Net "& A17 -> Net Service charges - water revenue | C21: =C18-C19-C20 -> 0 | D21: =D18-D19-D20 -> 0 | E21: 0 | F21: 0 | G21: 0 | H21: 0 | I21: 3417441.39 | J21: 0 | K21: 0 | L21: 0
A23: ='A4-FinPerf RE'!A8 -> Service charges - sanitation revenue
A24: ="Total "&A23 -> Total Service charges - sanitation revenue | C24: 0 | D24: 0 | E24: 0 | F24: 0 | G24: 0 | H24: 0 | I24: 19494.64 | J24: 0 | K24: 0 | L24: 0
A25: less Revenue Foregone (in excess of free sanitation service to indigent households)
A26: less Cost of Free Basis Services (free sanitation service to indigent households) | C26: ='SA9'!E274 -> 0 | D26: ='SA9'!F274 -> 0 | E26: ='SA9'!G274 -> 0 | F26: ='SA9'!H274 -> 0 | G26: ='SA9'!I274 -> 0 | H26: ='SA9'!J274 -> 0 | J26: ='SA9'!K274 -> 0 | K26: ='SA9'!L274 -> 0 | L26: ='SA9'!M274 -> 0
A27: ="Net "& A23 -> Net Service charges - sanitation revenue | C27: =C24-C25-C26 -> 0 | D27: =D24-D25-D26 -> 0 | E27: 0 | F27: 0 | G27: 0 | H27: 0 | I27: 19494.64 | J27: 0 | K27: 0 | L27: 0
A29: ='A4-FinPerf RE'!A9 -> Service charges - refuse revenue | B29: 6
A30: Total refuse removal revenue | C30: 0 | D30: 426832.3 | E30: 513631.81 | F30: 534000 | G30: 784000 | H30: 784000 | I30: 704572.44 | J30: 831040 | K30: 880903 | L30: 933757
A31: Total landfill revenue
A32: less Revenue Foregone (in excess of one removal a week to indigent households)
A33: less Cost of Free Basis Services (removed once a week to indigent households) | C33: ='SA9'!E286 -> 0 | D33: ='SA9'!F286 -> 0 | E33: ='SA9'!G286 -> 0 | F33: ='SA9'!H286 -> 0 | G33: ='SA9'!I286 -> 0 | H33: ='SA9'!J286 -> 0 | J33: ='SA9'!K286 -> 0 | K33: ='SA9'!L286 -> 0 | L33: ='SA9'!M286 -> 0
A34: ="Net "& A29 -> Net Service charges - refuse revenue | C34: =SUM(C30:C31)-C32-C33 -> 0 | D34: =SUM(D30:D31)-D32-D33 -> 426832.3 | E34: 513631.81 | F34: 534000 | G34: 784000 | H34: 784000 | I34: 704572.44 | J34: 831040 | K34: 880903 | L34: 933757
A36: Other Revenue by source
A37: Fuel Levy
A38: Other Revenue | C38: 0 | D38: 3298871.85 | E38: 1672569.42 | F38: 3609603 | G38: 3459603 | H38: 3459603 | I38: 1027313.35 | J38: 6642352 | K38: 6740894 | L38: 6845350
A49: Total 'Other' Revenue | B49: 1 | C49: =SUM(C37:C38) -> 0 | D49: =SUM(D37:D38) -> 3298871.85 | E49: =SUM(E37:E38) -> 1672569.42 | F49: 3609603 | G49: 3459603 | H49: 3459603 | I49: 1027313.35 | J49: 6642352 | K49: 6740894 | L49: 6845350
A51: EXPENDITURE ITEMS:
A52: ='A4-FinPerf RE'!A24 -> Employee related costs
A53: Basic Salaries and Wages | B53: 2 | C53: 0 | D53: 56550515.77 | E53: 59976131.89 | F53: 69161847 | G53: 68561847 | H53: 68561847 | I53: 41714416.68 | J53: 73395177 | K53: 78457556 | L53: 83871884
A54: Pension and UIF Contributions | C54: 0 | D54: 12149757.13 | E54: 13400270.27 | F54: 17501408 | G54: 17501408 | H54: 17501408 | I54: 9697861.34 | J54: 18720110 | K54: 20023721 | L54: 21418172
A55: Medical Aid Contributions | C55: 0 | D55: 3611306.6 | E55: 3881926.8 | F55: 3746955 | G55: 3799783 | H55: 3799783 | I55: 2733768.6 | J55: 4065772 | K55: 4350373 | L55: 4654903
A56: Overtime | C56: 0 | D56: 2170303.95 | E56: 2393117.46 | F56: 2339510 | G56: 2336806 | H56: 2336806 | I56: 1528199.83 | J56: 2500384 | K56: 2675413 | L56: 2862691
A57: Performance Bonus | C57: 0 | D57: 5205688.75 | E57: 4673687.67 | F57: 6259519 | G57: 6271329 | H57: 6271329 | I57: 3089051.02 | J57: 6707708 | K57: 7174475 | L57: 7673746
A58: Motor Vehicle Allowance | C58: 0 | D58: 13463676.75 | E58: 14337610.55 | F58: 15977699 | G58: 15977699 | H58: 15977699 | I58: 10040664.53 | J58: 17083216 | K58: 18265333 | L58: 19529376
A59: Cellphone Allowance | C59: 0 | D59: 1820107.75 | E59: 1995294.69 | F59: 1981930 | G59: 2086107 | H59: 2086107 | I59: 1410519.15 | J59: 2230429 | K59: 2384745 | L59: 2549750
A60: Housing Allowances | C60: 0 | D60: 191491.82 | E60: 156015.65 | F60: 198754 | G60: 228408 | H60: 228408 | I60: 118917.87 | J60: 244399 | K60: 261507 | L60: 279815
A61: Other benefits and allowances | C61: 0 | D61: 1045068.77 | E61: 992381.13 | F61: 848186 | G61: 1214813 | H61: 1214813 | I61: 776715.19 | J61: 1376558 | K61: 1468614 | L61: 1566856
A62: Payments in lieu of leave | C62: 0 | D62: 2598111.73 | E62: 596589.99 | F62: 5130647 | G62: 1940934 | H62: 1940934 | I62: 737272.56 | J62: 2076805 | K62: 2222180 | L62: 2377732
A63: Long service awards | C63: 0 | D63: 0 | E63: 0 | F63: 0 | G63: 0 | H63: 0 | I63: 0 | J63: 0 | K63: 0 | L63: 0
A64: Post-retirement benefit obligations | B64: 4 | C64: 0 | D64: 521637.7 | E64: 1209585 | F64: 708702 | G64: 708702 | H64: 708702 | I64: 0 | J64: 758312 | K64: 811395 | L64: 868194
A65: sub-total | B65: 5 | C65: =SUM(C53:C64) -> 0 | D65: =SUM(D53:D64) -> 99327666.72 | E65: 103612611.1 | F65: 123855157 | G65: 120627836 | H65: 120627836 | I65: 71847386.77 | J65: 129158870 | K65: 138095312 | L65: 147653119
A66: Less: Employees costs capitalised to PPE | C66: 0 | D66: 0 | E66: 0 | F66: 0 | G66: 0 | H66: 0 | I66: 0 | J66: 0 | K66: 0 | L66: 0
A67: ="Total "&A52 -> Total Employee related costs | B67: 1 | C67: =C65-C66 -> 0 | D67: =D65-D66 -> 99327666.72 | E67: 103612611.1 | F67: 123855157 | G67: 120627836 | H67: 120627836 | I67: 71847386.77 | J67: 129158870 | K67: 138095312 | L67: 147653119
A78: ='A4-FinPerf RE'!A27 -> Depreciation & asset impairment
A79: Depreciation of Property, Plant & Equipment | C79: 0 | D79: 35462508.13 | E79: 35111134.19 | F79: 41673731 | G79: 41117719 | H79: 41117719 | I79: 0 | J79: 43757411 | K79: 46382859 | L79: 49165828
A80: Lease amortisation | C80: 0 | D80: 0 | E80: 145520.07 | F80: 0 | G80: 0 | H80: 0 | I80: 0 | J80: 0 | K80: 0 | L80: 0
A81: Capital asset impairment | C81: 0 | D81: 0 | E81: 0 | F81: 0 | G81: 0 | H81: 0 | I81: 0 | J81: 0 | K81: 0 | L81: 0
A83: ="Total "&LEFT(A78,35) -> Total Depreciation & asset impairment | B83: 1 | C83: =SUM(C79:C81) -> 0 | D83: =SUM(D79:D81) -> 35462508.13 | E83: 35256654.26 | F83: 41673731 | G83: 41117719 | H83: 41117719 | I83: 0 | J83: 43757411 | K83: 46382859 | L83: 49165828
A85: ='A4-FinPerf RE'!A29 -> Bulk purchases
A86: Electricity Bulk Purchases | C86: 0 | D86: 30340752.49 | E86: 29686446.43 | F86: 31000000 | G86: 35000000 | H86: 35000000 | I86: 22959506.22 | J86: 37100000 | K86: 39326000 | L86: 41685560
A87: Water Bulk Purchases | C87: 0 | D87: 0 | E87: 0 | F87: 0 | G87: 0 | H87: 0 | I87: 0 | J87: 0 | K87: 0 | L87: 0
A88: Total bulk purchases | B88: 1 | C88: =SUM(C86:C87) -> 0 | D88: =SUM(D86:D87) -> 30340752.49 | E88: 29686446.43 | F88: 31000000 | G88: 35000000 | H88: 35000000 | I88: 22959506.22 | J88: 37100000 | K88: 39326000 | L88: 41685560
A90: Transfers and grants
A91: Cash transfers and grants | C91: ='SA21'!C32 -> 0 | D91: ='SA21'!D32 -> 0 | E91: ='SA21'!E32 -> 73220 | F91: ='SA21'!F32 -> 0 | G91: ='SA21'!G32 -> 0 | H91: ='SA21'!H32 -> 0 | I91: ='SA21'!I32 -> 0 | J91: ='SA21'!J32 -> 0 | K91: ='SA21'!K32 -> 0 | L91: ='SA21'!L32 -> 0
A92: Non-cash transfers and grants | C92: ='SA21'!C65 -> 0 | D92: ='SA21'!D65 -> 0 | E92: ='SA21'!E65 -> 0 | F92: ='SA21'!F65 -> 0 | G92: ='SA21'!G65 -> 0 | H92: ='SA21'!H65 -> 0 | I92: ='SA21'!I65 -> 0 | J92: ='SA21'!J65 -> 0 | K92: ='SA21'!K65 -> 0 | L92: ='SA21'!L65 -> 0
A93: Total transfers and grants | B93: 1 | C93: =SUM(C91:C92) -> 0 | D93: =SUM(D91:D92) -> 0 | E93: 73220 | F93: 0 | G93: 0 | H93: 0 | I93: 0 | J93: 0 | K93: 0 | L93: 0
A95: ='A4-FinPerf RE'!A31 -> Contracted services
A96: Outsourced Services | C96: 0 | D96: 2494695.98 | E96: 3913345.26 | F96: 5476817 | G96: 5979902 | H96: 5979902 | I96: 2432695.57 | J96: 6434107 | K96: 9169232 | L96: 9378530
A97: Consultants and Professional Services | C97: 0 | D97: 32045200.12 | E97: 25221388.96 | F97: 28510660 | G97: 30466454 | H97: 30466454 | I97: 18870528.13 | J97: 25665848 | K97: 28088630 | L97: 29052413
A98: Contractors | C98: 0 | D98: 31992323.22 | E98: 16188119.72 | F98: 6692493 | G98: 5624000 | H98: 5624000 | I98: 5557514.81 | J98: 21926007 | K98: 20803557 | L98: 20022405
A127: Total contracted services | C127: =SUM(C96:C98) -> 0 | D127: =SUM(D96:D98) -> 66532219.32 | E127: 45322853.94 | F127: 40679970 | G127: 42070356 | H127: 42070356 | I127: 26860738.51 | J127: 54025962 | K127: 58061419 | L127: 58453348
A129: Other Expenditure By Type
A130: Collection costs | C130: 0 | D130: 7959387.84 | E130: 12930610.08 | F130: 2165400 | G130: 3143121 | H130: 3143121 | I130: 2393849.48 | J130: 0 | K130: 0 | L130: 0
A131: Contributions to 'other' provisions | C131: 0 | D131: 789437.02 | E131: 920899.16 | F131: 1911719 | G131: 1366027 | H131: 1366027 | I131: 563279.03 | J131: 1447993 | K131: 1534873 | L131: 1626965
A133: Audit fees | C133: 0 | D133: 907022.25 | E133: 661188.98 | F133: 0 | G133: 0 | H133: 0 | I133: 0 | J133: 4000000 | K133: 4770000 | L133: 5056200
A136: Other Expenditure | C136: 0 | D136: 36147871.41 | E136: 31292982.5 | F136: 44748281 | G136: 42068839 | H136: 42068839 | I136: 26232315.29 | J136: 36361106 | K136: 39485037 | L136: 41742367
A157: Total 'Other' Expenditure | B157: 1 | C157: =+C130+C131+C133+C136 -> 0 | D157: =+D130+D131+D133+D136 -> 45803718.52 | E157: 45805680.72 | F157: 48825400 | G157: 46577987 | H157: 46577987 | I157: 29189443.8 | J157: 41809099 | K157: 45789910 | L157: 48425532
A159: Repairs and Maintenance by Expenditure Item | B159: 8
A160: Employee related costs
A161: Other materials | C161: 0 | D161: -15944.46 | E161: 166882.75 | F161: 0 | G161: 0 | H161: 0 | I161: 0 | J161: 0 | K161: 0 | L161: 0
A162: Contracted Services | C162: 0 | D162: 2622595.61 | E162: 1685922.24 | F162: 3057817 | G162: 5497817 | H162: 5497817 | I162: 2149073.76 | J162: 7145141 | K162: 10092555 | L162: 10577018
A163: Other Expenditure | C163: 0 | D163: 0 | E163: 0 | F163: 300000 | G163: 0 | H163: 0 | I163: 0 | J163: 505000 | K163: 530000 | L163: 561800
A164: Total Repairs and Maintenance Expenditure | B164: 9 | C164: =SUM(C160:C163) -> 0 | D164: =SUM(D160:D163) -> 2606651.15 | E164: 1852804.99 | F164: 3357817 | G164: 5497817 | H164: 5497817 | I164: 2149073.76 | J164: 7650141 | K164: 10622555 | L164: 11138818
A166: check | C166: =C164-SA34c!C167 -> 0 | D166: =D164-SA34c!D167 -> 0 | E166: =E164-SA34c!E167 -> 0 | F166: =F164-SA34c!F167 -> 0 | G166: =G164-SA34c!G167 -> 0 | H166: =H164-SA34c!H167 -> 0 | J166: =J164-SA34c!I167 -> 0 | K166: =K164-SA34c!J167 -> 0 | L166: =L164-SA34c!K167 -> 0
A169: =head27a -> References
A170: 1. Must reconcile with 'Budgeted Financial Performance (Revenue and Expenditure)
A171: 2. Must reconcile to supporting documentation on staff salaries
A173: 4. Expenditure to meet any 'unfunded obligations'
A174: 5 This sub-total must agree with the total on SA22, but excluding councillor and board member items
A175: 6. Include a note for each revenue item that is affected by 'revenue foregone'
A176: 7. Special consideration may have to be given to including 'goodwill arising' or 'joint venture' budgets where circumstances require this (include separately under relevant notes)
A177: 8. Repairs and Maintenance is not a GRAP item. However to facilitate transparency, municipalities must provide a breakdown of the amounts included in the relevant GRAP items that will be spent on Repairs and Maintenance.
A178: 9. Must reconcile with Repairs and Maintenance by Asset Class (Total Repairs and Maintenance) on Table SA34c.
A179: 10. Only applicable to municipalities that have adopted the 'revaluation method' in GRAP 17. The aim is to prevent overstating 'depreciation and asset impairment'

Sheet SA2
A1: =muni&" - "&TableA2 -> LIM351 Blouberg - Supporting Table SA2 Matrix Financial Performance Budget (revenue source/expenditure type and dept.)
A2: =desc -> Description | B2: =head27 -> Ref | C2: ='A3-FinPerf V'!A5 -> Vote 01 - Executive & Council | D2: ='A3-FinPerf V'!A6 -> Vote 02 - Finance And Administration | E2: ='A3-FinPerf V'!A7 -> Vote 03 - Community Service | F2: ='A3-FinPerf V'!A8 -> Vote 04 - Public And Safety | G2: ='A3-FinPerf V'!A9 -> Vote 05 - Waste Management | H2: ='A3-FinPerf V'!A10 -> Vote 06 - Roads Services | I2: ='A3-FinPerf V'!A11 -> Vote 07 - Econominc Development And Planning | J2: ='A3-FinPerf V'!A12 -> Vote 08 - | K2: ='A3-FinPerf V'!A13 -> Vote 09 - | L2: ='A3-FinPerf V'!A14 -> Vote 10 - | M2: ='A3-FinPerf V'!A15 -> Vote 11 - | N2: ='A3-FinPerf V'!A16 -> Vote 12 - | O2: ='A3-FinPerf V'!A17 -> Vote 13 - | P2: ='A3-FinPerf V'!A18 -> Vote 14 - | Q2: ='A3-FinPerf V'!A19 -> Vote 15 - Other | R2: Total
A3: R thousand | B3: 1 | R3: R'000
A4: ='A4-FinPerf RE'!A4 -> Revenue By Source
A5: ='A4-FinPerf RE'!A5 -> Property rates | C5: 0 | D5: 0 | E5: 32475401 | F5: 0 | G5: 0 | H5: 0 | I5: 0 | J5: 0 | K5: 0 | L5: 0 | M5: 0 | N5: 0 | O5: 0 | P5: 0 | Q5: 0 | R5: =SUM(C5:Q5) -> 32475401
A6: ='A4-FinPerf RE'!A6 -> Service charges - electricity revenue | C6: 0 | D6: 0 | E6: 0 | F6: 0 | G6: 39317019 | H6: 0 | I6: 0 | J6: 0 | K6: 0 | L6: 0 | M6: 0 | N6: 0 | O6: 0 | P6: 0 | Q6: 0 | R6: =SUM(C6:Q6) -> 39317019
A7: ='A4-FinPerf RE'!A7 -> Service charges - water revenue | C7: 0 | D7: 0 | E7: 0 | F7: 0 | G7: 0 | H7: 0 | I7: 0 | J7: 0 | K7: 0 | L7: 0 | M7: 0 | N7: 0 | O7: 0 | P7: 0 | Q7: 0 | R7: 0
A8: ='A4-FinPerf RE'!A8 -> Service charges - sanitation revenue | C8: 0 | D8: 0 | E8: 0 | F8: 0 | G8: 0 | H8: 0 | I8: 0 | J8: 0 | K8: 0 | L8: 0 | M8: 0 | N8: 0 | O8: 0 | P8: 0 | Q8: 0 | R8: 0
A9: ='A4-FinPerf RE'!A9 -> Service charges - refuse revenue | C9: 0 | D9: 0 | E9: 0 | F9: 0 | G9: 0 | H9: 831040 | I9: 0 | J9: 0 | K9: 0 | L9: 0 | M9: 0 | N9: 0 | O9: 0 | P9: 0 | Q9: 0 | R9: 831040
C10: 0 | D10: 0 | E10: 0 | F10: 0 | G10: 0 | H10: 0 | I10: 0 | J10: 0 | K10: 0 | L10: 0 | M10: 0 | N10: 0 | O10: 0 | P10: 0 | Q10: 0
A11: ='A4-FinPerf RE'!A11 -> Rental of facilities and equipment | C11: 0 | D11: 0 | E11: 218000 | F11: 0 | G11: 0 | H11: 0 | I11: 0 | J11: 0 | K11: 0 | L11: 0 | M11: 0 | N11: 0 | O11: 0 | P11: 0 | Q11: 0 | R11: 218000
A12: ='A4-FinPerf RE'!A12 -> Interest earned - external investments | C12: 0 | D12: 0 | E12: 1802000 | F12: 0 | G12: 0 | H12: 0 | I12: 0 | J12: 0 | K12: 0 | L12: 0 | M12: 0 | N12: 0 | O12: 0 | P12: 0 | Q12: 0 | R12: 1802000
A13: ='A4-FinPerf RE'!A13 -> Interest earned - outstanding debtors | C13: 0 | D13: 0 | E13: 1261929 | F13: 0 | G13: 272146 | H13: 53000 | I13: 0 | J13: 0 | K13: 0 | L13: 0 | M13: 0 | N13: 0 | O13: 0 | P13: 0 | Q13: 0 | R13: 1587075
A14: ='A4-FinPerf RE'!A14 -> Dividends received | C14: 0 | D14: 0 | E14: 0 | F14: 0 | G14: 0 | H14: 0 | I14: 0 | J14: 0 | K14: 0 | L14: 0 | M14: 0 | N14: 0 | O14: 0 | P14: 0 | Q14: 0 | R14: 0
A15: ='A4-FinPerf RE'!A15 -> Fines, penalties and forfeits | C15: 0 | D15: 0 | E15: 0 | F15: 0 | G15: 42764 | H15: 3551000 | I15: 0 | J15: 0 | K15: 0 | L15: 0 | M15: 0 | N15: 0 | O15: 0 | P15: 0 | Q15: 0 | R15: 3593764
A16: ='A4-FinPerf RE'!A16 -> Licences and permits | C16: 0 | D16: 0 | E16: 1102400 | F16: 0 | G16: 0 | H16: 3137600 | I16: 115825 | J16: 0 | K16: 0 | L16: 0 | M16: 0 | N16: 0 | O16: 0 | P16: 0 | Q16: 0 | R16: 4355825
A17: ='A4-FinPerf RE'!A17 -> Agency services | C17: 0 | D17: 0 | E17: 0 | F17: 0 | G17: 0 | H17: 1100000 | I17: 0 | J17: 0 | K17: 0 | L17: 0 | M17: 0 | N17: 0 | O17: 0 | P17: 0 | Q17: 0 | R17: 1100000
A18: ='A4-FinPerf RE'!A19 -> Other revenue | C18: 0 | D18: 0 | E18: 1044100 | F18: 342000 | G18: 0 | H18: 42400 | I18: 5213852 | J18: 0 | K18: 0 | L18: 0 | M18: 0 | N18: 0 | O18: 0 | P18: 0 | Q18: 0 | R18: 6642352
A19: ='A4-FinPerf RE'!A18 -> Transfers and subsidies | C19: 0 | D19: 0 | E19: 199740000 | F19: 0 | G19: 0 | H19: 1547000 | I19: 0 | J19: 0 | K19: 0 | L19: 0 | M19: 0 | N19: 0 | O19: 0 | P19: 0 | Q19: 0 | R19: 201287000
A20: ='A4-FinPerf RE'!A20 -> Gains | C20: 0 | D20: 0 | E20: 0 | F20: 0 | G20: 0 | H20: 0 | I20: 0 | J20: 0 | K20: 0 | L20: 0 | M20: 0 | N20: 0 | O20: 0 | P20: 0 | Q20: 0 | R20: 0
A21: ='A4-FinPerf RE'!A21 -> Total Revenue (excluding capital transfers and contributions) | C21: =SUM(C5:C9)+SUM(C11:C20) -> 0 | D21: =SUM(D5:D9)+SUM(D11:D20) -> 0 | E21: 237643830 | F21: 342000 | G21: 39631929 | H21: 10262040 | I21: 5329677 | J21: 0 | K21: 0 | L21: 0 | M21: 0 | N21: 0 | O21: 0 | P21: 0 | Q21: 0 | R21: =SUM(R5:R9)+SUM(R11:R20) -> 293209476
A23: ='A4-FinPerf RE'!A23 -> Expenditure By Type
A24: ='A4-FinPerf RE'!A24 -> Employee related costs | C24: 0 | D24: 15115416 | E24: 17290720 | F24: 39249673 | G24: 22146800 | H24: 26223559 | I24: 9132702 | R24: =SUM(C24:Q24) -> 129158870
A25: ='A4-FinPerf RE'!A25 -> Remuneration of councillors | C25: 18116396 | D25: 0 | E25: 0 | F25: 0 | G25: 0 | H25: 0 | I25: 0 | J25: 0 | K25: 0 | L25: 0 | M25: 0 | N25: 0 | O25: 0 | P25: 0 | Q25: 0 | R25: =SUM(C25:Q25) -> 18116396
A26: ='A4-FinPerf RE'!A26 -> Debt impairment | C26: 0 | D26: 0 | E26: 8746928 | F26: 0 | G26: 0 | H26: 0 | I26: 0 | J26: 0 | K26: 0 | L26: 0 | M26: 0 | N26: 0 | O26: 0 | P26: 0 | Q26: 0 | R26: 8746928
A27: ='A4-FinPerf RE'!A27 -> Depreciation & asset impairment | C27: 0 | D27: 0 | E27: 3179343 | F27: 0 | G27: 40578068 | H27: 0 | I27: 0 | J27: 0 | K27: 0 | L27: 0 | M27: 0 | N27: 0 | O27: 0 | P27: 0 | Q27: 0 | R27: 43757411
A28: ='A4-FinPerf RE'!A28 -> Finance charges | C28: 0 | D28: 0 | E28: 0 | F28: 0 | G28: 0 | H28: 0 | I28: 0 | J28: 0 | K28: 0 | L28: 0 | M28: 0 | N28: 0 | O28: 0 | P28: 0 | Q28: 0 | R28: 0
A29: ='A4-FinPerf RE'!A29 -> Bulk purchases | C29: 0 | D29: 0 | E29: 0 | F29: 0 | G29: 37100000 | H29: 0 | I29: 0 | J29: 0 | K29: 0 | L29: 0 | M29: 0 | N29: 0 | O29: 0 | P29: 0 | Q29: 0 | R29: 37100000
A30: ='A4-FinPerf RE'!A30 -> Other materials | C30: 0 | D30: 0 | E30: 2100000 | F30: 0 | G30: 0 | H30: 826200 | I30: 0 | J30: 0 | K30: 0 | L30: 0 | M30: 0 | N30: 0 | O30: 0 | P30: 0 | Q30: 0 | R30: 2926200
A31: ='A4-FinPerf RE'!A31 -> Contracted services | C31: 694419 | D31: 18875885 | E31: 11128875 | F31: 5519960 | G31: 2552781 | H31: 9775604 | I31: 5478438 | J31: 0 | K31: 0 | L31: 0 | M31: 0 | N31: 0 | O31: 0 | P31: 0 | Q31: 0 | R31: 54025962
A32: ='A4-FinPerf RE'!A32 -> Transfers and subsidies | C32: 0 | D32: 0 | E32: 0 | F32: 0 | G32: 0 | H32: 0 | I32: 0 | J32: 0 | K32: 0 | L32: 0 | M32: 0 | N32: 0 | O32: 0 | P32: 0 | Q32: 0 | R32: 0
A33: ='A4-FinPerf RE'!A33 -> Other expenditure | C33: 4527350 | D33: 5394219 | E33: 3346771 | F33: 23666545 | G33: 1802183 | H33: 1434378 | I33: 1637653 | J33: 0 | K33: 0 | L33: 0 | M33: 0 | N33: 0 | O33: 0 | P33: 0 | Q33: 0 | R33: 41809099
A34: ='A4-FinPerf RE'!A34 -> Losses | C34: 0 | D34: 0 | E34: 0 | F34: 0 | G34: 0 | H34: 0 | I34: 0 | J34: 0 | K34: 0 | L34: 0 | M34: 0 | N34: 0 | O34: 0 | P34: 0 | Q34: 0 | R34: 0
A35: Total Expenditure | C35: =SUM(C24:C34) -> 23338165 | D35: 39385520 | E35: 45792637 | F35: 68436178 | G35: 104179832 | H35: 38259741 | I35: 16248793 | J35: 0 | K35: 0 | L35: 0 | M35: 0 | N35: 0 | O35: 0 | P35: 0 | Q35: 0 | R35: 335640866
A37: ='A4-FinPerf RE'!A37 -> Surplus/(Deficit) | C37: =C21-C35 -> -23338165 | D37: -39385520 | E37: 191851193 | F37: -68094178 | G37: -64547903 | H37: -27997701 | I37: =I21-I35 -> -10919116 | J37: 0 | K37: 0 | L37: 0 | M37: 0 | N37: 0 | O37: 0 | P37: 0 | Q37: 0 | R37: =R21-R35 -> -42431390
A38: ='A4-FinPerf RE'!A38 -> Transfers and subsidies - capital (monetary allocations) (National / Provincial and District) | G38: 50066000 | R38: =SUM(C38:Q38) -> 50066000
A39: ='A4-FinPerf RE'!A39 -> Transfers and subsidies - capital (monetary allocations) (National / Provincial Departmental Agencies, Households, Non-profit Institutions, Private Enterprises, Public Corporatons, Higher Educational Institutions) | R39: =SUM(C39:Q39) -> 0
A40: ='A4-FinPerf RE'!A40 -> Transfers and subsidies - capital (in-kind - all) | G40: 0 | R40: =SUM(C40:Q40) -> 0
A41: ='A4-FinPerf RE'!A41 -> Surplus/(Deficit) after capital transfers & contributions | C41: =SUM(C37:C40) -> -23338165 | D41: -39385520 | E41: 191851193 | F41: -68094178 | G41: -14481903 | H41: -27997701 | I41: -10919116 | J41: 0 | K41: 0 | L41: 0 | M41: 0 | N41: 0 | O41: 0 | P41: 0 | Q41: =SUM(Q37:Q40) -> 0 | R41: =SUM(R37:R40) -> 7634610
A42: =head27a -> References
A43: 1. Departmental columns to be based on municipal organisation structure
A44: check balance | R44: ='A4-FinPerf RE'!J41-'SA2'!R41 -> 0

Sheet SA3
A1: =muni&" - "&TableA3 -> LIM351 Blouberg - Supporting Table SA3 Supportinging detail to 'Budgeted Financial Position'
A2: =desc -> Description | B2: =head27 -> Ref | C2: =head1b -> 2016/17 | D2: =head1A -> 2017/18 | E2: =Head1 -> 2018/19 | F2: =Head2 -> Current Year 2019/20 | J2: =Head3 -> 2020/21 Medium Term Revenue & Expenditure Framework
C3: =Head5 -> Audited Outcome | D3: =Head5 -> Audited Outcome | E3: =Head5 -> Audited Outcome | F3: =Head6 -> Original Budget | G3: =Head7 -> Adjusted Budget | H3: =Head8 -> Full Year Forecast | I3: =Head5b -> Pre-audit outcome | J3: =Head9 -> Budget Year 2020/21 | K3: =Head10 -> Budget Year +1 2021/22 | L3: =Head11 -> Budget Year +2 2022/23
A4: R thousand
A5: ASSETS
A11: ='A6-FinPos'!A8 -> Consumer debtors
A12: =A11 -> Consumer debtors | C12: 0 | D12: 125454270.3 | E12: 116600236.5 | F12: 15456686 | G12: 144693181 | H12: 144693181 | I12: 142088340.1 | J12: 173708514 | K12: 203392936 | L12: 235245966
A13: Less: Provision for debt impairment | C13: =C20 -> 0 | D13: -29789490.76 | E13: -15793565.6 | F13: 0 | G13: -24123971 | H13: -24123971 | I13: -15793565.6 | J13: -34519603 | K13: -47414839 | L13: -60671821
A14: ="Total "&A11 -> Total Consumer debtors | B14: 2 | C14: =SUM(C12:C13) -> 0 | D14: =SUM(D12:D13) -> 95664779.58 | E14: 100806671 | F14: =SUM(F12:F13) -> 15456686 | G14: 120569210 | H14: 120569210 | I14: 126294774.5 | J14: 139188911 | K14: 155978097 | L14: 174574145
A16: Debt impairment provision
A17: Balance at the beginning of the year | C17: 0 | D17: -33312963.9 | E17: -19583805.59 | F17: 0 | G17: -15793564 | H17: -15793564 | I17: -15793565.6 | J17: -24123971 | K17: -34519603 | L17: -47414839
A18: Contributions to the provision | C18: 0 | D18: 13729158.31 | E18: 3790239.99 | F18: 0 | G18: -8330407 | H18: -8330407 | I18: 0 | J18: -10395632 | K18: -12895236 | L18: -13256982
A19: Bad debts written off | C19: 0 | D19: -10205685.17 | E19: 0 | F19: 0 | G19: 0 | H19: 0 | I19: 0 | J19: 0 | K19: 0 | L19: 0
A20: Balance at end of year | C20: =SUM(C17:C19) -> 0 | D20: =SUM(D17:D19) -> -29789490.76 | E20: -15793565.6 | F20: 0 | G20: -24123971 | H20: -24123971 | I20: -15793565.6 | J20: -34519603 | K20: -47414839 | L20: -60671821
A22: ='A6-FinPos'!A19&" (PPE)" -> Property, plant and equipment (PPE)
A23: PPE at cost/valuation (excl. finance leases) | C23: 0 | D23: 1320691918 | E23: 1371505645 | F23: 327782775 | G23: 1435890702 | H23: 1435890702 | I23: 1402337601 | J23: 1444183251 | K23: 1481101768 | L23: 1553871231
A24: Leases recognised as PPE | B24: 3 | C24: 0 | D24: 0 | E24: 0 | F24: 0 | G24: 0 | H24: 0 | I24: 0 | J24: 30358518 | K24: 70984601 | L24: 68574631
A25: Less: Accumulated depreciation | C25: 0 | D25: 427024544.4 | E25: 455422993.4 | F25: 0 | G25: 497096723 | H25: 497096723 | I25: 455422993.4 | J25: 539394789 | K25: 584318300 | L25: 632024799
A26: ="Total "&A22 -> Total Property, plant and equipment (PPE) | B26: 2 | C26: =SUM(C23:C24)-C25 -> 0 | D26: =SUM(D23:D24)-D25 -> 893667373.2 | E26: 916082651.2 | F26: 327782775 | G26: 938793979 | H26: 938793979 | I26: 946914607.5 | J26: 935146980 | K26: 967768069 | L26: 990421063
A28: LIABILITIES
A29: ='A6-FinPos'!A28&" - "&'A6-FinPos'!A30 -> Current liabilities - Borrowing
A30: Short term loans (other than bank overdraft)
A31: Current portion of long-term liabilities
A32: ="Total "&A29 -> Total Current liabilities - Borrowing | C32: =SUM(C30:C31) -> 0 | D32: =SUM(D30:D31) -> 0 | E32: 0 | F32: 0 | G32: 0 | H32: 0 | I32: 0 | J32: 0 | K32: 0 | L32: 0
A34: ='A6-FinPos'!A32 -> Trade and other payables
A35: Trade Payables | B35: 5 | C35: 0 | D35: 50717580.55 | E35: 50688620.83 | F35: -1714879 | G35: 60680222 | H35: 60680222 | I35: 32051369.96 | J35: 64838869 | K35: 69174001 | L35: 73934815
A36: Other creditors
A37: Unspent conditional transfers | C37: 0 | D37: 699785.67 | E37: 1139231.07 | F37: -1400000 | G37: 1250000 | H37: 1250000 | I37: 1139231.07 | J37: 725000 | K37: 725200 | L37: 600500
A38: VAT | C38: 0 | D38: 670725.69 | E38: 8364649.85 | F38: 0 | G38: 0 | H38: 0 | I38: 12764892.39 | J38: 0 | K38: 0 | L38: 0
A39: ="Total "&A34 -> Total Trade and other payables | B39: 2 | C39: =SUM(C35:C38) -> 0 | D39: 52088091.91 | E39: 60192501.75 | F39: -3114879 | G39: 61930222 | H39: 61930222 | I39: 45955493.42 | J39: 65563869 | K39: 69899201 | L39: =SUM(L35:L38) -> 74535315
A41: ='A6-FinPos'!A36&" - "&'A6-FinPos'!A37 -> Non current liabilities - Borrowing
A42: Borrowing | B42: 4
A43: Finance leases (including PPP asset element) | C43: 0 | D43: 1288648.61 | E43: 821059.88 | F43: 0 | G43: 721060 | H43: 721060 | I43: 821059.88 | J43: 621060 | K43: 521060 | L43: 421060
A44: ="Total "&A41 -> Total Non current liabilities - Borrowing | C44: =SUM(C42:C43) -> 0 | D44: =SUM(D42:D43) -> 1288648.61 | E44: 821059.88 | F44: 0 | G44: 721060 | H44: 721060 | I44: 821059.88 | J44: 621060 | K44: 521060 | L44: 421060
A46: ='A6-FinPos'!A38&" - non-current" -> Provisions - non-current
A47: Retirement benefits
A49: Refuse landfill site rehabilitation | C49: 0 | D49: 13458864.36 | E49: 14636962.76 | F49: 0 | G49: 16136963 | H49: 16136963 | I49: 14636962.76 | J49: 17336963 | K49: 18688963 | L49: 20141599
A50: Other | C50: 0 | D50: 2018753.54 | E50: 2118302.28 | F50: 0 | G50: 2418302 | H50: 2418302 | I50: 2118302.28 | J50: 2768302 | K50: 3130838 | L50: 3506094
A51: ="Total "&A46 -> Total Provisions - non-current | C51: =+C47+C49+C50 -> 0 | D51: 15477617.9 | E51: 16755265.04 | F51: 0 | G51: 18555265 | H51: 18555265 | I51: =+I47+I49+I50 -> 16755265.04 | J51: =+J47+J49+J50 -> 20105265 | K51: 21819801 | L51: 23647693
A53: CHANGES IN NET ASSETS
A54: ='A6-FinPos'!A45 -> Accumulated Surplus/(Deficit)
A55: =A54&" - opening balance" -> Accumulated Surplus/(Deficit) - opening balance | C55: 0 | D55: 914474744 | E55: 948173786.8 | F55: 381945742 | G55: 991639627 | H55: 991639627 | I55: 970706380.6 | J55: 1015188311 | K55: 1049402911 | L55: 1085268157
A56: GRAP adjustments | C56: 0 | D56: 0 | E56: 0 | F56: 0 | G56: 0 | H56: 0 | I56: 0 | J56: 0 | K56: 0 | L56: 0
A57: Restated balance | C57: =SUM(C55:C56) -> 0 | D57: =SUM(D55:D56) -> 914474744 | E57: =SUM(E55:E56) -> 948173786.8 | F57: =SUM(F55:F56) -> 381945742 | G57: 991639627 | H57: 991639627 | I57: 970706380.6 | J57: 1015188311 | K57: 1049402911 | L57: 1085268157
A58: ='A4-FinPerf RE'!A37 -> Surplus/(Deficit) | C58: ='A4-FinPerf RE'!C45 -> 0 | D58: ='A4-FinPerf RE'!D45 -> 21544228.26 | E58: ='A4-FinPerf RE'!E45 -> 15486731.02 | F58: ='A4-FinPerf RE'!F45 -> 20704194 | G58: ='A4-FinPerf RE'!G45 -> 15556750 | H58: ='A4-FinPerf RE'!H45 -> 15556750 | I58: ='A4-FinPerf RE'!I45 -> 81901022.19 | J58: ='A4-FinPerf RE'!J45 -> 7634610 | K58: ='A4-FinPerf RE'!K45 -> 21074082 | L58: ='A4-FinPerf RE'!L45 -> 23617852
A60: Transfers to/from Reserves | C60: 0 | D60: 0 | E60: 0 | F60: 0 | G60: 0 | H60: 0 | I60: 0 | J60: 0 | K60: 0 | L60: 0
A61: Depreciation offsets | C61: 0 | D61: 0 | E61: 0 | F61: 0 | G61: 0 | H61: 0 | I61: 0 | J61: 0 | K61: 0 | L61: 0
A62: Other adjustments | C62: 0 | D62: 11874789.23 | E62: -6228053.73 | F62: 0 | G62: 0 | H62: 0 | I62: -8850 | J62: 0 | K62: 0 | L62: 0
A63: Accumulated Surplus/(Deficit) | B63: 1 | C63: =SUM(C57:C62) -> 0 | D63: =SUM(D57:D62) -> 947893761.5 | E63: =SUM(E57:E62) -> 957432464.1 | F63: 402649936 | G63: 1007196377 | H63: 1007196377 | I63: 1052598553 | J63: 1022822921 | K63: 1070476993 | L63: 1108886009
A64: Reserves
A65: Housing Development Fund
A66: Capital replacement
A67: Self-insurance
A68: Other reserves
A69: Revaluation
A70: Total Reserves | B70: 2 | C70: =SUM(C65:C69) -> 0 | D70: 0 | E70: 0 | F70: 0 | G70: 0 | H70: 0 | I70: 0 | J70: 0 | K70: 0 | L70: 0
A71: ='A6-FinPos'!A48 -> TOTAL COMMUNITY WEALTH/EQUITY | B71: 2 | C71: =C63+C70 -> 0 | D71: 947893761.5 | E71: 957432464.1 | F71: 402649936 | G71: 1007196377 | H71: 1007196377 | I71: 1052598553 | J71: 1022822921 | K71: 1070476993 | L71: 1108886009
A77: =head27a -> References
A78: ="1. Must reconcile with "&'Template names'!F103 -> 1. Must reconcile with Table A4 Budgeted Financial Performance (revenue and expenditure)
A79: ="2. Must reconcile with "&'Template names'!F105 -> 2. Must reconcile with Table A6 Budgeted Financial Position
A80: 3. Leases treated as assets to be depreciated as the same as purchased/constructed assets. Includes PPP asset element accounted for as finance leases
A81: 4. Borrowing must reconcile to Table A17
A82: 5. Trade Payable should only include Trade Payables from Exchance Transactions ("True Creditors")
A83: check | C83: =C71-'A6-FinPos'!C48 -> 0 | D83: =D71-'A6-FinPos'!D48 -> 0 | E83: =E71-'A6-FinPos'!E48 -> 0 | F83: =F71-'A6-FinPos'!F48 -> 0 | G83: =G71-'A6-FinPos'!G48 -> 0 | H83: =H71-'A6-FinPos'!H48 -> 0 | I83: =I71-'A6-FinPos'!I48 -> 0 | J83: =J71-'A6-FinPos'!J48 -> 0 | K83: =K71-'A6-FinPos'!K48 -> 0 | L83: =L71-'A6-FinPos'!L48 -> 0
C84: =TREND(D84:H84) -> 0 | D84: =TREND(E84:H84) -> 0 | E84: =E74 -> 0 | F84: =H74 -> 0 | G84: =J74 -> 0 | H84: =K74 -> 0 | I84: =L74 -> 0

Sheet SA4
A1: =muni&" - "&TableA4 -> LIM351 Blouberg - Supporting Table SA4 Reconciliation of IDP strategic objectives and budget (revenue)
A2: Strategic Objective | B2: Goal | C2: Goal Code | D2: =head27 -> Ref | E2: =head1b -> 2016/17 | F2: =head1A -> 2017/18 | G2: =Head1 -> 2018/19 | H2: =Head2 -> Current Year 2019/20 | K2: =Head3 -> 2020/21 Medium Term Revenue & Expenditure Framework
A3: R thousand | E3: =Head5 -> Audited Outcome | F3: =Head5 -> Audited Outcome | G3: =Head5 -> Audited Outcome | H3: =Head6 -> Original Budget | I3: =Head7 -> Adjusted Budget | J3: =Head8 -> Full Year Forecast | K3: =Head9 -> Budget Year 2020/21 | L3: =Head10 -> Budget Year +1 2021/22 | M3: =Head11 -> Budget Year +2 2022/23
A4: SPATIAL PLANNING | E4: 0 | F4: 0 | G4: 0 | H4: 0 | I4: 0 | J4: 0 | K4: 0 | L4: 0 | M4: 0
A5: GOOD GOVERNANCE AND PUBLIC PARTICIPATION | E5: 0 | F5: 167008.87 | G5: 55476.72 | H5: 151000 | I5: 206000 | J5: 206000 | K5: 342000 | L5: 362520 | M5: 384272
A6: FINANCIAL VIABILITY AND MANAFEMENT | E6: 0 | F6: 491482.59 | G6: 658887.75 | H6: 2362872 | I6: 2372872 | J6: 2372872 | K6: 5329677 | L6: 5349459 | M6: 5370426
A7: LOCAL ECONOMIC DEVELOPMENT | E7: 0 | F7: 199879531.8 | G7: 199500313.1 | H7: 220299821 | I7: 221323735 | J7: 221323735 | K7: 237643830 | L7: 251072584 | M7: 263064366
A8: MUNICIPAL TRANSFORMATION AND ORGANISATION DEVELOMENT | E8: 0 | F8: 38902479.91 | G8: 16347656.27 | H8: 12461000 | I8: 11322086 | J8: 11322086 | K8: 10262040 | L8: 9237944 | M8: 9792221
A9: BASIC SERVICES AND INFRUSTRACTURE | E9: 0 | F9: 33113181.98 | G9: 22683464.94 | H9: 53492743 | I9: 34492743 | J9: 34492743 | K9: 39631929 | L9: 41799846 | M9: 44097837
A10: Allocations to other priorities | D10: 2
A11: ='A4-FinPerf RE'!A21 -> Total Revenue (excluding capital transfers and contributions) | D11: 1 | E11: =SUM(E4:E10) -> 0 | F11: 272553685.2 | G11: 239245798.8 | H11: 288767436 | I11: 269717436 | J11: 269717436 | K11: 293209476 | L11: 307822353 | M11: 322709122
A12: =head27a -> References
A13: ="1. Total revenue must reconcile to "&'Template names'!F103 -> 1. Total revenue must reconcile to Table A4 Budgeted Financial Performance (revenue and expenditure)
A14: 2. Balance of allocations not directly linked to an IDP strategic objective
A15: check op revenue balance | E15: =E11-'A4-FinPerf RE'!C59 -> 0 | F15: =F11-'A4-FinPerf RE'!D59 -> -46554516.37 | G15: =G11-'A4-FinPerf RE'!E59 -> -51875091.49 | H15: =H11-'A4-FinPerf RE'!F59 -> -44350000 | I15: =I11-'A4-FinPerf RE'!G59 -> -59350000 | J15: =J11-'A4-FinPerf RE'!H59 -> -59350000 | K15: =K11-'A4-FinPerf RE'!J59 -> -50066000 | L15: =L11-'A4-FinPerf RE'!K59 -> -72728000 | M15: =M11-'A4-FinPerf RE'!L59 -> -80407000

Sheet SA5
A1: =muni&" - "&TableA5 -> LIM351 Blouberg - Supporting Table SA5 Reconciliation of IDP strategic objectives and budget (operating expenditure)
A2: Strategic Objective | B2: Goal | C2: Goal Code | D2: =head27 -> Ref | E2: =head1b -> 2016/17 | F2: =head1A -> 2017/18 | G2: =Head1 -> 2018/19 | H2: =Head2 -> Current Year 2019/20 | K2: =Head3 -> 2020/21 Medium Term Revenue & Expenditure Framework
A3: R thousand | E3: =Head5 -> Audited Outcome | F3: =Head5 -> Audited Outcome | G3: =Head5 -> Audited Outcome | H3: =Head6 -> Original Budget | I3: =Head7 -> Adjusted Budget | J3: =Head8 -> Full Year Forecast | K3: =Head9 -> Budget Year 2020/21 | L3: =Head10 -> Budget Year +1 2021/22 | M3: =Head11 -> Budget Year +2 2022/23
A4: SPATIAL PLANNING | E4: 0 | F4: 25390234.07 | G4: 27014465.8 | H4: 18913577 | I4: 19571401 | J4: 19571401 | K4: 23338165 | L4: 24654986 | M4: 26059325
A5: GOOD GOVERNANCE AND PUBLIC PARTICIPATION | E5: 0 | F5: 48925496.79 | G5: 51121935.91 | H5: 69133510 | I5: 66762582 | J5: 66762582 | K5: 68436178 | L5: 75438464 | M5: 80382435
A6: FINANCIAL VIABILITY AND MANAFEMENT | E6: 0 | F6: 9661257.78 | G6: 9851544.11 | H6: 12065788 | I6: 11607413 | J6: 11607413 | K6: 16248793 | L6: 18457547 | M6: 17300176
A7: LOCAL ECONOMIC DEVELOPMENT | E7: 0 | F7: 70527177.95 | G7: 35873432.74 | H7: 39309693 | I7: 39734532 | J7: 39734532 | K7: 45792637 | L7: 47963703 | M7: 51084963
A8: MUNICIPAL TRANSFORMATION AND ORGANISATION DEVELOMENT | E8: 0 | F8: 90064975.24 | G8: 71125838.15 | H8: 77309050 | I8: 76228118 | J8: 76228118 | K8: 77645261 | L8: 82675028 | M8: 87633456
A9: BASIC SERVICES AND INFRUSTRACTURE | E9: 0 | F9: 52994831.44 | G9: 80646942.58 | H9: 95681624 | I9: 99606640 | J9: 99606640 | K9: 104179832 | L9: 110286543 | M9: 117037915
A10: Allocations to other priorities
A11: ='A4-FinPerf RE'!A35 -> Total Expenditure | D11: 1 | E11: =SUM(E4:E10) -> 0 | F11: 297563973.3 | G11: 275634159.3 | H11: 312413242 | I11: 313510686 | J11: 313510686 | K11: 335640866 | L11: 359476271 | M11: 379498270
A12: =head27a -> References
A13: ="1. Total expenditure must reconcile to "&'Template names'!F103 -> 1. Total expenditure must reconcile to Table A4 Budgeted Financial Performance (revenue and expenditure)
A14: 2. Balance of allocations not directly linked to an IDP strategic objective
A15: check op expenditure balance | E15: =E11-'A4-FinPerf RE'!C35 -> 0 | F15: =F11-'A4-FinPerf RE'!D35 -> 0 | G15: =G11-'A4-FinPerf RE'!E35 -> 0 | H15: =H11-'A4-FinPerf RE'!F35 -> 0 | I15: =I11-'A4-FinPerf RE'!G35 -> 0 | J15: =J11-'A4-FinPerf RE'!H35 -> 0 | K15: =K11-'A4-FinPerf RE'!J35 -> 0 | L15: =L11-'A4-FinPerf RE'!K35 -> 0 | M15: =M11-'A4-FinPerf RE'!L35 -> 0

Sheet SA6
A1: =muni&" - "&TableA6 -> LIM351 Blouberg - Supporting Table SA6 Reconciliation of IDP strategic objectives and budget (capital expenditure)
A2: Strategic Objective | B2: Goal | C2: Goal Code | D2: =head27 -> Ref | E2: =head1b -> 2016/17 | F2: =head1A -> 2017/18 | G2: =Head1 -> 2018/19 | H2: =Head2 -> Current Year 2019/20 | K2: =Head3 -> 2020/21 Medium Term Revenue & Expenditure Framework
A3: R thousand | E3: =Head5 -> Audited Outcome | F3: =Head5 -> Audited Outcome | G3: =Head5 -> Audited Outcome | H3: =Head6 -> Original Budget | I3: =Head7 -> Adjusted Budget | J3: =Head8 -> Full Year Forecast | K3: =Head9 -> Budget Year 2020/21 | L3: =Head10 -> Budget Year +1 2021/22 | M3: =Head11 -> Budget Year +2 2022/23
A4: GOOD GOVERNANCE AND PUBLIC PARTICIPATION | E4: 0 | F4: 0 | G4: 0 | H4: 0 | I4: 0 | J4: 0 | K4: 4908000 | L4: 1616000 | M4: 1685960
A5: FINANCIAL VIABILITY AND MANAFEMENT | E5: 0 | F5: 0 | G5: 0 | H5: 0 | I5: 0 | J5: 0 | K5: 450000 | L5: 750000 | M5: 0
A6: LOCAL ECONOMIC DEVELOPMENT | E6: 0 | F6: 6801972.23 | G6: 1389839.35 | H6: 950000 | I6: 950000 | J6: 950000 | K6: 350000 | L6: 0 | M6: 0
A7: MUNICIPAL TRANSFORMATION AND ORGANISATION DEVELOMENT | E7: 0 | F7: 0 | G7: 143141.31 | H7: 2455000 | I7: 942530 | J7: 942530 | K7: 2500000 | L7: 2601000 | M7: 1707420
A8: BASIC SERVICES AND INFRUSTRACTURE | E8: 0 | F8: 29296797.56 | G8: 708928.26 | H8: 66127500 | I8: 62492527 | J8: 62492527 | K8: 51125788 | L8: 70984601 | M8: 78574631
A9: Allocations to other priorities | D9: 3
A10: Total Capital Expenditure | D10: 1 | E10: =SUM(E4:E9) -> 0 | F10: 36098769.79 | G10: 2241908.92 | H10: 69532500 | I10: 64385057 | J10: 64385057 | K10: 59333788 | L10: 75951601 | M10: 81968011
A11: =head27a -> References
A12: 1. Total capital expenditure must reconcile to Budgeted Capital Expenditure
A13: 2. Goal code must be used on Table SA36
A14: 3. Balance of allocations not directly linked to an IDP strategic objective
